Workbook

Sheet INDEX
A1: INDEX
A2: Model Specs
A3: 1. Information Sheet
A4: 2. Current Tariff Schedule
A5: 3. Continuity Schedule
A6: 4. Billing Det. for Def-Var
A7: 5. Allocating Def-Var Balances
A8: 6. Class A Consumption Data
A9: 6.1a GA Allocation
A10: 6.1 GA
A11: 6.2a CBR B_Allocation
A12: 6.2 CBR B
A13: 8. Calculation of Def-Var RR
A14: 9. STS-Tax Change
A15: 10. Shared Tax - RR
A16: 11. RTSR - Current Rates
A17: 12. RTSR-UTRs & Sub-Tx
A18: 13. RTSR-Historic Wholesale
A19: 14. RTSR-Current Wholesale
A20: 15. RTSR-Forecast Wholesale
A21: 16. RTSR-Rates to Forecast
A22: 17. Rev2Cost-GDPIPI
A23: 18. Regulatory Charges
A24: 19. Additional Rates
A25: 20. Final Tariff Schedule
A26: 21. Bill Impacts
A27: RATES
A28: BoD Reporting

Sheet Model Specs
A1: Back to Index | K1: Lists:
B2: Model Specifications
K3: Yes
B4: Utility | C4: Brampton rate zone | K4: No
B6: Applying for Rates Effective | C6: 2020-01-01 | K6: kWh
K7: kW
K8: kVA
B9: Line Loss Factor | C9: 1.0341
K10: Alectra - PowerStream rate zone | L10: PowerStream rate zone
K11: Alectra - Enersource rate zone | L11: Enersource rate zone
K12: Alectra - Horizon rate zone | L12: Horizon rate zone
K13: Alectra - Brampton rate zone | L13: Brampton rate zone
C14: Rate Classes (select from the List) | K14: Alectra - Guelph rate zone | L14: Guelph rate zone
B15: =IFERROR(VLOOKUP(C15,$K$16:$L$31,2,FALSE),"") -> R | C15: RESIDENTIAL SERVICE CLASSIFICATION
B16: GSL | C16: GENERAL SERVICE LESS THAN 50 kW SERVICE CLASSIFICATION | K16: RESIDENTIAL SERVICE CLASSIFICATION | L16: R | M16: R_TN | N16: R_TC
B17: GS50_699 | C17: GENERAL SERVICE 50 to 699 KW SERVICE CLASSIFICATION | K17: GENERAL SERVICE LESS THAN 50 kW SERVICE CLASSIFICATION | L17: GSL | M17: GSL_TN | N17: GSL_TC
B18: GS700 | C18: GENERAL SERVICE 700 to 4,999 KW SERVICE CLASSIFICATION | K18: GENERAL SERVICE 50 to 499 kW SERVICE CLASSIFICATION | L18: GS50_499 | M18: GS50_499_TN | N18: GS50_499_TC
B19: LU | C19: LARGE USE SERVICE CLASSIFICATION | K19: GENERAL SERVICE 50 to 699 KW SERVICE CLASSIFICATION | L19: GS50_699 | M19: GS50_699_TN | N19: GS50_699_TC
B20: SB | C20: STANDBY POWER SERVICE CLASSIFICATION | K20: GENERAL SERVICE 50 to 4,999 kW SERVICE CLASSIFICATION | L20: GS50 | M20: GS50_TN | N20: GS50_TC
B21: USL | C21: UNMETERED SCATTERED LOAD SERVICE CLASSIFICATION | K21: GENERAL SERVICE 500 to 4,999 kW SERVICE CLASSIFICATION | L21: GS500 | M21: GS500_TN | N21: GS500_TC
B22: SL | C22: STREET LIGHTING SERVICE CLASSIFICATION | K22: GENERAL SERVICE 700 to 4,999 KW SERVICE CLASSIFICATION | L22: GS700 | M22: GS700_TN | N22: GS700_TC
B23: EMD | C23: EMBEDDED DISTRIBUTOR SERVICE CLASSIFICATION | K23: LARGE USE SERVICE CLASSIFICATION | L23: LU | M23: LU_TN | N23: LU_TC
B24: =IFERROR(VLOOKUP(C24,$K$16:$L$31,2,FALSE),"") -> DG | C24: DISTRIBUTED GENERATION [DGEN] SERVICE CLASSIFICATION | K24: LARGE USE SERVICE WITH DEDICATED ASSETSCLASSIFICATION | L24: LU_DA | M24: LU_DA_TN | N24: LU_DA_TC
B25: WST | C25: ENERGY FROM WASTE SERVICE CLASSIFICATION | K25: UNMETERED SCATTERED LOAD SERVICE CLASSIFICATION | L25: USL | M25: USL_TN | N25: USL_TC
K26: STREET LIGHTING SERVICE CLASSIFICATION | L26: SL | M26: SL_TN | N26: SL_TC
K27: STANDBY POWER SERVICE CLASSIFICATION | L27: SB | M27: SB | N27: SB
K28: SENTINEL LIGHTING SERVICE CLASSIFICATION | L28: SEN | M28: SEN_TN | N28: SEN_TC
K29: EMBEDDED DISTRIBUTOR SERVICE CLASSIFICATION | L29: EMD | M29: EMD_TN | N29: EMD_TC
K30: DISTRIBUTED GENERATION [DGEN] SERVICE CLASSIFICATION | L30: DG | M30: DG_TN | N30: DG_TC
K31: ENERGY FROM WASTE SERVICE CLASSIFICATION | L31: WST | M31: WST_TN | N31: WST_TC
B34: Have one or more Class A customers | C34: Yes
K36: Newer Disposed
K37: 2015
K38: 2016
K39: 2017
K40: 2018

Sheet 1. Information Sheet
A1: Back to Index | V1: a
B2: INCENTIVE REGULATION MODEL FOR 2020 FILERS
N12: Version | O12: 1
F14: Utility Name | G14: Alectra - Brampton rate zone
F16: Service Territory
F18: Assigned EB Number | G18: EB-2019-0018
F20: Name of Contact and Title | G20: Indy J. Butany-DeSouza, Vice-President, Regulatory Affairs
F22: Phone Number | G22: 905-821-5727
F24: Email Address | G24: indy.butany@alectrautilities.com
F26: We are applying for rates effective | G26: 2020-01-01
F28: Rate-Setting Method | G28: Price Cap IR
B30: Please indicate in which Rate Year the Group 1 accounts were last cleared1 | G30: 2019
B32: Please indicate the last Cost of Service Re-Basing Year | G32: 2015
C35: Notes
D37: Pale gray cells represent input cells.
D39: Pale blue cells represent drop-down lists.
D41: White cells contain fixed values, automatically generated values or formulae.
B44: Note: 1. Rate year of application

Sheet 2. Current Tariff Schedule
A1: Back to Index | B1: Alectra Utilities Corporation
B2: Brampton Rate Zone
B3: TARIFF OF RATES AND CHARGES
B4: Effective Date January 1, 2019
B5: Implementation Date February 1, 2019
B6: This schedule supersedes and replaces all previously
B7: approved schedules of Rates, Charges and Loss Factors
D8: EB-2018-0016
B10: RESIDENTIAL SERVICE CLASSIFICATION
B12: This classification applies to an account where the electricity is supplied exclusively to single-family dwelling units for domestic or household purposes, including seasonal occupancy. This includes, but is not limited to, detached houses, one unit of a semi-detached, duplex, triplex or quadruplex house, with a residential zoning. Separately metered dwellings within a town house complex also qualify as residential customers. Class B consumers are defined in accordance with O. Reg. 429/04. Further servicing details are available in the distributor’s Conditions of Service.
B14: APPLICATION
B16: The application of these rates and charges shall be in accordance with the Licence of the Distributor and any Code or Order of the Ontario Energy Board, and amendments thereto as approved by the Ontario Energy Board, which may be applicable to the administration of this schedule.
B18: No rates and charges for the distribution of electricity and charges to meet the costs of any work or service done or furnished for the purpose of the distribution of electricity shall be made except as permitted by this schedule, unless required by the Distributor’s Licence or a Code or Order of the Ontario Energy Ontario Energy Board, and amendments thereto as approved by the Ontario Energy Board, or as specified herein.
B20: Unless specifically noted, this schedule does not contain any charges for the electricity commodity, be it under the Regulated Price Plan, a contract with a retailer or the wholesale market price, as applicable. In addition, the charges in the MONTHLY RATES AND CHARGES - Regulatory Component of this schedule do not apply to a customer that is an embedded wholesale market participant.
B22: It should be noted that this schedule does not list any charges, assessments, or credits that are required by law to be invoiced by a distributor and that are not subject to Ontario Energy Board approval, such as the Global Adjustment and the HST.
B24: MONTHLY RATES AND CHARGES - Delivery Component
A26: R_F | B26: Service Charge | D26: $ | E26: =VLOOKUP(A26,RATES!A:I,8,FALSE) -> 24.3
A27: R_SME | B27: Smart Metering Entity Charge - effective until December 31, 2022 | D27: $ | E27: =VLOOKUP(A27,RATES!A:I,8,FALSE) -> 0.57
A28: R_ICMF18 | B28: Rate Rider for Recovery of Incremental Capital (2018) - in effect until the effective date of the next cost of service based rate order | D28: $ | E28: =VLOOKUP(A28,RATES!A:I,8,FALSE) -> 0.23
A29: R_FRR19 | B29: Rate Rider for Recovery of 2019 Foregone Revenue - effective until December 31, 2019 | D29: $ | E29: =VLOOKUP(A29,RATES!A:I,8,FALSE) -> 0.05
A30: R_GA19 | B30: Rate Rider for Disposition of Global Adjustment Account (2019) - effective February 1, 2019 until December 31, 2019 Applicable only for Non-RPP Customers - Approved on an Interim Basis | D30: $/kWh | E30: =VLOOKUP(A30,RATES!A:I,8,FALSE) -> 0.0013
A31: R_GA18 | B31: Rate Rider for Disposition of Global Adjustment Account (2018) - effective until April 30, 2019 Applicable only for Non-RPP Customers | D31: $/kWh | E31: =VLOOKUP(A31,RATES!A:I,8,FALSE) -> -0.0009
A32: R_DVA19 | B32: Rate Rider for Disposition of Deferral/Variance Accounts (2019) - effective until December 31, 2019 - Approved on an Interim Basis | D32: $/kWh | E32: =VLOOKUP(A32,RATES!A:I,8,FALSE) -> -0.0014
A33: R_DVA18 | B33: Rate Rider for Disposition of Deferral/Variance Accounts (2018) - effective until April 30, 2019 | D33: $/kWh | E33: =VLOOKUP(A33,RATES!A:I,8,FALSE) -> -0.001
A34: R_LRV19 | B34: Rate Rider for Disposition of Lost Revenue Adjustment Mechanism Variance Account (LRAMVA) (2019) - effective until December 31, 2019 | D34: $/kWh | E34: =VLOOKUP(A34,RATES!A:I,8,FALSE) -> 0.0003
A35: R_TN | B35: Retail Transmission Rate - Network Service Rate | D35: $/kWh | E35: =VLOOKUP(A35,RATES!A:I,8,FALSE) -> 0.0072
A36: R_TC | B36: Retail Transmission Rate - Line and Transformation Connection Service Rate | D36: $/kWh | E36: =VLOOKUP(A36,RATES!A:I,8,FALSE) -> 0.0063
B38: MONTHLY RATES AND CHARGES - Regulatory Component
B40: Wholesale Market Service Rate (WMS) - not including CBR | D40: $/kWh | E40: 0.003
B41: Capacity Based Recovery (CBR) - Applicable for Class B Customers | D41: $/kWh | E41: 0.0004
B42: Rural or Remote Electricity Rate Protection Charge (RRRP) | D42: $/kWh | E42: 0.0005
B43: Standard Supply Service - Administrative Charge (if applicable) | D43: $ | E43: 0.25
B46: GENERAL SERVICE LESS THAN 50 KW SERVICE CLASSIFICATION
B48: This classification applies to a non residential account whose average monthly maximum demand is less than, or is forecast to be less than, 50 kW. Multi-unit residential establishments such as apartment buildings supplied through one service (bulk metered) shall normally be classified as general service. Where service is provided to combined residential and business, or residential and agricultural, whether seasonal or all-year premises, and the wiring does not provide for separate metering, the service shall normally be classed as general service. Class B consumers are defined in accordance with O. Reg. 429/04. Further servicing details are available in the distributor’s Conditions of Service.
B50: APPLICATION
B52: The application of these rates and charges shall be in accordance with the Licence of the Distributor and any Code or Order of the Ontario Energy Board, and amendments thereto as approved by the Ontario Energy Board, which may be applicable to the administration of this schedule.
B54: No rates and charges for the distribution of electricity and charges to meet the costs of any work or service done or furnished for the purpose of the distribution of electricity shall be made except as permitted by this schedule, unless required by the Distributor’s Licence or a Code or Order of the Ontario Energy Board, and amendments thereto as approved by the Ontario Energy Board, or as specified herein.
B56: Unless specifically noted, this schedule does not contain any charges for the electricity commodity, be it under the Regulated Price Plan, a contract with a retailer or the wholesale market price, as applicable. In addition, the charges in the MONTHLY RATES AND CHARGES - Regulatory Component of this schedule do not apply to a customer that is an embedded wholesale market participant.
B58: It should be noted that this schedule does not list any charges, assessments, or credits that are required by law to be invoiced by a distributor and that are not subject to Ontario Energy Board approval, such as the Global Adjustment and the HST.
B60: MONTHLY RATES AND CHARGES - Delivery Component
A62: GSL_F | B62: Service Charge | D62: $ | E62: =VLOOKUP(A62,RATES!A:I,8,FALSE) -> 25.65
A63: GSL_SME | B63: Smart Metering Entity Charge - effective until December 31, 2022 | D63: $ | E63: =VLOOKUP(A63,RATES!A:I,8,FALSE) -> 0.57
A64: GSL_ICMF18 | B64: Rate Rider for Recovery of Incremental Capital (2018) - in effect until the effective date of the next cost of service based rate order | D64: $ | E64: =VLOOKUP(A64,RATES!A:I,8,FALSE) -> 0.24
A65: GSL_FRR19 | B65: Rate Rider for Recovery of 2019 Foregone Revenue - effective until December 31, 2019 | D65: $ | E65: =VLOOKUP(A65,RATES!A:I,8,FALSE) -> 0.09
A66: GSL_V | B66: Distribution Volumetric Rate | D66: $/kWh | E66: =VLOOKUP(A66,RATES!A:I,8,FALSE) -> 0.0171
A67: GSL_GA19 | B67: Rate Rider for Disposition of Global Adjustment Account (2019) - effective until December 31, 2019 Applicable only for Non-RPP Customers - Approved on an Interim Basis | D67: $/kWh | E67: =VLOOKUP(A67,RATES!A:I,8,FALSE) -> 0.0013
A68: GSL_GA18 | B68: Rate Rider for Disposition of Global Adjustment Account (2018) - effective until April 30, 2019 - Applicable only for Non-RPP Customers | D68: $/kWh | E68: =VLOOKUP(A68,RATES!A:I,8,FALSE) -> -0.0009
A69: GSL_DVA19 | B69: Rate Rider for Disposition of Deferral/Variance Accounts (2019) - effective until December 31, 2019 - Approved on an Interim Basis | D69: $/kWh | E69: =VLOOKUP(A69,RATES!A:I,8,FALSE) -> -0.0013
A70: GSL_DVA18 | B70: Rate Rider for Disposition of Deferral/Variance Accounts (2018) - effective until April 30, 2019 | D70: $/kWh | E70: =VLOOKUP(A70,RATES!A:I,8,FALSE) -> -0.001
A71: GSL_LRV19 | B71: Rate Rider for Disposition of Lost Revenue Adjustment Mechanism Variance Account (LRAMVA) (2019) - effective until December 31, 2019 | D71: $/kWh | E71: =VLOOKUP(A71,RATES!A:I,8,FALSE) -> 0.0009
A72: GSL_ICMV18 | B72: Rate Rider for Recovery of Incremental Capital (2018) - in effect until the effective date of the next cost of service based rate order | D72: $/kWh | E72: =VLOOKUP(A72,RATES!A:I,8,FALSE) -> 0.0002
A73: GSL_TN | B73: Retail Transmission Rate - Network Service Rate | D73: $/kWh | E73: =VLOOKUP(A73,RATES!A:I,8,FALSE) -> 0.0064
A74: GSL_TC | B74: Retail Transmission Rate - Line and Transformation Connection Service Rate | D74: $/kWh | E74: =VLOOKUP(A74,RATES!A:I,8,FALSE) -> 0.0053
B76: MONTHLY RATES AND CHARGES - Regulatory Component
B78: Wholesale Market Service Rate (WMS) - not including CBR | D78: $/kWh | E78: 0.003
B79: Capacity Based Recovery (CBR) - Applicable for Class B Customers | D79: $/kWh | E79: 0.0004
B80: Rural or Remote Electricity Rate Protection Charge (RRRP) | D80: $/kWh | E80: 0.0005
B81: Standard Supply Service - Administrative Charge (if applicable) | D81: $ | E81: 0.25
B84: GENERAL SERVICE 50 TO 699 KW SERVICE CLASSIFICATION
B86: This classification applies to a non residential account whose average monthly maximum demand used for billing purposes is equal to or greater than, or is forecast to be equal to or greater than, 50 kW but less than 700 kW. Class B consumers are defined in accordance with O. Reg. 429/04. Further servicing details are available in the distributor’s Conditions of Service.
B88: APPLICATION
B90: The application of these rates and charges shall be in accordance with the Licence of the Distributor and any Code or Order of the Ontario Energy Board, and amendments thereto as approved by the Ontario Energy Board, which may be applicable to the administration of this schedule.
B92: No rates and charges for the distribution of electricity and charges to meet the costs of any work or service done or furnished for the purpose of the distribution of electricity shall be made except as permitted by this schedule, unless required by the Distributor’s Licence or a Code or Order of the Ontario Energy Board, and amendments thereto as approved by the Ontario Energy Board, or as specified herein.
B94: Unless specifically noted, this schedule does not contain any charges for the electricity commodity, be it under the Regulated Price Plan, a contract with a retailer or the wholesale market price, as applicable. In addition, the charges in the MONTHLY RATES AND CHARGES - Regulatory Component of this schedule do not apply to a customer that is an embedded wholesale market participant.
B96: It should be noted that this schedule does not list any charges, assessments, or credits that are required by law to be invoiced by a distributor and that are not subject to Ontario Energy Board approval, such as the Global Adjustment and the HST.
B98: MONTHLY RATES AND CHARGES - Delivery Component
A100: GS50_699_F | B100: Service Charge | D100: $ | E100: =VLOOKUP(A100,RATES!A:I,8,FALSE) -> 127.98
A101: GS50_699_ICMF18 | B101: Rate Rider for Recovery of Incremental Capital (2018) - in effect until the effective date of the next cost of service based rate order | D101: $ | E101: =VLOOKUP(A101,RATES!A:I,8,FALSE) -> 1.21
A102: GS50_699_FRR19 | B102: Rate Rider for Recovery of 2019 Foregone Revenue - effective until December 31, 2019 | D102: $ | E102: =VLOOKUP(A102,RATES!A:I,8,FALSE) -> 0.65
A103: GS50_699_V | B103: Distribution Volumetric Rate | D103: $/kW | E103: =VLOOKUP(A103,RATES!A:I,8,FALSE) -> 2.8986
A104: GS50_699_GA19 | B104: Rate Rider for Disposition of Global Adjustment Account (2019) - effective from May 1, 2019 until December 31, 2019 Applicable only for Non-RPP Customers - Approved on an Interim Basis | D104: $/kWh | E104: =VLOOKUP(A104,RATES!A:I,8,FALSE) -> 0.0018
A105: GS50_699_GA18 | B105: Rate Rider for Disposition of Global Adjustment Account (2018) - effective until April 30, 2019 - Applicable only for Non-RPP Customers | D105: $/kWh | E105: =VLOOKUP(A105,RATES!A:I,8,FALSE) -> -0.0009
A106: GS50_699_DVA19 | B106: Rate Rider for Disposition of Deferral/Variance Accounts (2019) - effective until December 31, 2019 - Approved on an Interim Basis | D106: $/kW | E106: =VLOOKUP(A106,RATES!A:I,8,FALSE) -> 0.0147
A107: GS50_699_DVA19nonWMP | B107: Rate Rider for Disposition of Deferral/Variance Accounts (2019) - effective until December 31, 2019 Applicable only for Non-Wholesale Market Participants - Approved on an Interim Basis | D107: $/kW | E107: =VLOOKUP(A107,RATES!A:I,8,FALSE) -> -0.4742
A108: GS50_699_DVA18 | B108: Rate Rider for Disposition of Deferral/Variance Accounts (2018) - effective until April 30, 2019 | D108: $/kW | E108: =VLOOKUP(A108,RATES!A:I,8,FALSE) -> 0.0055
A109: GS50_699_DVA18nonWMP | B109: Rate Rider for Disposition of Deferral/Variance Accounts (2018) - effective until April 30, 2019 Applicable only for Non-Wholesale Market Participants | D109: $/kW | E109: =VLOOKUP(A109,RATES!A:I,8,FALSE) -> -0.3626
A110: GS50_699_LRV19 | B110: Rate Rider for Disposition of Lost Revenue Adjustment Mechanism Variance Account (LRAMVA) (2019) - effective until December 31, 2019 | D110: $/kW | E110: =VLOOKUP(A110,RATES!A:I,8,FALSE) -> 0.0368
A111: GS50_699_ICMV18 | B111: Rate Rider for Recovery of Incremental Capital (2018) - in effect until the effective date of the next cost of service based rate order | D111: $/kW | E111: =VLOOKUP(A111,RATES!A:I,8,FALSE) -> 0.0273
A112: GS50_699_TN | B112: Retail Transmission Rate - Network Service Rate | D112: $/kW | E112: =VLOOKUP(A112,RATES!A:I,8,FALSE) -> 2.4987
A113: GS50_699_TC | B113: Retail Transmission Rate - Line and Transformation Connection Service Rate | D113: $/kW | E113: =VLOOKUP(A113,RATES!A:I,8,FALSE) -> 2.1236
B115: MONTHLY RATES AND CHARGES - Regulatory Component
B117: Wholesale Market Service Rate (WMS) - not including CBR | D117: $/kWh | E117: 0.003
B118: Capacity Based Recovery (CBR) - Applicable for Class B Customers | D118: $/kWh | E118: 0.0004
B119: Rural or Remote Electricity Rate Protection Charge (RRRP) | D119: $/kWh | E119: 0.0005
B120: Standard Supply Service - Administrative Charge (if applicable) | D120: $ | E120: 0.25
B123: GENERAL SERVICE 700 TO 4,999 KW SERVICE CLASSIFICATION
B125: This classification applies to a non residential account whose average monthly maximum demand used for billing purposes is equal to or greater than, or is forecast to be equal to or greater than, 700 kW but less than 5,000 kW. Class A and Class B consumers are defined in accordance with O. Reg. 429/04. Further servicing details are available in the distributor’s Conditions of Service.
B127: APPLICATION
B129: The application of these rates and charges shall be in accordance with the Licence of the Distributor and any Code or Order of the Ontario Energy Board, and amendments thereto as approved by the Ontario Energy Board, which may be applicable to the administration of this schedule.
B131: No rates and charges for the distribution of electricity and charges to meet the costs of any work or service done or furnished for the purpose of the distribution of electricity shall be made except as permitted by this schedule, unless required by the Distributor’s Licence or a Code or Order of the Ontario Energy Board, and amendments thereto as approved by the Ontario Energy Board, or as specified herein.
B133: Unless specifically noted, this schedule does not contain any charges for the electricity commodity, be it under the Regulated Price Plan, a contract with a retailer or the wholesale market price, as applicable. In addition, the charges in the MONTHLY RATES AND CHARGES - Regulatory Component of this schedule do not apply to a customer that is an embedded wholesale market participant.
B135: The rate rider for the disposition of Global Adjustment is only applicable to non-RPP Class B customers. It is not applicable to WMP customers that transitioned between Class A and Class B during the variance account accumulation period, or to customers that were in Class A for the entire period. Customers that transitioned are to be charged or refunded their share of the variance disposed through customer specific billing adjustments. The rate rider is to be consistently applied for the entire period to the sunset date of the rate rider. In addition, this rate rider is applicable to all new non-RPP Class B customers.
B137: It should be noted that this schedule does not list any charges, assessments, or credits that are required by law to be invoiced by a distributor and that are not subject to Ontario Energy Board approval, such as the Global Adjustment and the HST.
B139: MONTHLY RATES AND CHARGES - Delivery Component
A141: GS700_F | B141: Service Charge | D141: $ | E141: =VLOOKUP(A141,RATES!A:I,8,FALSE) -> 1154.71
A142: GS700_ICMF18 | B142: Rate Rider for Recovery of Incremental Capital (2018) - in effect until the effective date of the next cost of service based rate order | D142: $ | E142: =VLOOKUP(A142,RATES!A:I,8,FALSE) -> 10.89
A143: GS700_FRR19 | B143: Rate Rider for Recovery of 2019 Foregone Revenue - effective February 1, 2019 until December 31, 2019 | D143: $ | E143: =VLOOKUP(A143,RATES!A:I,8,FALSE) -> 6.63
A144: GS700_V | B144: Distribution Volumetric Rate | D144: $/kW | E144: =VLOOKUP(A144,RATES!A:I,8,FALSE) -> 3.3649
A145: GS700_GA19 | B145: Rate Rider for Disposition of Global Adjustment Account (2019) - effective May 1, 2019 until December 31, 2019 Applicable only for Non-RPP Customers - Approved on an Interim Basis | D145: $/kWh | E145: =VLOOKUP(A145,RATES!A:I,8,FALSE) -> 0.0018
A146: GS700_GA18 | B146: Rate Rider for Disposition of Global Adjustment Account (2018) - effective until April 30, 2019 Applicable only for Non-RPP Customers | D146: $/kWh | E146: =VLOOKUP(A146,RATES!A:I,8,FALSE) -> -0.0009
A147: GS700_DVA19 | B147: Rate Rider for Disposition of Deferral/Variance Accounts (2019) - effective until December 31, 2019 - Approved on an Interim Basis | D147: $/kW | E147: =VLOOKUP(A147,RATES!A:I,8,FALSE) -> 0.0178
A148: GS700_DVA19nonWMP | B148: Rate Rider for Disposition of Deferral/Variance Accounts (2019) - effective until December 31, 2019 Applicable only for Non-Wholesale Market Participants - Approved on an Interim Basis | D148: $/kW | E148: =VLOOKUP(A148,RATES!A:I,8,FALSE) -> -0.5613
A149: GS700_DVA18 | B149: Rate Rider for Disposition of Deferral/Variance Accounts (2018) - effective until April 30, 2019 | D149: $/kW | E149: =VLOOKUP(A149,RATES!A:I,8,FALSE) -> 0.0067
A150: GS700_DVA18nonWMP | B150: Rate Rider for Disposition of Deferral/Variance Accounts (2018) - effective until April 30, 2019 Applicable only for Non-Wholesale Market Participants | D150: $/kW | E150: =VLOOKUP(A150,RATES!A:I,8,FALSE) -> -0.4225
A151: GS700_LRV19 | B151: Rate Rider for Disposition of Lost Revenue Adjustment Mechanism Variance Account (LRAMVA) (2019) - effective until December 31, 2019 | D151: $/kW | E151: =VLOOKUP(A151,RATES!A:I,8,FALSE) -> 0.0323
A152: GS700_ICMV18 | B152: Rate Rider for Recovery of Incremental Capital (2018) - in effect until the effective date of the next cost of service based rate order | D152: $/kW | E152: =VLOOKUP(A152,RATES!A:I,8,FALSE) -> 0.0317
A153: GS700_TN | B153: Retail Transmission Rate - Network Service Rate | D153: $/kW | E153: =VLOOKUP(A153,RATES!A:I,8,FALSE) -> 2.8022
A154: GS700_TC | B154: Retail Transmission Rate - Line and Transformation Connection Service Rate | D154: $/kW | E154: =VLOOKUP(A154,RATES!A:I,8,FALSE) -> 2.2827
B156: MONTHLY RATES AND CHARGES - Regulatory Component
B158: Wholesale Market Service Rate (WMS) - not including CBR | D158: $/kWh | E158: 0.003
B159: Capacity Based Recovery (CBR) - Applicable for Class B Customers | D159: $/kWh | E159: 0.0004
B160: Rural or Remote Electricity Rate Protection Charge (RRRP) | D160: $/kWh | E160: 0.0005
B161: Standard Supply Service - Administrative Charge (if applicable) | D161: $ | E161: 0.25
B164: LARGE USE SERVICE CLASSIFICATION
B166: This classification applies to an account whose average monthly maximum demand over 12 consecutive months used for billing purposes is equal to or greater than 5,000 kW, or is forecast to be equal to or greater than 5,000 kW. Class A and Class B consumers are defined in accordance with O. Reg. 429/04. Further servicing details are available in the distributor’s Conditions of Service.
B168: APPLICATION
B170: The application of these rates and charges shall be in accordance with the Licence of the Distributor and any Code or Order of the Ontario Energy Board, and amendments thereto as approved by the Ontario Energy Board, which may be applicable to the administration of this schedule.
B172: No rates and charges for the distribution of electricity and charges to meet the costs of any work or service done or furnished for the purpose of the distribution of electricity shall be made except as permitted by this schedule, unless required by the Distributor’s Licence or a Code or Order of the Ontario Energy Board, and amendments thereto as approved by the Ontario Energy Board, or as specified herein.
B174: Unless specifically noted, this schedule does not contain any charges for the electricity commodity, be it under the Regulated Price Plan, a contract with a retailer or the wholesale market price, as applicable. In addition, the charges in the MONTHLY RATES AND CHARGES - Regulatory Component of this schedule do not apply to a customer that is an embedded wholesale market participant.
B176: The rate rider for the disposition of Global Adjustment is only applicable to non-RPP Class B customers. It is not applicable to WMP customers that transitioned between Class A and Class B during the variance account accumulation period, or to customers that were in Class A for the entire period. Customers that transitioned are to be charged or refunded their share of the variance disposed through customer specific billing adjustments. The rate rider is to be consistently applied for the entire period to the sunset date of the rate rider. In addition, this rate rider is applicable to all new non-RPP Class B customers.
B178: It should be noted that this schedule does not list any charges, assessments, or credits that are required by law to be invoiced by a distributor and that are not subject to Ontario Energy Board approval, such as the Global Adjustment and the HST.
B180: MONTHLY RATES AND CHARGES - Delivery Component
A182: LU_F | B182: Service Charge | D182: $ | E182: =VLOOKUP(A182,RATES!A:I,8,FALSE) -> 4804.99
A183: LU_ICMF18 | B183: Rate Rider for Recovery of Incremental Capital (2018) - in effect until the effective date of the next cost of service based rate order | D183: $ | E183: =VLOOKUP(A183,RATES!A:I,8,FALSE) -> 45.33
A184: LU_FRR19 | B184: Rate Rider for Recovery of 2019 Foregone Revenue - effective until December 31, 2019 | D184: $ | E184: =VLOOKUP(A184,RATES!A:I,8,FALSE) -> 29.43
A185: LU_V | B185: Distribution Volumetric Rate | D185: $/kW | E185: =VLOOKUP(A185,RATES!A:I,8,FALSE) -> 2.5476
A186: LU_GA18 | B186: Rate Rider for Disposition of Global Adjustment Account (2018) - effective until April 30, 2019 - Applicable only for Non-RPP Customers | D186: $/kWh | E186: =VLOOKUP(A186,RATES!A:I,8,FALSE) -> -0.0009
A187: LU_DVA19 | B187: Rate Rider for Disposition of Deferral/Variance Accounts (2019) - effective until December 31, 2019 - Approved on an Interim Basis | D187: $/kW | E187: =VLOOKUP(A187,RATES!A:I,8,FALSE) -> -0.7075
A188: LU_DVA18 | B188: Rate Rider for Disposition of Deferral/Variance Accounts (2018) - effective until April 30, 2019 | D188: $/kW | E188: =VLOOKUP(A188,RATES!A:I,8,FALSE) -> -0.552
A189: LU_LRV19 | B189: Rate Rider for Disposition of Lost Revenue Adjustment Mechanism Variance Account (LRAMVA) (2019) - effective until December 31, 2019 | D189: $/kW | E189: =VLOOKUP(A189,RATES!A:I,8,FALSE) -> 0.0587
A190: LU_ICMV18 | B190: Rate Rider for Recovery of Incremental Capital (2018) - in effect until the effective date of the next cost of service based rate order | D190: $/kW | E190: =VLOOKUP(A190,RATES!A:I,8,FALSE) -> 0.024
A191: LU_TN | B191: Retail Transmission Rate - Network Service Rate | D191: $/kW | E191: =VLOOKUP(A191,RATES!A:I,8,FALSE) -> 3.1716
A192: LU_TC | B192: Retail Transmission Rate - Line and Transformation Connection Service Rate | D192: $/kW | E192: =VLOOKUP(A192,RATES!A:I,8,FALSE) -> 2.6383
B194: MONTHLY RATES AND CHARGES - Regulatory Component
B196: Wholesale Market Service Rate (WMS) - not including CBR | D196: $/kWh | E196: 0.003
B197: Capacity Based Recovery (CBR) - Applicable for Class B Customers | D197: $/kWh | E197: 0.0004
B198: Rural or Remote Electricity Rate Protection Charge (RRRP) | D198: $/kWh | E198: 0.0005
B199: Standard Supply Service - Administrative Charge (if applicable) | D199: $ | E199: 0.25
B202: UNMETERED SCATTERED LOAD SERVICE CLASSIFICATION
B204: This classification applies to an account whose average monthly maximum demand is less than, or is forecast to be less than, 50 kW and the consumption is unmetered. Such connections include cable TV power packs, bus shelters, telephone booths, traffic lights, railway crossings, etc. The level of the consumption will be agreed to by the distributor and the customer, based on detailed manufacturer information/documentation with regard to electrical consumption of the unmetered load or periodic monitoring of actual consumption. Class B consumers are defined in accordance with O. Reg. 429/04. Further servicing details are available in the distributor’s Conditions of Service.
B206: APPLICATION
B208: The application of these rates and charges shall be in accordance with the Licence of the Distributor and any Code or Order of the Ontario Energy Board, and amendments thereto as approved by the Ontario Energy Board, which may be applicable to the administration of this schedule.
B210: No rates and charges for the distribution of electricity and charges to meet the costs of any work or service done or furnished for the purpose of the distribution of electricity shall be made except as permitted by this schedule, unless required by the Distributor’s Licence or a Code or Order of the Ontario Energy Board, and amendments thereto as approved by the Ontario Energy Board, or as specified herein.
B212: Unless specifically noted, this schedule does not contain any charges for the electricity commodity, be it under the Regulated Price Plan, a contract with a retailer or the wholesale market price, as applicable. In addition, the charges in the MONTHLY RATES AND CHARGES - Regulatory Component of this schedule do not apply to a customer that is an embedded wholesale market participant.
B214: It should be noted that this schedule does not list any charges, assessments, or credits that are required by law to be invoiced by a distributor and that are not subject to Ontario Energy Board approval, such as the Global Adjustment and the HST.
B216: MONTHLY RATES AND CHARGES - Delivery Component
A218: USL_F | B218: Service Charge | D218: $ | E218: =VLOOKUP(A218,RATES!A:I,8,FALSE) -> 1.11
A219: USL_ICMF18 | B219: Rate Rider for Recovery of Incremental Capital (2018) - in effect until the effective date of the next cost of service based rate order | D219: $ | E219: =VLOOKUP(A219,RATES!A:I,8,FALSE) -> 0.01
A220: USL_FRR19 | B220: Rate Rider for Recovery of 2019 Foregone Revenue - effective until December 31, 2019 | D220: $ | E220: =VLOOKUP(A220,RATES!A:I,8,FALSE) -> 0.01
A221: USL_V | B221: Distribution Volumetric Rate | D221: $/kWh | E221: =VLOOKUP(A221,RATES!A:I,8,FALSE) -> 0.0202
A222: USL_GA19 | B222: Rate Rider for Disposition of Global Adjustment Account (2019) - effective until December 31, 2019 Applicable only for Non-RPP Customers - Approved on an Interim Basis | D222: $/kWh | E222: =VLOOKUP(A222,RATES!A:I,8,FALSE) -> 0.0013
A223: USL_GA18 | B223: Rate Rider for Disposition of Global Adjustment Account (2018) - effective until April 30, 2019 - Applicable only for Non-RPP Customers | D223: $/kWh | E223: =VLOOKUP(A223,RATES!A:I,8,FALSE) -> -0.0009
A224: USL_DVA19 | B224: Rate Rider for Disposition of Deferral/Variance Accounts (2019) - effective until December 31, 2019 - Approved on an Interim Basis | D224: $/kWh | E224: =VLOOKUP(A224,RATES!A:I,8,FALSE) -> -0.0013
A225: USL_DVA18 | B225: Rate Rider for Disposition of Deferral/Variance Accounts (2018) - effective until April 30, 2019 | D225: $/kWh | E225: =VLOOKUP(A225,RATES!A:I,8,FALSE) -> -0.001
A226: USL_ICMV18 | B226: Rate Rider for Recovery of Incremental Capital (2018) - in effect until the effective date of the next cost of service based rate order | D226: $/kWh | E226: =VLOOKUP(A226,RATES!A:I,8,FALSE) -> 0.0002
A227: USL_TN | B227: Retail Transmission Rate - Network Service Rate | D227: $/kWh | E227: =VLOOKUP(A227,RATES!A:I,8,FALSE) -> 0.0064
A228: USL_TC | B228: Retail Transmission Rate - Line and Transformation Connection Service Rate | D228: $/kWh | E228: =VLOOKUP(A228,RATES!A:I,8,FALSE) -> 0.0053
B230: MONTHLY RATES AND CHARGES - Regulatory Component
B232: Wholesale Market Service Rate (WMS) - not including CBR | D232: $/kWh | E232: 0.003
B233: Capacity Based Recovery (CBR) - Applicable for Class B Customers | D233: $/kWh | E233: 0.0004
B234: Rural or Remote Electricity Rate Protection Charge (RRRP) | D234: $/kWh | E234: 0.0005
B235: Standard Supply Service - Administrative Charge (if applicable) | D235: $ | E235: 0.25
B238: STREET LIGHTING SERVICE CLASSIFICATION
B240: All service supplied to roadway lighting equipment owned by or operated by the City of Brampton, Regional Municipality of Peel, or the Ministry of Transportation, controlled by photo cells. The consumption for these customers will be based on the calculated connected load times the required lighting times established in the approved Ontario Energy Board street lighting load shape template. Class B consumers are defined in accordance with O. Reg. 429/04. Further servicing details are available in the distributor’s Conditions of Service.
B242: APPLICATION
B244: The application of these rates and charges shall be in accordance with the Licence of the Distributor and any Code or Order of the Ontario Energy Board, and amendments thereto as approved by the Ontario Energy Board, which may be applicable to the administration of this schedule.
B246: No rates and charges for the distribution of electricity and charges to meet the costs of any work or service done or furnished for the purpose of the distribution of electricity shall be made except as permitted by this schedule, unless required by the Distributor’s Licence or a Code or Order of the Ontario Energy Board, and amendments thereto as approved by the Ontario Energy Board, or as specified herein.
B248: Unless specifically noted, this schedule does not contain any charges for the electricity commodity, be it under the Regulated Price Plan, a contract with a retailer or the wholesale market price, as applicable. In addition, the charges in the MONTHLY RATES AND CHARGES - Regulatory Component of this schedule do not apply to a customer that is an embedded wholesale market participant.
B250: It should be noted that this schedule does not list any charges, assessments, or credits that are required by law to be invoiced by a distributor and that are not subject to Ontario Energy Board approval, such as the Global Adjustment and the HST.
B252: MONTHLY RATES AND CHARGES - Delivery Component
A254: SL_F | B254: Service Charge (per connection) | D254: $ | E254: =VLOOKUP(A254,RATES!A:I,8,FALSE) -> 2.35
A255: SL_ICMF18 | B255: Rate Rider for Recovery of Incremental Capital (2018) - in effect until the effective date of the next cost of service based rate order | D255: $ | E255: =VLOOKUP(A255,RATES!A:I,8,FALSE) -> 0.02
A256: SL_FRR19 | B256: Rate Rider for Recovery of 2019 Foregone Revenue - effective until December 31, 2019 | D256: $ | E256: =VLOOKUP(A256,RATES!A:I,8,FALSE) -> 0.01
A257: SL_V | B257: Distribution Volumetric Rate | D257: $/kW | E257: =VLOOKUP(A257,RATES!A:I,8,FALSE) -> 11.7823
A258: SL_GA19 | B258: Rate Rider for Disposition of Global Adjustment Account (2019) - effective until December 31, 2019 Applicable only for Non-RPP Customers - Approved on an Interim Basis | D258: $/kWh | E258: =VLOOKUP(A258,RATES!A:I,8,FALSE) -> 0.0013
A259: SL_GA18 | B259: Rate Rider for Disposition of Global Adjustment Account (2018) - effective until April 30, 2019 - Applicable only for Non-RPP Customers | D259: $/kWh | E259: =VLOOKUP(A259,RATES!A:I,8,FALSE) -> -0.0009
A260: SL_DVA19 | B260: Rate Rider for Disposition of Deferral/Variance Accounts (2019) - effective until December 31, 2019 - Approved on an Interim Basis | D260: $/kW | E260: =VLOOKUP(A260,RATES!A:I,8,FALSE) -> -0.4574
A261: SL_DVA18 | B261: Rate Rider for Disposition of Deferral/Variance Accounts (2018) - effective until April 30, 2019 | D261: $/kW | E261: =VLOOKUP(A261,RATES!A:I,8,FALSE) -> -0.3219
A262: SL_ICMV18 | B262: Rate Rider for Recovery of Incremental Capital (2018) - in effect until the effective date of the next cost of service based rate order | D262: $/kW | E262: =VLOOKUP(A262,RATES!A:I,8,FALSE) -> 0.1112
A263: SL_TN | B263: Retail Transmission Rate - Network Service Rate | D263: $/kW | E263: =VLOOKUP(A263,RATES!A:I,8,FALSE) -> 2.0806
A264: SL_TC | B264: Retail Transmission Rate - Line and Transformation Connection Service Rate | D264: $/kW | E264: =VLOOKUP(A264,RATES!A:I,8,FALSE) -> 1.768
B266: MONTHLY RATES AND CHARGES - Regulatory Component
B268: Wholesale Market Service Rate (WMS) - not including CBR | D268: $/kWh | E268: 0.003
B269: Capacity Based Recovery (CBR) - Applicable for Class B Customers | D269: $/kWh | E269: 0.0004
B270: Rural or Remote Electricity Rate Protection Charge (RRRP) | D270: $/kWh | E270: 0.0005
B271: Standard Supply Service - Administrative Charge (if applicable) | D271: $ | E271: 0.25
B274: STANDBY POWER SERVICE CLASSIFICATION
B276: This classification refers to an account that has Load Displacement Generation and requires the distributor to provide back-up service. Further servicing details are available in the distributor’s Conditions of Service.
B278: APPLICATION
B280: The application of these rates and charges shall be in accordance with the Licence of the Distributor and any Code or Order of the Ontario Energy Board, and amendments thereto as approved by the Ontario Energy Board, which may be applicable to the administration of this schedule.
B282: No rates and charges for the distribution of electricity and charges to meet the costs of any work or service done or furnished for the purpose of the distribution of electricity shall be made except as permitted by this schedule, unless required by the Distributor’s Licence or a Code or Order of the Ontario Energy Board, and amendments thereto as approved by the Ontario Energy Board, or as specified herein.
B284: Unless specifically noted, this schedule does not contain any charges for the electricity commodity, be it under the Regulated Price Plan, a contract with a retailer or the wholesale market price, as applicable. In addition, the charges in the MONTHLY RATES AND CHARGES - Regulatory Component of this schedule do not apply to a customer that is an embedded wholesale market participant.
B286: It should be noted that this schedule does not list any charges, assessments, or credits that are required by law to be invoiced by a distributor and that are not subject to Ontario Energy Board approval, such as the Global Adjustment and the HST.
B288: MONTHLY RATES AND CHARGES - Delivery Component - Approved on an Interim Basis
A290: SB_V | B290: Distribution Volumetric Rate | D290: $/kW | E290: =VLOOKUP(A290,RATES!A:I,8,FALSE) -> 1.7134
B292: EMBEDDED DISTRIBUTOR SERVICE CLASSIFICATION
B294: This classification applies to an electricity distributor licensed by the Ontario Energy Board, that is provided electricity by means of this distributor's facilities. Class B consumers are defined in accordance with O. Reg. 429/04. Further servicing details are available in the distributor’s Conditions of Service.
B296: APPLICATION
B298: The application of these rates and charges shall be in accordance with the Licence of the Distributor and any Code or Order of the Ontario Energy Board, and amendments thereto as approved by the Ontario Energy Board, which may be applicable to the administration of this schedule.
B300: No rates and charges for the distribution of electricity and charges to meet the costs of any work or service done or furnished for the purpose of the distribution of electricity shall be made except as permitted by this schedule, unless required by the Distributor’s Licence or a Code or Order of the Ontario Energy Board, and amendments thereto as approved by the Ontario Energy Board, or as specified herein.
... 124 more rows

Sheet 3. Continuity Schedule
A1: Back to Index | B1: Back to Index | CB1: FALSE
C2: =+'[13]1. Information Sheet'!B2 -> INCENTIVE REGULATION MODEL FOR 2020 FILERS | CB2: FALSE
CB3: FALSE
CB4: FALSE
CB5: FALSE
CB6: FALSE
CB7: FALSE
CB8: FALSE
CB9: FALSE
CB10: TRUE
CB11: TRUE
C12: Please complete the following continuity schedule for the following Deferral/Variance Accounts. Enter information into green cells only. Column CE shoudl match the latest 2.1.7 RRR filing. When inputting balances in the continuity schedule, Account 1580 RSVA - Wholesale Market Service Charge is to exclude any amounts relating to CBR. The CBR amounts are to be entered separately in the Class A and Class B 1580 sub-accounts. Only Class B amounts are to be disposed. Class A amounts are not to be disposed. If you have received approval to dispose of balances from prior years, the starting point for entries in the schedule below will be the balance sheet date as per your general ledger for which you received approval. For example, if in the 2020 EDR process (CoS or IRM) you received approval for the December 31, 2014 balances, the starting point for your entries below should be the 2013 year. This will allow for the correct starting point for the 2014 opening balance columns for both principal and interest. Please refer to the footnotes for further instructions.
E16: 2013 | O16: =E16+1 -> 2014 | Y16: =O16+1 -> 2015 | AI16: =Y16+1 -> 2016 | AS16: =AI16+1 -> 2017 | BC16: =AS16+1 -> 2018 | BM16: 2019 | BQ16: Projected Interest on Dec-31-18 Balances | BV16: 2.1.7 RRR
C17: Account Descriptions | D17: Account Number | E17: Opening Principal Amounts as of Jan 1, 2013 | F17: Transactions2 Debit / (Credit) during 2013 | G17: OEB-Approved Disposition during 2013 | H17: Principal Adjustments1 during 2013 | I17: Closing Principal Balance as of Dec 31, 2013 | J17: Opening Interest Amounts as of Jan 1, 2013 | K17: Interest Jan 1 to Dec 31, 2013 | L17: OEB-Approved Disposition during 2013 | M17: Interest Adjustments1 during 2013 | N17: Closing Interest Amounts as of Dec 31, 2013 | O17: Opening Principal Amounts as of Jan 1, 2014 | P17: Transactions2 Debit / (Credit) during 2014 | Q17: OEB-Approved Disposition during 2014 | R17: Principal Adjustments1 during 2014 | S17: Closing Principal Balance as of Dec 31, 2014 | T17: Opening Interest Amounts as of Jan 1, 2014 | U17: Interest Jan 1 to Dec 31. 2014 | V17: OEB-Approved Disposition during 2014 | W17: Interest Adjustments1 during 2014 | X17: Closing Interest Amounts as of Dec 31, 2014 | Y17: Opening Principal Amounts as of Jan 1, 2015 | Z17: Transactions2 Debit / (Credit) during 2015 | AA17: OEB-Approved Disposition during 2015 | AB17: Principal Adjustments1 during 2015 | AC17: Closing Principal Balance as of Dec 31, 15 | AD17: Opening Interest Amounts as of Jan 1, 15 | AE17: Interest Jan 1 to Dec 31, 15 | AF17: OEB-Approved Disposition during 2015 | AG17: Interest Adjustments1 during 2015 | AH17: Closing Interest Amounts as of Dec 31, 15 | AI17: Opening Principal Amounts as of Jan 1, 2016 | AJ17: Transactions2 Debit / (Credit) during 2016 | AK17: OEB-Approved Disposition during 2016 | AL17: Principal Adjustments1 during 2016 | AM17: Closing Principal Balance as of Dec 31, 16 | AN17: Opening Interest Amounts as of Jan 1, 16 | AO17: Interest Jan 1 to Dec 31, 16 | AP17: OEB-Approved Disposition during 2016 | AQ17: Interest Adjustments1 during 2016 | AR17: Closing Interest Amounts as of Dec 31, 16 | AS17: Opening Principal Amounts as of Jan 1, 2017 | AT17: Transactions2 Debit / (Credit) during 2017 | AU17: OEB-Approved Disposition during 2017 | AV17: Principal Adjustments1 during 2017 | AW17: Closing Principal Balance as of Dec 31, 17 | AX17: Opening Interest Amounts as of Jan 1, 17 | AY17: Interest Jan 1 to Dec 31, 17 | AZ17: OEB-Approved Disposition during 2017 | BA17: Interest Adjustments1 during 2017 | BB17: Closing Interest Amounts as of Dec 31, 17 | BC17: Opening Principal Amounts as of Jan 1, 2018 | BD17: Transactions2 Debit / (Credit) during 2018 | BE17: OEB-Approved Disposition during 2018 | BF17: Principal Adjustments1 during 2018 | BG17: Closing Principal Balance as of Dec 31, 2018 | BH17: Opening Interest Amounts as of Jan 1, 2018 | BI17: Interest Jan 1 to Dec 31, 2018 | BJ17: OEB-Approved Disposition during 2018 | BK17: Interest Adjustments1 during 2018 | BL17: Closing Interest Amounts as of Dec 31, 2018 | BM17: Principal Disposition during 2019 - instructed by OEB | BN17: Interest Disposition during 2019 - instructed by OEB | BO17: Closing Principal Balances as of Dec 31, 2018 Adjusted for Dispositions during 2019 | BP17: Closing Interest Balances as of Dec 31, 2018 Adjusted for Disposition in 2019 | BQ17: Projected Interest from January 1, 2019 to December 31, 2019 on December 31, 2018 balance adjusted for disposition during 2019 3 | BR17: Projected Interest from January 1, 2019 to April 30, 2019 on December 31, 2018 balance adjusted for disposition during 2019 3 | BS17: Total Interest | BT17: Dispose of Account? (Y/N) | BU17: Total Claim | BV17: As of Dec 31-18 | BW17: Variance RRR vs. 2018 Balance (Principal + Interest)
BU19: Claim before Forecasted Transactions
C20: Group 1 Accounts
C21: LV Variance Account | D21: 1550 | E21: 196854.29 | F21: 159066.83 | I21: =E21+F21-G21+H21 -> 355921.12 | J21: 2045.41 | K21: 3889.81 | N21: =J21+K21-L21+M21 -> 5935.22 | O21: =I21 -> 355921.12 | P21: 155926.55 | Q21: 198900 | S21: =O21+P21-Q21+SUM(R21:R21) -> 312947.67 | T21: =N21 -> 5935.22 | U21: 1160.63 | V21: 2894 | X21: =T21+U21-V21+W21 -> 4201.85 | Y21: =S21 -> 312947.67 | Z21: 248566.56 | AA21: 159066.83 | AC21: =Y21+Z21-AA21+SUM(AB21:AB21) -> 402447.4 | AD21: =X21 -> 4201.85 | AE21: 3001.42 | AF21: 3334.09 | AH21: =AD21+AE21-AF21+AG21 -> 3869.18 | AI21: =AC21 -> 402447.4 | AJ21: 247216.54 | AM21: =AI21+AJ21-AK21+SUM(AL21:AL21) -> 649663.94 | AN21: =AH21 -> 3869.18 | AO21: 5671.28 | AR21: =AN21+AO21-AP21+AQ21 -> 9540.46 | AS21: =AM21 -> 649663.94 | AT21: 200279.71 | AU21: 402447.4 | AW21: =AS21+AT21-AU21+SUM(AV21:AV21) -> 447496.25 | AX21: =AR21 -> 9540.46 | AY21: 4124.4 | AZ21: 8296.1 | BB21: =AX21+AY21-AZ21+BA21 -> 5368.76 | BC21: =AW21 -> 447496.25 | BD21: 201094.43 | BE21: 247216.54 | BG21: =BC21+BD21-BE21+SUM(BF21:BF21) -> 401374.14 | BH21: =BB21 -> 5368.76 | BI21: 6605.096556 | BJ21: 5527.386555 | BL21: =BH21+BI21-BJ21+BK21 -> 6446.47 | BM21: 200279.71 | BN21: 3980 | BO21: =BG21-BM21 -> 201094.43 | BP21: =BL21-BN21 -> 2466.47 | BQ21: =+BO21*((0.0245*3/12)+(2.18%*9/12)) -> 4519.597314 | BS21: =BP21+BQ21+BR21 -> 6986.067314 | BU21: =SUM(BO21:BR21) -> 208080.4973 | BV21: 407820.61 | BW21: =BV21-SUM(BG21,BL21) -> 0
C22: Smart Metering Entity Charge Variance Account | D22: 1551 | E22: 0 | F22: -44087.23 | I22: =E22+F22-G22+H22 -> -44087.23 | J22: 0 | K22: -378.86 | N22: =J22+K22-L22+M22 -> -378.86 | O22: =I22 -> -44087.23 | P22: -64162.87 | S22: -108250.1 | T22: =N22 -> -378.86 | U22: -1008.84 | X22: =T22+U22-V22+W22 -> -1387.7 | Y22: -108250.1 | Z22: -55078.14 | AA22: -44466 | AC22: -118862.24 | AD22: -1387.7 | AE22: -558.27 | AF22: -653.74 | AH22: =AD22+AE22-AF22+AG22 -> -1292.23 | AI22: =AC22 -> -118862.24 | AJ22: -59949.3 | AM22: =AI22+AJ22-AK22+SUM(AL22:AL22) -> -178811.54 | AN22: -1292.23 | AO22: -1545.4 | AR22: =AN22+AO22-AP22+AQ22 -> -2837.63 | AS22: =AM22 -> -178811.54 | AT22: -65888.54 | AU22: -118862.24 | AW22: =AS22+AT22-AU22+SUM(AV22:AV22) -> -125837.84 | AX22: -2837.63 | AY22: -970.38 | AZ22: -2599.71 | BB22: =AX22+AY22-AZ22+BA22 -> -1208.3 | BC22: =AW22 -> -125837.84 | BD22: -128157.24 | BE22: -59949.3 | BG22: =BC22+BD22-BE22+SUM(BF22:BF22) -> -194045.78 | BH22: -1208.3 | BI22: -3083.161622 | BJ22: -1276.541622 | BL22: =BH22+BI22-BJ22+BK22 -> -3014.92 | BM22: -65888.54 | BN22: -1293 | BO22: =BG22-BM22 -> -128157.24 | BP22: =BL22-BN22 -> -1721.92 | BQ22: =+BO22*((0.0245*3/12)+(2.18%*9/12)) -> -2880.333969 | BS22: =BP22+BQ22+BR22 -> -4602.253969 | BU22: =SUM(BO22:BR22) -> -132759.494 | BV22: -197060.7 | BW22: =BV22-SUM(BG22,BL22) -> 0
C23: RSVA - Wholesale Market Service Charge | D23: 1580 | E23: -12752563.24 | F23: -2481578.98 | I23: -15234142.22 | J23: -272294.12 | K23: -209914.28 | N23: -482208.4 | O23: -15234142.22 | P23: -1143420 | Q23: -13024857 | S23: -3352705.22 | T23: -482208.4 | U23: 262372.7 | V23: -187463 | X23: =T23+U23-V23+W23 -> -32372.7 | Y23: -3352705.22 | Z23: -8458613.72 | AA23: -2481578.98 | AC23: -9329739.96 | AD23: -32372.7 | AE23: -35534.35 | AF23: -58930.49 | AH23: =AD23+AE23-AF23+AG23 -> -8976.56 | AI23: -9329739.96 | AJ23: -3726242.02 | AM23: =AI23+AJ23-AK23+SUM(AL23:AL23) -> -13055981.98 | AN23: -8976.56 | AO23: -119774.12 | AR23: =AN23+AO23-AP23+AQ23 -> -128750.68 | AS23: -13055981.98 | AT23: -3926629.52 | AU23: -9329739.96 | AW23: =AS23+AT23-AU23+SUM(AV23:AV23) -> -7652871.54 | AX23: -128750.68 | AY23: -63751.01 | AZ23: -111603.7 | BB23: =AX23+AY23-AZ23+BA23 -> -80897.99 | BC23: -7652871.54 | BD23: -462688.32 | BE23: -3726242.02 | BG23: =BC23+BD23-BE23+SUM(BF23:BF23) -> -4389317.84 | BH23: -80897.99 | BI23: -93370.723 | BJ23: -81704.123 | BL23: =BH23+BI23-BJ23+BK23 -> -92564.59 | BM23: -3926629.52 | BN23: -80344 | BO23: -462688.32 | BP23: =BL23-BN23 -> -12220.59 | BQ23: -10398.91999 | BS23: -22619.50999 | BU23: =SUM(BO23:BR23) -> -485307.83 | BV23: -4481882.43 | BW23: 0
C24: Variance WMS – Sub-account CBR Class A | D24: 1580 | E24: 0 | I24: 0 | J24: 0 | N24: 0 | O24: 0 | S24: 0 | T24: 0 | X24: 0 | Y24: 0 | Z24: 76773.57 | AB24: 8009 | AC24: =Y24+Z24-AA24+SUM(AB24:AB24) -> 84782.57 | AD24: 0 | AE24: 63 | AG24: 7 | AH24: 70 | AI24: 84782.57 | AJ24: -84782.57 | AM24: =AI24+AJ24-AK24+SUM(AL24:AL24) -> 0 | AN24: 70 | AO24: -70 | AR24: 0 | AS24: 0 | AW24: =AS24+AT24-AU24+SUM(AV24:AV24) -> 0 | AX24: 0 | BB24: 0 | BC24: 0 | BE24: -0.02000000002 | BG24: =BC24+BD24-BE24+SUM(BF24:BF24) -> 0.02000000002 | BH24: 0 | BI24: 0 | BJ24: -0.0003465000002 | BL24: 0.0003465000002 | BM24: 0.02000000002 | BN24: 0.0007551666673 | BO24: 0 | BP24: -0.000408666667 | BQ24: 0 | BS24: -0.000408666667 | BU24: -0.000408666667 | BV24: 0 | BW24: -0.02034650002
C25: Variance WMS – Sub-account CBR Class B | D25: 1580 | E25: 0 | I25: 0 | J25: 0 | N25: 0 | O25: 0 | S25: 0 | T25: 0 | X25: 0 | Y25: 0 | Z25: 887200.84 | AB25: 77745 | AC25: 964945.84 | AD25: 0 | AE25: 734.96808 | AG25: 78 | AH25: 812.96808 | AI25: 964945.84 | AJ25: -97871.8 | AM25: =AI25+AJ25-AK25+SUM(AL25:AL25) -> 867074.04 | AN25: 812.96808 | AO25: 8996.30192 | AR25: 9809.27 | AS25: 867074.04 | AT25: -24070.75 | AU25: 964945.84 | AW25: =AS25+AT25-AU25+SUM(AV25:AV25) -> -121942.55 | AX25: 9809.27 | AY25: -1266.68768 | AZ25: 11427.37 | BB25: -2884.78768 | BC25: -121942.55 | BD25: -101408.36 | BG25: =BC25+BD25-BE25+SUM(BF25:BF25) -> -223350.91 | BH25: -2884.78768 | BI25: -3054.84 | BL25: -5939.62768 | BM25: -121942.55 | BN25: -5405 | BO25: =BG25-BM25 -> -101408.36 | BP25: -534.62768 | BQ25: -2279.152891 | BS25: -2813.780571 | BU25: -104222.1406 | BV25: -229290.54 | BW25: -0.00231999997
C26: RSVA - Retail Transmission Network Charge | D26: 1584 | E26: 2671199.94 | F26: 1048861.42 | I26: 3720061.36 | J26: 81928.44 | K26: 43640.07 | N26: 125568.51 | O26: 3720061.36 | P26: 798747.96 | Q26: 2753128 | S26: 1765681.32 | T26: 125568.51 | U26: -60654.44 | V26: 39267.38 | X26: 25646.69 | Y26: 1765681.32 | Z26: -1213537.23 | AA26: 1048861.42 | AC26: -496717.33 | AD26: 25646.69 | AE26: 2377.21 | AF26: 19791.33 | AH26: 8232.57 | AI26: -496717.33 | AJ26: -479527.58 | AM26: -976244.91 | AN26: 8232.57 | AO26: -8982.35 | AR26: -749.78 | AS26: -976244.91 | AT26: 19930.21 | AU26: -496717.33 | AW26: -459597.37 | AX26: -749.78 | AY26: -5134.38 | AZ26: 2768.68 | BB26: -8652.84 | BC26: -459597.37 | BD26: 374727.54 | BE26: -479527.58 | BG26: 394657.75 | BH26: -8652.84 | BI26: -1137.425323 | BJ26: -11826.27532 | BL26: 2036.01 | BM26: 19930.21 | BN26: 3585 | BO26: =BG26-BM26 -> 374727.54 | BP26: -1548.99 | BQ26: 8422.001462 | BS26: 6873.011462 | BU26: 381600.5515 | BV26: 396693.76 | BW26: 0
C27: RSVA - Retail Transmission Connection Charge | D27: 1586 | E27: 778442.81 | F27: -300104.84 | I27: 478337.97 | J27: 15235.32 | K27: 7917.27 | N27: 23152.59 | O27: 478337.97 | P27: 492934.3 | Q27: 793678 | S27: 177594.27 | T27: 23152.59 | U27: -15467.21 | V27: 11443 | X27: -3757.62 | Y27: 177594.27 | Z27: -60225.37 | AA27: -300104.84 | AC27: 417473.74 | AD27: -3757.62 | AE27: 5119.57 | AF27: -7937.27 | AH27: 9299.22 | AI27: 417473.74 | AJ27: 555267.17 | AM27: 972740.91 | AN27: 9299.22 | AO27: 6812.32 | AR27: 16111.54 | AS27: 972740.91 | AT27: -71372.45 | AU27: 417473.74 | AW27: 483894.72 | AX27: 16111.54 | AY27: 4978.76 | AZ27: 13891.43 | BB27: 7198.87 | BC27: 483894.72 | BD27: 1188553.34 | BE27: 555267.17 | BG27: 1117180.89 | BH27: 7198.87 | BI27: 16028.71372 | BJ27: 11840.11372 | BL27: 11387.47 | BM27: -71372.45 | BN27: -6116 | BO27: 1188553.34 | BP27: 17503.47 | BQ27: 26712.73632 | BS27: 44216.20632 | BU27: =SUM(BO27:BR27) -> 1232769.546 | BV27: 1128568.36 | BW27: 0
C28: RSVA - Power | D28: 1588 | E28: -843442.7 | F28: -1530583.91 | I28: -2374026.61 | J28: -25105.45 | K28: -30854.78 | N28: -55960.23 | O28: -2374026.61 | P28: -4615944.82 | Q28: -868548 | S28: -6121423.43 | T28: -55960.23 | U28: 2360.65 | V28: -12399 | X28: -41200.58 | Y28: -6121423.43 | Z28: -723029.18 | AA28: -1530583.91 | AC28: -5313868.7 | AD28: -41200.58 | AE28: -60980.25 | AF28: -40955.36 | AH28: -61225.47 | AI28: -5313868.7 | AJ28: -1020480.31 | AL28: 803138.79 | AM28: -5531210.22 | AN28: -61225.47 | AO28: -69198.17 | AR28: -130423.64 | AS28: -5531210.22 | AT28: -3531.44 | AU28: -5313868.7 | AV28: -623541.48 | AW28: =AS28+AT28-AU28+AV28 -> -844414.44 | AX28: -130423.64 | AY28: -3223.35 | AZ28: -119678.03 | BB28: -13968.96 | BC28: -844414.44 | BD28: -395579.16 | BE28: -217341.52 | BF28: =-179597.31-125925.25 -> -305522.56 | BG28: -1328174.64 | BH28: -13968.96 | BI28: -28836.71183 | BJ28: -14511.05183 | BL28: -28294.62 | BM28: -627072.92 | BN28: -12417 | BO28: -701101.72 | BP28: -15877.62 | BQ28: -15757.26116 | BS28: -31634.88116 | BU28: -732736.6012 | BV28: -1230544.01 | BW28: 125925.25
C29: RSVA - Global Adjustment | D29: 1589 | E29: 1947312.23 | F29: 3459067.38 | I29: 5406379.61 | J29: 48299.63 | K29: 67180.66 | N29: 115480.29 | O29: 5406379.61 | P29: 7730141.57 | Q29: 1995612 | S29: 11140909.18 | T29: 115480.29 | U29: 8222.18 | V29: 28625 | X29: 95077.47 | Y29: 11140909.18 | Z29: 1769070.5 | AA29: 3459067.38 | AC29: 9450912.3 | AD29: 95077.47 | AE29: 73364.44 | AF29: 89403.95 | AH29: 79037.96 | AI29: 9450912.3 | AJ29: 8213.26 | AL29: -1619355.47 | AM29: 7839770.09 | AN29: 79037.96 | AO29: 114760.96 | AR29: 193798.92 | AS29: 7839770.09 | AT29: -468536.08 | AU29: 9450912.3 | AV29: 2212711.42 | AW29: =AS29+AT29-AU29+SUM(AV29:AV29) -> 133033.13 | AX29: 193798.92 | AY29: -531.04 | AZ29: 182998 | BB29: 10269.88 | BC29: 133033.13 | BD29: -2051925.87 | BE29: -1611142.21 | BF29: =-593355.95+27481.84 -> -565874.11 | BG29: -873624.64 | BH29: 10269.88 | BI29: 29076.69121 | BJ29: -17112.11879 | BL29: 56458.69 | BM29: 1744175.34 | BN29: 63428 | BO29: =BG29-BM29 -> -2617799.98 | BP29: -6969.31 | BQ29: -58835.05455 | BS29: -65804.36455 | BU29: -2683604.345 | BV29: -844647.79 | BW29: -27481.84
C30: Disposition and Recovery/Refund of Regulatory Balances (2009)4 | D30: 1595 | E30: 0 | I30: 0 | J30: 0 | N30: 0 | O30: 0 | S30: 0 | T30: 0 | X30: 0 | Y30: 0 | AC30: 0 | AD30: 0 | AH30: 0 | AI30: 0 | AM30: 0 | AN30: 0 | AR30: 0 | AS30: 0 | AW30: 0 | AX30: 0 | BB30: 0 | BC30: 0 | BD30: 0 | BG30: 0 | BH30: 0 | BI30: 0 | BL30: 0 | BO30: 0 | BP30: 0 | BQ30: 0 | BS30: 0 | BT30: No | BU30: =IF(BT30="YES",SUM(BO30:BR30),0) -> 0 | BW30: 0
C31: Disposition and Recovery/Refund of Regulatory Balances (2010)4 | D31: 1595 | I31: 0 | N31: 0 | O31: 0 | S31: 0 | T31: 0 | X31: 0 | Y31: 0 | AC31: 0 | AD31: 0 | AH31: 0 | AI31: 0 | AM31: 0 | AN31: 0 | AR31: 0 | AS31: 0 | AW31: 0 | AX31: 0 | BB31: 0 | BC31: 0 | BD31: 0 | BG31: 0 | BH31: 0 | BI31: 0 | BL31: 0 | BO31: 0 | BP31: 0 | BQ31: 0 | BS31: 0 | BT31: No | BU31: 0 | BW31: 0
C32: Disposition and Recovery/Refund of Regulatory Balances (2011)4 | D32: 1595 | I32: 0 | N32: 0 | O32: 0 | S32: 0 | T32: 0 | X32: 0 | Y32: 0 | AC32: 0 | AD32: 0 | AH32: 0 | AI32: 0 | AM32: 0 | AN32: 0 | AR32: 0 | AS32: 0 | AW32: 0 | AX32: 0 | BB32: 0 | BC32: 0 | BD32: 0 | BG32: 0 | BH32: 0 | BI32: 0 | BL32: 0 | BO32: 0 | BP32: 0 | BQ32: 0 | BS32: 0 | BT32: No | BU32: 0 | BW32: 0
C33: Disposition and Recovery/Refund of Regulatory Balances (2012)4 | D33: 1595 | E33: 0 | F33: -86304 | I33: -86304 | J33: 0 | N33: 0 | O33: -86304 | S33: -86304 | T33: 0 | U33: -1215.83 | X33: -1215.83 | Y33: -86304 | AA33: -86304 | AC33: 0 | AD33: -1215.83 | AE33: -53 | AF33: -1268.83 | AH33: 0 | AI33: 0 | AM33: 0 | AN33: 0 | AR33: 0 | AS33: 0 | AW33: 0 | AX33: 0 | BB33: 0 | BC33: 0 | BD33: 0 | BG33: 0 | BH33: 0 | BI33: 0 | BL33: 0 | BO33: 0 | BP33: 0 | BQ33: 0 | BS33: 0 | BT33: No | BU33: 0 | BW33: 0
C34: Disposition and Recovery/Refund of Regulatory Balances (2013)4 | D34: 1595 | E34: 0 | I34: 0 | J34: 0 | N34: 0 | O34: 0 | S34: 0 | T34: 0 | X34: 0 | Y34: 0 | AC34: 0 | AD34: 0 | AH34: 0 | AI34: 0 | AJ34: -923.63 | AM34: -923.63 | AN34: 0 | AO34: -4.81 | AR34: -4.81 | AS34: -923.63 | AW34: -923.63 | AX34: -4.81 | AY34: -10.45 | BB34: -15.26 | BC34: -923.63 | BD34: 0 | BE34: -923.63 | BG34: 0 | BH34: -15.26 | BI34: 0 | BJ34: -20.81188975 | BL34: 5.55188975 | BO34: 0 | BP34: 5.55188975 | BQ34: 0 | BS34: 5.55188975 | BT34: No | BU34: 0 | BV34: 5.55 | BW34: =BV34-SUM(BG34,BL34) -> -0.00188975
C35: Disposition and Recovery/Refund of Regulatory Balances (2014)4 | D35: 1595 | E35: 0 | I35: 0 | J35: 0 | N35: 0 | O35: 0 | P35: 4320176.14 | Q35: 8196023.6 | S35: =O35+P35-Q35+SUM(R35:R35) -> -3875847.46 | T35: 0 | U35: -361769.57 | V35: 116471.5 | X35: -478241.07 | Y35: -3875847.46 | Z35: 3795881.09 | AC35: -79966.37 | AD35: -478241.07 | AE35: 364567.32 | AH35: -113673.75 | AI35: -79966.37 | AJ35: 343884.98 | AM35: 263918.61 | AN35: -113673.75 | AO35: 7150.43 | AR35: -106523.32 | AS35: 263918.61 | AT35: 495.79 | AW35: 264414.4 | AX35: -106523.32 | AY35: 7628.99 | BB35: -98894.33 | BC35: 264414.4 | BD35: 0 | BE35: 263918.61 | BG35: 495.79 | BH35: -98894.33 | BI35: -8.174999675e-05 | BJ35: -101950.93 | BL35: 3056.599918 | BO35: 495.79 | BP35: 3056.599918 | BQ35: 11.14288025 | BS35: 0 | BT35: No | BU35: 0 | BV35: 3552.39 | BW35: 8.17492114e-05
C36: Disposition and Recovery/Refund of Regulatory Balances (2015)4 | D36: 1595 | E36: 0 | I36: 0 | J36: 0 | N36: 0 | O36: 0 | S36: 0 | T36: 0 | X36: 0 | Y36: 0 | Z36: -621041.04 | AA36: -223958 | AC36: -397083.04 | AD36: 0 | AE36: 11016.31 | AF36: -2783.68 | AH36: 13799.99 | AI36: -397083.04 | AJ36: -27820.56 | AM36: -424903.6 | AN36: 13799.99 | AO36: -7859.14 | AR36: 5940.85 | AS36: -424903.6 | AT36: -1.27 | AW36: -424904.87 | AX36: 5940.85 | AY36: -6623.42 | BB36: -682.57 | BC36: -424904.87 | BD36: 0 | BE36: -424903.6 | BG36: -1.27 | BH36: -682.57 | BI36: -0.004870000001 | BJ36: -1420.6 | BL36: 738.02513 | BO36: -1.27 | BP36: 738.02513 | BQ36: -0.02854325 | BS36: 0 | BT36: No | BU36: 0 | BV36: 736.76 | BW36: 0.004870000136
C37: Disposition and Recovery/Refund of Regulatory Balances (2016)4 | D37: 1595 | E37: 0 | I37: 0 | J37: 0 | N37: 0 | O37: 0 | S37: =O37+P37-Q37+SUM(R37:R37) -> 0 | T37: 0 | X37: =T37+U37-V37+W37 -> 0 | Y37: =S37 -> 0 | AC37: =Y37+Z37-AA37+SUM(AB37:AB37) -> 0 | AD37: =X37 -> 0 | AH37: =AD37+AE37-AF37+AG37 -> 0 | AI37: =AC37 -> 0 | AM37: =AI37+AJ37-AK37+SUM(AL37:AL37) -> 0 | AN37: =AH37 -> 0 | AR37: =AN37+AO37-AP37+AQ37 -> 0 | AS37: =AM37 -> 0 | AW37: =AS37+AT37-AU37+SUM(AV37:AV37) -> 0 | AX37: =AR37 -> 0 | BB37: =AX37+AY37-AZ37+BA37 -> 0 | BC37: 0 | BD37: 0 | BG37: 0 | BH37: 0 | BI37: 0 | BL37: 0 | BO37: 0 | BP37: 0 | BQ37: 0 | BS37: 0 | BT37: No | BU37: 0 | BV37: 0 | BW37: 0
C38: Disposition and Recovery/Refund of Regulatory Balances (2017)4 | D38: 1595 | E38: 0 | I38: 0 | N38: 0 | O38: 0 | S38: 0 | T38: 0 | AH38: 0 | AI38: 0 | AM38: =AI38+AJ38-AK38+SUM(AL38:AL38) -> 0 | AN38: 0 | AR38: 0 | AS38: 0 | AT38: 2516662.62 | AU38: 3144359.92 | AW38: -627697.3 | AX38: 0 | AY38: -24682.95 | AZ38: -8772.46 | BB38: -15910.49 | BC38: -627697.3 | BD38: 726059.96 | BG38: 98362.66 | BH38: -15910.49 | BI38: 1576.7 | BL38: -14333.79 | BO38: 98362.66 | BP38: -14333.79 | BQ38: 2210.700783 | BS38: -12123.08922 | BT38: Yes | BU38: 86239.57078 | BV38: 84028.87 | BW38: =BV38-SUM(BG38,BL38) -> 0
C39: Disposition and Recovery/Refund of Regulatory Balances (2018)4 | D39: 1595 | I39: 0 | N39: 0 | O39: 0 | S39: 0 | T39: 0 | AH39: 0 | AI39: 0 | AM39: 0 | AN39: 0 | AR39: 0 | AS39: 0 | AW39: 0 | AX39: 0 | BB39: 0 | BC39: 0 | BD39: 3873382.92 | BE39: 5453627.56 | BG39: -1580244.64 | BH39: 0 | BI39: -26796.1 | BJ39: 212454.9525 | BL39: -239251.0525 | BO39: -1580244.64 | BP39: -239251.0525 | BQ39: -35515.99828 | BS39: -274767.0508 | BT39: No | BU39: 0 | BV39: -1819495.67 | BW39: 0.02252524951
C40: Disposition and Recovery/Refund of Regulatory Balances (2019)4 Not to be disposed of unless rate rider has expired and balance has been audited | D40: 1595 | I40: 0 | N40: 0 | O40: 0 | S40: 0 | T40: 0 | AH40: 0 | AI40: 0 | AM40: 0 | AN40: 0 | AR40: 0 | AS40: 0 | AW40: 0 | AX40: 0 | BB40: 0 | BC40: 0 | BG40: 0 | BH40: 0 | BL40: 0 | BM40: =2112525 -> 2112525 | BN40: =6829 -> 6829 | BO40: -2112525 | BP40: -6829 | BQ40: -47478.99938 | BS40: -54307.99938 | BT40: No | BU40: 0 | BW40: 0
C42: =C29 -> RSVA - Global Adjustment | D42: 1589 | E42: =E29 -> 1947312.23 | F42: 3459067.38 | G42: 0 | H42: 0 | I42: 5406379.61 | J42: 48299.63 | K42: 67180.66 | L42: 0 | M42: 0 | N42: 115480.29 | O42: =O29 -> 5406379.61 | P42: 7730141.57 | Q42: 1995612 | R42: 0 | S42: 11140909.18 | T42: 115480.29 | U42: 8222.18 | V42: 28625 | W42: 0 | X42: 95077.47 | Y42: 11140909.18 | Z42: 1769070.5 | AA42: 3459067.38 | AB42: 0 | AC42: 9450912.3 | AD42: 95077.47 | AE42: 73364.44 | AF42: 89403.95 | AG42: 0 | AH42: 79037.96 | AI42: 9450912.3 | AJ42: 8213.26 | AK42: 0 | AL42: -1619355.47 | AM42: 7839770.09 | AN42: 79037.96 | AO42: 114760.96 | AP42: 0 | AQ42: 0 | AR42: 193798.92 | AS42: 7839770.09 | AT42: -468536.08 | AU42: 9450912.3 | AV42: 2212711.42 | AW42: 133033.13 | AX42: 193798.92 | AY42: -531.04 | AZ42: 182998 | BA42: 0 | BB42: 10269.88 | BC42: 133033.13 | BD42: -2051925.87 | BE42: -1611142.21 | BF42: -565874.11 | BG42: =BG29 -> -873624.64 | BH42: 10269.88 | BI42: 29076.69121 | BJ42: -17112.11879 | BK42: 0 | BL42: 56458.69 | BM42: 1744175.34 | BN42: 63428 | BO42: -2617799.98 | BP42: -6969.31 | BQ42: =BQ29 -> -58835.05455 | BR42: =BR29 -> 0 | BS42: =BS29 -> -65804.36455 | BU42: =BU29 -> -2683604.345 | BV42: =BV29 -> -844647.79 | BW42: -27481.84
C43: Total Group 1 Balance excluding Account 1589 - Global Adjustment | E43: =SUM(E21:E40)-E29 -> -9949508.9 | F43: -3234730.71 | G43: 0 | H43: 0 | I43: -13184239.61 | J43: -198190.4 | K43: -185700.77 | L43: 0 | M43: 0 | N43: -383891.17 | O43: -13184239.61 | P43: -55742.74 | Q43: -1951675.4 | R43: 0 | S43: -11288306.95 | T43: -383891.17 | U43: =SUM(U21:U40)-U29 -> -174221.91 | V43: -29786.12 | W43: 0 | X43: -528326.96 | Y43: -11288306.95 | Z43: -6123102.62 | AA43: -3459067.48 | AB43: 85754 | AC43: -13866588.09 | AD43: -528326.96 | AE43: 289753.9281 | AF43: -89403.95 | AG43: 85 | AH43: -149084.0819 | AI43: -13866588.09 | AJ43: -4351229.08 | AK43: 0 | AL43: 803138.79 | AM43: -17414678.38 | AN43: -149084.0819 | AO43: -178803.6581 | AP43: 0 | AQ43: 0 | AR43: -327887.74 | AS43: -17414678.38 | AT43: -1354125.64 | AU43: -10329961.33 | AV43: -623541.48 | AW43: -9062384.17 | AX43: -327887.74 | AY43: -88930.47768 | AZ43: -206270.32 | BA43: 0 | BB43: -210547.8977 | BC43: -9062384.17 | BD43: 5275985.11 | BE43: =SUM(BE21:BE40)-BE29 -> 1611142.21 | BF43: -305522.56 | BG43: -5703063.83 | BH43: -210547.8977 | BI43: -132068.4565 | BJ43: 17112.11879 | BK43: 0 | BL43: -359728.4729 | BM43: =SUM(BM21:BM40)-BM29 -> -2480171.04 | BN43: -91180.99924 | BO43: -3222892.79 | BP43: -268547.4737 | BQ43: -72434.51546 | BR43: 0 | BS43: -344787.7285 | BU43: =SUM(BU21:BU40)-BU29 -> 453664.0998 | BV43: =SUM(BV21:BV40)-BV29 -> -5936867.05 | BW43: 125925.2529
C44: Total Group 1 Balance | E44: =SUM(E42,E43) -> -8002196.67 | F44: 224336.67 | G44: 0 | H44: 0 | I44: -7777860 | J44: -149890.77 | K44: -118520.11 | L44: 0 | M44: 0 | N44: -268410.88 | O44: =SUM(O42,O43) -> -7777860 | P44: 7674398.83 | Q44: 43936.6 | R44: 0 | S44: -147397.77 | T44: -268410.88 | U44: -165999.73 | V44: -1161.12 | W44: 0 | X44: -433249.49 | Y44: -147397.77 | Z44: -4354032.12 | AA44: -0.1000000001 | AB44: 85754 | AC44: -4415675.79 | AD44: -433249.49 | AE44: 363118.3681 | AF44: 0 | AG44: 85 | AH44: -70046.12192 | AI44: -4415675.79 | AJ44: -4343015.82 | AK44: 0 | AL44: -816216.68 | AM44: -9574908.29 | AN44: -70046.12192 | AO44: -64042.69808 | AP44: 0 | AQ44: 0 | AR44: -134088.82 | AS44: -9574908.29 | AT44: -1822661.72 | AU44: -879049.03 | AV44: 1589169.94 | AW44: -8929351.04 | AX44: -134088.82 | AY44: -89461.51768 | AZ44: -23272.32 | BA44: 0 | BB44: -200278.0177 | BC44: -8929351.04 | BD44: 3224059.24 | BE44: =SUM(BE42,BE43) -> 0 | BF44: -871396.67 | BG44: -6576688.47 | BH44: -200278.0177 | BI44: -102991.7652 | BJ44: 0 | BK44: 0 | BL44: -303269.7829 | BM44: -735995.7 | BN44: -27752.99924 | BO44: -5840692.77 | BP44: -275516.7837 | BQ44: -131269.57 | BR44: 0 | BS44: -410592.0931 | BU44: =SUM(BU42,BU43) -> -2229940.245 | BV44: =SUM(BV42,BV43) -> -6781514.84 | BW44: 98443.41292
BW45: 0
A46: 29 | C46: LRAM Variance Account (only input amounts if applying for disposition of this account) | D46: 1568 | E46: 0 | I46: =E46+F46-G46+H46 -> 0 | J46: 0 | N46: =J46+K46-L46+M46 -> 0 | O46: =I46 -> 0 | P46: 142020.89 | S46: =O46+P46-Q46+SUM(R46:R46) -> 142020.89 | T46: =N46 -> 0 | U46: -174.59 | X46: =T46+U46-V46+W46 -> -174.59 | Y46: =S46 -> 142020.89 | Z46: 376487.2 | AA46: 0 | AB46: 360540.93 | AC46: =Y46+Z46-AA46+SUM(AB46:AB46) -> 879049.02 | AD46: =X46 -> -174.59 | AE46: 2707.56 | AG46: 11069.80157 | AH46: =AD46+AE46-AF46+AG46 -> 13602.77157 | AI46: =AC46 -> 879049.02 | AJ46: 579460 | AM46: =AI46+AJ46-AK46+SUM(AL46:AL46) -> 1458509.02 | AN46: =AH46 -> 13602.77157 | AO46: 16554.63843 | AR46: =AN46+AO46-AP46+AQ46 -> 30157.41 | AS46: =AM46 -> 1458509.02 | AT46: 962480.67 | AU46: 879049.02 | AW46: =AS46+AT46-AU46+SUM(AV46:AV46) -> 1541940.67 | AX46: =AR46 -> 30157.41 | AY46: 9968.74 | AZ46: 23272.32 | BB46: =AX46+AY46-AZ46+BA46 -> 16853.83 | BC46: =AW46 -> 1541940.67 | BD46: 1475597.43 | BG46: =BC46+BD46-BE46+SUM(BF46:BF46) -> 3017538.1 | BH46: =BB46 -> 16853.83 | BI46: 46349.15 | BL46: =BH46+BI46-BJ46+BK46 -> 63202.98 | BM46: =+'[14]1. LRAMVA Summary'!$R$83-'[14]1. LRAMVA Summary'!$R$82 -> 735996.0527 | BN46: =+'[14]1. LRAMVA Summary'!$R$82 -> 27753.18449 | BO46: =BG46-BM46 -> 2281542.047 | BP46: =BL46-BN46 -> 35449.79551 | BQ46: =+BO46*((0.0245*3/12)+(2.18%*9/12)) -> 51277.65751 | BS46: =BP46+BQ46+BR46 -> 86727.45303 | BU46: =SUM(BO46:BR46) -> 2368269.5 | BV46: 3080741.07 | BW46: -0.01000000071
C48: Total including Account 1568 | E48: =SUM(E44,E46) -> -8002196.67 | F48: 224336.67 | G48: 0 | H48: 0 | I48: -7777860 | J48: -149890.77 | K48: -118520.11 | L48: 0 | M48: 0 | N48: -268410.88 | O48: =SUM(O44,O46) -> -7777860 | P48: 7816419.72 | Q48: 43936.6 | R48: 0 | S48: -5376.88 | T48: -268410.88 | U48: -166174.32 | V48: -1161.12 | W48: 0 | X48: -433424.08 | Y48: -5376.88 | Z48: -3977544.92 | AA48: -0.1000000001 | AB48: 446294.93 | AC48: -3536626.77 | AD48: -433424.08 | AE48: 365825.9281 | AF48: 0 | AG48: 11154.80157 | AH48: -56443.35035 | AI48: -3536626.77 | AJ48: -3763555.82 | AK48: 0 | AL48: -816216.68 | AM48: -8116399.27 | AN48: -56443.35035 | AO48: -47488.05965 | AP48: 0 | AQ48: 0 | AR48: -103931.41 | AS48: -8116399.27 | AT48: -860181.05 | AU48: -0.009999999311 | AV48: 1589169.94 | AW48: -7387410.37 | AX48: -103931.41 | AY48: -79492.77768 | AZ48: =SUM(AZ44,AZ46) -> 0 | BA48: 0 | BB48: -183424.1877 | BC48: -7387410.37 | BD48: 4699656.67 | BE48: =SUM(BE44,BE46) -> 0 | BF48: -871396.67 | BG48: -3559150.37 | BH48: -183424.1877 | BI48: -56642.61524 | BJ48: 0 | BK48: 0 | BL48: -240066.8029 | BM48: 0.3526727335 | BN48: 0.1852413677 | BO48: -3559150.723 | BP48: -240066.9882 | BQ48: -79991.91249 | BR48: =SUM(BR44,BR46) -> 0 | BS48: =SUM(BS44,BS46) -> -323864.64 | BU48: =SUM(BU44,BU46) -> 138329.2556 | BV48: =SUM(BV44,BV46) -> -3700773.77 | BW48: =SUM(BW44,BW46) -> 98443.40292
C51: For all OEB-Approved dispositions, please ensure that the disposition amount has the same sign (e.g: debit balances are to have a positive figure and credit balance are to have a negative figure) as per the related OEB decision.
B54: 1 | C54: Please provide explanations for the nature of the adjustments. If the adjustment relates to previously OEB-Approved disposed balances, please provide amounts for adjustments and include supporting documentations.
B55: 2 | C55: For RSVA accounts only, report the net variance to the account during the year. For all other accounts, record the transactions during the year.
B56: 3 | C56: If the LDC’s rate year begins on January 1, 2017, the projected interest is recorded from January 1, 2016 to December 31, 2016 on the December 31, 2015 balances adjusted for the disposed balances approved by the OEB in the 2016 rate decision. If the LDC’s rate year begins on May 1, 2017, the projected interest is recorded from January 1, 2016 to April 30, 2017 on the December 31, 2015 balances adjusted for the disposed interest balances approved by the OEB in the 2016 rate decision.
B57: 4 | C57: Include Account 1595 as part of Group 1 accounts (lines 30-36) for review and disposition if the recovery (or refund) period has been completed. If the recovery (or refund) period has not been completed, do not include the respective balance in Account 1595 for disposition at this time.
C59: Account 1595 - adjustments (2016):
C60: These were required due to a comprehensive review of all the dispositions during 2015 and 2016. It was determined that there were a number of reporting errors. Past recovery billings were applied to the wrong year or there was transposition errors whereby billings were applied to interest rather than principal or vice versa.

Sheet 4. Billing Det. for Def-Var
A1: Back to Index | K1: Yes
B2: =+'1. Information Sheet'!B2 -> INCENTIVE REGULATION MODEL FOR 2020 FILERS
B13: Information from the most recent RRR (2018 for 2020 IRM)
W14: source: LRAMVA Workform
D15: Total Metered kWh | E15: Total Metered kW | F15: Metered kWh for Non-RPP Customers (excluding WMP) | G15: Metered kW for Non-RPP Customers (excluding WMP) | H15: Metered kWh for Wholesale Market Participants (WMP) | I15: Metered kW for Wholesale Market Participants (WMP) | J15: Total Metered kWh less WMP consumption (if applicable) | K15: Total Metered kW less WMP consumption (if applicable) | L15: 1595 Recovery Proportion (2009) 1 | M15: 1595 Recovery Proportion (2010) 1 | N15: 1595 Recovery Proportion (2011) 1 | O15: 1595 Recovery Proportion (2012) 1 | P15: 1595 Recovery Proportion (2013) 1 | Q15: 1595 Recovery Proportion (2014) 1 | R15: 1595 Recovery Proportion (2015) 1 | S15: 1595 Recovery Proportion (2016) 1 | T15: 1595 Recovery Proportion (2017) 1 | U15: 1595 Recovery Proportion (2018) 1 | V15: 1595 Recovery Proportion (2019) 1 | W15: 1568 LRAM Variance Account Class Allocation ($ amounts) | X15: Number of Customers for Residential and GS<50 classes3
B16: Rate Class | C16: Unit
A17: ='11. RTSR - Current Rates'!A16 -> R_TN | B17: ='Model Specs'!C15 -> RESIDENTIAL SERVICE CLASSIFICATION | C17: kWh | D17: 1385125813 | F17: 56192651.51 | G17: 0 | J17: =D17-H17 -> 1385125813 | K17: =E17-I17 -> 0 | Q17: 0.042831737 | R17: 0.3291884587 | T17: =+[15]BRZ!B2 -> 0.3131183316 | W17: =+[16]T21!$F6 -> 482507.7895 | X17: 153261
A18: ='11. RTSR - Current Rates'!A17 -> GSL_TN | B18: ='Model Specs'!C16 -> GENERAL SERVICE LESS THAN 50 kW SERVICE CLASSIFICATION | C18: kWh | D18: 344785906.8 | F18: 59144131.76 | G18: 0 | J18: =D18-H18 -> 344785906.8 | K18: =E18-I18 -> 0 | Q18: 0.03667843854 | R18: 0.1310626928 | T18: =+[15]BRZ!B3 -> 0.08509602612 | W18: =+[16]T21!$F7 -> 321641.8594 | X18: 9462
A19: GSG_TN | B19: ='Model Specs'!C17 -> GENERAL SERVICE 50 to 699 KW SERVICE CLASSIFICATION | C19: kW | D19: 1131688196 | E19: 3179602.842 | F19: 967286875.2 | G19: 2708650.869 | H19: 3538225.83 | I19: 20319.358 | J19: =D19-H19 -> 1128149970 | K19: =E19-I19 -> 3159283.484 | Q19: 0.4138297114 | R19: 0.1749713883 | T19: =+[15]BRZ!B4 -> 0.2761308139 | W19: =+[16]T21!$F8 -> 162528.1085
A20: LU_TN | B20: ='Model Specs'!C18 -> GENERAL SERVICE 700 to 4,999 KW SERVICE CLASSIFICATION | C20: kW | D20: 875091030.3 | E20: 2020563.238 | F20: 809373490.3 | G20: 1911147.706 | H20: 64062173.79 | I20: 105485.848 | J20: 811028856.5 | K20: 1915077.39 | Q20: 0.4838378656 | R20: 0.1548539542 | T20: =+[15]BRZ!B5 -> 0.2206904016 | W20: =+[16]T21!$F9 -> 90159.22191
A21: USL_TN | B21: ='Model Specs'!C19 -> LARGE USE SERVICE CLASSIFICATION | C21: kW | D21: 350379704.8 | E21: 657857.0874 | F21: 350379704.8 | G21: 657857.0874 | J21: 350379704.8 | K21: 657857.0874 | Q21: 0.0135704573 | R21: 0.2061805925 | T21: =+[15]BRZ!B6 -> 0.09278043062 | W21: =+[16]T21!$F10 -> 38450.60266
B22: ='Model Specs'!C20 -> STANDBY POWER SERVICE CLASSIFICATION | C22: kW | J22: 0 | K22: 0 | T22: =+[15]BRZ!B7 -> 0
A23: SEN_TN | B23: ='Model Specs'!C21 -> UNMETERED SCATTERED LOAD SERVICE CLASSIFICATION | C23: kWh | D23: 5914654.047 | F23: 5865863.355 | J23: 5914654.047 | K23: 0 | Q23: 0.0004108364085 | R23: 0.002390216995 | T23: =+[15]BRZ!B8 -> 0.001325156564
A24: SL_TN | B24: ='Model Specs'!C22 -> STREET LIGHTING SERVICE CLASSIFICATION | C24: kW | D24: 34968320.88 | E24: 98841.90329 | F24: 34968320.88 | G24: 98841.90329 | J24: 34968320.88 | K24: 98841.90329 | Q24: 0.008840953763 | R24: 0.00135269641 | T24: =+[15]BRZ!B9 -> 0.008456385851
A25: SL_TN | B25: ='Model Specs'!C23 -> EMBEDDED DISTRIBUTOR SERVICE CLASSIFICATION | C25: kWh | D25: 3402773.373 | F25: 3402773.373 | J25: 3402773.373 | K25: 0 | T25: =+[15]BRZ!B10 -> 0.002373363371
A26: SL_TN | B26: ='Model Specs'!C24 -> DISTRIBUTED GENERATION [DGEN] SERVICE CLASSIFICATION | C26: kWh | D26: 277418.1656 | F26: 277418.1656 | J26: 277418.1656 | K26: 0 | T26: =+[15]BRZ!B11 -> 2.909036986e-05
A27: SL_TN | B27: ='Model Specs'!C25 -> ENERGY FROM WASTE SERVICE CLASSIFICATION | C27: kW | J27: 0 | K27: 0
J28: 0 | K28: 0
C29: Total | D29: =SUM(D17:D28) -> 4131633817 | E29: =SUM(E17:E28) -> 5956865.07 | F29: 2286891229 | G29: 5376497.566 | H29: 67600399.62 | I29: 125805.206 | J29: 4064033418 | K29: 5831059.864 | L29: =SUM(L17:L28) -> 0 | M29: 0 | N29: 0 | O29: 0 | P29: 0 | Q29: 1 | R29: 1 | S29: 0 | T29: =SUM(T17:T28) -> 1 | U29: 0 | V29: =SUM(V17:V28) -> 0 | W29: 1095287.582 | X29: 162723
B32: Threshold Test | W32: 1568 Account Balance from Continuity Schedule | X32: ='3. Continuity Schedule'!BU46 -> 2368269.5
B33: Total Claim (including Account 1568) | D33: =+'3. Continuity Schedule'!BU44+'4. Billing Det. for Def-Var'!W29 -> -1134652.663 | W33: =IF(X32=W29,"Total Balance of Account 1568 in Column R matches the amount entered on the Continuity Schedule","Total Balance of Account 1568 in Column T DOES NOT MATCH the amount entered on the Continuity Schedule") -> Total Balance of Account 1568 in Column T DOES NOT MATCH the amount entered on the Continuity Schedule
B34: Total Claim for Threshold Test (All Group 1 Accounts) | D34: ='3. Continuity Schedule'!BU44 -> -2229940.245
B35: Threshold Test (Total claim per kWh) 2 | D35: =IFERROR(D34/D29,"") -> -0.000539723592
B36: Exceeds Threshold? | D36: =IF(D35="","",IF(OR(D35>0.001,D35<-0.001),"Yes","No")) -> No
B37: ELECT TO DISPOSE of the Group 1 Account Balances? | D37: No
B40: As per Section 3.2.5 of the 2017 Filing Requirements for Electricity Distribution Rate Applications, an applicant may elect to dispose of the Group 1 account balances below the threshold.
B41: 1 Residual Account balance to be allocated to rate classes in proportion to the recovery share as established when rate riders were implemented.
B42: 2 The Threshold Test does not include the amount in 1568.
B43: 3 The proportion of customers for the Residential and GS<50 Classes will be used to allocate Account 1551.

Sheet 5. Allocating Def-Var Balances
A1: Back to Index
B2: =+'1. Information Sheet'!B2 -> INCENTIVE REGULATION MODEL FOR 2020 FILERS
B11: No input required. This workshseet allocates the deferral/variance account balances (Group 1 and 1568) to the appropriate classes as per EDDVAR dated July 31, 2009
B13: Allocation of Group 1 Accounts (including Account 1568)
C14: % of Total kWh | D14: % of Total non-RPP kWh | E14: % of Customer Numbers ** | F14: % of Total kWh adjusted for WMP | I14: allocated based on Total less WMP | N14: allocated based on Total less WMP | O14: 1595_(2009) | P14: 1595_(2010) | Q14: 1595_(2011) | R14: 1595_(2012) | S14: 1595_(2013) | T14: 1595_(2014) | U14: 1595_(2015) | V14: 1595_(2016) | W14: 1595_(2017) | X14: 1595_(2018) | Y14: 1595_(2019) | Z14: 1568
B15: Rate Class | G15: 1550 | H15: 1551 | I15: 1580 | J15: 1580 (Class A) | K15: 1580 (Class B) | L15: 1584 | M15: 1586 | N15: 1588
B16: ='4. Billing Det. for Def-Var'!B17 -> RESIDENTIAL SERVICE CLASSIFICATION | C16: =IFERROR('4. Billing Det. for Def-Var'!D17/'4. Billing Det. for Def-Var'!D$29,"") -> 0.3352489291 | D16: =IFERROR('4. Billing Det. for Def-Var'!F17/'4. Billing Det. for Def-Var'!F$29,"") -> 0.02457163279 | E16: =IFERROR('4. Billing Det. for Def-Var'!X17/'4. Billing Det. for Def-Var'!X$29,"") -> 0.9418521045 | F16: =IFERROR('4. Billing Det. for Def-Var'!J17/'4. Billing Det. for Def-Var'!J$29,"") -> 0.3408253994 | G16: =IFERROR(G$28*C16,"") -> 69758.7639 | H16: =IFERROR(H$28*E16,"") -> -125039.8088 | I16: =IFERROR(I$28*F16,"") -> -200926.7877 | L16: =IFERROR(L$28*$C16,"") -> 127931.1762 | M16: =IFERROR(M$28*$C16,"") -> 413284.6703 | N16: =IFERROR(N$28*$F16,"") -> -249735.2448 | O16: ='4. Billing Det. for Def-Var'!L17*O$28 -> 0 | P16: ='4. Billing Det. for Def-Var'!M17*P$28 -> 0 | Q16: ='4. Billing Det. for Def-Var'!N17*Q$28 -> 0 | R16: ='4. Billing Det. for Def-Var'!O17*R$28 -> 0 | S16: ='4. Billing Det. for Def-Var'!P17*S$28 -> 0 | T16: ='4. Billing Det. for Def-Var'!Q17*T$28 -> 0 | U16: ='4. Billing Det. for Def-Var'!R17*U$28 -> 0 | V16: ='4. Billing Det. for Def-Var'!S17*V$28 -> 0 | W16: ='4. Billing Det. for Def-Var'!T17*W$28 -> 27003.19052 | X16: ='4. Billing Det. for Def-Var'!U17*X$28 -> 0 | Y16: ='4. Billing Det. for Def-Var'!V17*Y$28 -> 0 | Z16: ='4. Billing Det. for Def-Var'!W17 -> 482507.7895
B17: ='4. Billing Det. for Def-Var'!B18 -> GENERAL SERVICE LESS THAN 50 kW SERVICE CLASSIFICATION | C17: =IFERROR('4. Billing Det. for Def-Var'!D18/'4. Billing Det. for Def-Var'!D$29,"") -> 0.08345025771 | D17: =IFERROR('4. Billing Det. for Def-Var'!F18/'4. Billing Det. for Def-Var'!F$29,"") -> 0.02586224084 | E17: =IFERROR('4. Billing Det. for Def-Var'!X18/'4. Billing Det. for Def-Var'!X$29,"") -> 0.0581478955 | F17: =IFERROR('4. Billing Det. for Def-Var'!J18/'4. Billing Det. for Def-Var'!J$29,"") -> 0.08483835426 | G17: =IFERROR(G$28*C17,"") -> 17364.37113 | H17: =IFERROR(H$28*E17,"") -> -7719.685182 | I17: =IFERROR(I$28*F17,"") -> -50014.75249 | L17: =IFERROR(L$28*$C17,"") -> 31844.66436 | M17: 102874.9363 | N17: =IFERROR(N$28*$F17,"") -> -62164.16735 | O17: ='4. Billing Det. for Def-Var'!L18*O$28 -> 0 | P17: ='4. Billing Det. for Def-Var'!M18*P$28 -> 0 | Q17: ='4. Billing Det. for Def-Var'!N18*Q$28 -> 0 | R17: ='4. Billing Det. for Def-Var'!O18*R$28 -> 0 | S17: ='4. Billing Det. for Def-Var'!P18*S$28 -> 0 | T17: ='4. Billing Det. for Def-Var'!Q18*T$28 -> 0 | U17: ='4. Billing Det. for Def-Var'!R18*U$28 -> 0 | V17: ='4. Billing Det. for Def-Var'!S18*V$28 -> 0 | W17: ='4. Billing Det. for Def-Var'!T18*W$28 -> 7338.644768 | X17: ='4. Billing Det. for Def-Var'!U18*X$28 -> 0 | Y17: ='4. Billing Det. for Def-Var'!V18*Y$28 -> 0 | Z17: ='4. Billing Det. for Def-Var'!W18 -> 321641.8594
B18: ='4. Billing Det. for Def-Var'!B19 -> GENERAL SERVICE 50 to 699 KW SERVICE CLASSIFICATION | C18: =IFERROR('4. Billing Det. for Def-Var'!D19/'4. Billing Det. for Def-Var'!D$29,"") -> 0.273908155 | D18: =IFERROR('4. Billing Det. for Def-Var'!F19/'4. Billing Det. for Def-Var'!F$29,"") -> 0.4229702151 | E18: =IFERROR('4. Billing Det. for Def-Var'!X19/'4. Billing Det. for Def-Var'!X$29,"") -> 0 | F18: =IFERROR('4. Billing Det. for Def-Var'!J19/'4. Billing Det. for Def-Var'!J$29,"") -> 0.2775936747 | G18: =IFERROR(G$28*C18,"") -> 56994.94512 | H18: =IFERROR(H$28*E18,"") -> 0 | I18: =IFERROR(I$28*F18,"") -> -163649.7908 | L18: 104523.503 | M18: 337665.632 | N18: =IFERROR(N$28*$F18,"") -> -203403.0457 | O18: ='4. Billing Det. for Def-Var'!L19*O$28 -> 0 | P18: ='4. Billing Det. for Def-Var'!M19*P$28 -> 0 | Q18: ='4. Billing Det. for Def-Var'!N19*Q$28 -> 0 | R18: ='4. Billing Det. for Def-Var'!O19*R$28 -> 0 | S18: ='4. Billing Det. for Def-Var'!P19*S$28 -> 0 | T18: ='4. Billing Det. for Def-Var'!Q19*T$28 -> 0 | U18: ='4. Billing Det. for Def-Var'!R19*U$28 -> 0 | V18: ='4. Billing Det. for Def-Var'!S19*V$28 -> 0 | W18: ='4. Billing Det. for Def-Var'!T19*W$28 -> 23813.40287 | X18: ='4. Billing Det. for Def-Var'!U19*X$28 -> 0 | Y18: ='4. Billing Det. for Def-Var'!V19*Y$28 -> 0 | Z18: ='4. Billing Det. for Def-Var'!W19 -> 162528.1085
B19: ='4. Billing Det. for Def-Var'!B20 -> GENERAL SERVICE 700 to 4,999 KW SERVICE CLASSIFICATION | C19: =IFERROR('4. Billing Det. for Def-Var'!D20/'4. Billing Det. for Def-Var'!D$29,"") -> 0.2118026594 | D19: =IFERROR('4. Billing Det. for Def-Var'!F20/'4. Billing Det. for Def-Var'!F$29,"") -> 0.3539186648 | E19: =IFERROR('4. Billing Det. for Def-Var'!X20/'4. Billing Det. for Def-Var'!X$29,"") -> 0 | F19: =IFERROR('4. Billing Det. for Def-Var'!J20/'4. Billing Det. for Def-Var'!J$29,"") -> 0.1995625461 | G19: 44072.0027 | H19: 0 | I19: -117648.102 | L19: 80824.01163 | M19: 261103.8684 | N19: -146226.7818 | O19: ='4. Billing Det. for Def-Var'!L20*O$28 -> 0 | P19: ='4. Billing Det. for Def-Var'!M20*P$28 -> 0 | Q19: ='4. Billing Det. for Def-Var'!N20*Q$28 -> 0 | R19: ='4. Billing Det. for Def-Var'!O20*R$28 -> 0 | S19: ='4. Billing Det. for Def-Var'!P20*S$28 -> 0 | T19: ='4. Billing Det. for Def-Var'!Q20*T$28 -> 0 | U19: ='4. Billing Det. for Def-Var'!R20*U$28 -> 0 | V19: ='4. Billing Det. for Def-Var'!S20*V$28 -> 0 | W19: ='4. Billing Det. for Def-Var'!T20*W$28 -> 19032.24551 | X19: ='4. Billing Det. for Def-Var'!U20*X$28 -> 0 | Y19: ='4. Billing Det. for Def-Var'!V20*Y$28 -> 0 | Z19: ='4. Billing Det. for Def-Var'!W20 -> 90159.22191
B20: ='4. Billing Det. for Def-Var'!B21 -> LARGE USE SERVICE CLASSIFICATION | C20: =IFERROR('4. Billing Det. for Def-Var'!D21/'4. Billing Det. for Def-Var'!D$29,"") -> 0.08480415261 | D20: =IFERROR('4. Billing Det. for Def-Var'!F21/'4. Billing Det. for Def-Var'!F$29,"") -> 0.1532122299 | E20: =IFERROR('4. Billing Det. for Def-Var'!X21/'4. Billing Det. for Def-Var'!X$29,"") -> 0 | F20: =IFERROR('4. Billing Det. for Def-Var'!J21/'4. Billing Det. for Def-Var'!J$29,"") -> 0.08621476961 | G20: 17646.09025 | H20: 0 | I20: -50826.19059 | L20: 32361.3114 | M20: 104543.9767 | N20: -63172.71725 | O20: ='4. Billing Det. for Def-Var'!L21*O$28 -> 0 | P20: ='4. Billing Det. for Def-Var'!M21*P$28 -> 0 | Q20: ='4. Billing Det. for Def-Var'!N21*Q$28 -> 0 | R20: ='4. Billing Det. for Def-Var'!O21*R$28 -> 0 | S20: ='4. Billing Det. for Def-Var'!P21*S$28 -> 0 | T20: ='4. Billing Det. for Def-Var'!Q21*T$28 -> 0 | U20: ='4. Billing Det. for Def-Var'!R21*U$28 -> 0 | V20: ='4. Billing Det. for Def-Var'!S21*V$28 -> 0 | W20: ='4. Billing Det. for Def-Var'!T21*W$28 -> 8001.344514 | X20: ='4. Billing Det. for Def-Var'!U21*X$28 -> 0 | Y20: ='4. Billing Det. for Def-Var'!V21*Y$28 -> 0 | Z20: ='4. Billing Det. for Def-Var'!W21 -> 38450.60266
B21: ='4. Billing Det. for Def-Var'!B22 -> STANDBY POWER SERVICE CLASSIFICATION | C21: =IFERROR('4. Billing Det. for Def-Var'!D22/'4. Billing Det. for Def-Var'!D$29,"") -> 0 | D21: =IFERROR('4. Billing Det. for Def-Var'!F22/'4. Billing Det. for Def-Var'!F$29,"") -> 0 | E21: =IFERROR('4. Billing Det. for Def-Var'!X22/'4. Billing Det. for Def-Var'!X$29,"") -> 0 | F21: =IFERROR('4. Billing Det. for Def-Var'!J22/'4. Billing Det. for Def-Var'!J$29,"") -> 0 | G21: 0 | H21: 0 | I21: 0 | L21: 0 | M21: 0 | N21: 0 | O21: ='4. Billing Det. for Def-Var'!L22*O$28 -> 0 | P21: ='4. Billing Det. for Def-Var'!M22*P$28 -> 0 | Q21: ='4. Billing Det. for Def-Var'!N22*Q$28 -> 0 | R21: ='4. Billing Det. for Def-Var'!O22*R$28 -> 0 | S21: ='4. Billing Det. for Def-Var'!P22*S$28 -> 0 | T21: ='4. Billing Det. for Def-Var'!Q22*T$28 -> 0 | U21: ='4. Billing Det. for Def-Var'!R22*U$28 -> 0 | V21: ='4. Billing Det. for Def-Var'!S22*V$28 -> 0 | W21: ='4. Billing Det. for Def-Var'!T22*W$28 -> 0 | X21: ='4. Billing Det. for Def-Var'!U22*X$28 -> 0 | Y21: ='4. Billing Det. for Def-Var'!V22*Y$28 -> 0 | Z21: ='4. Billing Det. for Def-Var'!W22 -> 0
B22: ='4. Billing Det. for Def-Var'!B23 -> UNMETERED SCATTERED LOAD SERVICE CLASSIFICATION | C22: =IFERROR('4. Billing Det. for Def-Var'!D23/'4. Billing Det. for Def-Var'!D$29,"") -> 0.001431553305 | D22: =IFERROR('4. Billing Det. for Def-Var'!F23/'4. Billing Det. for Def-Var'!F$29,"") -> 0.002564994469 | E22: =IFERROR('4. Billing Det. for Def-Var'!X23/'4. Billing Det. for Def-Var'!X$29,"") -> 0 | F22: =IFERROR('4. Billing Det. for Def-Var'!J23/'4. Billing Det. for Def-Var'!J$29,"") -> 0.001455365505 | G22: 297.8783237 | H22: 0 | I22: -857.9815832 | L22: 546.2815307 | M22: 1764.775319 | N22: -1066.399573 | O22: ='4. Billing Det. for Def-Var'!L23*O$28 -> 0 | P22: ='4. Billing Det. for Def-Var'!M23*P$28 -> 0 | Q22: ='4. Billing Det. for Def-Var'!N23*Q$28 -> 0 | R22: ='4. Billing Det. for Def-Var'!O23*R$28 -> 0 | S22: ='4. Billing Det. for Def-Var'!P23*S$28 -> 0 | T22: ='4. Billing Det. for Def-Var'!Q23*T$28 -> 0 | U22: ='4. Billing Det. for Def-Var'!R23*U$28 -> 0 | V22: ='4. Billing Det. for Def-Var'!S23*V$28 -> 0 | W22: ='4. Billing Det. for Def-Var'!T23*W$28 -> 114.2809333 | X22: ='4. Billing Det. for Def-Var'!U23*X$28 -> 0 | Y22: ='4. Billing Det. for Def-Var'!V23*Y$28 -> 0 | Z22: ='4. Billing Det. for Def-Var'!W23 -> 0
B23: ='4. Billing Det. for Def-Var'!B24 -> STREET LIGHTING SERVICE CLASSIFICATION | C23: =IFERROR('4. Billing Det. for Def-Var'!D24/'4. Billing Det. for Def-Var'!D$29,"") -> 0.008463557621 | D23: =IFERROR('4. Billing Det. for Def-Var'!F24/'4. Billing Det. for Def-Var'!F$29,"") -> 0.01529076697 | E23: =IFERROR('4. Billing Det. for Def-Var'!X24/'4. Billing Det. for Def-Var'!X$29,"") -> 0 | F23: =IFERROR('4. Billing Det. for Def-Var'!J24/'4. Billing Det. for Def-Var'!J$29,"") -> 0.008604338914 | G23: =IFERROR(G$28*C23,"") -> 1761.101279 | H23: =IFERROR(H$28*E23,"") -> 0 | I23: =IFERROR(I$28*F23,"") -> -5072.515666 | L23: 3229.698255 | M23: 10433.61609 | N23: -6304.714051 | O23: ='4. Billing Det. for Def-Var'!L24*O$28 -> 0 | P23: ='4. Billing Det. for Def-Var'!M24*P$28 -> 0 | Q23: ='4. Billing Det. for Def-Var'!N24*Q$28 -> 0 | R23: ='4. Billing Det. for Def-Var'!O24*R$28 -> 0 | S23: ='4. Billing Det. for Def-Var'!P24*S$28 -> 0 | T23: ='4. Billing Det. for Def-Var'!Q24*T$28 -> 0 | U23: ='4. Billing Det. for Def-Var'!R24*U$28 -> 0 | V23: ='4. Billing Det. for Def-Var'!S24*V$28 -> 0 | W23: ='4. Billing Det. for Def-Var'!T24*W$28 -> 729.2750861 | X23: ='4. Billing Det. for Def-Var'!U24*X$28 -> 0 | Y23: ='4. Billing Det. for Def-Var'!V24*Y$28 -> 0 | Z23: ='4. Billing Det. for Def-Var'!W24 -> 0
B24: ='4. Billing Det. for Def-Var'!B25 -> EMBEDDED DISTRIBUTOR SERVICE CLASSIFICATION | C24: =IFERROR('4. Billing Det. for Def-Var'!D25/'4. Billing Det. for Def-Var'!D$29,"") -> 0.0008235902607 | D24: =IFERROR('4. Billing Det. for Def-Var'!F25/'4. Billing Det. for Def-Var'!F$29,"") -> 0.001487947187 | E24: =IFERROR('4. Billing Det. for Def-Var'!X25/'4. Billing Det. for Def-Var'!X$29,"") -> 0 | F24: =IFERROR('4. Billing Det. for Def-Var'!J25/'4. Billing Det. for Def-Var'!J$29,"") -> 0.0008372897127 | G24: 171.373071 | H24: 0 | I24: -493.6073797 | L24: 314.2824976 | M24: 1015.296992 | N24: -613.5128182 | O24: ='4. Billing Det. for Def-Var'!L25*O$28 -> 0 | P24: ='4. Billing Det. for Def-Var'!M25*P$28 -> 0 | Q24: ='4. Billing Det. for Def-Var'!N25*Q$28 -> 0 | R24: ='4. Billing Det. for Def-Var'!O25*R$28 -> 0 | S24: ='4. Billing Det. for Def-Var'!P25*S$28 -> 0 | T24: ='4. Billing Det. for Def-Var'!Q25*T$28 -> 0 | U24: ='4. Billing Det. for Def-Var'!R25*U$28 -> 0 | V24: ='4. Billing Det. for Def-Var'!S25*V$28 -> 0 | W24: ='4. Billing Det. for Def-Var'!T25*W$28 -> 204.6778384 | X24: ='4. Billing Det. for Def-Var'!U25*X$28 -> 0 | Y24: ='4. Billing Det. for Def-Var'!V25*Y$28 -> 0 | Z24: ='4. Billing Det. for Def-Var'!W25 -> 0
B25: ='4. Billing Det. for Def-Var'!B26 -> DISTRIBUTED GENERATION [DGEN] SERVICE CLASSIFICATION | C25: =IFERROR('4. Billing Det. for Def-Var'!D26/'4. Billing Det. for Def-Var'!D$29,"") -> 6.71449063e-05 | D25: =IFERROR('4. Billing Det. for Def-Var'!F26/'4. Billing Det. for Def-Var'!F$29,"") -> 0.0001213079844 | E25: =IFERROR('4. Billing Det. for Def-Var'!X26/'4. Billing Det. for Def-Var'!X$29,"") -> 0 | F25: =IFERROR('4. Billing Det. for Def-Var'!J26/'4. Billing Det. for Def-Var'!J$29,"") -> 6.826178258e-05 | G25: 13.9715455 | H25: 0 | I25: -40.24236667 | L25: 25.62253327 | M25: 82.77419568 | N25: -50.01790655
B26: ='4. Billing Det. for Def-Var'!B27 -> ENERGY FROM WASTE SERVICE CLASSIFICATION | C26: =IFERROR('4. Billing Det. for Def-Var'!D27/'4. Billing Det. for Def-Var'!D$29,"") -> 0 | D26: =IFERROR('4. Billing Det. for Def-Var'!F27/'4. Billing Det. for Def-Var'!F$29,"") -> 0 | E26: =IFERROR('4. Billing Det. for Def-Var'!X27/'4. Billing Det. for Def-Var'!X$29,"") -> 0 | F26: =IFERROR('4. Billing Det. for Def-Var'!J27/'4. Billing Det. for Def-Var'!J$29,"") -> 0 | G26: 0 | H26: 0 | I26: 0 | L26: 0 | M26: 0 | N26: 0
C28: =SUM(C16:C27) -> 1 | D28: =SUM(D16:D27) -> 1 | E28: =SUM(E16:E27) -> 1 | F28: =SUM(F16:F27) -> 1 | G28: ='3. Continuity Schedule'!BU21 -> 208080.4973 | H28: ='3. Continuity Schedule'!BU22 -> -132759.494 | I28: ='3. Continuity Schedule'!BU23+(IF('6.2 CBR B'!$U$18="TRUE",'6.2a CBR B_Allocation'!D25,0)) -> -589529.9706 | L28: ='3. Continuity Schedule'!BU26 -> 381600.5515 | M28: ='3. Continuity Schedule'!BU27 -> 1232769.546 | N28: ='3. Continuity Schedule'!BU28 -> -732736.6012 | O28: =IF('3. Continuity Schedule'!$BT30="Yes",'3. Continuity Schedule'!$BU30,0) -> 0 | P28: =IF('3. Continuity Schedule'!$BT31="Yes",'3. Continuity Schedule'!$BU31,0) -> 0 | Q28: =IF('3. Continuity Schedule'!$BT32="Yes",'3. Continuity Schedule'!$BU32,0) -> 0 | R28: =IF('3. Continuity Schedule'!$BT33="Yes",'3. Continuity Schedule'!$BU33,0) -> 0 | S28: =IF('3. Continuity Schedule'!$BT34="Yes",'3. Continuity Schedule'!$BU34,0) -> 0 | T28: =IF('3. Continuity Schedule'!$BT35="Yes",'3. Continuity Schedule'!$BU35,0) -> 0 | U28: =IF('3. Continuity Schedule'!$BT36="Yes",'3. Continuity Schedule'!$BU36,0) -> 0 | V28: =IF('3. Continuity Schedule'!$BT37="Yes",'3. Continuity Schedule'!$BU37,0) -> 0 | W28: =IF('3. Continuity Schedule'!$BT38="Yes",'3. Continuity Schedule'!$BU38,0) -> 86239.57078 | X28: =IF('3. Continuity Schedule'!$BT39="Yes",'3. Continuity Schedule'!$BU39,0) -> 0 | Y28: =IF('3. Continuity Schedule'!$BT40="Yes",'3. Continuity Schedule'!$BU40,0) -> 0 | Z28: =SUM(Z16:Z27) -> 1095287.582
G29: =SUM(G16:G27)-G28 -> 0 | H29: =SUM(H16:H27)-H28 -> 0 | I29: 0 | J29: 0 | K29: 0 | L29: 0 | M29: 0 | N29: 0 | P29: 0 | Q29: 0 | R29: 0 | S29: 0 | T29: 0 | U29: 0 | V29: 0 | Z29: 0
B32: ** Used to allocate Account 1551 as this account records the variances arising from the Smart Metering Entity Charges to Residential and GS<50 customers.

Sheet 6. Class A Consumption Data
A1: Back to Index
B2: =+'1. Information Sheet'!B2 -> INCENTIVE REGULATION MODEL FOR 2020 FILERS
A12: 1 | B12: Please select the Year the Account 1580 CBR Class B was Last Disposed. | C12: 2017 | D12: (e.g. If in the 2018 EDR process, you received approval to dispose the GA variance account balance as at December 31, 2016, enter 2016.)
C14: Years since Account 1589 GA balance was last disposed (up to 2016) | E14: =C12 -> 2017 | F14: =E14-1 -> 2016
A17: 2a | B17: Did you have any customers who transitioned between Class A and Class B (transition customers) during the period the Account 1589 GA balance accumulated (i.e. from the year after the balance was last disposed to 2017)? | C17: Yes | D17: (e.g. If you received approval to dispose of the GA variance account balance as at December 31, 2015, the period the GA variance accumulated would be 2016 and 2017.)
A19: 2b | B19: Did you have any customers who transitioned between Class A and Class B (transition customers) during the period the Account 1580, sub-account CBR Class B balance accumulated (i.e. from the year after the balance was last disposed to 2017)? | C19: Yes | D19: (e.g. If you received approval to dispose of the CBR Class B balance as at December 31, 2016, the period the CBR Class B variance accumulated would be 2017.)
A23: 3a | B23: Enter the number of transition customers you had during the period the Account 1589 GA balance accumulated. | C23: 25
C26: Transition Customers - Non-loss Adjusted Billing Determinants by Customer
C27: Customer | D27: Rate Class | E27: 2018 kWh | H27: 2018 kW | K27: Class A/B
E28: Jan to Jun | F28: Jul to Dec | H28: Jan to Jun | I28: Jul to Dec | K28: Jan to Jun | L28: Jul to Dec | M28: July to December
C29: Customer 1 | D29: GENERAL SERVICE 50 to 699 KW SERVICE CLASSIFICATION | E29: 985058 | F29: 949603.8631 | G29: 2018 kWh | H29: 3564 | I29: 3763.120016 | J29: 2018 kW | K29: A | L29: B
C30: Customer 2 | D30: GENERAL SERVICE 50 to 699 KW SERVICE CLASSIFICATION | E30: 915208 | F30: 888804.5504 | G30: 2018 kWh | H30: 3527.28 | I30: 3697.970051 | J30: 2018 kW | K30: A | L30: B
C31: Customer 3 | D31: GENERAL SERVICE 50 to 699 KW SERVICE CLASSIFICATION | E31: 1507576 | F31: 1627202.018 | G31: 2018 kWh | H31: 3442.53 | I31: 4002.150042 | J31: 2018 kW | K31: A | L31: B
C32: Customer 4 | D32: GENERAL SERVICE 50 to 699 KW SERVICE CLASSIFICATION | E32: 753429 | F32: 844668.6101 | G32: 2018 kWh | H32: 3110.05 | I32: 3500.910049 | J32: 2018 kW | K32: A | L32: B
C33: Customer 5 | D33: GENERAL SERVICE 50 to 699 KW SERVICE CLASSIFICATION | E33: 2122000 | F33: 2778083.667 | G33: 2018 kWh | H33: 4123.37 | I33: 4693.910048 | J33: 2018 kW | K33: B | L33: A
C34: Customer 6 | D34: GENERAL SERVICE 50 to 699 KW SERVICE CLASSIFICATION | E34: 3218261 | F34: 3589107.246 | G34: 2018 kWh | H34: 7519.68 | I34: 7544.160061 | J34: 2018 kW | K34: B | L34: A
C35: Customer 7 | D35: GENERAL SERVICE 50 to 699 KW SERVICE CLASSIFICATION | E35: 863403 | F35: 807862.9931 | G35: 2018 kWh | H35: 3792.6 | I35: 4003.199982 | J35: 2018 kW | K35: B | L35: A
C36: Customer 8 | D36: GENERAL SERVICE 50 to 699 KW SERVICE CLASSIFICATION | E36: 710847 | F36: 740792.5278 | G36: 2018 kWh | H36: 3527.96 | I36: 3450.33004 | J36: 2018 kW | K36: B | L36: A
C37: Customer 9 | D37: GENERAL SERVICE 50 to 699 KW SERVICE CLASSIFICATION | E37: 1129354 | F37: 1187351.026 | G37: 2018 kWh | H37: 3215.68 | I37: 3001.922015 | J37: 2018 kW | K37: B | L37: A
C38: Customer 10 | D38: GENERAL SERVICE 50 to 699 KW SERVICE CLASSIFICATION | E38: 1332104 | F38: 1405493.48 | G38: 2018 kWh | H38: 4257.86 | I38: 4131.360065 | J38: 2018 kW | K38: B | L38: A
C39: Customer 11 | D39: GENERAL SERVICE 700 to 4,999 KW SERVICE CLASSIFICATION | E39: 2592679 | F39: 2348097.102 | G39: 2018 kWh | H39: 9644.66 | I39: 9903.171145 | J39: 2018 kW | K39: A | L39: B
C40: Customer 12 | D40: GENERAL SERVICE 700 to 4,999 KW SERVICE CLASSIFICATION | E40: 702118 | F40: 753967.8637 | G40: 2018 kWh | H40: 3643.82 | I40: 3635.520039 | J40: 2018 kW | K40: A | L40: B
C41: Customer 13 | D41: GENERAL SERVICE 700 to 4,999 KW SERVICE CLASSIFICATION | E41: 4165892 | F41: 4382732.414 | G41: 2018 kWh | H41: 10351.04 | I41: 9782.250094 | J41: 2018 kW | K41: A | L41: B
C42: Customer 14 | D42: GENERAL SERVICE 700 to 4,999 KW SERVICE CLASSIFICATION | E42: 2133339 | F42: 2392546.537 | G42: 2018 kWh | H42: 4643.99 | I42: 5177.078022 | J42: 2018 kW | K42: A | L42: B
C43: Customer 15 | D43: GENERAL SERVICE 700 to 4,999 KW SERVICE CLASSIFICATION | E43: 1430578 | F43: 1430512.147 | G43: 2018 kWh | H43: 3570.91 | I43: 3485.370027 | J43: 2018 kW | K43: A | L43: B
C44: Customer 16 | D44: GENERAL SERVICE 700 to 4,999 KW SERVICE CLASSIFICATION | E44: 1195276 | F44: 2143171.053 | G44: 2018 kWh | H44: 3083.04 | I44: 5216.180076 | J44: 2018 kW | K44: B | L44: A
C45: Customer 17 | D45: GENERAL SERVICE 700 to 4,999 KW SERVICE CLASSIFICATION | E45: 2020484 | F45: 2254283.405 | G45: 2018 kWh | H45: 4456.08 | I45: 4624.820046 | J45: 2018 kW | K45: B | L45: A
C46: Customer 18 | D46: GENERAL SERVICE 700 to 4,999 KW SERVICE CLASSIFICATION | E46: 2118001 | F46: 2457221.782 | G46: 2018 kWh | H46: 4731.26 | I46: 4841.28005 | J46: 2018 kW | K46: B | L46: A
C47: Customer 19 | D47: GENERAL SERVICE 700 to 4,999 KW SERVICE CLASSIFICATION | E47: 1862028 | F47: 1964844.142 | G47: 2018 kWh | H47: 4593.6 | I47: 4953.600048 | J47: 2018 kW | K47: B | L47: A
C48: Customer 20 | D48: GENERAL SERVICE 700 to 4,999 KW SERVICE CLASSIFICATION | E48: 2045581 | F48: 2041277.164 | G48: 2018 kWh | H48: 5280.18 | I48: 5651.200098 | J48: 2018 kW | K48: B | L48: A
C49: Customer 21 | D49: GENERAL SERVICE 700 to 4,999 KW SERVICE CLASSIFICATION | E49: 3010994 | F49: 8129422.038 | G49: 2018 kWh | H49: 5790.72 | I49: 13391.52029 | J49: 2018 kW | K49: B | L49: A
C50: Customer 22 | D50: GENERAL SERVICE 700 to 4,999 KW SERVICE CLASSIFICATION | E50: 1863482 | F50: 1650966.201 | G50: 2018 kWh | H50: 4033.72 | I50: 4007.30004 | J50: 2018 kW | K50: B | L50: A
C51: Customer 23 | D51: GENERAL SERVICE 700 to 4,999 KW SERVICE CLASSIFICATION | E51: 3638317 | F51: 3224143.361 | G51: 2018 kWh | H51: 9623.55 | I51: 9111.580133 | J51: 2018 kW | K51: B | L51: A
C52: Customer 24 | D52: GENERAL SERVICE 700 to 4,999 KW SERVICE CLASSIFICATION | E52: 3188038 | F52: 3339034.593 | G52: 2018 kWh | H52: 7141.68 | I52: 8157.600087 | J52: 2018 kW | K52: B | L52: A
C53: Customer 25 | D53: GENERAL SERVICE 700 to 4,999 KW SERVICE CLASSIFICATION | E53: 8069036 | F53: 9022754.029 | G53: 2018 kWh | H53: 13566.17 | I53: 15258.53997 | J53: 2018 kW | K53: B | L53: A
C54: Customer 26 | G54: =IF(D54<>"",E$27,"") -> 
C55: Customer 27
C56: Customer 28
C57: Customer 29
C58: Customer 30
C59: Customer 31
C60: Customer 32
C61: Customer 33
C62: Customer 34
C63: Customer 35
C64: Customer 36
C65: Customer 37
C66: Customer 38
C67: Customer 39
C68: Customer 40
C69: Customer 41
C70: Customer 42
C71: Customer 43
C72: Customer 44
C73: Customer 45
C74: Customer 46
C75: Customer 47
C76: Customer 48
C77: Customer 49
C78: Customer 50
C79: Customer 51
C80: Customer 52
C81: Customer 53
C82: Customer 54
C83: Customer 55
C84: Customer 56
C85: Customer 57
C86: Customer 58
C87: Customer 59
C88: Customer 60
C89: Customer 61
C90: Customer 62
C91: Customer 63
C92: Customer 64
C93: Customer 65
C94: Customer 66 | G94: =IF(D94<>"",E$27,"") -> 
C95: Customer 67
C96: Customer 68
C97: Customer 69
C98: Customer 70
C99: Customer 71
C100: Customer 72
C101: Customer 73
C102: Customer 74
C103: Customer 75
C104: Customer 76
C105: Customer 77
C106: Customer 78
C107: Customer 79
C108: Customer 80
C109: Customer 81
C110: Customer 82
C111: Customer 83
C112: Customer 84
C113: Customer 85
C114: Customer 86
C115: Customer 87
C116: Customer 88
C117: Customer 89
C118: Customer 90
C119: Customer 91
C120: Customer 92
C121: Customer 93
C122: Customer 94
C123: Customer 95
C124: Customer 96
C125: Customer 97
C126: Customer 98
C127: Customer 99
C128: Customer 100
C129: Customer 101
C130: Customer 102 | G130: =IF(D130<>"",E$27,"") -> 
C131: Customer 103
C132: Customer 104
C133: Customer 105
C134: Customer 106
C135: Customer 107
C136: Customer 108
C137: Customer 109
C138: Customer 110
C139: Customer 111
C140: Customer 112
C141: Customer 113
C142: Customer 114
C143: Customer 115
C144: Customer 116
C145: Customer 117
C146: Customer 118
C147: Customer 119
C148: Customer 120
C149: Customer 121
C150: Customer 122
C151: Customer 123
C152: Customer 124
C153: Customer 125
C154: Customer 126
C155: Customer 127
C156: Customer 128
C157: Customer 129
C158: Customer 130
C159: Customer 131
C160: Customer 132
C161: Customer 133
C162: Customer 134
C163: Customer 135
C164: Customer 136
C165: Customer 137
C166: Customer 138
C167: Customer 139
C168: Customer 140
C169: Customer 141
C170: Customer 142
C171: Customer 143
C172: Customer 144
C173: Customer 145
C174: Customer 146
C175: Customer 147
C176: Customer 148
C177: Customer 149
C178: Customer 150
A181: 3b | B181: Enter the number of customers who were Class A during the entire period since the Account 1589 GA balance accumulated (i.e. did not transition between Class A and B). | C181: 76
C184: Class A Customers - Billing Determinants by Customer
C185: Customer | D185: Rate Class | E185: kWh | H185: kW
C186: Customer A1 | D186: GENERAL SERVICE 50 to 699 KW SERVICE CLASSIFICATION | E186: 2073361.153 | H186: 8469.830058
C187: Customer A2 | D187: GENERAL SERVICE 50 to 699 KW SERVICE CLASSIFICATION | E187: 3812321.81 | H187: 9079.64195
C188: Customer A3 | D188: GENERAL SERVICE 50 to 699 KW SERVICE CLASSIFICATION | E188: 2315539.971 | H188: 6484.470038
C189: Customer A4 | D189: GENERAL SERVICE 50 to 699 KW SERVICE CLASSIFICATION | E189: 2231380.825 | H189: 7357.832031
C190: Customer A5 | D190: GENERAL SERVICE 50 to 699 KW SERVICE CLASSIFICATION | E190: 3114161.099 | H190: 7636.750042
C191: Customer A6 | D191: GENERAL SERVICE 50 to 699 KW SERVICE CLASSIFICATION | E191: 1831642.977 | H191: 6197.677935
C192: Customer A7 | D192: GENERAL SERVICE 50 to 699 KW SERVICE CLASSIFICATION | E192: 2615218.158 | H192: 7093.440048
C193: Customer A8 | D193: GENERAL SERVICE 50 to 699 KW SERVICE CLASSIFICATION | E193: 1812028.45 | H193: 8350.150059
C194: Customer A9 | D194: GENERAL SERVICE 50 to 699 KW SERVICE CLASSIFICATION | E194: 3233548.069 | H194: 7608.000066
C195: Customer A10 | D195: GENERAL SERVICE 50 to 699 KW SERVICE CLASSIFICATION | E195: 1550342.33 | H195: 5872.320054
C196: Customer A11 | D196: GENERAL SERVICE 50 to 699 KW SERVICE CLASSIFICATION | E196: 3353420.321 | H196: 7975.500034
C197: Customer A12 | D197: GENERAL SERVICE 700 to 4,999 KW SERVICE CLASSIFICATION | E197: 10069612.98 | H197: 24408.35011
C198: Customer A13 | D198: GENERAL SERVICE 700 to 4,999 KW SERVICE CLASSIFICATION | E198: 8593769.256 | H198: 20080.98006
C199: Customer A14 | D199: GENERAL SERVICE 700 to 4,999 KW SERVICE CLASSIFICATION | E199: 10375446.63 | H199: 19973.96612
C200: Customer A15 | D200: GENERAL SERVICE 700 to 4,999 KW SERVICE CLASSIFICATION | E200: 7383624.729 | H200: 20896.19014
C201: Customer A16 | D201: GENERAL SERVICE 700 to 4,999 KW SERVICE CLASSIFICATION | E201: 18132320.23 | H201: 38944.80022
C202: Customer A17 | D202: GENERAL SERVICE 700 to 4,999 KW SERVICE CLASSIFICATION | E202: 22732114.4 | H202: 44553.1741
C203: Customer A18 | D203: GENERAL SERVICE 700 to 4,999 KW SERVICE CLASSIFICATION | E203: 8747549.216 | H203: 15617.89007
C204: Customer A19 | D204: GENERAL SERVICE 700 to 4,999 KW SERVICE CLASSIFICATION | E204: 12662750.77 | H204: 25480.74811
C205: Customer A20 | D205: GENERAL SERVICE 700 to 4,999 KW SERVICE CLASSIFICATION | E205: 13252064.46 | H205: 33228.96016
C206: Customer A21 | D206: GENERAL SERVICE 700 to 4,999 KW SERVICE CLASSIFICATION | E206: 8466414.128 | H206: 18852.52988
C207: Customer A22 | D207: GENERAL SERVICE 700 to 4,999 KW SERVICE CLASSIFICATION | E207: 3784018.593 | H207: 13715.84009
C208: Customer A23 | D208: GENERAL SERVICE 700 to 4,999 KW SERVICE CLASSIFICATION | E208: 4068719.684 | H208: 40990.75422
C209: Customer A24 | D209: GENERAL SERVICE 700 to 4,999 KW SERVICE CLASSIFICATION | E209: 17634184.13 | H209: 30794.68821
C210: Customer A25 | D210: GENERAL SERVICE 700 to 4,999 KW SERVICE CLASSIFICATION | E210: 16207526.82 | H210: 32950.08016
C211: Customer A26 | D211: GENERAL SERVICE 700 to 4,999 KW SERVICE CLASSIFICATION | E211: 9875256.782 | H211: 17160.11005
C212: Customer A27 | D212: GENERAL SERVICE 700 to 4,999 KW SERVICE CLASSIFICATION | E212: 14657205.93 | H212: 32284.67
C213: Customer A28 | D213: GENERAL SERVICE 700 to 4,999 KW SERVICE CLASSIFICATION | E213: 14972995.55 | H213: 34906.32021
C214: Customer A29 | D214: GENERAL SERVICE 700 to 4,999 KW SERVICE CLASSIFICATION | E214: 5637121.133 | H214: 9767.04821
C215: Customer A30 | D215: GENERAL SERVICE 700 to 4,999 KW SERVICE CLASSIFICATION | E215: 6137414.003 | H215: 13474.54004
C216: Customer A31 | D216: GENERAL SERVICE 700 to 4,999 KW SERVICE CLASSIFICATION | E216: 6424247.898 | H216: 19184.89002
C217: Customer A32 | D217: GENERAL SERVICE 700 to 4,999 KW SERVICE CLASSIFICATION | E217: 10046819.46 | H217: 24211.4403
C218: Customer A33 | D218: GENERAL SERVICE 700 to 4,999 KW SERVICE CLASSIFICATION | E218: 10702813.46 | H218: 26040.96017
C219: Customer A34 | D219: GENERAL SERVICE 700 to 4,999 KW SERVICE CLASSIFICATION | E219: 7028172.197 | H219: 11914.53004
C220: Customer A35 | D220: GENERAL SERVICE 700 to 4,999 KW SERVICE CLASSIFICATION | E220: 8029150.924 | H220: 14506.56007
C221: Customer A36 | D221: GENERAL SERVICE 700 to 4,999 KW SERVICE CLASSIFICATION | E221: 10613715.26 | H221: 22478.7301
C222: Customer A37 | D222: GENERAL SERVICE 700 to 4,999 KW SERVICE CLASSIFICATION | E222: 8962401.361 | H222: 18735.2699
... 113 more rows

Sheet 6.1a GA Allocation
A1: Back to Index
B2: =+'1. Information Sheet'!B2 -> INCENTIVE REGULATION MODEL FOR 2020 FILERS
B11: This tab allocates the GA balance to transition customers (i.e Class A customers who were former Class B customers and Class B customers who were former Class A customers) who contributed to the current GA balance. The tables below calculate specific amounts for each customer who made the change. The general GA rate rider to non-RPP customers is not to be charged to the transition customers that are allocated amounts in the table below. Consistent with prior decisions, distributors are generally expected to settle the amount through 12 equal adjustments to bills.
B14: Year of Group 1 Account Balance Last Disposed | C14: 2017 | D14: (e.g. If in the 2019 EDR process, you received approval to dispose the GA variance account balance as of December 31, 2016, please enter 2016 in cell C14.)
B16: Allocation of total Non-RPP Consumption (kWh) between Current Class B and Class A/B Transition Customers
D17: Total | E17: =C14+1 -> 2018 | F17: =E17-1 -> 2017 | G17: =F17-1 -> 2016
B18: Total Non-RPP Class B Consumption for Years During Balance Accumulation (Non-RPP Consumption LESS WMP Consumption and Consumption for Class A customers who were Class A for partial or full year) | C18: A | D18: =SUM(E18:G18) -> 1266629211 | E18: =N25 -> 1266629211 | H18: from Cell N25
B19: Transition Customers' Class B Consumption (i.e. full year or partial year) | C19: B | D19: =SUM(E19:G19) -> 54005341.11 | E19: =E189 -> 54005341.11 | F19: =F189 -> 0 | G19: 0
B20: Transition Customers' Portion of Total Consumption | C20: C=B/A | D20: =IFERROR(+D19/D18,0) -> 0.0426370564 | L20: DO NOT DELETE THESE CELLS
L21: Sheet 4 | M21: total non-RPP kWh | N21: ='4. Billing Det. for Def-Var'!F29+'4. Billing Det. for Def-Var'!H29 -> 2354491629
L22: Sheet 4 | M22: WMP kWh | N22: ='4. Billing Det. for Def-Var'!H29 -> 67600399.62
B23: Allocation of Total GA Balance $ | L23: Sheet 6.1 | M23: Class A (full) | N23: ='6.1 GA'!E29 -> 958340332.7
L24: Sheet 6.1 | M24: Class A (partial) | N24: =SUMIF('6. Class A Consumption Data'!K:K,"a",'6. Class A Consumption Data'!E:E)+SUMIF('6. Class A Consumption Data'!L:L,"a",'6. Class A Consumption Data'!F:F) -> 61921685.71
B25: Total GA Balance | C25: D | D25: ='3. Continuity Schedule'!BU29 -> -2683604.345 | M25: Class B | N25: =N21-N22-N23-N24 -> 1266629211
B26: Transition Customers Portion of GA Balance | C26: E=C*D | D26: =+D20*D25 -> -114420.9898
B27: GA Balance to be disposed to Current Class B Customers through Rate Rider | C27: F=D-E | D27: =+D25-D26 -> -2569183.355
B30: Allocation of GA Balances to Class A/B Transition Customers
B32: Default Monthly Equal Payments Recovery Period (in months) | D32: 12
B34: Proposed Monthly Equal Payments Recovery Period (in months) | D34: 12
B37: # of Class A/B Transition Customers | C37: =COUNT($E$39:$E$188)-COUNTIF($E$39:$E$188,0) -> 25
B38: Customer | D38: Total Metered Consumption (kWh) for Transition Customers During the Period WhenThey Were Class B Customers | E38: Metered Consumption (kWh) for Transition Customers During the Period When They Were Class B Customers in 2018 | F38: Metered Consumption (kWh) for Transition Customers During the Period When They Were Class B Customers in 2017 | G38: Metered Consumption (kWh) for Transition Customers During the Period When They Were Class B Customers in 2016 | H38: % of kWh | I38: Customer Specific GA Allocation for the Period When They Were a Class B customer | J38: Monthly Equal Payments
B39: Customer 1 | D39: =SUM(E39:G39) -> 949603.8631 | E39: =SUM(IF('6. Class A Consumption Data'!K29:L29="B",'6. Class A Consumption Data'!E29:F29)) -> 949603.8631 | H39: =IFERROR(+D39/$D$189,0) -> 0.01758351755 | I39: =H39*$D$26 -> -2011.923482 | J39: =ROUND(IF(ISERROR(I39),0,IF(OR(ISBLANK($D$34), OR($D$34=0, $D$34="")), I39/($D$32), I39/($D$34))),2) -> -167.66
B40: Customer 2 | D40: 888804.5504 | E40: =SUM(IF('6. Class A Consumption Data'!K30:L30="B",'6. Class A Consumption Data'!E30:F30)) -> 888804.5504 | H40: =IFERROR(+D40/$D$189,0) -> 0.0164577157 | I40: =H40*$D$26 -> -1883.108121 | J40: =ROUND(IF(ISERROR(I40),0,IF(OR(ISBLANK($D$34), OR($D$34=0, $D$34="")), I40/($D$32), I40/($D$34))),2) -> -156.93
B41: Customer 3 | D41: 1627202.018 | E41: =SUM(IF('6. Class A Consumption Data'!K31:L31="B",'6. Class A Consumption Data'!E31:F31)) -> 1627202.018 | H41: 0.03013039052 | I41: -3447.549107 | J41: -287.3
B42: Customer 4 | D42: 844668.6101 | E42: =SUM(IF('6. Class A Consumption Data'!K32:L32="B",'6. Class A Consumption Data'!E32:F32)) -> 844668.6101 | H42: 0.01564046431 | I42: -1789.597407 | J42: -149.13
B43: Customer 5 | D43: 2122000 | E43: =SUM(IF('6. Class A Consumption Data'!K33:L33="B",'6. Class A Consumption Data'!E33:F33)) -> 2122000 | H43: 0.03929240991 | I43: -4495.876433 | J43: -374.66
B44: Customer 6 | D44: 3218261 | E44: =SUM(IF('6. Class A Consumption Data'!K34:L34="B",'6. Class A Consumption Data'!E34:F34)) -> 3218261 | H44: 0.05959153177 | I44: -6818.522048 | J44: -568.21
B45: Customer 7 | D45: 863403 | E45: =SUM(IF('6. Class A Consumption Data'!K35:L35="B",'6. Class A Consumption Data'!E35:F35)) -> 863403 | H45: 0.01598736314 | I45: -1829.289915 | J45: -152.44
B46: Customer 8 | D46: 710847 | E46: =SUM(IF('6. Class A Consumption Data'!K36:L36="B",'6. Class A Consumption Data'!E36:F36)) -> 710847 | H46: 0.01316253144 | I46: -1506.069875 | J46: -125.51
B47: Customer 9 | D47: 1129354 | E47: =SUM(IF('6. Class A Consumption Data'!K37:L37="B",'6. Class A Consumption Data'!E37:F37)) -> 1129354 | H47: 0.02091189458 | I47: -2392.759676 | J47: -199.4
B48: Customer 10 | D48: 1332104 | E48: =SUM(IF('6. Class A Consumption Data'!K38:L38="B",'6. Class A Consumption Data'!E38:F38)) -> 1332104 | H48: 0.02466615288 | I48: -2822.325627 | J48: -235.19
B49: Customer 11 | D49: 2348097.102 | E49: =SUM(IF('6. Class A Consumption Data'!K39:L39="B",'6. Class A Consumption Data'!E39:F39)) -> 2348097.102 | H49: 0.04347897919 | I49: -4974.907834 | J49: -414.58
B50: Customer 12 | D50: 753967.8637 | E50: =SUM(IF('6. Class A Consumption Data'!K40:L40="B",'6. Class A Consumption Data'!E40:F40)) -> 753967.8637 | H50: 0.01396098697 | I50: -1597.429948 | J50: -133.12
B51: Customer 13 | D51: 4382732.414 | E51: =SUM(IF('6. Class A Consumption Data'!K41:L41="B",'6. Class A Consumption Data'!E41:F41)) -> 4382732.414 | H51: 0.08115368451 | I51: -9285.684907 | J51: -773.81
B52: Customer 14 | D52: 2392546.537 | E52: =SUM(IF('6. Class A Consumption Data'!K42:L42="B",'6. Class A Consumption Data'!E42:F42)) -> 2392546.537 | H52: 0.04430203547 | I52: -5069.082749 | J52: -422.42
B53: Customer 15 | D53: 1430512.147 | E53: =SUM(IF('6. Class A Consumption Data'!K43:L43="B",'6. Class A Consumption Data'!E43:F43)) -> 1430512.147 | H53: 0.02648834574 | I53: -3030.822738 | J53: -252.57
B54: Customer 16 | D54: 1195276 | E54: =SUM(IF('6. Class A Consumption Data'!K44:L44="B",'6. Class A Consumption Data'!E44:F44)) -> 1195276 | H54: 0.02213255162 | I54: -2532.428463 | J54: -211.04
B55: Customer 17 | D55: 2020484 | E55: =SUM(IF('6. Class A Consumption Data'!K45:L45="B",'6. Class A Consumption Data'!E45:F45)) -> 2020484 | H55: 0.03741266991 | I55: -4280.794722 | J55: -356.73
B56: Customer 18 | D56: 2118001 | E56: =SUM(IF('6. Class A Consumption Data'!K46:L46="B",'6. Class A Consumption Data'!E46:F46)) -> 2118001 | H56: 0.03921836168 | I56: -4487.403761 | J56: -373.95
B57: Customer 19 | D57: 1862028 | E57: =SUM(IF('6. Class A Consumption Data'!K47:L47="B",'6. Class A Consumption Data'!E47:F47)) -> 1862028 | H57: 0.03447858974 | I57: -3945.074365 | J57: -328.76
B58: Customer 20 | D58: 2045581 | E58: =SUM(IF('6. Class A Consumption Data'!K48:L48="B",'6. Class A Consumption Data'!E48:F48)) -> 2045581 | H58: 0.0378773832 | I58: -4333.967677 | J58: -361.16
B59: Customer 21 | D59: 3010994 | E59: =SUM(IF('6. Class A Consumption Data'!K49:L49="B",'6. Class A Consumption Data'!E49:F49)) -> 3010994 | H59: 0.05575363359 | I59: -6379.38594 | J59: -531.62
B60: Customer 22 | D60: 1863482 | E60: =SUM(IF('6. Class A Consumption Data'!K50:L50="B",'6. Class A Consumption Data'!E50:F50)) -> 1863482 | H60: 0.03450551301 | I60: -3948.154952 | J60: -329.01
B61: Customer 23 | D61: 3638317 | E61: =SUM(IF('6. Class A Consumption Data'!K51:L51="B",'6. Class A Consumption Data'!E51:F51)) -> 3638317 | H61: 0.06736957726 | I61: -7708.493712 | J61: -642.37
B62: Customer 24 | D62: 3188038 | E62: =SUM(IF('6. Class A Consumption Data'!K52:L52="B",'6. Class A Consumption Data'!E52:F52)) -> 3188038 | H62: 0.05903190193 | I62: -6754.488649 | J62: -562.87
B63: Customer 25 | D63: 8069036 | E63: =SUM(IF('6. Class A Consumption Data'!K53:L53="B",'6. Class A Consumption Data'!E53:F53)) -> 8069036 | H63: 0.1494118144 | I63: -17095.84769 | J63: -1424.65
B64: Customer 26 | D64: 0 | E64: =SUM(IF('6. Class A Consumption Data'!K54:L54="B",'6. Class A Consumption Data'!E54:F54)) -> 0 | H64: 0 | I64: 0 | J64: 0
B65: Customer 27 | D65: 0 | E65: =SUM(IF('6. Class A Consumption Data'!K55:L55="B",'6. Class A Consumption Data'!E55:F55)) -> 0 | H65: 0 | I65: 0 | J65: 0
B66: Customer 28 | D66: 0 | E66: =SUM(IF('6. Class A Consumption Data'!K56:L56="B",'6. Class A Consumption Data'!E56:F56)) -> 0 | H66: 0 | I66: 0 | J66: 0
B67: Customer 29 | D67: 0 | E67: =SUM(IF('6. Class A Consumption Data'!K57:L57="B",'6. Class A Consumption Data'!E57:F57)) -> 0 | H67: 0 | I67: 0 | J67: 0
B68: Customer 30 | D68: 0 | E68: =SUM(IF('6. Class A Consumption Data'!K58:L58="B",'6. Class A Consumption Data'!E58:F58)) -> 0 | H68: 0 | I68: 0 | J68: 0
B69: Customer 31 | D69: 0 | E69: =SUM(IF('6. Class A Consumption Data'!K59:L59="B",'6. Class A Consumption Data'!E59:F59)) -> 0 | H69: 0 | I69: 0 | J69: 0
B70: Customer 32 | D70: 0 | E70: =SUM(IF('6. Class A Consumption Data'!K60:L60="B",'6. Class A Consumption Data'!E60:F60)) -> 0 | H70: 0 | I70: 0 | J70: 0
B71: Customer 33 | D71: =SUM(E71:G71) -> 0 | E71: =SUM(IF('6. Class A Consumption Data'!K61:L61="B",'6. Class A Consumption Data'!E61:F61)) -> 0 | H71: 0 | I71: 0 | J71: 0
B72: Customer 34 | D72: 0 | E72: =SUM(IF('6. Class A Consumption Data'!K62:L62="B",'6. Class A Consumption Data'!E62:F62)) -> 0 | H72: 0 | I72: 0 | J72: 0
B73: Customer 35 | D73: 0 | E73: =SUM(IF('6. Class A Consumption Data'!K63:L63="B",'6. Class A Consumption Data'!E63:F63)) -> 0 | H73: 0 | I73: 0 | J73: 0
B74: Customer 36 | D74: 0 | E74: =SUM(IF('6. Class A Consumption Data'!K64:L64="B",'6. Class A Consumption Data'!E64:F64)) -> 0 | H74: 0 | I74: 0 | J74: 0
B75: Customer 37 | D75: 0 | E75: =SUM(IF('6. Class A Consumption Data'!K65:L65="B",'6. Class A Consumption Data'!E65:F65)) -> 0 | H75: 0 | I75: 0 | J75: 0
B76: Customer 38 | D76: 0 | E76: =SUM(IF('6. Class A Consumption Data'!K66:L66="B",'6. Class A Consumption Data'!E66:F66)) -> 0 | H76: 0 | I76: 0 | J76: 0
B77: Customer 39 | D77: 0 | E77: =SUM(IF('6. Class A Consumption Data'!K67:L67="B",'6. Class A Consumption Data'!E67:F67)) -> 0 | H77: 0 | I77: 0 | J77: 0
B78: Customer 40 | D78: 0 | E78: =SUM(IF('6. Class A Consumption Data'!K68:L68="B",'6. Class A Consumption Data'!E68:F68)) -> 0 | H78: 0 | I78: 0 | J78: 0
B79: Customer 41 | D79: 0 | E79: =SUM(IF('6. Class A Consumption Data'!K69:L69="B",'6. Class A Consumption Data'!E69:F69)) -> 0 | H79: 0 | I79: 0 | J79: 0
B80: Customer 42 | D80: 0 | E80: =SUM(IF('6. Class A Consumption Data'!K70:L70="B",'6. Class A Consumption Data'!E70:F70)) -> 0 | H80: 0 | I80: 0 | J80: 0
B81: Customer 43 | D81: 0 | E81: =SUM(IF('6. Class A Consumption Data'!K71:L71="B",'6. Class A Consumption Data'!E71:F71)) -> 0 | H81: 0 | I81: 0 | J81: 0
B82: Customer 44 | D82: 0 | E82: =SUM(IF('6. Class A Consumption Data'!K72:L72="B",'6. Class A Consumption Data'!E72:F72)) -> 0 | H82: 0 | I82: 0 | J82: 0
B83: Customer 45 | D83: 0 | E83: =SUM(IF('6. Class A Consumption Data'!K73:L73="B",'6. Class A Consumption Data'!E73:F73)) -> 0 | H83: 0 | I83: 0 | J83: 0
B84: Customer 46 | D84: 0 | E84: =SUM(IF('6. Class A Consumption Data'!K74:L74="B",'6. Class A Consumption Data'!E74:F74)) -> 0 | H84: 0 | I84: 0 | J84: 0
B85: Customer 47 | D85: 0 | E85: =SUM(IF('6. Class A Consumption Data'!K75:L75="B",'6. Class A Consumption Data'!E75:F75)) -> 0 | H85: 0 | I85: 0 | J85: 0
B86: Customer 48 | D86: 0 | E86: =SUM(IF('6. Class A Consumption Data'!K76:L76="B",'6. Class A Consumption Data'!E76:F76)) -> 0 | H86: 0 | I86: 0 | J86: 0
B87: Customer 49 | D87: 0 | E87: =SUM(IF('6. Class A Consumption Data'!K77:L77="B",'6. Class A Consumption Data'!E77:F77)) -> 0 | H87: 0 | I87: 0 | J87: 0
B88: Customer 50 | D88: 0 | E88: =SUM(IF('6. Class A Consumption Data'!K78:L78="B",'6. Class A Consumption Data'!E78:F78)) -> 0 | H88: 0 | I88: 0 | J88: 0
B89: Customer 51 | D89: 0 | E89: =SUM(IF('6. Class A Consumption Data'!K79:L79="B",'6. Class A Consumption Data'!E79:F79)) -> 0 | H89: 0 | I89: 0 | J89: 0
B90: Customer 52 | D90: 0 | E90: =SUM(IF('6. Class A Consumption Data'!K80:L80="B",'6. Class A Consumption Data'!E80:F80)) -> 0 | H90: 0 | I90: 0 | J90: 0
B91: Customer 53 | D91: 0 | E91: =SUM(IF('6. Class A Consumption Data'!K81:L81="B",'6. Class A Consumption Data'!E81:F81)) -> 0 | H91: 0 | I91: 0 | J91: 0
B92: Customer 54 | D92: 0 | E92: =SUM(IF('6. Class A Consumption Data'!K82:L82="B",'6. Class A Consumption Data'!E82:F82)) -> 0 | H92: 0 | I92: 0 | J92: 0
B93: Customer 55 | D93: 0 | E93: =SUM(IF('6. Class A Consumption Data'!K83:L83="B",'6. Class A Consumption Data'!E83:F83)) -> 0 | H93: 0 | I93: 0 | J93: 0
B94: Customer 56 | D94: 0 | E94: =SUM(IF('6. Class A Consumption Data'!K84:L84="B",'6. Class A Consumption Data'!E84:F84)) -> 0 | H94: 0 | I94: 0 | J94: 0
B95: Customer 57 | D95: 0 | E95: =SUM(IF('6. Class A Consumption Data'!K85:L85="B",'6. Class A Consumption Data'!E85:F85)) -> 0 | H95: 0 | I95: 0 | J95: 0
B96: Customer 58 | D96: 0 | E96: =SUM(IF('6. Class A Consumption Data'!K86:L86="B",'6. Class A Consumption Data'!E86:F86)) -> 0 | H96: 0 | I96: 0 | J96: 0
B97: Customer 59 | D97: 0 | E97: =SUM(IF('6. Class A Consumption Data'!K87:L87="B",'6. Class A Consumption Data'!E87:F87)) -> 0 | H97: 0 | I97: 0 | J97: 0
B98: Customer 60 | D98: 0 | E98: =SUM(IF('6. Class A Consumption Data'!K88:L88="B",'6. Class A Consumption Data'!E88:F88)) -> 0 | H98: 0 | I98: 0 | J98: 0
B99: Customer 61 | D99: 0 | E99: =SUM(IF('6. Class A Consumption Data'!K89:L89="B",'6. Class A Consumption Data'!E89:F89)) -> 0 | H99: 0 | I99: 0 | J99: 0
B100: Customer 62 | D100: 0 | E100: =SUM(IF('6. Class A Consumption Data'!K90:L90="B",'6. Class A Consumption Data'!E90:F90)) -> 0 | H100: 0 | I100: 0 | J100: 0
B101: Customer 63 | D101: 0 | E101: =SUM(IF('6. Class A Consumption Data'!K91:L91="B",'6. Class A Consumption Data'!E91:F91)) -> 0 | H101: 0 | I101: 0 | J101: 0
B102: Customer 64 | D102: 0 | E102: =SUM(IF('6. Class A Consumption Data'!K92:L92="B",'6. Class A Consumption Data'!E92:F92)) -> 0 | H102: 0 | I102: 0 | J102: 0
B103: Customer 65 | D103: =SUM(E103:G103) -> 0 | E103: =SUM(IF('6. Class A Consumption Data'!K93:L93="B",'6. Class A Consumption Data'!E93:F93)) -> 0 | H103: 0 | I103: 0 | J103: 0
B104: Customer 66 | D104: 0 | E104: =SUM(IF('6. Class A Consumption Data'!K94:L94="B",'6. Class A Consumption Data'!E94:F94)) -> 0 | H104: =IFERROR(+D104/$D$189,0) -> 0 | I104: =H104*$D$26 -> 0 | J104: =ROUND(IF(ISERROR(I104),0,IF(OR(ISBLANK($D$34), OR($D$34=0, $D$34="")), I104/($D$32), I104/($D$34))),2) -> 0
B105: Customer 67 | D105: 0 | E105: =SUM(IF('6. Class A Consumption Data'!K95:L95="B",'6. Class A Consumption Data'!E95:F95)) -> 0 | H105: 0 | I105: 0 | J105: 0
B106: Customer 68 | D106: 0 | E106: =SUM(IF('6. Class A Consumption Data'!K96:L96="B",'6. Class A Consumption Data'!E96:F96)) -> 0 | H106: 0 | I106: 0 | J106: 0
B107: Customer 69 | D107: 0 | E107: =SUM(IF('6. Class A Consumption Data'!K97:L97="B",'6. Class A Consumption Data'!E97:F97)) -> 0 | H107: 0 | I107: 0 | J107: 0
B108: Customer 70 | D108: 0 | E108: =SUM(IF('6. Class A Consumption Data'!K98:L98="B",'6. Class A Consumption Data'!E98:F98)) -> 0 | H108: 0 | I108: 0 | J108: 0
B109: Customer 71 | D109: 0 | E109: =SUM(IF('6. Class A Consumption Data'!K99:L99="B",'6. Class A Consumption Data'!E99:F99)) -> 0 | H109: 0 | I109: 0 | J109: 0
B110: Customer 72 | D110: 0 | E110: =SUM(IF('6. Class A Consumption Data'!K100:L100="B",'6. Class A Consumption Data'!E100:F100)) -> 0 | H110: 0 | I110: 0 | J110: 0
B111: Customer 73 | D111: 0 | E111: =SUM(IF('6. Class A Consumption Data'!K101:L101="B",'6. Class A Consumption Data'!E101:F101)) -> 0 | H111: 0 | I111: 0 | J111: 0
B112: Customer 74 | D112: 0 | E112: =SUM(IF('6. Class A Consumption Data'!K102:L102="B",'6. Class A Consumption Data'!E102:F102)) -> 0 | H112: 0 | I112: 0 | J112: 0
B113: Customer 75 | D113: 0 | E113: =SUM(IF('6. Class A Consumption Data'!K103:L103="B",'6. Class A Consumption Data'!E103:F103)) -> 0 | H113: 0 | I113: 0 | J113: 0
B114: Customer 76 | D114: 0 | E114: =SUM(IF('6. Class A Consumption Data'!K104:L104="B",'6. Class A Consumption Data'!E104:F104)) -> 0 | H114: 0 | I114: 0 | J114: 0
B115: Customer 77 | D115: 0 | E115: =SUM(IF('6. Class A Consumption Data'!K105:L105="B",'6. Class A Consumption Data'!E105:F105)) -> 0 | H115: 0 | I115: 0 | J115: 0
B116: Customer 78 | D116: 0 | E116: =SUM(IF('6. Class A Consumption Data'!K106:L106="B",'6. Class A Consumption Data'!E106:F106)) -> 0 | H116: 0 | I116: 0 | J116: 0
B117: Customer 79 | D117: 0 | E117: =SUM(IF('6. Class A Consumption Data'!K107:L107="B",'6. Class A Consumption Data'!E107:F107)) -> 0 | H117: 0 | I117: 0 | J117: 0
B118: Customer 80 | D118: 0 | E118: =SUM(IF('6. Class A Consumption Data'!K108:L108="B",'6. Class A Consumption Data'!E108:F108)) -> 0 | H118: 0 | I118: 0 | J118: 0
B119: Customer 81 | D119: 0 | E119: =SUM(IF('6. Class A Consumption Data'!K109:L109="B",'6. Class A Consumption Data'!E109:F109)) -> 0 | H119: 0 | I119: 0 | J119: 0
B120: Customer 82 | D120: 0 | E120: =SUM(IF('6. Class A Consumption Data'!K110:L110="B",'6. Class A Consumption Data'!E110:F110)) -> 0 | H120: 0 | I120: 0 | J120: 0
B121: Customer 83 | D121: 0 | E121: =SUM(IF('6. Class A Consumption Data'!K111:L111="B",'6. Class A Consumption Data'!E111:F111)) -> 0 | H121: 0 | I121: 0 | J121: 0
B122: Customer 84 | D122: 0 | E122: =SUM(IF('6. Class A Consumption Data'!K112:L112="B",'6. Class A Consumption Data'!E112:F112)) -> 0 | H122: 0 | I122: 0 | J122: 0
B123: Customer 85 | D123: 0 | E123: =SUM(IF('6. Class A Consumption Data'!K113:L113="B",'6. Class A Consumption Data'!E113:F113)) -> 0 | H123: 0 | I123: 0 | J123: 0
B124: Customer 86 | D124: 0 | E124: =SUM(IF('6. Class A Consumption Data'!K114:L114="B",'6. Class A Consumption Data'!E114:F114)) -> 0 | H124: 0 | I124: 0 | J124: 0
B125: Customer 87 | D125: 0 | E125: =SUM(IF('6. Class A Consumption Data'!K115:L115="B",'6. Class A Consumption Data'!E115:F115)) -> 0 | H125: 0 | I125: 0 | J125: 0
B126: Customer 88 | D126: 0 | E126: =SUM(IF('6. Class A Consumption Data'!K116:L116="B",'6. Class A Consumption Data'!E116:F116)) -> 0 | H126: 0 | I126: 0 | J126: 0
B127: Customer 89 | D127: 0 | E127: =SUM(IF('6. Class A Consumption Data'!K117:L117="B",'6. Class A Consumption Data'!E117:F117)) -> 0 | H127: 0 | I127: 0 | J127: 0
B128: Customer 90 | D128: 0 | E128: =SUM(IF('6. Class A Consumption Data'!K118:L118="B",'6. Class A Consumption Data'!E118:F118)) -> 0 | H128: 0 | I128: 0 | J128: 0
B129: Customer 91 | D129: 0 | E129: =SUM(IF('6. Class A Consumption Data'!K119:L119="B",'6. Class A Consumption Data'!E119:F119)) -> 0 | H129: 0 | I129: 0 | J129: 0
B130: Customer 92 | D130: 0 | E130: =SUM(IF('6. Class A Consumption Data'!K120:L120="B",'6. Class A Consumption Data'!E120:F120)) -> 0 | H130: 0 | I130: 0 | J130: 0
B131: Customer 93 | D131: 0 | E131: =SUM(IF('6. Class A Consumption Data'!K121:L121="B",'6. Class A Consumption Data'!E121:F121)) -> 0 | H131: 0 | I131: 0 | J131: 0
B132: Customer 94 | D132: 0 | E132: =SUM(IF('6. Class A Consumption Data'!K122:L122="B",'6. Class A Consumption Data'!E122:F122)) -> 0 | H132: 0 | I132: 0 | J132: 0
B133: Customer 95 | D133: 0 | E133: =SUM(IF('6. Class A Consumption Data'!K123:L123="B",'6. Class A Consumption Data'!E123:F123)) -> 0 | H133: 0 | I133: 0 | J133: 0
B134: Customer 96 | D134: 0 | E134: =SUM(IF('6. Class A Consumption Data'!K124:L124="B",'6. Class A Consumption Data'!E124:F124)) -> 0 | H134: 0 | I134: 0 | J134: 0
B135: Customer 97 | D135: =SUM(E135:G135) -> 0 | E135: =SUM(IF('6. Class A Consumption Data'!K125:L125="B",'6. Class A Consumption Data'!E125:F125)) -> 0 | H135: 0 | I135: 0 | J135: 0
B136: Customer 98 | D136: 0 | E136: =SUM(IF('6. Class A Consumption Data'!K126:L126="B",'6. Class A Consumption Data'!E126:F126)) -> 0 | H136: 0 | I136: 0 | J136: 0
B137: Customer 99 | D137: 0 | E137: =SUM(IF('6. Class A Consumption Data'!K127:L127="B",'6. Class A Consumption Data'!E127:F127)) -> 0 | H137: 0 | I137: 0 | J137: 0
B138: Customer 100 | D138: 0 | E138: =SUM(IF('6. Class A Consumption Data'!K128:L128="B",'6. Class A Consumption Data'!E128:F128)) -> 0 | H138: 0 | I138: 0 | J138: 0
B139: Customer 101 | D139: 0 | E139: =SUM(IF('6. Class A Consumption Data'!K129:L129="B",'6. Class A Consumption Data'!E129:F129)) -> 0 | H139: 0 | I139: 0 | J139: 0
B140: Customer 102 | D140: =SUM(E140:G140) -> 0 | E140: =SUM(IF('6. Class A Consumption Data'!K130:L130="B",'6. Class A Consumption Data'!E130:F130)) -> 0 | H140: 0 | I140: 0 | J140: 0
B141: Customer 103 | D141: 0 | E141: =SUM(IF('6. Class A Consumption Data'!K131:L131="B",'6. Class A Consumption Data'!E131:F131)) -> 0 | H141: 0 | I141: 0 | J141: 0
B142: Customer 104 | D142: 0 | E142: =SUM(IF('6. Class A Consumption Data'!K132:L132="B",'6. Class A Consumption Data'!E132:F132)) -> 0 | H142: 0 | I142: 0 | J142: 0
B143: Customer 105 | D143: 0 | E143: =SUM(IF('6. Class A Consumption Data'!K133:L133="B",'6. Class A Consumption Data'!E133:F133)) -> 0 | H143: 0 | I143: 0 | J143: 0
B144: Customer 106 | D144: 0 | E144: =SUM(IF('6. Class A Consumption Data'!K134:L134="B",'6. Class A Consumption Data'!E134:F134)) -> 0 | H144: 0 | I144: 0 | J144: 0
B145: Customer 107 | D145: 0 | E145: =SUM(IF('6. Class A Consumption Data'!K135:L135="B",'6. Class A Consumption Data'!E135:F135)) -> 0 | H145: 0 | I145: 0 | J145: 0
B146: Customer 108 | D146: 0 | E146: =SUM(IF('6. Class A Consumption Data'!K136:L136="B",'6. Class A Consumption Data'!E136:F136)) -> 0 | H146: 0 | I146: 0 | J146: 0
B147: Customer 109 | D147: 0 | E147: =SUM(IF('6. Class A Consumption Data'!K137:L137="B",'6. Class A Consumption Data'!E137:F137)) -> 0 | H147: 0 | I147: 0 | J147: 0
B148: Customer 110 | D148: 0 | E148: =SUM(IF('6. Class A Consumption Data'!K138:L138="B",'6. Class A Consumption Data'!E138:F138)) -> 0 | H148: 0 | I148: 0 | J148: 0
B149: Customer 111 | D149: 0 | E149: =SUM(IF('6. Class A Consumption Data'!K139:L139="B",'6. Class A Consumption Data'!E139:F139)) -> 0 | H149: 0 | I149: 0 | J149: 0
B150: Customer 112 | D150: 0 | E150: =SUM(IF('6. Class A Consumption Data'!K140:L140="B",'6. Class A Consumption Data'!E140:F140)) -> 0 | H150: 0 | I150: 0 | J150: 0
B151: Customer 113 | D151: 0 | E151: =SUM(IF('6. Class A Consumption Data'!K141:L141="B",'6. Class A Consumption Data'!E141:F141)) -> 0 | H151: 0 | I151: 0 | J151: 0
B152: Customer 114 | D152: 0 | E152: =SUM(IF('6. Class A Consumption Data'!K142:L142="B",'6. Class A Consumption Data'!E142:F142)) -> 0 | H152: 0 | I152: 0 | J152: 0
B153: Customer 115 | D153: 0 | E153: =SUM(IF('6. Class A Consumption Data'!K143:L143="B",'6. Class A Consumption Data'!E143:F143)) -> 0 | H153: 0 | I153: 0 | J153: 0
B154: Customer 116 | D154: 0 | E154: =SUM(IF('6. Class A Consumption Data'!K144:L144="B",'6. Class A Consumption Data'!E144:F144)) -> 0 | H154: 0 | I154: 0 | J154: 0
B155: Customer 117 | D155: 0 | E155: =SUM(IF('6. Class A Consumption Data'!K145:L145="B",'6. Class A Consumption Data'!E145:F145)) -> 0 | H155: 0 | I155: 0 | J155: 0
B156: Customer 118 | D156: 0 | E156: =SUM(IF('6. Class A Consumption Data'!K146:L146="B",'6. Class A Consumption Data'!E146:F146)) -> 0 | H156: 0 | I156: 0 | J156: 0
B157: Customer 119 | D157: 0 | E157: =SUM(IF('6. Class A Consumption Data'!K147:L147="B",'6. Class A Consumption Data'!E147:F147)) -> 0 | H157: 0 | I157: 0 | J157: 0
B158: Customer 120 | D158: 0 | E158: =SUM(IF('6. Class A Consumption Data'!K148:L148="B",'6. Class A Consumption Data'!E148:F148)) -> 0 | H158: 0 | I158: 0 | J158: 0
B159: Customer 121 | D159: 0 | E159: =SUM(IF('6. Class A Consumption Data'!K149:L149="B",'6. Class A Consumption Data'!E149:F149)) -> 0 | H159: 0 | I159: 0 | J159: 0
B160: Customer 122 | D160: 0 | E160: =SUM(IF('6. Class A Consumption Data'!K150:L150="B",'6. Class A Consumption Data'!E150:F150)) -> 0 | H160: 0 | I160: 0 | J160: 0
B161: Customer 123 | D161: 0 | E161: =SUM(IF('6. Class A Consumption Data'!K151:L151="B",'6. Class A Consumption Data'!E151:F151)) -> 0 | H161: 0 | I161: 0 | J161: 0
B162: Customer 124 | D162: 0 | E162: =SUM(IF('6. Class A Consumption Data'!K152:L152="B",'6. Class A Consumption Data'!E152:F152)) -> 0 | H162: 0 | I162: 0 | J162: 0
B163: Customer 125 | D163: 0 | E163: =SUM(IF('6. Class A Consumption Data'!K153:L153="B",'6. Class A Consumption Data'!E153:F153)) -> 0 | H163: 0 | I163: 0 | J163: 0
B164: Customer 126 | D164: 0 | E164: =SUM(IF('6. Class A Consumption Data'!K154:L154="B",'6. Class A Consumption Data'!E154:F154)) -> 0 | H164: 0 | I164: 0 | J164: 0
B165: Customer 127 | D165: 0 | E165: =SUM(IF('6. Class A Consumption Data'!K155:L155="B",'6. Class A Consumption Data'!E155:F155)) -> 0 | H165: 0 | I165: 0 | J165: 0
B166: Customer 128 | D166: 0 | E166: =SUM(IF('6. Class A Consumption Data'!K156:L156="B",'6. Class A Consumption Data'!E156:F156)) -> 0 | H166: 0 | I166: 0 | J166: 0
B167: Customer 129 | D167: 0 | E167: =SUM(IF('6. Class A Consumption Data'!K157:L157="B",'6. Class A Consumption Data'!E157:F157)) -> 0 | H167: 0 | I167: 0 | J167: 0
B168: Customer 130 | D168: 0 | E168: =SUM(IF('6. Class A Consumption Data'!K158:L158="B",'6. Class A Consumption Data'!E158:F158)) -> 0 | H168: =IFERROR(+D168/$D$189,0) -> 0 | I168: =H168*$D$26 -> 0 | J168: =ROUND(IF(ISERROR(I168),0,IF(OR(ISBLANK($D$34), OR($D$34=0, $D$34="")), I168/($D$32), I168/($D$34))),2) -> 0
B169: Customer 131 | D169: 0 | E169: =SUM(IF('6. Class A Consumption Data'!K159:L159="B",'6. Class A Consumption Data'!E159:F159)) -> 0 | H169: 0 | I169: 0 | J169: 0
B170: Customer 132 | D170: 0 | E170: =SUM(IF('6. Class A Consumption Data'!K160:L160="B",'6. Class A Consumption Data'!E160:F160)) -> 0 | H170: 0 | I170: 0 | J170: 0
B171: Customer 133 | D171: 0 | E171: =SUM(IF('6. Class A Consumption Data'!K161:L161="B",'6. Class A Consumption Data'!E161:F161)) -> 0 | H171: 0 | I171: 0 | J171: 0
B172: Customer 134 | D172: 0 | E172: =SUM(IF('6. Class A Consumption Data'!K162:L162="B",'6. Class A Consumption Data'!E162:F162)) -> 0 | H172: 0 | I172: 0 | J172: 0
B173: Customer 135 | D173: 0 | E173: =SUM(IF('6. Class A Consumption Data'!K163:L163="B",'6. Class A Consumption Data'!E163:F163)) -> 0 | H173: 0 | I173: 0 | J173: 0
B174: Customer 136 | D174: 0 | E174: =SUM(IF('6. Class A Consumption Data'!K164:L164="B",'6. Class A Consumption Data'!E164:F164)) -> 0 | H174: 0 | I174: 0 | J174: 0
B175: Customer 137 | D175: 0 | E175: =SUM(IF('6. Class A Consumption Data'!K165:L165="B",'6. Class A Consumption Data'!E165:F165)) -> 0 | H175: 0 | I175: 0 | J175: 0
B176: Customer 138 | D176: 0 | E176: =SUM(IF('6. Class A Consumption Data'!K166:L166="B",'6. Class A Consumption Data'!E166:F166)) -> 0 | H176: 0 | I176: 0 | J176: 0
B177: Customer 139 | D177: 0 | E177: =SUM(IF('6. Class A Consumption Data'!K167:L167="B",'6. Class A Consumption Data'!E167:F167)) -> 0 | H177: 0 | I177: 0 | J177: 0
B178: Customer 140 | D178: 0 | E178: =SUM(IF('6. Class A Consumption Data'!K168:L168="B",'6. Class A Consumption Data'!E168:F168)) -> 0 | H178: 0 | I178: 0 | J178: 0
B179: Customer 141 | D179: 0 | E179: =SUM(IF('6. Class A Consumption Data'!K169:L169="B",'6. Class A Consumption Data'!E169:F169)) -> 0 | H179: 0 | I179: 0 | J179: 0
B180: Customer 142 | D180: 0 | E180: =SUM(IF('6. Class A Consumption Data'!K170:L170="B",'6. Class A Consumption Data'!E170:F170)) -> 0 | H180: 0 | I180: 0 | J180: 0
B181: Customer 143 | D181: 0 | E181: =SUM(IF('6. Class A Consumption Data'!K171:L171="B",'6. Class A Consumption Data'!E171:F171)) -> 0 | H181: 0 | I181: 0 | J181: 0
B182: Customer 144 | D182: 0 | E182: =SUM(IF('6. Class A Consumption Data'!K172:L172="B",'6. Class A Consumption Data'!E172:F172)) -> 0 | H182: 0 | I182: 0 | J182: 0
B183: Customer 145 | D183: 0 | E183: =SUM(IF('6. Class A Consumption Data'!K173:L173="B",'6. Class A Consumption Data'!E173:F173)) -> 0 | H183: 0 | I183: 0 | J183: 0
B184: Customer 146 | D184: 0 | E184: =SUM(IF('6. Class A Consumption Data'!K174:L174="B",'6. Class A Consumption Data'!E174:F174)) -> 0 | H184: 0 | I184: 0 | J184: 0
B185: Customer 147 | D185: 0 | E185: =SUM(IF('6. Class A Consumption Data'!K175:L175="B",'6. Class A Consumption Data'!E175:F175)) -> 0 | H185: 0 | I185: 0 | J185: 0
B186: Customer 148 | D186: 0 | E186: =SUM(IF('6. Class A Consumption Data'!K176:L176="B",'6. Class A Consumption Data'!E176:F176)) -> 0 | H186: 0 | I186: 0 | J186: 0
B187: Customer 149 | D187: 0 | E187: =SUM(IF('6. Class A Consumption Data'!K177:L177="B",'6. Class A Consumption Data'!E177:F177)) -> 0 | H187: 0 | I187: 0 | J187: 0
B188: Customer 150 | D188: 0 | E188: =SUM(IF('6. Class A Consumption Data'!K178:L178="B",'6. Class A Consumption Data'!E178:F178)) -> 0 | H188: 0 | I188: 0 | J188: 0
B189: Total for all Customers | D189: =SUM(D39:D188) -> 54005341.11 | E189: =SUM(E39:E188) -> 54005341.11 | F189: 0 | G189: 0 | H189: =SUM(H39:H188) -> 1 | I189: =SUM(I39:I188) -> -114420.9898

Sheet 6.1 GA
A1: Back to Index
B2: =+'1. Information Sheet'!B2 -> INCENTIVE REGULATION MODEL FOR 2020 FILERS
K6: Default Rate Rider Recovery Period (in months) | M6: 12
K8: Proposed Rate Rider Recovery Period (in months) | M8: 12 | N8: =IF(M8>0, "Rate Rider Recovery to be used below", "If no rate rider recovery period is proposed then the default recovery period of 12 months will be used") -> Rate Rider Recovery to be used below
B12: The purpose of this tab is to calculate the GA rate riders for all current Class B customers who did not transition between Class A and B in the period since the Account 1589 GA was last disposed. Calculations in this tab will be modified upon completion of tab 6.1a, which allocates a portion of the GA balance to transition customers, if applicable. Effective January 2017, the billing determinant and all rate riders for the disposition of GA balances will be calculated on an energy basis (kWhs) regardless of the billing determinant used for distribution rates for the particular class (see Chapter 3, Filing Requirements, section 3.2.5.2)
C14: Total Metered Non-RPP 2018 Consumption excluding WMP | E14: Total Metered 2018 Consumption for Class A Customers that were Class A for the entire period GA blance accumulated | G14: Total Metered 2018 Consumption for Customers that Transitioned Between Class A and B during the period GA balance accumulated | I14: Non-RPP Metered Consumption for Current Class B Customers (Non-RPP Consumption excluding WMP, Class A and Transition Customers' Consumption) | K14: % of total kWh | L14: Total GA $ allocated to Current Class B Customers | M14: GA Rate Rider | O14: Revenue Reconciliation | P14: Variance
C15: kWh | D15: kW | E15: kWh | F15: kW | G15: kWh | H15: kW | I15: kWh | J15: kW
B17: ='4. Billing Det. for Def-Var'!B17 -> RESIDENTIAL SERVICE CLASSIFICATION | C17: ='4. Billing Det. for Def-Var'!F17 -> 56192651.51 | D17: ='4. Billing Det. for Def-Var'!G17 -> 0 | E17: =SUM(IF('6. Class A Consumption Data'!$D$186:$D$335=$B17,'6. Class A Consumption Data'!E$186:E$335)) -> 0 | G17: =SUM(IF('6. Class A Consumption Data'!$D$29:$D$178=$B17,'6. Class A Consumption Data'!E$29:F$178)) -> 0 | I17: =ROUND(C17-E17-G17,0) -> 56192652 | K17: =IFERROR(I17/I$29,"") -> 0.04633972115 | L17: =IFERROR(L$29*K17,"") -> -119055.2403 | M17: =IF('4. Billing Det. for Def-Var'!$D$37="no",0,ROUND(IF(ISERROR(L17/I17),0,IF(OR(ISBLANK($M$8),OR($M$8=0,$M$8="")),L17/I17/($M$6/12),L17/I17/($M$8/12))),4)) -> 0 | N17: kwh | O17: =ROUND(M17,4)*I17 -> 0 | P17: =L17-O17 -> -119055.2403
B18: ='4. Billing Det. for Def-Var'!B18 -> GENERAL SERVICE LESS THAN 50 kW SERVICE CLASSIFICATION | C18: ='4. Billing Det. for Def-Var'!F18 -> 59144131.76 | D18: ='4. Billing Det. for Def-Var'!G18 -> 0 | E18: =SUM(IF('6. Class A Consumption Data'!$D$186:$D$335=$B18,'6. Class A Consumption Data'!E$186:E$335)) -> 0 | G18: =SUM(IF('6. Class A Consumption Data'!$D$29:$D$178=$B18,'6. Class A Consumption Data'!E$29:F$178)) -> 0 | I18: =ROUND(C18-E18-G18,0) -> 59144132 | K18: =IFERROR(I18/I$29,"") -> 0.04877368281 | L18: =IFERROR(L$29*K18,"") -> -125308.534 | M18: =IF('4. Billing Det. for Def-Var'!$D$37="no",0,ROUND(IF(ISERROR(L18/I18),0,IF(OR(ISBLANK($M$8),OR($M$8=0,$M$8="")),L18/I18/($M$6/12),L18/I18/($M$8/12))),4)) -> 0 | N18: kwh | O18: =ROUND(M18,4)*I18 -> 0 | P18: =L18-O18 -> -125308.534
B19: ='4. Billing Det. for Def-Var'!B19 -> GENERAL SERVICE 50 to 699 KW SERVICE CLASSIFICATION | C19: ='4. Billing Det. for Def-Var'!F19 -> 967286875.2 | D19: ='4. Billing Det. for Def-Var'!G19 -> 2708650.869 | E19: =SUM(IF('6. Class A Consumption Data'!$D$186:$D$335=$B19,'6. Class A Consumption Data'!E$186:E$335)) -> 27942965.16 | G19: =SUM(IF('6. Class A Consumption Data'!$D$29:$D$178=$B19,'6. Class A Consumption Data'!E$29:F$178)) -> 28356209.98 | I19: 910987700 | K19: 0.7512533132 | L19: =IFERROR(L$29*K19,"") -> -1930107.507 | M19: =IF('4. Billing Det. for Def-Var'!$D$37="no",0,ROUND(IF(ISERROR(L19/I19),0,IF(OR(ISBLANK($M$8),OR($M$8=0,$M$8="")),L19/I19/($M$6/12),L19/I19/($M$8/12))),4)) -> 0 | N19: kwh | O19: 0 | P19: -1930107.507
B20: ='4. Billing Det. for Def-Var'!B20 -> GENERAL SERVICE 700 to 4,999 KW SERVICE CLASSIFICATION | C20: ='4. Billing Det. for Def-Var'!F20 -> 809373490.3 | D20: ='4. Billing Det. for Def-Var'!G20 -> 1911147.706 | E20: =SUM(IF('6. Class A Consumption Data'!$D$186:$D$335=$B20,'6. Class A Consumption Data'!E$186:E$335)) -> 580017662.7 | G20: =SUM(IF('6. Class A Consumption Data'!$D$29:$D$178=$B20,'6. Class A Consumption Data'!E$29:F$178)) -> 87570816.83 | I20: 141785011 | K20: 0.1169241465 | L20: =IFERROR(L$29*K20,"") -> -300399.5709 | M20: =IF('4. Billing Det. for Def-Var'!$D$37="no",0,ROUND(IF(ISERROR(L20/I20),0,IF(OR(ISBLANK($M$8),OR($M$8=0,$M$8="")),L20/I20/($M$6/12),L20/I20/($M$8/12))),4)) -> 0 | N20: kwh | O20: 0 | P20: -300399.5709
B21: ='4. Billing Det. for Def-Var'!B21 -> LARGE USE SERVICE CLASSIFICATION | C21: ='4. Billing Det. for Def-Var'!F21 -> 350379704.8 | D21: ='4. Billing Det. for Def-Var'!G21 -> 657857.0874 | E21: =SUM(IF('6. Class A Consumption Data'!$D$186:$D$335=$B21,'6. Class A Consumption Data'!E$186:E$335)) -> 350379704.8 | G21: =SUM(IF('6. Class A Consumption Data'!$D$29:$D$178=$B21,'6. Class A Consumption Data'!E$29:F$178)) -> 0 | I21: 0 | K21: =IFERROR(I21/I$29,"") -> 0 | L21: 0 | M21: =IF('4. Billing Det. for Def-Var'!$D$37="no",0,ROUND(IF(ISERROR(L21/I21),0,IF(OR(ISBLANK($M$8),OR($M$8=0,$M$8="")),L21/I21/($M$6/12),L21/I21/($M$8/12))),4)) -> 0 | N21: kwh | O21: 0 | P21: 0
B22: ='4. Billing Det. for Def-Var'!B22 -> STANDBY POWER SERVICE CLASSIFICATION | C22: ='4. Billing Det. for Def-Var'!F22 -> 0 | D22: ='4. Billing Det. for Def-Var'!G22 -> 0 | E22: =SUM(IF('6. Class A Consumption Data'!$D$186:$D$335=$B22,'6. Class A Consumption Data'!E$186:E$335)) -> 0 | G22: =SUM(IF('6. Class A Consumption Data'!$D$29:$D$178=$B22,'6. Class A Consumption Data'!E$29:F$178)) -> 0 | I22: 0 | K22: 0 | L22: 0 | M22: =IF('4. Billing Det. for Def-Var'!$D$37="no",0,ROUND(IF(ISERROR(L22/I22),0,IF(OR(ISBLANK($M$8),OR($M$8=0,$M$8="")),L22/I22/($M$6/12),L22/I22/($M$8/12))),4)) -> 0 | O22: 0 | P22: 0
B23: ='4. Billing Det. for Def-Var'!B23 -> UNMETERED SCATTERED LOAD SERVICE CLASSIFICATION | C23: ='4. Billing Det. for Def-Var'!F23 -> 5865863.355 | D23: ='4. Billing Det. for Def-Var'!G23 -> 0 | E23: =SUM(IF('6. Class A Consumption Data'!$D$186:$D$335=$B23,'6. Class A Consumption Data'!E$186:E$335)) -> 0 | G23: =SUM(IF('6. Class A Consumption Data'!$D$29:$D$178=$B23,'6. Class A Consumption Data'!E$29:F$178)) -> 0 | I23: 5865863 | K23: 0.004837330969 | L23: -12427.99021 | M23: =IF('4. Billing Det. for Def-Var'!$D$37="no",0,ROUND(IF(ISERROR(L23/I23),0,IF(OR(ISBLANK($M$8),OR($M$8=0,$M$8="")),L23/I23/($M$6/12),L23/I23/($M$8/12))),4)) -> 0 | N23: kwh | O23: 0 | P23: -12427.99021
B24: ='4. Billing Det. for Def-Var'!B24 -> STREET LIGHTING SERVICE CLASSIFICATION | C24: ='4. Billing Det. for Def-Var'!F24 -> 34968320.88 | D24: ='4. Billing Det. for Def-Var'!G24 -> 98841.90329 | E24: =SUM(IF('6. Class A Consumption Data'!$D$186:$D$335=$B24,'6. Class A Consumption Data'!E$186:E$335)) -> 0 | G24: =SUM(IF('6. Class A Consumption Data'!$D$29:$D$178=$B24,'6. Class A Consumption Data'!E$29:F$178)) -> 0 | I24: 34968321 | K24: 0.02883690637 | L24: -74087.29985 | M24: =IF('4. Billing Det. for Def-Var'!$D$37="no",0,ROUND(IF(ISERROR(L24/I24),0,IF(OR(ISBLANK($M$8),OR($M$8=0,$M$8="")),L24/I24/($M$6/12),L24/I24/($M$8/12))),4)) -> 0 | N24: kwh | O24: 0 | P24: -74087.29985
B25: ='4. Billing Det. for Def-Var'!B25 -> EMBEDDED DISTRIBUTOR SERVICE CLASSIFICATION | C25: ='4. Billing Det. for Def-Var'!F25 -> 3402773.373 | D25: ='4. Billing Det. for Def-Var'!G25 -> 0 | E25: =SUM(IF('6. Class A Consumption Data'!$D$186:$D$335=$B25,'6. Class A Consumption Data'!E$186:E$335)) -> 0 | G25: =SUM(IF('6. Class A Consumption Data'!$D$29:$D$178=$B25,'6. Class A Consumption Data'!E$29:F$178)) -> 0 | I25: =ROUND(C25-E25-G25,0) -> 3402773 | K25: =IFERROR(I25/I$29,"") -> 0.002806124046 | L25: =IFERROR(L$29*K25,"") -> -7209.44719 | M25: =IF('4. Billing Det. for Def-Var'!$D$37="no",0,ROUND(IF(ISERROR(L25/I25),0,IF(OR(ISBLANK($M$8),OR($M$8=0,$M$8="")),L25/I25/($M$6/12),L25/I25/($M$8/12))),4)) -> 0 | N25: kwh
B26: ='4. Billing Det. for Def-Var'!B26 -> DISTRIBUTED GENERATION [DGEN] SERVICE CLASSIFICATION | C26: ='4. Billing Det. for Def-Var'!F26 -> 277418.1656 | D26: ='4. Billing Det. for Def-Var'!G26 -> 0 | E26: =SUM(IF('6. Class A Consumption Data'!$D$186:$D$335=$B26,'6. Class A Consumption Data'!E$186:E$335)) -> 0 | G26: =SUM(IF('6. Class A Consumption Data'!$D$29:$D$178=$B26,'6. Class A Consumption Data'!E$29:F$178)) -> 0 | I26: 277418 | K26: 0.0002287749787 | L26: -587.7648672 | M26: =IF('4. Billing Det. for Def-Var'!$D$37="no",0,ROUND(IF(ISERROR(L26/I26),0,IF(OR(ISBLANK($M$8),OR($M$8=0,$M$8="")),L26/I26/($M$6/12),L26/I26/($M$8/12))),4)) -> 0 | N26: kwh
B27: ='4. Billing Det. for Def-Var'!B27 -> ENERGY FROM WASTE SERVICE CLASSIFICATION | C27: ='4. Billing Det. for Def-Var'!F27 -> 0 | D27: ='4. Billing Det. for Def-Var'!G27 -> 0 | E27: =SUM(IF('6. Class A Consumption Data'!$D$186:$D$335=$B27,'6. Class A Consumption Data'!E$186:E$335)) -> 0 | G27: =SUM(IF('6. Class A Consumption Data'!$D$29:$D$178=$B27,'6. Class A Consumption Data'!E$29:F$178)) -> 0 | I27: 0 | K27: 0 | L27: 0 | M27: =IF('4. Billing Det. for Def-Var'!$D$37="no",0,ROUND(IF(ISERROR(L27/I27),0,IF(OR(ISBLANK($M$8),OR($M$8=0,$M$8="")),L27/I27/($M$6/12),L27/I27/($M$8/12))),4)) -> 0 | N27: kwh
C29: =SUM(C17:C28) -> 2286891229 | D29: =SUM(D17:D28) -> 5376497.566 | E29: 958340332.7 | F29: 0 | G29: 115927026.8 | H29: 0 | I29: 1212623870 | J29: 0 | K29: 1 | L29: ='6.1a GA Allocation'!D27 -> -2569183.355 | O29: =SUM(O17:O28) -> 0 | P29: =SUM(P17:P28) -> -2561386.143
L30: from Sheet 6.1a
O31: NOTE: if rate rider is at 5 decimal places, then the balance dispostion is in full

Sheet 6.2a CBR B_Allocation
A1: Back to Index
B2: =+'1. Information Sheet'!B2 -> INCENTIVE REGULATION MODEL FOR 2020 FILERS
B11: This tab allocates the CBR Class B balance to transition customers (i.e Class A customers who were former Class B customers and Class B customers who were former Class A customers) who contributed to the current CBR Class B balance. The tables below calculate specific amounts for each customer who made the change. The general CBR Class B rate rider is not to be charged to the transition customers that are allocated amounts in the table below. Consistent with prior decisions, distributors are generally expected to settle the amount through 12 equal adjustments to bills.
B14: Please enter the Year the Account 1580 CBR Class B was Last Disposed. | C14: 2017 | D14: (Note: Account 1580, Sub-account CBR Class B was established starting in 2015)
B16: Allocation of totalConsumption (kWh) between Current Class B and Class A/B Transition Customers
D17: Total | E17: =C14+1 -> 2018 | F17: =E17-1 -> 2017 | G17: =F17-1 -> 2016
B18: Total Class B Consumption for Years During Balance Accumulation (Total Consumption LESS WMP Consumption and Consumption for Class A customers who were Class A for partial or full year) | C18: A | D18: =SUM(E18:G18) -> 3043771399 | E18: =N25 -> 3043771399 | H18: from Cell N25
B19: Transition Customers' Class B Consumption (i.e. full year or partial year) | C19: B | D19: =SUM(E19:G19) -> 54005341.11 | E19: =E183 -> 54005341.11 | F19: =F183 -> 0 | G19: 0
B20: Transition Customers' Portion of Total Consumption | C20: C=B/A | D20: =IFERROR(+D19/D18,0) -> 0.01774290313 | L20: DO NOT DELETE THESE CELLS
L21: Sheet 4 | M21: total kWh | N21: ='4. Billing Det. for Def-Var'!D29 -> 4131633817
L22: Sheet 4 | M22: WMP kWh | N22: ='4. Billing Det. for Def-Var'!H29 -> 67600399.62
B23: Allocation of Total CBR Class B Balance $ | L23: Sheet 6.1 | M23: Class A (full) | N23: ='6.1 GA'!E29 -> 958340332.7
L24: Sheet 6.1 | M24: Class A (partial) | N24: =SUMIF('6. Class A Consumption Data'!K:K,"a",'6. Class A Consumption Data'!E:E)+SUMIF('6. Class A Consumption Data'!L:L,"a",'6. Class A Consumption Data'!F:F) -> 61921685.71
B25: Total CBR Class B Balance | C25: D | D25: ='3. Continuity Schedule'!BU25 -> -104222.1406 | H25: =IF('6.2 CBR B'!U18="TRUE","NO MONTHLY EQUAL PAYMENTS. The entire OEB-approved CBR Class B amount is transferred into Account 1580 WMS control account to be disposed through the general purpose Group 1 DVA rate riders. ","") -> NO MONTHLY EQUAL PAYMENTS. The entire OEB-approved CBR Class B amount is transferred into Account 1580 WMS control account to be disposed through the general purpose Group 1 DVA rate riders. | N25: =N21-N22-N23-N24 -> 3043771399
B26: Transition Customers Portion of CBR Class B Balance | C26: E=D*C | D26: =+D20*D25 -> -1849.203345
B27: CBR Class B Balance to be disposed to Current Class B Customers through Rate Rider | C27: F=D-E | D27: =+D25-D26 -> -102372.9372
B29: Allocation of CBR Class B Balances to Transition Customers
B31: # of Class A/B Transition Customers | C31: ='6. Class A Consumption Data'!C23 -> 25
B32: Customer | D32: Total Metered Consumption (kWh) for Transition Customers During the Period WhenThey Were Class B Customers | E32: Metered Consumption (kWh) for Transition Customers During the Period When They Were Class B Customers in 2018 | F32: Metered Consumption (kWh) for Transition Customers During the Period When They Were Class B Customers in 2017 | G32: Metered Consumption (kWh) for Transition Customers During the Period When They Were Class B Customers in 2016 | H32: % of kWh | I32: Customer Specific CBR Class B Allocation for the Period When They Were a Class B Customer | J32: Monthly Equal Payments
B33: Customer 1 | D33: =SUM(E33:G33) -> 949603.8631 | E33: =SUM(IF('6. Class A Consumption Data'!K29:L29="B",'6. Class A Consumption Data'!E29:F29)) -> 949603.8631 | H33: =IFERROR(+D33/$D$183,0) -> 0.01758351755 | I33: =IF('6.2 CBR B'!U$18="TRUE","",+H33*$D$26) ->  | J33: =IF('6.2 CBR B'!U$18="TRUE","",+I33/12) -> 
B34: Customer 2 | D34: 888804.5504 | E34: =SUM(IF('6. Class A Consumption Data'!K30:L30="B",'6. Class A Consumption Data'!E30:F30)) -> 888804.5504 | H34: =IFERROR(+D34/$D$183,0) -> 0.0164577157 | I34: =IF('6.2 CBR B'!U$18="TRUE","",+H34*$D$26) ->  | J34: =IF('6.2 CBR B'!U$18="TRUE","",+I34/12) -> 
B35: Customer 3 | D35: 1627202.018 | E35: =SUM(IF('6. Class A Consumption Data'!K31:L31="B",'6. Class A Consumption Data'!E31:F31)) -> 1627202.018 | H35: 0.03013039052 | I35: =IF('6.2 CBR B'!U$18="TRUE","",+H35*$D$26) ->  | J35: =IF('6.2 CBR B'!U$18="TRUE","",+I35/12) -> 
B36: Customer 4 | D36: 844668.6101 | E36: =SUM(IF('6. Class A Consumption Data'!K32:L32="B",'6. Class A Consumption Data'!E32:F32)) -> 844668.6101 | H36: 0.01564046431 | I36: =IF('6.2 CBR B'!U$18="TRUE","",+H36*$D$26) ->  | J36: =IF('6.2 CBR B'!U$18="TRUE","",+I36/12) -> 
B37: Customer 5 | D37: 2122000 | E37: =SUM(IF('6. Class A Consumption Data'!K33:L33="B",'6. Class A Consumption Data'!E33:F33)) -> 2122000 | H37: 0.03929240991 | I37: =IF('6.2 CBR B'!U$18="TRUE","",+H37*$D$26) ->  | J37: =IF('6.2 CBR B'!U$18="TRUE","",+I37/12) -> 
B38: Customer 6 | D38: 3218261 | E38: =SUM(IF('6. Class A Consumption Data'!K34:L34="B",'6. Class A Consumption Data'!E34:F34)) -> 3218261 | H38: 0.05959153177 | I38: =IF('6.2 CBR B'!U$18="TRUE","",+H38*$D$26) ->  | J38: =IF('6.2 CBR B'!U$18="TRUE","",+I38/12) -> 
B39: Customer 7 | D39: 863403 | E39: =SUM(IF('6. Class A Consumption Data'!K35:L35="B",'6. Class A Consumption Data'!E35:F35)) -> 863403 | H39: 0.01598736314 | I39: =IF('6.2 CBR B'!U$18="TRUE","",+H39*$D$26) ->  | J39: =IF('6.2 CBR B'!U$18="TRUE","",+I39/12) -> 
B40: Customer 8 | D40: 710847 | E40: =SUM(IF('6. Class A Consumption Data'!K36:L36="B",'6. Class A Consumption Data'!E36:F36)) -> 710847 | H40: 0.01316253144 | I40: =IF('6.2 CBR B'!U$18="TRUE","",+H40*$D$26) ->  | J40: =IF('6.2 CBR B'!U$18="TRUE","",+I40/12) -> 
B41: Customer 9 | D41: 1129354 | E41: =SUM(IF('6. Class A Consumption Data'!K37:L37="B",'6. Class A Consumption Data'!E37:F37)) -> 1129354 | H41: 0.02091189458 | I41: =IF('6.2 CBR B'!U$18="TRUE","",+H41*$D$26) ->  | J41: =IF('6.2 CBR B'!U$18="TRUE","",+I41/12) -> 
B42: Customer 10 | D42: 1332104 | E42: =SUM(IF('6. Class A Consumption Data'!K38:L38="B",'6. Class A Consumption Data'!E38:F38)) -> 1332104 | H42: 0.02466615288 | I42: =IF('6.2 CBR B'!U$18="TRUE","",+H42*$D$26) ->  | J42: =IF('6.2 CBR B'!U$18="TRUE","",+I42/12) -> 
B43: Customer 11 | D43: 2348097.102 | E43: =SUM(IF('6. Class A Consumption Data'!K39:L39="B",'6. Class A Consumption Data'!E39:F39)) -> 2348097.102 | H43: 0.04347897919 | I43: =IF('6.2 CBR B'!U$18="TRUE","",+H43*$D$26) ->  | J43: =IF('6.2 CBR B'!U$18="TRUE","",+I43/12) -> 
B44: Customer 12 | D44: 753967.8637 | E44: =SUM(IF('6. Class A Consumption Data'!K40:L40="B",'6. Class A Consumption Data'!E40:F40)) -> 753967.8637 | H44: 0.01396098697 | I44: =IF('6.2 CBR B'!U$18="TRUE","",+H44*$D$26) ->  | J44: =IF('6.2 CBR B'!U$18="TRUE","",+I44/12) -> 
B45: Customer 13 | D45: 4382732.414 | E45: =SUM(IF('6. Class A Consumption Data'!K41:L41="B",'6. Class A Consumption Data'!E41:F41)) -> 4382732.414 | H45: 0.08115368451 | I45: =IF('6.2 CBR B'!U$18="TRUE","",+H45*$D$26) ->  | J45: =IF('6.2 CBR B'!U$18="TRUE","",+I45/12) -> 
B46: Customer 14 | D46: 2392546.537 | E46: =SUM(IF('6. Class A Consumption Data'!K42:L42="B",'6. Class A Consumption Data'!E42:F42)) -> 2392546.537 | H46: 0.04430203547 | I46: =IF('6.2 CBR B'!U$18="TRUE","",+H46*$D$26) ->  | J46: =IF('6.2 CBR B'!U$18="TRUE","",+I46/12) -> 
B47: Customer 15 | D47: 1430512.147 | E47: =SUM(IF('6. Class A Consumption Data'!K43:L43="B",'6. Class A Consumption Data'!E43:F43)) -> 1430512.147 | H47: 0.02648834574 | I47: =IF('6.2 CBR B'!U$18="TRUE","",+H47*$D$26) ->  | J47: =IF('6.2 CBR B'!U$18="TRUE","",+I47/12) -> 
B48: Customer 16 | D48: 1195276 | E48: =SUM(IF('6. Class A Consumption Data'!K44:L44="B",'6. Class A Consumption Data'!E44:F44)) -> 1195276 | H48: 0.02213255162 | I48: =IF('6.2 CBR B'!U$18="TRUE","",+H48*$D$26) ->  | J48: =IF('6.2 CBR B'!U$18="TRUE","",+I48/12) -> 
B49: Customer 17 | D49: 2020484 | E49: =SUM(IF('6. Class A Consumption Data'!K45:L45="B",'6. Class A Consumption Data'!E45:F45)) -> 2020484 | H49: 0.03741266991 | I49: =IF('6.2 CBR B'!U$18="TRUE","",+H49*$D$26) ->  | J49: =IF('6.2 CBR B'!U$18="TRUE","",+I49/12) -> 
B50: Customer 18 | D50: 2118001 | E50: =SUM(IF('6. Class A Consumption Data'!K46:L46="B",'6. Class A Consumption Data'!E46:F46)) -> 2118001 | H50: 0.03921836168 | I50: =IF('6.2 CBR B'!U$18="TRUE","",+H50*$D$26) ->  | J50: =IF('6.2 CBR B'!U$18="TRUE","",+I50/12) -> 
B51: Customer 19 | D51: 1862028 | E51: =SUM(IF('6. Class A Consumption Data'!K47:L47="B",'6. Class A Consumption Data'!E47:F47)) -> 1862028 | H51: 0.03447858974 | I51: =IF('6.2 CBR B'!U$18="TRUE","",+H51*$D$26) ->  | J51: =IF('6.2 CBR B'!U$18="TRUE","",+I51/12) -> 
B52: Customer 20 | D52: 2045581 | E52: =SUM(IF('6. Class A Consumption Data'!K48:L48="B",'6. Class A Consumption Data'!E48:F48)) -> 2045581 | H52: 0.0378773832 | I52: =IF('6.2 CBR B'!U$18="TRUE","",+H52*$D$26) ->  | J52: =IF('6.2 CBR B'!U$18="TRUE","",+I52/12) -> 
B53: Customer 21 | D53: 3010994 | E53: =SUM(IF('6. Class A Consumption Data'!K49:L49="B",'6. Class A Consumption Data'!E49:F49)) -> 3010994 | H53: 0.05575363359 | I53: =IF('6.2 CBR B'!U$18="TRUE","",+H53*$D$26) ->  | J53: =IF('6.2 CBR B'!U$18="TRUE","",+I53/12) -> 
B54: Customer 22 | D54: 1863482 | E54: =SUM(IF('6. Class A Consumption Data'!K50:L50="B",'6. Class A Consumption Data'!E50:F50)) -> 1863482 | H54: 0.03450551301 | I54: =IF('6.2 CBR B'!U$18="TRUE","",+H54*$D$26) ->  | J54: =IF('6.2 CBR B'!U$18="TRUE","",+I54/12) -> 
B55: Customer 23 | D55: 3638317 | E55: =SUM(IF('6. Class A Consumption Data'!K51:L51="B",'6. Class A Consumption Data'!E51:F51)) -> 3638317 | H55: 0.06736957726 | I55: =IF('6.2 CBR B'!U$18="TRUE","",+H55*$D$26) ->  | J55: =IF('6.2 CBR B'!U$18="TRUE","",+I55/12) -> 
B56: Customer 24 | D56: 3188038 | E56: =SUM(IF('6. Class A Consumption Data'!K52:L52="B",'6. Class A Consumption Data'!E52:F52)) -> 3188038 | H56: 0.05903190193 | I56: =IF('6.2 CBR B'!U$18="TRUE","",+H56*$D$26) ->  | J56: =IF('6.2 CBR B'!U$18="TRUE","",+I56/12) -> 
B57: Customer 25 | D57: 8069036 | E57: =SUM(IF('6. Class A Consumption Data'!K53:L53="B",'6. Class A Consumption Data'!E53:F53)) -> 8069036 | H57: 0.1494118144 | I57: =IF('6.2 CBR B'!U$18="TRUE","",+H57*$D$26) ->  | J57: =IF('6.2 CBR B'!U$18="TRUE","",+I57/12) -> 
B58: Customer 26 | D58: 0 | E58: =SUM(IF('6. Class A Consumption Data'!K54:L54="B",'6. Class A Consumption Data'!E54:F54)) -> 0 | H58: 0 | I58: =IF('6.2 CBR B'!U$18="TRUE","",+H58*$D$26) ->  | J58: =IF('6.2 CBR B'!U$18="TRUE","",+I58/12) -> 
B59: Customer 27 | D59: 0 | E59: =SUM(IF('6. Class A Consumption Data'!K55:L55="B",'6. Class A Consumption Data'!E55:F55)) -> 0 | H59: 0 | I59: =IF('6.2 CBR B'!U$18="TRUE","",+H59*$D$26) ->  | J59: =IF('6.2 CBR B'!U$18="TRUE","",+I59/12) -> 
B60: Customer 28 | D60: 0 | E60: =SUM(IF('6. Class A Consumption Data'!K56:L56="B",'6. Class A Consumption Data'!E56:F56)) -> 0 | H60: 0 | I60: =IF('6.2 CBR B'!U$18="TRUE","",+H60*$D$26) ->  | J60: =IF('6.2 CBR B'!U$18="TRUE","",+I60/12) -> 
B61: Customer 29 | D61: 0 | E61: =SUM(IF('6. Class A Consumption Data'!K57:L57="B",'6. Class A Consumption Data'!E57:F57)) -> 0 | H61: 0 | I61: =IF('6.2 CBR B'!U$18="TRUE","",+H61*$D$26) ->  | J61: =IF('6.2 CBR B'!U$18="TRUE","",+I61/12) -> 
B62: Customer 30 | D62: 0 | E62: =SUM(IF('6. Class A Consumption Data'!K58:L58="B",'6. Class A Consumption Data'!E58:F58)) -> 0 | H62: 0 | I62: =IF('6.2 CBR B'!U$18="TRUE","",+H62*$D$26) ->  | J62: =IF('6.2 CBR B'!U$18="TRUE","",+I62/12) -> 
B63: Customer 31 | D63: 0 | E63: =SUM(IF('6. Class A Consumption Data'!K59:L59="B",'6. Class A Consumption Data'!E59:F59)) -> 0 | H63: 0 | I63: =IF('6.2 CBR B'!U$18="TRUE","",+H63*$D$26) ->  | J63: =IF('6.2 CBR B'!U$18="TRUE","",+I63/12) -> 
B64: Customer 32 | D64: 0 | E64: =SUM(IF('6. Class A Consumption Data'!K60:L60="B",'6. Class A Consumption Data'!E60:F60)) -> 0 | H64: 0 | I64: =IF('6.2 CBR B'!U$18="TRUE","",+H64*$D$26) ->  | J64: =IF('6.2 CBR B'!U$18="TRUE","",+I64/12) -> 
B65: Customer 33 | D65: 0 | E65: =SUM(IF('6. Class A Consumption Data'!K61:L61="B",'6. Class A Consumption Data'!E61:F61)) -> 0 | H65: 0 | I65: =IF('6.2 CBR B'!U$18="TRUE","",+H65*$D$26) ->  | J65: =IF('6.2 CBR B'!U$18="TRUE","",+I65/12) -> 
B66: Customer 34 | D66: 0 | E66: =SUM(IF('6. Class A Consumption Data'!K62:L62="B",'6. Class A Consumption Data'!E62:F62)) -> 0 | H66: 0 | I66: =IF('6.2 CBR B'!U$18="TRUE","",+H66*$D$26) ->  | J66: =IF('6.2 CBR B'!U$18="TRUE","",+I66/12) -> 
B67: Customer 35 | D67: 0 | E67: =SUM(IF('6. Class A Consumption Data'!K63:L63="B",'6. Class A Consumption Data'!E63:F63)) -> 0 | H67: 0 | I67: =IF('6.2 CBR B'!U$18="TRUE","",+H67*$D$26) ->  | J67: =IF('6.2 CBR B'!U$18="TRUE","",+I67/12) -> 
B68: Customer 36 | D68: 0 | E68: =SUM(IF('6. Class A Consumption Data'!K64:L64="B",'6. Class A Consumption Data'!E64:F64)) -> 0 | H68: 0 | I68: =IF('6.2 CBR B'!U$18="TRUE","",+H68*$D$26) ->  | J68: =IF('6.2 CBR B'!U$18="TRUE","",+I68/12) -> 
B69: Customer 37 | D69: 0 | E69: =SUM(IF('6. Class A Consumption Data'!K65:L65="B",'6. Class A Consumption Data'!E65:F65)) -> 0 | H69: 0 | I69: =IF('6.2 CBR B'!U$18="TRUE","",+H69*$D$26) ->  | J69: =IF('6.2 CBR B'!U$18="TRUE","",+I69/12) -> 
B70: Customer 38 | D70: 0 | E70: =SUM(IF('6. Class A Consumption Data'!K66:L66="B",'6. Class A Consumption Data'!E66:F66)) -> 0 | H70: 0 | I70: =IF('6.2 CBR B'!U$18="TRUE","",+H70*$D$26) ->  | J70: =IF('6.2 CBR B'!U$18="TRUE","",+I70/12) -> 
B71: Customer 39 | D71: 0 | E71: =SUM(IF('6. Class A Consumption Data'!K67:L67="B",'6. Class A Consumption Data'!E67:F67)) -> 0 | H71: 0 | I71: =IF('6.2 CBR B'!U$18="TRUE","",+H71*$D$26) ->  | J71: =IF('6.2 CBR B'!U$18="TRUE","",+I71/12) -> 
B72: Customer 40 | D72: 0 | E72: =SUM(IF('6. Class A Consumption Data'!K68:L68="B",'6. Class A Consumption Data'!E68:F68)) -> 0 | H72: 0 | I72: =IF('6.2 CBR B'!U$18="TRUE","",+H72*$D$26) ->  | J72: =IF('6.2 CBR B'!U$18="TRUE","",+I72/12) -> 
B73: Customer 41 | D73: 0 | E73: =SUM(IF('6. Class A Consumption Data'!K69:L69="B",'6. Class A Consumption Data'!E69:F69)) -> 0 | H73: 0 | I73: =IF('6.2 CBR B'!U$18="TRUE","",+H73*$D$26) ->  | J73: =IF('6.2 CBR B'!U$18="TRUE","",+I73/12) -> 
B74: Customer 42 | D74: 0 | E74: =SUM(IF('6. Class A Consumption Data'!K70:L70="B",'6. Class A Consumption Data'!E70:F70)) -> 0 | H74: 0 | I74: =IF('6.2 CBR B'!U$18="TRUE","",+H74*$D$26) ->  | J74: =IF('6.2 CBR B'!U$18="TRUE","",+I74/12) -> 
B75: Customer 43 | D75: 0 | E75: =SUM(IF('6. Class A Consumption Data'!K71:L71="B",'6. Class A Consumption Data'!E71:F71)) -> 0 | H75: 0 | I75: =IF('6.2 CBR B'!U$18="TRUE","",+H75*$D$26) ->  | J75: =IF('6.2 CBR B'!U$18="TRUE","",+I75/12) -> 
B76: Customer 44 | D76: 0 | E76: =SUM(IF('6. Class A Consumption Data'!K72:L72="B",'6. Class A Consumption Data'!E72:F72)) -> 0 | H76: 0 | I76: =IF('6.2 CBR B'!U$18="TRUE","",+H76*$D$26) ->  | J76: =IF('6.2 CBR B'!U$18="TRUE","",+I76/12) -> 
B77: Customer 45 | D77: 0 | E77: =SUM(IF('6. Class A Consumption Data'!K73:L73="B",'6. Class A Consumption Data'!E73:F73)) -> 0 | H77: 0 | I77: =IF('6.2 CBR B'!U$18="TRUE","",+H77*$D$26) ->  | J77: =IF('6.2 CBR B'!U$18="TRUE","",+I77/12) -> 
B78: Customer 46 | D78: 0 | E78: =SUM(IF('6. Class A Consumption Data'!K74:L74="B",'6. Class A Consumption Data'!E74:F74)) -> 0 | H78: 0 | I78: =IF('6.2 CBR B'!U$18="TRUE","",+H78*$D$26) ->  | J78: =IF('6.2 CBR B'!U$18="TRUE","",+I78/12) -> 
B79: Customer 47 | D79: 0 | E79: =SUM(IF('6. Class A Consumption Data'!K75:L75="B",'6. Class A Consumption Data'!E75:F75)) -> 0 | H79: 0 | I79: =IF('6.2 CBR B'!U$18="TRUE","",+H79*$D$26) ->  | J79: =IF('6.2 CBR B'!U$18="TRUE","",+I79/12) -> 
B80: Customer 48 | D80: 0 | E80: =SUM(IF('6. Class A Consumption Data'!K76:L76="B",'6. Class A Consumption Data'!E76:F76)) -> 0 | H80: 0 | I80: =IF('6.2 CBR B'!U$18="TRUE","",+H80*$D$26) ->  | J80: =IF('6.2 CBR B'!U$18="TRUE","",+I80/12) -> 
B81: Customer 49 | D81: 0 | E81: =SUM(IF('6. Class A Consumption Data'!K77:L77="B",'6. Class A Consumption Data'!E77:F77)) -> 0 | H81: 0 | I81: =IF('6.2 CBR B'!U$18="TRUE","",+H81*$D$26) ->  | J81: =IF('6.2 CBR B'!U$18="TRUE","",+I81/12) -> 
B82: Customer 50 | D82: 0 | E82: =SUM(IF('6. Class A Consumption Data'!K78:L78="B",'6. Class A Consumption Data'!E78:F78)) -> 0 | H82: 0 | I82: =IF('6.2 CBR B'!U$18="TRUE","",+H82*$D$26) ->  | J82: =IF('6.2 CBR B'!U$18="TRUE","",+I82/12) -> 
B83: Customer 51 | D83: 0 | E83: =SUM(IF('6. Class A Consumption Data'!K79:L79="B",'6. Class A Consumption Data'!E79:F79)) -> 0 | H83: 0 | I83: =IF('6.2 CBR B'!U$18="TRUE","",+H83*$D$26) ->  | J83: =IF('6.2 CBR B'!U$18="TRUE","",+I83/12) -> 
B84: Customer 52 | D84: 0 | E84: =SUM(IF('6. Class A Consumption Data'!K80:L80="B",'6. Class A Consumption Data'!E80:F80)) -> 0 | H84: 0 | I84: =IF('6.2 CBR B'!U$18="TRUE","",+H84*$D$26) ->  | J84: =IF('6.2 CBR B'!U$18="TRUE","",+I84/12) -> 
B85: Customer 53 | D85: 0 | E85: =SUM(IF('6. Class A Consumption Data'!K81:L81="B",'6. Class A Consumption Data'!E81:F81)) -> 0 | H85: 0 | I85: =IF('6.2 CBR B'!U$18="TRUE","",+H85*$D$26) ->  | J85: =IF('6.2 CBR B'!U$18="TRUE","",+I85/12) -> 
B86: Customer 54 | D86: 0 | E86: =SUM(IF('6. Class A Consumption Data'!K82:L82="B",'6. Class A Consumption Data'!E82:F82)) -> 0 | H86: 0 | I86: =IF('6.2 CBR B'!U$18="TRUE","",+H86*$D$26) ->  | J86: =IF('6.2 CBR B'!U$18="TRUE","",+I86/12) -> 
B87: Customer 55 | D87: 0 | E87: =SUM(IF('6. Class A Consumption Data'!K83:L83="B",'6. Class A Consumption Data'!E83:F83)) -> 0 | H87: 0 | I87: =IF('6.2 CBR B'!U$18="TRUE","",+H87*$D$26) ->  | J87: =IF('6.2 CBR B'!U$18="TRUE","",+I87/12) -> 
B88: Customer 56 | D88: 0 | E88: =SUM(IF('6. Class A Consumption Data'!K84:L84="B",'6. Class A Consumption Data'!E84:F84)) -> 0 | H88: 0 | I88: =IF('6.2 CBR B'!U$18="TRUE","",+H88*$D$26) ->  | J88: =IF('6.2 CBR B'!U$18="TRUE","",+I88/12) -> 
B89: Customer 57 | D89: 0 | E89: =SUM(IF('6. Class A Consumption Data'!K85:L85="B",'6. Class A Consumption Data'!E85:F85)) -> 0 | H89: 0 | I89: =IF('6.2 CBR B'!U$18="TRUE","",+H89*$D$26) ->  | J89: =IF('6.2 CBR B'!U$18="TRUE","",+I89/12) -> 
B90: Customer 58 | D90: 0 | E90: =SUM(IF('6. Class A Consumption Data'!K86:L86="B",'6. Class A Consumption Data'!E86:F86)) -> 0 | H90: 0 | I90: =IF('6.2 CBR B'!U$18="TRUE","",+H90*$D$26) ->  | J90: =IF('6.2 CBR B'!U$18="TRUE","",+I90/12) -> 
B91: Customer 59 | D91: 0 | E91: =SUM(IF('6. Class A Consumption Data'!K87:L87="B",'6. Class A Consumption Data'!E87:F87)) -> 0 | H91: 0 | I91: =IF('6.2 CBR B'!U$18="TRUE","",+H91*$D$26) ->  | J91: =IF('6.2 CBR B'!U$18="TRUE","",+I91/12) -> 
B92: Customer 60 | D92: 0 | E92: =SUM(IF('6. Class A Consumption Data'!K88:L88="B",'6. Class A Consumption Data'!E88:F88)) -> 0 | H92: 0 | I92: =IF('6.2 CBR B'!U$18="TRUE","",+H92*$D$26) ->  | J92: =IF('6.2 CBR B'!U$18="TRUE","",+I92/12) -> 
B93: Customer 61 | D93: 0 | E93: =SUM(IF('6. Class A Consumption Data'!K89:L89="B",'6. Class A Consumption Data'!E89:F89)) -> 0 | H93: 0 | I93: =IF('6.2 CBR B'!U$18="TRUE","",+H93*$D$26) ->  | J93: =IF('6.2 CBR B'!U$18="TRUE","",+I93/12) -> 
B94: Customer 62 | D94: 0 | E94: =SUM(IF('6. Class A Consumption Data'!K90:L90="B",'6. Class A Consumption Data'!E90:F90)) -> 0 | H94: 0 | I94: =IF('6.2 CBR B'!U$18="TRUE","",+H94*$D$26) ->  | J94: =IF('6.2 CBR B'!U$18="TRUE","",+I94/12) -> 
B95: Customer 63 | D95: 0 | E95: =SUM(IF('6. Class A Consumption Data'!K91:L91="B",'6. Class A Consumption Data'!E91:F91)) -> 0 | H95: 0 | I95: =IF('6.2 CBR B'!U$18="TRUE","",+H95*$D$26) ->  | J95: =IF('6.2 CBR B'!U$18="TRUE","",+I95/12) -> 
B96: Customer 64 | D96: 0 | E96: =SUM(IF('6. Class A Consumption Data'!K92:L92="B",'6. Class A Consumption Data'!E92:F92)) -> 0 | H96: 0 | I96: =IF('6.2 CBR B'!U$18="TRUE","",+H96*$D$26) ->  | J96: =IF('6.2 CBR B'!U$18="TRUE","",+I96/12) -> 
B97: Customer 65 | D97: =SUM(E97:G97) -> 0 | E97: =SUM(IF('6. Class A Consumption Data'!K93:L93="B",'6. Class A Consumption Data'!E93:F93)) -> 0 | H97: 0 | I97: =IF('6.2 CBR B'!U$18="TRUE","",+H97*$D$26) ->  | J97: =IF('6.2 CBR B'!U$18="TRUE","",+I97/12) -> 
B98: Customer 66 | D98: 0 | E98: =SUM(IF('6. Class A Consumption Data'!K94:L94="B",'6. Class A Consumption Data'!E94:F94)) -> 0 | H98: =IFERROR(+D98/$D$183,0) -> 0 | I98: =IF('6.2 CBR B'!U$18="TRUE","",+H98*$D$26) ->  | J98: =IF('6.2 CBR B'!U$18="TRUE","",+I98/12) -> 
B99: Customer 67 | D99: 0 | E99: =SUM(IF('6. Class A Consumption Data'!K95:L95="B",'6. Class A Consumption Data'!E95:F95)) -> 0 | H99: 0 | I99: =IF('6.2 CBR B'!U$18="TRUE","",+H99*$D$26) ->  | J99: =IF('6.2 CBR B'!U$18="TRUE","",+I99/12) -> 
B100: Customer 68 | D100: 0 | E100: =SUM(IF('6. Class A Consumption Data'!K96:L96="B",'6. Class A Consumption Data'!E96:F96)) -> 0 | H100: 0 | I100: =IF('6.2 CBR B'!U$18="TRUE","",+H100*$D$26) ->  | J100: =IF('6.2 CBR B'!U$18="TRUE","",+I100/12) -> 
B101: Customer 69 | D101: 0 | E101: =SUM(IF('6. Class A Consumption Data'!K97:L97="B",'6. Class A Consumption Data'!E97:F97)) -> 0 | H101: 0 | I101: =IF('6.2 CBR B'!U$18="TRUE","",+H101*$D$26) ->  | J101: =IF('6.2 CBR B'!U$18="TRUE","",+I101/12) -> 
B102: Customer 70 | D102: 0 | E102: =SUM(IF('6. Class A Consumption Data'!K98:L98="B",'6. Class A Consumption Data'!E98:F98)) -> 0 | H102: 0 | I102: =IF('6.2 CBR B'!U$18="TRUE","",+H102*$D$26) ->  | J102: =IF('6.2 CBR B'!U$18="TRUE","",+I102/12) -> 
B103: Customer 71 | D103: 0 | E103: =SUM(IF('6. Class A Consumption Data'!K99:L99="B",'6. Class A Consumption Data'!E99:F99)) -> 0 | H103: 0 | I103: =IF('6.2 CBR B'!U$18="TRUE","",+H103*$D$26) ->  | J103: =IF('6.2 CBR B'!U$18="TRUE","",+I103/12) -> 
B104: Customer 72 | D104: 0 | E104: =SUM(IF('6. Class A Consumption Data'!K100:L100="B",'6. Class A Consumption Data'!E100:F100)) -> 0 | H104: 0 | I104: =IF('6.2 CBR B'!U$18="TRUE","",+H104*$D$26) ->  | J104: =IF('6.2 CBR B'!U$18="TRUE","",+I104/12) -> 
B105: Customer 73 | D105: 0 | E105: =SUM(IF('6. Class A Consumption Data'!K101:L101="B",'6. Class A Consumption Data'!E101:F101)) -> 0 | H105: 0 | I105: =IF('6.2 CBR B'!U$18="TRUE","",+H105*$D$26) ->  | J105: =IF('6.2 CBR B'!U$18="TRUE","",+I105/12) -> 
B106: Customer 74 | D106: 0 | E106: =SUM(IF('6. Class A Consumption Data'!K102:L102="B",'6. Class A Consumption Data'!E102:F102)) -> 0 | H106: 0 | I106: =IF('6.2 CBR B'!U$18="TRUE","",+H106*$D$26) ->  | J106: =IF('6.2 CBR B'!U$18="TRUE","",+I106/12) -> 
B107: Customer 75 | D107: 0 | E107: =SUM(IF('6. Class A Consumption Data'!K103:L103="B",'6. Class A Consumption Data'!E103:F103)) -> 0 | H107: 0 | I107: =IF('6.2 CBR B'!U$18="TRUE","",+H107*$D$26) ->  | J107: =IF('6.2 CBR B'!U$18="TRUE","",+I107/12) -> 
B108: Customer 76 | D108: 0 | E108: =SUM(IF('6. Class A Consumption Data'!K104:L104="B",'6. Class A Consumption Data'!E104:F104)) -> 0 | H108: 0 | I108: =IF('6.2 CBR B'!U$18="TRUE","",+H108*$D$26) ->  | J108: =IF('6.2 CBR B'!U$18="TRUE","",+I108/12) -> 
B109: Customer 77 | D109: 0 | E109: =SUM(IF('6. Class A Consumption Data'!K105:L105="B",'6. Class A Consumption Data'!E105:F105)) -> 0 | H109: 0 | I109: =IF('6.2 CBR B'!U$18="TRUE","",+H109*$D$26) ->  | J109: =IF('6.2 CBR B'!U$18="TRUE","",+I109/12) -> 
B110: Customer 78 | D110: 0 | E110: =SUM(IF('6. Class A Consumption Data'!K106:L106="B",'6. Class A Consumption Data'!E106:F106)) -> 0 | H110: 0 | I110: =IF('6.2 CBR B'!U$18="TRUE","",+H110*$D$26) ->  | J110: =IF('6.2 CBR B'!U$18="TRUE","",+I110/12) -> 
B111: Customer 79 | D111: 0 | E111: =SUM(IF('6. Class A Consumption Data'!K107:L107="B",'6. Class A Consumption Data'!E107:F107)) -> 0 | H111: 0 | I111: =IF('6.2 CBR B'!U$18="TRUE","",+H111*$D$26) ->  | J111: =IF('6.2 CBR B'!U$18="TRUE","",+I111/12) -> 
B112: Customer 80 | D112: 0 | E112: =SUM(IF('6. Class A Consumption Data'!K108:L108="B",'6. Class A Consumption Data'!E108:F108)) -> 0 | H112: 0 | I112: =IF('6.2 CBR B'!U$18="TRUE","",+H112*$D$26) ->  | J112: =IF('6.2 CBR B'!U$18="TRUE","",+I112/12) -> 
B113: Customer 81 | D113: 0 | E113: =SUM(IF('6. Class A Consumption Data'!K109:L109="B",'6. Class A Consumption Data'!E109:F109)) -> 0 | H113: 0 | I113: =IF('6.2 CBR B'!U$18="TRUE","",+H113*$D$26) ->  | J113: =IF('6.2 CBR B'!U$18="TRUE","",+I113/12) -> 
B114: Customer 82 | D114: 0 | E114: =SUM(IF('6. Class A Consumption Data'!K110:L110="B",'6. Class A Consumption Data'!E110:F110)) -> 0 | H114: 0 | I114: =IF('6.2 CBR B'!U$18="TRUE","",+H114*$D$26) ->  | J114: =IF('6.2 CBR B'!U$18="TRUE","",+I114/12) -> 
B115: Customer 83 | D115: 0 | E115: =SUM(IF('6. Class A Consumption Data'!K111:L111="B",'6. Class A Consumption Data'!E111:F111)) -> 0 | H115: 0 | I115: =IF('6.2 CBR B'!U$18="TRUE","",+H115*$D$26) ->  | J115: =IF('6.2 CBR B'!U$18="TRUE","",+I115/12) -> 
B116: Customer 84 | D116: 0 | E116: =SUM(IF('6. Class A Consumption Data'!K112:L112="B",'6. Class A Consumption Data'!E112:F112)) -> 0 | H116: 0 | I116: =IF('6.2 CBR B'!U$18="TRUE","",+H116*$D$26) ->  | J116: =IF('6.2 CBR B'!U$18="TRUE","",+I116/12) -> 
B117: Customer 85 | D117: 0 | E117: =SUM(IF('6. Class A Consumption Data'!K113:L113="B",'6. Class A Consumption Data'!E113:F113)) -> 0 | H117: 0 | I117: =IF('6.2 CBR B'!U$18="TRUE","",+H117*$D$26) ->  | J117: =IF('6.2 CBR B'!U$18="TRUE","",+I117/12) -> 
B118: Customer 86 | D118: 0 | E118: =SUM(IF('6. Class A Consumption Data'!K114:L114="B",'6. Class A Consumption Data'!E114:F114)) -> 0 | H118: 0 | I118: =IF('6.2 CBR B'!U$18="TRUE","",+H118*$D$26) ->  | J118: =IF('6.2 CBR B'!U$18="TRUE","",+I118/12) -> 
B119: Customer 87 | D119: 0 | E119: =SUM(IF('6. Class A Consumption Data'!K115:L115="B",'6. Class A Consumption Data'!E115:F115)) -> 0 | H119: 0 | I119: =IF('6.2 CBR B'!U$18="TRUE","",+H119*$D$26) ->  | J119: =IF('6.2 CBR B'!U$18="TRUE","",+I119/12) -> 
B120: Customer 88 | D120: 0 | E120: =SUM(IF('6. Class A Consumption Data'!K116:L116="B",'6. Class A Consumption Data'!E116:F116)) -> 0 | H120: 0 | I120: =IF('6.2 CBR B'!U$18="TRUE","",+H120*$D$26) ->  | J120: =IF('6.2 CBR B'!U$18="TRUE","",+I120/12) -> 
B121: Customer 89 | D121: 0 | E121: =SUM(IF('6. Class A Consumption Data'!K117:L117="B",'6. Class A Consumption Data'!E117:F117)) -> 0 | H121: 0 | I121: =IF('6.2 CBR B'!U$18="TRUE","",+H121*$D$26) ->  | J121: =IF('6.2 CBR B'!U$18="TRUE","",+I121/12) -> 
B122: Customer 90 | D122: 0 | E122: =SUM(IF('6. Class A Consumption Data'!K118:L118="B",'6. Class A Consumption Data'!E118:F118)) -> 0 | H122: 0 | I122: =IF('6.2 CBR B'!U$18="TRUE","",+H122*$D$26) ->  | J122: =IF('6.2 CBR B'!U$18="TRUE","",+I122/12) -> 
B123: Customer 91 | D123: 0 | E123: =SUM(IF('6. Class A Consumption Data'!K119:L119="B",'6. Class A Consumption Data'!E119:F119)) -> 0 | H123: 0 | I123: =IF('6.2 CBR B'!U$18="TRUE","",+H123*$D$26) ->  | J123: =IF('6.2 CBR B'!U$18="TRUE","",+I123/12) -> 
B124: Customer 92 | D124: 0 | E124: =SUM(IF('6. Class A Consumption Data'!K120:L120="B",'6. Class A Consumption Data'!E120:F120)) -> 0 | H124: 0 | I124: =IF('6.2 CBR B'!U$18="TRUE","",+H124*$D$26) ->  | J124: =IF('6.2 CBR B'!U$18="TRUE","",+I124/12) -> 
B125: Customer 93 | D125: 0 | E125: =SUM(IF('6. Class A Consumption Data'!K121:L121="B",'6. Class A Consumption Data'!E121:F121)) -> 0 | H125: 0 | I125: =IF('6.2 CBR B'!U$18="TRUE","",+H125*$D$26) ->  | J125: =IF('6.2 CBR B'!U$18="TRUE","",+I125/12) -> 
B126: Customer 94 | D126: 0 | E126: =SUM(IF('6. Class A Consumption Data'!K122:L122="B",'6. Class A Consumption Data'!E122:F122)) -> 0 | H126: 0 | I126: =IF('6.2 CBR B'!U$18="TRUE","",+H126*$D$26) ->  | J126: =IF('6.2 CBR B'!U$18="TRUE","",+I126/12) -> 
B127: Customer 95 | D127: 0 | E127: =SUM(IF('6. Class A Consumption Data'!K123:L123="B",'6. Class A Consumption Data'!E123:F123)) -> 0 | H127: 0 | I127: =IF('6.2 CBR B'!U$18="TRUE","",+H127*$D$26) ->  | J127: =IF('6.2 CBR B'!U$18="TRUE","",+I127/12) -> 
B128: Customer 96 | D128: 0 | E128: =SUM(IF('6. Class A Consumption Data'!K124:L124="B",'6. Class A Consumption Data'!E124:F124)) -> 0 | H128: 0 | I128: =IF('6.2 CBR B'!U$18="TRUE","",+H128*$D$26) ->  | J128: =IF('6.2 CBR B'!U$18="TRUE","",+I128/12) -> 
B129: Customer 97 | D129: 0 | E129: =SUM(IF('6. Class A Consumption Data'!K125:L125="B",'6. Class A Consumption Data'!E125:F125)) -> 0 | H129: 0 | I129: =IF('6.2 CBR B'!U$18="TRUE","",+H129*$D$26) ->  | J129: =IF('6.2 CBR B'!U$18="TRUE","",+I129/12) -> 
B130: Customer 98 | D130: 0 | E130: =SUM(IF('6. Class A Consumption Data'!K126:L126="B",'6. Class A Consumption Data'!E126:F126)) -> 0 | H130: 0 | I130: =IF('6.2 CBR B'!U$18="TRUE","",+H130*$D$26) ->  | J130: =IF('6.2 CBR B'!U$18="TRUE","",+I130/12) -> 
B131: Customer 99 | D131: 0 | E131: =SUM(IF('6. Class A Consumption Data'!K127:L127="B",'6. Class A Consumption Data'!E127:F127)) -> 0 | H131: 0 | I131: =IF('6.2 CBR B'!U$18="TRUE","",+H131*$D$26) ->  | J131: =IF('6.2 CBR B'!U$18="TRUE","",+I131/12) -> 
B132: Customer 100 | D132: 0 | E132: =SUM(IF('6. Class A Consumption Data'!K128:L128="B",'6. Class A Consumption Data'!E128:F128)) -> 0 | H132: 0 | I132: =IF('6.2 CBR B'!U$18="TRUE","",+H132*$D$26) ->  | J132: =IF('6.2 CBR B'!U$18="TRUE","",+I132/12) -> 
B133: Customer 101 | D133: 0 | E133: =SUM(IF('6. Class A Consumption Data'!K129:L129="B",'6. Class A Consumption Data'!E129:F129)) -> 0 | H133: 0 | I133: =IF('6.2 CBR B'!U$18="TRUE","",+H133*$D$26) ->  | J133: =IF('6.2 CBR B'!U$18="TRUE","",+I133/12) -> 
B134: Customer 102 | D134: =SUM(E134:G134) -> 0 | E134: =SUM(IF('6. Class A Consumption Data'!K130:L130="B",'6. Class A Consumption Data'!E130:F130)) -> 0 | H134: 0 | I134: =IF('6.2 CBR B'!U$18="TRUE","",+H134*$D$26) ->  | J134: =IF('6.2 CBR B'!U$18="TRUE","",+I134/12) -> 
B135: Customer 103 | D135: 0 | E135: =SUM(IF('6. Class A Consumption Data'!K131:L131="B",'6. Class A Consumption Data'!E131:F131)) -> 0 | H135: 0 | I135: =IF('6.2 CBR B'!U$18="TRUE","",+H135*$D$26) ->  | J135: =IF('6.2 CBR B'!U$18="TRUE","",+I135/12) -> 
B136: Customer 104 | D136: 0 | E136: =SUM(IF('6. Class A Consumption Data'!K132:L132="B",'6. Class A Consumption Data'!E132:F132)) -> 0 | H136: 0 | I136: =IF('6.2 CBR B'!U$18="TRUE","",+H136*$D$26) ->  | J136: =IF('6.2 CBR B'!U$18="TRUE","",+I136/12) -> 
B137: Customer 105 | D137: 0 | E137: =SUM(IF('6. Class A Consumption Data'!K133:L133="B",'6. Class A Consumption Data'!E133:F133)) -> 0 | H137: 0 | I137: =IF('6.2 CBR B'!U$18="TRUE","",+H137*$D$26) ->  | J137: =IF('6.2 CBR B'!U$18="TRUE","",+I137/12) -> 
B138: Customer 106 | D138: 0 | E138: =SUM(IF('6. Class A Consumption Data'!K134:L134="B",'6. Class A Consumption Data'!E134:F134)) -> 0 | H138: 0 | I138: =IF('6.2 CBR B'!U$18="TRUE","",+H138*$D$26) ->  | J138: =IF('6.2 CBR B'!U$18="TRUE","",+I138/12) -> 
B139: Customer 107 | D139: 0 | E139: =SUM(IF('6. Class A Consumption Data'!K135:L135="B",'6. Class A Consumption Data'!E135:F135)) -> 0 | H139: 0 | I139: =IF('6.2 CBR B'!U$18="TRUE","",+H139*$D$26) ->  | J139: =IF('6.2 CBR B'!U$18="TRUE","",+I139/12) -> 
B140: Customer 108 | D140: 0 | E140: =SUM(IF('6. Class A Consumption Data'!K136:L136="B",'6. Class A Consumption Data'!E136:F136)) -> 0 | H140: 0 | I140: =IF('6.2 CBR B'!U$18="TRUE","",+H140*$D$26) ->  | J140: =IF('6.2 CBR B'!U$18="TRUE","",+I140/12) -> 
B141: Customer 109 | D141: 0 | E141: =SUM(IF('6. Class A Consumption Data'!K137:L137="B",'6. Class A Consumption Data'!E137:F137)) -> 0 | H141: 0 | I141: =IF('6.2 CBR B'!U$18="TRUE","",+H141*$D$26) ->  | J141: =IF('6.2 CBR B'!U$18="TRUE","",+I141/12) -> 
B142: Customer 110 | D142: 0 | E142: =SUM(IF('6. Class A Consumption Data'!K138:L138="B",'6. Class A Consumption Data'!E138:F138)) -> 0 | H142: 0 | I142: =IF('6.2 CBR B'!U$18="TRUE","",+H142*$D$26) ->  | J142: =IF('6.2 CBR B'!U$18="TRUE","",+I142/12) -> 
B143: Customer 111 | D143: 0 | E143: =SUM(IF('6. Class A Consumption Data'!K139:L139="B",'6. Class A Consumption Data'!E139:F139)) -> 0 | H143: 0 | I143: =IF('6.2 CBR B'!U$18="TRUE","",+H143*$D$26) ->  | J143: =IF('6.2 CBR B'!U$18="TRUE","",+I143/12) -> 
B144: Customer 112 | D144: 0 | E144: =SUM(IF('6. Class A Consumption Data'!K140:L140="B",'6. Class A Consumption Data'!E140:F140)) -> 0 | H144: 0 | I144: =IF('6.2 CBR B'!U$18="TRUE","",+H144*$D$26) ->  | J144: =IF('6.2 CBR B'!U$18="TRUE","",+I144/12) -> 
B145: Customer 113 | D145: 0 | E145: =SUM(IF('6. Class A Consumption Data'!K141:L141="B",'6. Class A Consumption Data'!E141:F141)) -> 0 | H145: 0 | I145: =IF('6.2 CBR B'!U$18="TRUE","",+H145*$D$26) ->  | J145: =IF('6.2 CBR B'!U$18="TRUE","",+I145/12) -> 
B146: Customer 114 | D146: 0 | E146: =SUM(IF('6. Class A Consumption Data'!K142:L142="B",'6. Class A Consumption Data'!E142:F142)) -> 0 | H146: 0 | I146: =IF('6.2 CBR B'!U$18="TRUE","",+H146*$D$26) ->  | J146: =IF('6.2 CBR B'!U$18="TRUE","",+I146/12) -> 
B147: Customer 115 | D147: 0 | E147: =SUM(IF('6. Class A Consumption Data'!K143:L143="B",'6. Class A Consumption Data'!E143:F143)) -> 0 | H147: 0 | I147: =IF('6.2 CBR B'!U$18="TRUE","",+H147*$D$26) ->  | J147: =IF('6.2 CBR B'!U$18="TRUE","",+I147/12) -> 
B148: Customer 116 | D148: 0 | E148: =SUM(IF('6. Class A Consumption Data'!K144:L144="B",'6. Class A Consumption Data'!E144:F144)) -> 0 | H148: 0 | I148: =IF('6.2 CBR B'!U$18="TRUE","",+H148*$D$26) ->  | J148: =IF('6.2 CBR B'!U$18="TRUE","",+I148/12) -> 
B149: Customer 117 | D149: 0 | E149: =SUM(IF('6. Class A Consumption Data'!K145:L145="B",'6. Class A Consumption Data'!E145:F145)) -> 0 | H149: 0 | I149: =IF('6.2 CBR B'!U$18="TRUE","",+H149*$D$26) ->  | J149: =IF('6.2 CBR B'!U$18="TRUE","",+I149/12) -> 
B150: Customer 118 | D150: 0 | E150: =SUM(IF('6. Class A Consumption Data'!K146:L146="B",'6. Class A Consumption Data'!E146:F146)) -> 0 | H150: 0 | I150: =IF('6.2 CBR B'!U$18="TRUE","",+H150*$D$26) ->  | J150: =IF('6.2 CBR B'!U$18="TRUE","",+I150/12) -> 
B151: Customer 119 | D151: 0 | E151: =SUM(IF('6. Class A Consumption Data'!K147:L147="B",'6. Class A Consumption Data'!E147:F147)) -> 0 | H151: 0 | I151: =IF('6.2 CBR B'!U$18="TRUE","",+H151*$D$26) ->  | J151: =IF('6.2 CBR B'!U$18="TRUE","",+I151/12) -> 
B152: Customer 120 | D152: 0 | E152: =SUM(IF('6. Class A Consumption Data'!K148:L148="B",'6. Class A Consumption Data'!E148:F148)) -> 0 | H152: 0 | I152: =IF('6.2 CBR B'!U$18="TRUE","",+H152*$D$26) ->  | J152: =IF('6.2 CBR B'!U$18="TRUE","",+I152/12) -> 
B153: Customer 121 | D153: 0 | E153: =SUM(IF('6. Class A Consumption Data'!K149:L149="B",'6. Class A Consumption Data'!E149:F149)) -> 0 | H153: 0 | I153: =IF('6.2 CBR B'!U$18="TRUE","",+H153*$D$26) ->  | J153: =IF('6.2 CBR B'!U$18="TRUE","",+I153/12) -> 
B154: Customer 122 | D154: 0 | E154: =SUM(IF('6. Class A Consumption Data'!K150:L150="B",'6. Class A Consumption Data'!E150:F150)) -> 0 | H154: 0 | I154: =IF('6.2 CBR B'!U$18="TRUE","",+H154*$D$26) ->  | J154: =IF('6.2 CBR B'!U$18="TRUE","",+I154/12) -> 
B155: Customer 123 | D155: 0 | E155: =SUM(IF('6. Class A Consumption Data'!K151:L151="B",'6. Class A Consumption Data'!E151:F151)) -> 0 | H155: 0 | I155: =IF('6.2 CBR B'!U$18="TRUE","",+H155*$D$26) ->  | J155: =IF('6.2 CBR B'!U$18="TRUE","",+I155/12) -> 
B156: Customer 124 | D156: 0 | E156: =SUM(IF('6. Class A Consumption Data'!K152:L152="B",'6. Class A Consumption Data'!E152:F152)) -> 0 | H156: 0 | I156: =IF('6.2 CBR B'!U$18="TRUE","",+H156*$D$26) ->  | J156: =IF('6.2 CBR B'!U$18="TRUE","",+I156/12) -> 
B157: Customer 125 | D157: 0 | E157: =SUM(IF('6. Class A Consumption Data'!K153:L153="B",'6. Class A Consumption Data'!E153:F153)) -> 0 | H157: 0 | I157: =IF('6.2 CBR B'!U$18="TRUE","",+H157*$D$26) ->  | J157: =IF('6.2 CBR B'!U$18="TRUE","",+I157/12) -> 
B158: Customer 126 | D158: 0 | E158: =SUM(IF('6. Class A Consumption Data'!K154:L154="B",'6. Class A Consumption Data'!E154:F154)) -> 0 | H158: 0 | I158: =IF('6.2 CBR B'!U$18="TRUE","",+H158*$D$26) ->  | J158: =IF('6.2 CBR B'!U$18="TRUE","",+I158/12) -> 
B159: Customer 127 | D159: 0 | E159: =SUM(IF('6. Class A Consumption Data'!K155:L155="B",'6. Class A Consumption Data'!E155:F155)) -> 0 | H159: 0 | I159: =IF('6.2 CBR B'!U$18="TRUE","",+H159*$D$26) ->  | J159: =IF('6.2 CBR B'!U$18="TRUE","",+I159/12) -> 
B160: Customer 128 | D160: 0 | E160: =SUM(IF('6. Class A Consumption Data'!K156:L156="B",'6. Class A Consumption Data'!E156:F156)) -> 0 | H160: 0 | I160: =IF('6.2 CBR B'!U$18="TRUE","",+H160*$D$26) ->  | J160: =IF('6.2 CBR B'!U$18="TRUE","",+I160/12) -> 
B161: Customer 129 | D161: 0 | E161: =SUM(IF('6. Class A Consumption Data'!K157:L157="B",'6. Class A Consumption Data'!E157:F157)) -> 0 | H161: 0 | I161: =IF('6.2 CBR B'!U$18="TRUE","",+H161*$D$26) ->  | J161: =IF('6.2 CBR B'!U$18="TRUE","",+I161/12) -> 
B162: Customer 130 | D162: 0 | E162: =SUM(IF('6. Class A Consumption Data'!K158:L158="B",'6. Class A Consumption Data'!E158:F158)) -> 0 | H162: =IFERROR(+D162/$D$183,0) -> 0 | I162: =IF('6.2 CBR B'!U$18="TRUE","",+H162*$D$26) ->  | J162: =IF('6.2 CBR B'!U$18="TRUE","",+I162/12) -> 
B163: Customer 131 | D163: 0 | E163: =SUM(IF('6. Class A Consumption Data'!K159:L159="B",'6. Class A Consumption Data'!E159:F159)) -> 0 | H163: 0 | I163: =IF('6.2 CBR B'!U$18="TRUE","",+H163*$D$26) ->  | J163: =IF('6.2 CBR B'!U$18="TRUE","",+I163/12) -> 
B164: Customer 132 | D164: 0 | E164: =SUM(IF('6. Class A Consumption Data'!K160:L160="B",'6. Class A Consumption Data'!E160:F160)) -> 0 | H164: 0 | I164: =IF('6.2 CBR B'!U$18="TRUE","",+H164*$D$26) ->  | J164: =IF('6.2 CBR B'!U$18="TRUE","",+I164/12) -> 
B165: Customer 133 | D165: 0 | E165: =SUM(IF('6. Class A Consumption Data'!K161:L161="B",'6. Class A Consumption Data'!E161:F161)) -> 0 | H165: 0 | I165: =IF('6.2 CBR B'!U$18="TRUE","",+H165*$D$26) ->  | J165: =IF('6.2 CBR B'!U$18="TRUE","",+I165/12) -> 
B166: Customer 134 | D166: 0 | E166: =SUM(IF('6. Class A Consumption Data'!K162:L162="B",'6. Class A Consumption Data'!E162:F162)) -> 0 | H166: 0 | I166: =IF('6.2 CBR B'!U$18="TRUE","",+H166*$D$26) ->  | J166: =IF('6.2 CBR B'!U$18="TRUE","",+I166/12) -> 
B167: Customer 135 | D167: 0 | E167: =SUM(IF('6. Class A Consumption Data'!K163:L163="B",'6. Class A Consumption Data'!E163:F163)) -> 0 | H167: 0 | I167: =IF('6.2 CBR B'!U$18="TRUE","",+H167*$D$26) ->  | J167: =IF('6.2 CBR B'!U$18="TRUE","",+I167/12) -> 
B168: Customer 136 | D168: 0 | E168: =SUM(IF('6. Class A Consumption Data'!K164:L164="B",'6. Class A Consumption Data'!E164:F164)) -> 0 | H168: 0 | I168: =IF('6.2 CBR B'!U$18="TRUE","",+H168*$D$26) ->  | J168: =IF('6.2 CBR B'!U$18="TRUE","",+I168/12) -> 
B169: Customer 137 | D169: 0 | E169: =SUM(IF('6. Class A Consumption Data'!K165:L165="B",'6. Class A Consumption Data'!E165:F165)) -> 0 | H169: 0 | I169: =IF('6.2 CBR B'!U$18="TRUE","",+H169*$D$26) ->  | J169: =IF('6.2 CBR B'!U$18="TRUE","",+I169/12) -> 
B170: Customer 138 | D170: 0 | E170: =SUM(IF('6. Class A Consumption Data'!K166:L166="B",'6. Class A Consumption Data'!E166:F166)) -> 0 | H170: 0 | I170: =IF('6.2 CBR B'!U$18="TRUE","",+H170*$D$26) ->  | J170: =IF('6.2 CBR B'!U$18="TRUE","",+I170/12) -> 
B171: Customer 139 | D171: 0 | E171: =SUM(IF('6. Class A Consumption Data'!K167:L167="B",'6. Class A Consumption Data'!E167:F167)) -> 0 | H171: 0 | I171: =IF('6.2 CBR B'!U$18="TRUE","",+H171*$D$26) ->  | J171: =IF('6.2 CBR B'!U$18="TRUE","",+I171/12) -> 
B172: Customer 140 | D172: 0 | E172: =SUM(IF('6. Class A Consumption Data'!K168:L168="B",'6. Class A Consumption Data'!E168:F168)) -> 0 | H172: 0 | I172: =IF('6.2 CBR B'!U$18="TRUE","",+H172*$D$26) ->  | J172: =IF('6.2 CBR B'!U$18="TRUE","",+I172/12) -> 
B173: Customer 141 | D173: 0 | E173: =SUM(IF('6. Class A Consumption Data'!K169:L169="B",'6. Class A Consumption Data'!E169:F169)) -> 0 | H173: 0 | I173: =IF('6.2 CBR B'!U$18="TRUE","",+H173*$D$26) ->  | J173: =IF('6.2 CBR B'!U$18="TRUE","",+I173/12) -> 
B174: Customer 142 | D174: 0 | E174: =SUM(IF('6. Class A Consumption Data'!K170:L170="B",'6. Class A Consumption Data'!E170:F170)) -> 0 | H174: 0 | I174: =IF('6.2 CBR B'!U$18="TRUE","",+H174*$D$26) ->  | J174: =IF('6.2 CBR B'!U$18="TRUE","",+I174/12) -> 
B175: Customer 143 | D175: 0 | E175: =SUM(IF('6. Class A Consumption Data'!K171:L171="B",'6. Class A Consumption Data'!E171:F171)) -> 0 | H175: 0 | I175: =IF('6.2 CBR B'!U$18="TRUE","",+H175*$D$26) ->  | J175: =IF('6.2 CBR B'!U$18="TRUE","",+I175/12) -> 
B176: Customer 144 | D176: 0 | E176: =SUM(IF('6. Class A Consumption Data'!K172:L172="B",'6. Class A Consumption Data'!E172:F172)) -> 0 | H176: 0 | I176: =IF('6.2 CBR B'!U$18="TRUE","",+H176*$D$26) ->  | J176: =IF('6.2 CBR B'!U$18="TRUE","",+I176/12) -> 
B177: Customer 145 | D177: 0 | E177: =SUM(IF('6. Class A Consumption Data'!K173:L173="B",'6. Class A Consumption Data'!E173:F173)) -> 0 | H177: 0 | I177: =IF('6.2 CBR B'!U$18="TRUE","",+H177*$D$26) ->  | J177: =IF('6.2 CBR B'!U$18="TRUE","",+I177/12) -> 
B178: Customer 146 | D178: 0 | E178: =SUM(IF('6. Class A Consumption Data'!K174:L174="B",'6. Class A Consumption Data'!E174:F174)) -> 0 | H178: 0 | I178: =IF('6.2 CBR B'!U$18="TRUE","",+H178*$D$26) ->  | J178: =IF('6.2 CBR B'!U$18="TRUE","",+I178/12) -> 
B179: Customer 147 | D179: 0 | E179: =SUM(IF('6. Class A Consumption Data'!K175:L175="B",'6. Class A Consumption Data'!E175:F175)) -> 0 | H179: 0 | I179: =IF('6.2 CBR B'!U$18="TRUE","",+H179*$D$26) ->  | J179: =IF('6.2 CBR B'!U$18="TRUE","",+I179/12) -> 
B180: Customer 148 | D180: 0 | E180: =SUM(IF('6. Class A Consumption Data'!K176:L176="B",'6. Class A Consumption Data'!E176:F176)) -> 0 | H180: 0 | I180: =IF('6.2 CBR B'!U$18="TRUE","",+H180*$D$26) ->  | J180: =IF('6.2 CBR B'!U$18="TRUE","",+I180/12) -> 
B181: Customer 149 | D181: 0 | E181: =SUM(IF('6. Class A Consumption Data'!K177:L177="B",'6. Class A Consumption Data'!E177:F177)) -> 0 | H181: 0 | I181: =IF('6.2 CBR B'!U$18="TRUE","",+H181*$D$26) ->  | J181: =IF('6.2 CBR B'!U$18="TRUE","",+I181/12) -> 
B182: Customer 150 | D182: 0 | E182: =SUM(IF('6. Class A Consumption Data'!K178:L178="B",'6. Class A Consumption Data'!E178:F178)) -> 0 | H182: 0 | I182: =IF('6.2 CBR B'!U$18="TRUE","",+H182*$D$26) ->  | J182: =IF('6.2 CBR B'!U$18="TRUE","",+I182/12) -> 
B183: Total for all Customers | D183: =SUM(D33:D182) -> 54005341.11 | E183: =SUM(E33:E182) -> 54005341.11 | F183: 0 | G183: 0 | H183: =SUM(H33:H182) -> 1 | I183: =SUM(I33:I182) -> 0

Sheet 6.2 CBR B
A1: Back to Index
B2: =+'1. Information Sheet'!B2 -> INCENTIVE REGULATION MODEL FOR 2020 FILERS
K11: If the allocated Account 1580 sub-account CBR Class B amount does not produce a rate rider in one or more rate class (except for the Standby rate class), a distributor is to transfer the entire OEB-approved CBR Class B amount into Account 1580 WMS control account to be disposed through the general purpose Group 1 DVA rate riders. (see Accounting Guidance, Capacity Based Recovery xxxxx, 2018)
B13: The purpose of this tab is to calculate the CBR rate riders for all current Class B customers who did not transition between Class A and B in the period since the Account 1580, sub-account CBR Class B balance accumulated.
B15: Please select the Year the Account 1580 CBR Class B was Last Disposed. | C15: 2017 | D15: (Note: Account 1580, Sub-account CBR Class B was established starting in 2015)
U18: =IF(MIN(U22:U26,U28:U31)<0.0001,"TRUE","FALSE") -> TRUE
C19: Total Metered Minus WMP | E19: Total Metered 2018 Consumption for Class A customers that were Class A for the entire period CBR Class B balance accumulated | G19: Total Metered 2018 Consumption for Customers that Transitioned Between Class A and B during the period CBR Class B balance accumulated | I19: Metered Consumption for Current Class B Customers (Total Consumption LESS WMP, Class A and Transition Customers' Consumption) | K19: % of total kWh | L19: Total CBR $ allocated to Current Class B Customers | M19: CBR Rate Rider | O19: Revenue Reconciliation | P19: Variance | U19: CBR Rate Rider
C20: kWh | D20: kW | E20: kWh | F20: kW | G20: kWh | H20: kW | I20: kWh | J20: kW
B22: ='4. Billing Det. for Def-Var'!B17 -> RESIDENTIAL SERVICE CLASSIFICATION | C22: ='4. Billing Det. for Def-Var'!D17-'4. Billing Det. for Def-Var'!H17 -> 1385125813 | D22: ='4. Billing Det. for Def-Var'!E17-'4. Billing Det. for Def-Var'!I17 -> 0 | E22: =SUM(IF('6. Class A Consumption Data'!$D$186:$D$335=$B22,'6. Class A Consumption Data'!E$186:E$335)) -> 0 | F22: =SUM(IF('6. Class A Consumption Data'!$D$186:$D$335=$B22,'6. Class A Consumption Data'!H$186:H$335)) -> 0 | G22: =SUM(IF('6. Class A Consumption Data'!$D$29:$D$178=$B22,'6. Class A Consumption Data'!E$29:F$178)) -> 0 | H22: =SUM(IF('6. Class A Consumption Data'!$D$29:$D$178=$B22,'6. Class A Consumption Data'!H$29:I$178)) -> 0 | I22: =ROUND(C22-E22-G22,0) -> 1385125813 | J22: =ROUND(D22-F22-H22,0) -> 0 | K22: =IFERROR(I22/I$34,"") -> 0.4632890287 | L22: =IFERROR(L$34*K22,"") -> -47428.25865 | M22: =IF(U$18="TRUE",0,ROUND(U22,4)) -> 0 | N22: kwh | O22: =IFERROR(IF(J22=0,ROUND(M22,4)*I22,ROUND(M22,4)*J22),"") -> 0 | P22: =IFERROR(L22-O22,"") -> -47428.25865 | U22: =IFERROR(IF($J22=0,$L22/$I22,$L22/$J22),"") -> -3.424111962e-05 | V22: =N22 -> kwh
B23: ='4. Billing Det. for Def-Var'!B18 -> GENERAL SERVICE LESS THAN 50 kW SERVICE CLASSIFICATION | C23: ='4. Billing Det. for Def-Var'!D18-'4. Billing Det. for Def-Var'!H18 -> 344785906.8 | D23: ='4. Billing Det. for Def-Var'!E18-'4. Billing Det. for Def-Var'!I18 -> 0 | E23: =SUM(IF('6. Class A Consumption Data'!$D$186:$D$335=$B23,'6. Class A Consumption Data'!E$186:E$335)) -> 0 | F23: =SUM(IF('6. Class A Consumption Data'!$D$186:$D$335=$B23,'6. Class A Consumption Data'!H$186:H$335)) -> 0 | G23: =SUM(IF('6. Class A Consumption Data'!$D$29:$D$178=$B23,'6. Class A Consumption Data'!E$29:F$178)) -> 0 | H23: =SUM(IF('6. Class A Consumption Data'!$D$29:$D$178=$B23,'6. Class A Consumption Data'!H$29:I$178)) -> 0 | I23: =ROUND(C23-E23-G23,0) -> 344785907 | J23: 0 | K23: =IFERROR(I23/I$34,"") -> 0.1153220353 | L23: =IFERROR(L$34*K23,"") -> -11805.85548 | M23: 0 | N23: kwh | O23: =IFERROR(IF(J23=0,ROUND(M23,4)*I23,ROUND(M23,4)*J23),"") -> 0 | P23: =IFERROR(L23-O23,"") -> -11805.85548 | U23: -3.424111962e-05 | V23: =N23 -> kwh
B24: ='4. Billing Det. for Def-Var'!B19 -> GENERAL SERVICE 50 to 699 KW SERVICE CLASSIFICATION | C24: ='4. Billing Det. for Def-Var'!D19-'4. Billing Det. for Def-Var'!H19 -> 1128149970 | D24: ='4. Billing Det. for Def-Var'!E19-'4. Billing Det. for Def-Var'!I19 -> 3159283.484 | E24: =SUM(IF('6. Class A Consumption Data'!$D$186:$D$335=$B24,'6. Class A Consumption Data'!E$186:E$335)) -> 27942965.16 | F24: =SUM(IF('6. Class A Consumption Data'!$D$186:$D$335=$B24,'6. Class A Consumption Data'!H$186:H$335)) -> 82125.61231 | G24: =SUM(IF('6. Class A Consumption Data'!$D$29:$D$178=$B24,'6. Class A Consumption Data'!E$29:F$178)) -> 28356209.98 | H24: =SUM(IF('6. Class A Consumption Data'!$D$29:$D$178=$B24,'6. Class A Consumption Data'!H$29:I$178)) -> 81870.04237 | I24: 1071850795 | J24: 2995288 | K24: 0.3585065768 | L24: -36701.37129 | M24: 0 | N24: kW | O24: 0 | P24: -36701.37129 | U24: -0.01225303586 | V24: kW
B25: ='4. Billing Det. for Def-Var'!B20 -> GENERAL SERVICE 700 to 4,999 KW SERVICE CLASSIFICATION | C25: ='4. Billing Det. for Def-Var'!D20-'4. Billing Det. for Def-Var'!H20 -> 811028856.5 | D25: ='4. Billing Det. for Def-Var'!E20-'4. Billing Det. for Def-Var'!I20 -> 1915077.39 | E25: =SUM(IF('6. Class A Consumption Data'!$D$186:$D$335=$B25,'6. Class A Consumption Data'!E$186:E$335)) -> 580017662.7 | F25: =SUM(IF('6. Class A Consumption Data'!$D$186:$D$335=$B25,'6. Class A Consumption Data'!H$186:H$335)) -> 1297763.403 | G25: =SUM(IF('6. Class A Consumption Data'!$D$29:$D$178=$B25,'6. Class A Consumption Data'!E$29:F$178)) -> 87570816.83 | H25: =SUM(IF('6. Class A Consumption Data'!$D$29:$D$178=$B25,'6. Class A Consumption Data'!H$29:I$178)) -> 201351.4302 | I25: 143440377 | J25: 415963 | K25: 0.04797712403 | L25: -4911.559107 | M25: 0 | N25: kW | O25: 0 | P25: -4911.559107 | U25: -0.01180768267 | V25: kW
B26: ='4. Billing Det. for Def-Var'!B21 -> LARGE USE SERVICE CLASSIFICATION | C26: ='4. Billing Det. for Def-Var'!D21-'4. Billing Det. for Def-Var'!H21 -> 350379704.8 | D26: ='4. Billing Det. for Def-Var'!E21-'4. Billing Det. for Def-Var'!I21 -> 657857.0874 | E26: =SUM(IF('6. Class A Consumption Data'!$D$186:$D$335=$B26,'6. Class A Consumption Data'!E$186:E$335)) -> 350379704.8 | F26: =SUM(IF('6. Class A Consumption Data'!$D$186:$D$335=$B26,'6. Class A Consumption Data'!H$186:H$335)) -> 657857.0829 | G26: =SUM(IF('6. Class A Consumption Data'!$D$29:$D$178=$B26,'6. Class A Consumption Data'!E$29:F$178)) -> 0 | H26: =SUM(IF('6. Class A Consumption Data'!$D$29:$D$178=$B26,'6. Class A Consumption Data'!H$29:I$178)) -> 0 | I26: 0 | J26: 0 | K26: 0 | L26: 0 | M26: 0 | N26: kW | O26: 0 | P26: 0 | V26: kW
B27: ='4. Billing Det. for Def-Var'!B22 -> STANDBY POWER SERVICE CLASSIFICATION | C27: ='4. Billing Det. for Def-Var'!D22-'4. Billing Det. for Def-Var'!H22 -> 0 | D27: ='4. Billing Det. for Def-Var'!E22-'4. Billing Det. for Def-Var'!I22 -> 0 | E27: =SUM(IF('6. Class A Consumption Data'!$D$186:$D$335=$B27,'6. Class A Consumption Data'!E$186:E$335)) -> 0 | F27: =SUM(IF('6. Class A Consumption Data'!$D$186:$D$335=$B27,'6. Class A Consumption Data'!H$186:H$335)) -> 0 | G27: =SUM(IF('6. Class A Consumption Data'!$D$29:$D$178=$B27,'6. Class A Consumption Data'!E$29:F$178)) -> 0 | H27: =SUM(IF('6. Class A Consumption Data'!$D$29:$D$178=$B27,'6. Class A Consumption Data'!H$29:I$178)) -> 0 | I27: 0 | J27: 0 | K27: 0 | L27: 0 | M27: 0 | N27: kW | O27: 0 | P27: 0 | V27: kW
B28: ='4. Billing Det. for Def-Var'!B23 -> UNMETERED SCATTERED LOAD SERVICE CLASSIFICATION | C28: ='4. Billing Det. for Def-Var'!D23-'4. Billing Det. for Def-Var'!H23 -> 5914654.047 | D28: ='4. Billing Det. for Def-Var'!E23-'4. Billing Det. for Def-Var'!I23 -> 0 | E28: =SUM(IF('6. Class A Consumption Data'!$D$186:$D$335=$B28,'6. Class A Consumption Data'!E$186:E$335)) -> 0 | F28: =SUM(IF('6. Class A Consumption Data'!$D$186:$D$335=$B28,'6. Class A Consumption Data'!H$186:H$335)) -> 0 | G28: =SUM(IF('6. Class A Consumption Data'!$D$29:$D$178=$B28,'6. Class A Consumption Data'!E$29:F$178)) -> 0 | H28: =SUM(IF('6. Class A Consumption Data'!$D$29:$D$178=$B28,'6. Class A Consumption Data'!H$29:I$178)) -> 0 | I28: 5914654 | J28: 0 | K28: 0.001978299936 | L28: -202.5243751 | M28: =IF(U$18="TRUE",0,ROUND(U28,4)) -> 0 | N28: kwh | O28: 0 | P28: -202.5243751 | U28: -3.424111962e-05 | V28: kwh
B29: ='4. Billing Det. for Def-Var'!B24 -> STREET LIGHTING SERVICE CLASSIFICATION | C29: ='4. Billing Det. for Def-Var'!D24-'4. Billing Det. for Def-Var'!H24 -> 34968320.88 | D29: ='4. Billing Det. for Def-Var'!E24-'4. Billing Det. for Def-Var'!I24 -> 98841.90329 | E29: =SUM(IF('6. Class A Consumption Data'!$D$186:$D$335=$B29,'6. Class A Consumption Data'!E$186:E$335)) -> 0 | F29: =SUM(IF('6. Class A Consumption Data'!$D$186:$D$335=$B29,'6. Class A Consumption Data'!H$186:H$335)) -> 0 | G29: =SUM(IF('6. Class A Consumption Data'!$D$29:$D$178=$B29,'6. Class A Consumption Data'!E$29:F$178)) -> 0 | H29: =SUM(IF('6. Class A Consumption Data'!$D$29:$D$178=$B29,'6. Class A Consumption Data'!H$29:I$178)) -> 0 | I29: 34968321 | J29: 98842 | K29: 0.01169600575 | L29: -1197.354462 | M29: 0 | N29: kW | O29: 0 | P29: -1197.354462 | U29: -0.01211382269 | V29: kW
B30: ='4. Billing Det. for Def-Var'!B25 -> EMBEDDED DISTRIBUTOR SERVICE CLASSIFICATION | C30: ='4. Billing Det. for Def-Var'!D25-'4. Billing Det. for Def-Var'!H25 -> 3402773.373 | D30: ='4. Billing Det. for Def-Var'!E25-'4. Billing Det. for Def-Var'!I25 -> 0 | E30: =SUM(IF('6. Class A Consumption Data'!$D$186:$D$335=$B30,'6. Class A Consumption Data'!E$186:E$335)) -> 0 | F30: =SUM(IF('6. Class A Consumption Data'!$D$186:$D$335=$B30,'6. Class A Consumption Data'!H$186:H$335)) -> 0 | G30: =SUM(IF('6. Class A Consumption Data'!$D$29:$D$178=$B30,'6. Class A Consumption Data'!E$29:F$178)) -> 0 | H30: =SUM(IF('6. Class A Consumption Data'!$D$29:$D$178=$B30,'6. Class A Consumption Data'!H$29:I$178)) -> 0 | I30: =ROUND(C30-E30-G30,0) -> 3402773 | J30: =ROUND(D30-F30-H30,0) -> 0 | K30: =IFERROR(I30/I$34,"") -> 0.00113814022 | L30: =IFERROR(L$34*K30,"") -> -116.5147573 | M30: 0 | N30: kWh | O30: 0 | P30: -116.5147573 | U30: -3.424111962e-05 | V30: kWh
B31: ='4. Billing Det. for Def-Var'!B26 -> DISTRIBUTED GENERATION [DGEN] SERVICE CLASSIFICATION | C31: ='4. Billing Det. for Def-Var'!D26-'4. Billing Det. for Def-Var'!H26 -> 277418.1656 | D31: ='4. Billing Det. for Def-Var'!E26-'4. Billing Det. for Def-Var'!I26 -> 0 | E31: =SUM(IF('6. Class A Consumption Data'!$D$186:$D$335=$B31,'6. Class A Consumption Data'!E$186:E$335)) -> 0 | F31: =SUM(IF('6. Class A Consumption Data'!$D$186:$D$335=$B31,'6. Class A Consumption Data'!H$186:H$335)) -> 0 | G31: =SUM(IF('6. Class A Consumption Data'!$D$29:$D$178=$B31,'6. Class A Consumption Data'!E$29:F$178)) -> 0 | H31: =SUM(IF('6. Class A Consumption Data'!$D$29:$D$178=$B31,'6. Class A Consumption Data'!H$29:I$178)) -> 0 | I31: 277418 | J31: 0 | K31: 9.278919976e-05 | L31: -9.499102923 | M31: 0 | N31: kWh | O31: 0 | P31: -9.499102923 | U31: -3.424111962e-05 | V31: kWh
B32: ='4. Billing Det. for Def-Var'!B27 -> ENERGY FROM WASTE SERVICE CLASSIFICATION | C32: ='4. Billing Det. for Def-Var'!D27-'4. Billing Det. for Def-Var'!H27 -> 0 | D32: ='4. Billing Det. for Def-Var'!E27-'4. Billing Det. for Def-Var'!I27 -> 0 | E32: =SUM(IF('6. Class A Consumption Data'!$D$186:$D$335=$B32,'6. Class A Consumption Data'!E$186:E$335)) -> 0 | F32: =SUM(IF('6. Class A Consumption Data'!$D$186:$D$335=$B32,'6. Class A Consumption Data'!H$186:H$335)) -> 0 | G32: =SUM(IF('6. Class A Consumption Data'!$D$29:$D$178=$B32,'6. Class A Consumption Data'!E$29:F$178)) -> 0 | H32: =SUM(IF('6. Class A Consumption Data'!$D$29:$D$178=$B32,'6. Class A Consumption Data'!H$29:I$178)) -> 0 | I32: 0 | J32: 0 | K32: 0 | L32: 0 | M32: 0 | N32: kW | O32: 0 | P32: 0 | U32: =IFERROR(IF($J32=0,$L32/$I32,$L32/$J32),"") ->  | V32: kW
C34: =SUM(C22:C33) -> 4064033418 | D34: =SUM(D22:D33) -> 5831059.864 | E34: 958340332.7 | F34: 2037746.098 | G34: 115927026.8 | H34: 283221.4725 | I34: 2989766058 | J34: 3510093 | K34: 1 | L34: ='6.2a CBR B_Allocation'!D27 -> -102372.9372 | O34: =SUM(O22:O33) -> 0 | P34: =SUM(P22:P33) -> -102372.9372
L35: from Sheet 6.2a

Sheet 8. Calculation of Def-Var RR
A1: Back to Index
B2: =+'1. Information Sheet'!B2 -> INCENTIVE REGULATION MODEL FOR 2020 FILERS
B11: IInput required at cells D14 and D15. This workshseet calculates rate riders related to the Deferral/Variance Account Disposition (if applicable) and rate riders for Account 1568. Rate Riders will not be generated for the microFIT class.
B13: Default Rate Rider Recovery Period (in months) | D13: 12
B14: DVA Proposed Rate Rider Recovery Period (in months) | D14: 12 | E14: =IF(D14>0, "Rate Rider Recovery to be used below", "If no rate rider recovery period is proposed then the default recovery period of 12 months will be used") -> Rate Rider Recovery to be used below
B15: LRAM Proposed Rate Rider Recovery Period (in months) | D15: 12 | E15: =IF(D15>0, "Rate Rider Recovery to be used below", "If no rate rider recovery period is proposed then the default recovery period of 12 months will be used") -> Rate Rider Recovery to be used below
D17: Total Metered kWh | E17: Metered kW or kVA | F17: Total Metered kWh less WMP consumption | G17: Total Metered kW less WMP consumption | H17: Allocation of Group 1 Account Balances to All Classes 2 | I17: Allocation of Group 1 Account Balances to Non-WMP Classes Only (if Applicable) 2 | J17: Deferral/Variance Account Rate Rider 2 | K17: Deferral/Variance Account Rate Rider for Non-WMP (if applicable) 2 | L17: Account 1568 Rate Rider
B18: Rate Class | C18: Unit | M18: Revenue Reconciliation: | O18: Revenue Reconcilation 1
B19: ='4. Billing Det. for Def-Var'!B17 -> RESIDENTIAL SERVICE CLASSIFICATION | C19: ='4. Billing Det. for Def-Var'!C17 -> kWh | D19: ='4. Billing Det. for Def-Var'!D17 -> 1385125813 | E19: ='4. Billing Det. for Def-Var'!E17 -> 0 | F19: ='4. Billing Det. for Def-Var'!J17 -> 1385125813 | G19: ='4. Billing Det. for Def-Var'!K17 -> 0 | H19: =IFERROR(SUM('5. Allocating Def-Var Balances'!G16:Y16)-I19,"") -> 62275.9597 | I19: =IFERROR(IF('4. Billing Det. for Def-Var'!H17=0,0,'5. Allocating Def-Var Balances'!I16+'5. Allocating Def-Var Balances'!N16),"") -> 0 | J19: =IF('4. Billing Det. for Def-Var'!$D$37="no",0,ROUND(IF(C19="kWh",IF(ISERROR(H19/D19),0,IF(OR(ISBLANK(D$14),OR(D$14=0,D$14="")),H19/D19/(D$13/12),H19/D19/(D$14/12))),IF(ISERROR(H19/E19),0,IF(OR(ISBLANK(D$14),OR(D$14=0,D$14="")),H19/E19/(D$13/12),H19/E19/(D$14/12)))),4)) -> 0 | K19: =IF('4. Billing Det. for Def-Var'!$D$37="no",0,ROUND(IF(C19="kWh",IF(ISERROR(I19/F19),0,IF(OR(ISBLANK(D$14),OR(D$14=0,D$14="")),I19/F19/(D$13/12),I19/F19/(D$14/12))),IF(ISERROR(I19/G19),0,IF(OR(ISBLANK(D$14),OR(D$14=0,D$14="")),I19/G19/(D$13/12),I19/G19/(D$14/12)))),4)) -> 0 | L19: =IF(C19="kWh",ROUND(IF(ISERROR('4. Billing Det. for Def-Var'!W17/D19), 0, IF(OR(ISBLANK(D$15), OR(D$15=0, D$15="")), ('4. Billing Det. for Def-Var'!W17/D19)/(D$13/12), ('4. Billing Det. for Def-Var'!W17/D19)/(D$15/12))),4),ROUND(IF(ISERROR('4. Billing Det. for Def-Var'!W17/E19), 0, IF(OR(ISBLANK(D$15), OR(D$15=0, D$15="")), ('4. Billing Det. for Def-Var'!W17/E19)/(D$13/12), ('4. Billing Det. for Def-Var'!W17/E19)/(D$15/12))),4)) -> 0.0003 | M19: =IF(C19="kWh",J19*D19,E19*J19) -> 0 | N19: =K19*F19 -> 0
B20: ='4. Billing Det. for Def-Var'!B18 -> GENERAL SERVICE LESS THAN 50 kW SERVICE CLASSIFICATION | C20: ='4. Billing Det. for Def-Var'!C18 -> kWh | D20: ='4. Billing Det. for Def-Var'!D18 -> 344785906.8 | E20: ='4. Billing Det. for Def-Var'!E18 -> 0 | F20: ='4. Billing Det. for Def-Var'!J18 -> 344785906.8 | G20: ='4. Billing Det. for Def-Var'!K18 -> 0 | H20: =IFERROR(SUM('5. Allocating Def-Var Balances'!G17:Y17)-I20,"") -> 39524.01157 | I20: =IFERROR(IF('4. Billing Det. for Def-Var'!H18=0,0,'5. Allocating Def-Var Balances'!I17+'5. Allocating Def-Var Balances'!N17),"") -> 0 | J20: =IF('4. Billing Det. for Def-Var'!$D$37="no",0,ROUND(IF(C20="kWh",IF(ISERROR(H20/D20),0,IF(OR(ISBLANK(D$14),OR(D$14=0,D$14="")),H20/D20/(D$13/12),H20/D20/(D$14/12))),IF(ISERROR(H20/E20),0,IF(OR(ISBLANK(D$14),OR(D$14=0,D$14="")),H20/E20/(D$13/12),H20/E20/(D$14/12)))),4)) -> 0 | K20: =IF('4. Billing Det. for Def-Var'!$D$37="no",0,ROUND(IF(C20="kWh",IF(ISERROR(I20/F20),0,IF(OR(ISBLANK(D$14),OR(D$14=0,D$14="")),I20/F20/(D$13/12),I20/F20/(D$14/12))),IF(ISERROR(I20/G20),0,IF(OR(ISBLANK(D$14),OR(D$14=0,D$14="")),I20/G20/(D$13/12),I20/G20/(D$14/12)))),4)) -> 0 | L20: =IF(C20="kWh",ROUND(IF(ISERROR('4. Billing Det. for Def-Var'!W18/D20), 0, IF(OR(ISBLANK(D$15), OR(D$15=0, D$15="")), ('4. Billing Det. for Def-Var'!W18/D20)/(D$13/12), ('4. Billing Det. for Def-Var'!W18/D20)/(D$15/12))),4),ROUND(IF(ISERROR('4. Billing Det. for Def-Var'!W18/E20), 0, IF(OR(ISBLANK(D$15), OR(D$15=0, D$15="")), ('4. Billing Det. for Def-Var'!W18/E20)/(D$13/12), ('4. Billing Det. for Def-Var'!W18/E20)/(D$15/12))),4)) -> 0.0009 | M20: =IF(C20="kWh",J20*D20,E20*J20) -> 0 | N20: =K20*F20 -> 0
B21: ='4. Billing Det. for Def-Var'!B19 -> GENERAL SERVICE 50 to 699 KW SERVICE CLASSIFICATION | C21: ='4. Billing Det. for Def-Var'!C19 -> kW | D21: ='4. Billing Det. for Def-Var'!D19 -> 1131688196 | E21: ='4. Billing Det. for Def-Var'!E19 -> 3179602.842 | F21: ='4. Billing Det. for Def-Var'!J19 -> 1128149970 | G21: ='4. Billing Det. for Def-Var'!K19 -> 3159283.484 | H21: =IFERROR(SUM('5. Allocating Def-Var Balances'!G18:Y18)-I21,"") -> 522997.483 | I21: =IFERROR(IF('4. Billing Det. for Def-Var'!H19=0,0,'5. Allocating Def-Var Balances'!I18+'5. Allocating Def-Var Balances'!N18),"") -> -367052.8365 | J21: =IF('4. Billing Det. for Def-Var'!$D$37="no",0,ROUND(IF(C21="kWh",IF(ISERROR(H21/D21),0,IF(OR(ISBLANK(D$14),OR(D$14=0,D$14="")),H21/D21/(D$13/12),H21/D21/(D$14/12))),IF(ISERROR(H21/E21),0,IF(OR(ISBLANK(D$14),OR(D$14=0,D$14="")),H21/E21/(D$13/12),H21/E21/(D$14/12)))),4)) -> 0 | K21: =IF('4. Billing Det. for Def-Var'!$D$37="no",0,ROUND(IF(C21="kWh",IF(ISERROR(I21/F21),0,IF(OR(ISBLANK(D$14),OR(D$14=0,D$14="")),I21/F21/(D$13/12),I21/F21/(D$14/12))),IF(ISERROR(I21/G21),0,IF(OR(ISBLANK(D$14),OR(D$14=0,D$14="")),I21/G21/(D$13/12),I21/G21/(D$14/12)))),4)) -> 0 | L21: =IF(C21="kWh",ROUND(IF(ISERROR('4. Billing Det. for Def-Var'!W19/D21), 0, IF(OR(ISBLANK(D$15), OR(D$15=0, D$15="")), ('4. Billing Det. for Def-Var'!W19/D21)/(D$13/12), ('4. Billing Det. for Def-Var'!W19/D21)/(D$15/12))),4),ROUND(IF(ISERROR('4. Billing Det. for Def-Var'!W19/E21), 0, IF(OR(ISBLANK(D$15), OR(D$15=0, D$15="")), ('4. Billing Det. for Def-Var'!W19/E21)/(D$13/12), ('4. Billing Det. for Def-Var'!W19/E21)/(D$15/12))),4)) -> 0.0511 | M21: =IF(C21="kWh",J21*D21,E21*J21) -> 0 | N21: =K21*G21 -> 0
B22: ='4. Billing Det. for Def-Var'!B20 -> GENERAL SERVICE 700 to 4,999 KW SERVICE CLASSIFICATION | C22: ='4. Billing Det. for Def-Var'!C20 -> kW | D22: ='4. Billing Det. for Def-Var'!D20 -> 875091030.3 | E22: ='4. Billing Det. for Def-Var'!E20 -> 2020563.238 | F22: ='4. Billing Det. for Def-Var'!J20 -> 811028856.5 | G22: ='4. Billing Det. for Def-Var'!K20 -> 1915077.39 | H22: =IFERROR(SUM('5. Allocating Def-Var Balances'!G19:Y19)-I22,"") -> 405032.1282 | I22: =IFERROR(IF('4. Billing Det. for Def-Var'!H20=0,0,'5. Allocating Def-Var Balances'!I19+'5. Allocating Def-Var Balances'!N19),"") -> -263874.8837 | J22: =IF('4. Billing Det. for Def-Var'!$D$37="no",0,ROUND(IF(C22="kWh",IF(ISERROR(H22/D22),0,IF(OR(ISBLANK(D$14),OR(D$14=0,D$14="")),H22/D22/(D$13/12),H22/D22/(D$14/12))),IF(ISERROR(H22/E22),0,IF(OR(ISBLANK(D$14),OR(D$14=0,D$14="")),H22/E22/(D$13/12),H22/E22/(D$14/12)))),4)) -> 0 | K22: =IF('4. Billing Det. for Def-Var'!$D$37="no",0,ROUND(IF(C22="kWh",IF(ISERROR(I22/F22),0,IF(OR(ISBLANK(D$14),OR(D$14=0,D$14="")),I22/F22/(D$13/12),I22/F22/(D$14/12))),IF(ISERROR(I22/G22),0,IF(OR(ISBLANK(D$14),OR(D$14=0,D$14="")),I22/G22/(D$13/12),I22/G22/(D$14/12)))),4)) -> 0 | L22: =IF(C22="kWh",ROUND(IF(ISERROR('4. Billing Det. for Def-Var'!W20/D22), 0, IF(OR(ISBLANK(D$15), OR(D$15=0, D$15="")), ('4. Billing Det. for Def-Var'!W20/D22)/(D$13/12), ('4. Billing Det. for Def-Var'!W20/D22)/(D$15/12))),4),ROUND(IF(ISERROR('4. Billing Det. for Def-Var'!W20/E22), 0, IF(OR(ISBLANK(D$15), OR(D$15=0, D$15="")), ('4. Billing Det. for Def-Var'!W20/E22)/(D$13/12), ('4. Billing Det. for Def-Var'!W20/E22)/(D$15/12))),4)) -> 0.0446 | M22: 0 | N22: =K22*G22 -> 0
B23: ='4. Billing Det. for Def-Var'!B21 -> LARGE USE SERVICE CLASSIFICATION | C23: ='4. Billing Det. for Def-Var'!C21 -> kW | D23: ='4. Billing Det. for Def-Var'!D21 -> 350379704.8 | E23: ='4. Billing Det. for Def-Var'!E21 -> 657857.0874 | F23: ='4. Billing Det. for Def-Var'!J21 -> 350379704.8 | G23: ='4. Billing Det. for Def-Var'!K21 -> 657857.0874 | H23: =IFERROR(SUM('5. Allocating Def-Var Balances'!G20:Y20)-I23,"") -> 48553.81507 | I23: =IFERROR(IF('4. Billing Det. for Def-Var'!H21=0,0,'5. Allocating Def-Var Balances'!I20+'5. Allocating Def-Var Balances'!N20),"") -> 0 | J23: =IF('4. Billing Det. for Def-Var'!$D$37="no",0,ROUND(IF(C23="kWh",IF(ISERROR(H23/D23),0,IF(OR(ISBLANK(D$14),OR(D$14=0,D$14="")),H23/D23/(D$13/12),H23/D23/(D$14/12))),IF(ISERROR(H23/E23),0,IF(OR(ISBLANK(D$14),OR(D$14=0,D$14="")),H23/E23/(D$13/12),H23/E23/(D$14/12)))),4)) -> 0 | K23: =IF('4. Billing Det. for Def-Var'!$D$37="no",0,ROUND(IF(C23="kWh",IF(ISERROR(I23/F23),0,IF(OR(ISBLANK(D$14),OR(D$14=0,D$14="")),I23/F23/(D$13/12),I23/F23/(D$14/12))),IF(ISERROR(I23/G23),0,IF(OR(ISBLANK(D$14),OR(D$14=0,D$14="")),I23/G23/(D$13/12),I23/G23/(D$14/12)))),4)) -> 0 | L23: =IF(C23="kWh",ROUND(IF(ISERROR('4. Billing Det. for Def-Var'!W21/D23), 0, IF(OR(ISBLANK(D$15), OR(D$15=0, D$15="")), ('4. Billing Det. for Def-Var'!W21/D23)/(D$13/12), ('4. Billing Det. for Def-Var'!W21/D23)/(D$15/12))),4),ROUND(IF(ISERROR('4. Billing Det. for Def-Var'!W21/E23), 0, IF(OR(ISBLANK(D$15), OR(D$15=0, D$15="")), ('4. Billing Det. for Def-Var'!W21/E23)/(D$13/12), ('4. Billing Det. for Def-Var'!W21/E23)/(D$15/12))),4)) -> 0.0584 | M23: 0 | N23: 0
B24: ='4. Billing Det. for Def-Var'!B22 -> STANDBY POWER SERVICE CLASSIFICATION | C24: ='4. Billing Det. for Def-Var'!C22 -> kW | D24: ='4. Billing Det. for Def-Var'!D22 -> 0 | E24: ='4. Billing Det. for Def-Var'!E22 -> 0 | F24: ='4. Billing Det. for Def-Var'!J22 -> 0 | G24: ='4. Billing Det. for Def-Var'!K22 -> 0 | H24: =IFERROR(SUM('5. Allocating Def-Var Balances'!G21:Y21)-I24,"") -> 0 | I24: =IFERROR(IF('4. Billing Det. for Def-Var'!H22=0,0,'5. Allocating Def-Var Balances'!I21+'5. Allocating Def-Var Balances'!N21),"") -> 0 | J24: =IF('4. Billing Det. for Def-Var'!$D$37="no",0,ROUND(IF(C24="kWh",IF(ISERROR(H24/D24),0,IF(OR(ISBLANK(D$14),OR(D$14=0,D$14="")),H24/D24/(D$13/12),H24/D24/(D$14/12))),IF(ISERROR(H24/E24),0,IF(OR(ISBLANK(D$14),OR(D$14=0,D$14="")),H24/E24/(D$13/12),H24/E24/(D$14/12)))),4)) -> 0 | K24: =IF('4. Billing Det. for Def-Var'!$D$37="no",0,ROUND(IF(C24="kWh",IF(ISERROR(I24/F24),0,IF(OR(ISBLANK(D$14),OR(D$14=0,D$14="")),I24/F24/(D$13/12),I24/F24/(D$14/12))),IF(ISERROR(I24/G24),0,IF(OR(ISBLANK(D$14),OR(D$14=0,D$14="")),I24/G24/(D$13/12),I24/G24/(D$14/12)))),4)) -> 0 | L24: =IF(C24="kWh",ROUND(IF(ISERROR('4. Billing Det. for Def-Var'!W22/D24), 0, IF(OR(ISBLANK(D$15), OR(D$15=0, D$15="")), ('4. Billing Det. for Def-Var'!W22/D24)/(D$13/12), ('4. Billing Det. for Def-Var'!W22/D24)/(D$15/12))),4),ROUND(IF(ISERROR('4. Billing Det. for Def-Var'!W22/E24), 0, IF(OR(ISBLANK(D$15), OR(D$15=0, D$15="")), ('4. Billing Det. for Def-Var'!W22/E24)/(D$13/12), ('4. Billing Det. for Def-Var'!W22/E24)/(D$15/12))),4)) -> 0 | M24: 0 | N24: 0
B25: ='4. Billing Det. for Def-Var'!B23 -> UNMETERED SCATTERED LOAD SERVICE CLASSIFICATION | C25: ='4. Billing Det. for Def-Var'!C23 -> kWh | D25: ='4. Billing Det. for Def-Var'!D23 -> 5914654.047 | E25: ='4. Billing Det. for Def-Var'!E23 -> 0 | F25: ='4. Billing Det. for Def-Var'!J23 -> 5914654.047 | G25: ='4. Billing Det. for Def-Var'!K23 -> 0 | H25: =IFERROR(SUM('5. Allocating Def-Var Balances'!G22:Y22)-I25,"") -> 798.8349494 | I25: =IFERROR(IF('4. Billing Det. for Def-Var'!H23=0,0,'5. Allocating Def-Var Balances'!I22+'5. Allocating Def-Var Balances'!N22),"") -> 0 | J25: =IF('4. Billing Det. for Def-Var'!$D$37="no",0,ROUND(IF(C25="kWh",IF(ISERROR(H25/D25),0,IF(OR(ISBLANK(D$14),OR(D$14=0,D$14="")),H25/D25/(D$13/12),H25/D25/(D$14/12))),IF(ISERROR(H25/E25),0,IF(OR(ISBLANK(D$14),OR(D$14=0,D$14="")),H25/E25/(D$13/12),H25/E25/(D$14/12)))),4)) -> 0 | K25: =IF('4. Billing Det. for Def-Var'!$D$37="no",0,ROUND(IF(C25="kWh",IF(ISERROR(I25/F25),0,IF(OR(ISBLANK(D$14),OR(D$14=0,D$14="")),I25/F25/(D$13/12),I25/F25/(D$14/12))),IF(ISERROR(I25/G25),0,IF(OR(ISBLANK(D$14),OR(D$14=0,D$14="")),I25/G25/(D$13/12),I25/G25/(D$14/12)))),4)) -> 0 | L25: =IF(C25="kWh",ROUND(IF(ISERROR('4. Billing Det. for Def-Var'!W23/D25), 0, IF(OR(ISBLANK(D$15), OR(D$15=0, D$15="")), ('4. Billing Det. for Def-Var'!W23/D25)/(D$13/12), ('4. Billing Det. for Def-Var'!W23/D25)/(D$15/12))),4),ROUND(IF(ISERROR('4. Billing Det. for Def-Var'!W23/E25), 0, IF(OR(ISBLANK(D$15), OR(D$15=0, D$15="")), ('4. Billing Det. for Def-Var'!W23/E25)/(D$13/12), ('4. Billing Det. for Def-Var'!W23/E25)/(D$15/12))),4)) -> 0 | M25: =IF(C25="kWh",J25*D25,E25*J25) -> 0 | N25: 0
B26: ='4. Billing Det. for Def-Var'!B24 -> STREET LIGHTING SERVICE CLASSIFICATION | C26: ='4. Billing Det. for Def-Var'!C24 -> kW | D26: ='4. Billing Det. for Def-Var'!D24 -> 34968320.88 | E26: ='4. Billing Det. for Def-Var'!E24 -> 98841.90329 | F26: ='4. Billing Det. for Def-Var'!J24 -> 34968320.88 | G26: ='4. Billing Det. for Def-Var'!K24 -> 98841.90329 | H26: =IFERROR(SUM('5. Allocating Def-Var Balances'!G23:Y23)-I26,"") -> 4776.460992 | I26: =IFERROR(IF('4. Billing Det. for Def-Var'!H24=0,0,'5. Allocating Def-Var Balances'!I23+'5. Allocating Def-Var Balances'!N23),"") -> 0 | J26: =IF('4. Billing Det. for Def-Var'!$D$37="no",0,ROUND(IF(C26="kWh",IF(ISERROR(H26/D26),0,IF(OR(ISBLANK(D$14),OR(D$14=0,D$14="")),H26/D26/(D$13/12),H26/D26/(D$14/12))),IF(ISERROR(H26/E26),0,IF(OR(ISBLANK(D$14),OR(D$14=0,D$14="")),H26/E26/(D$13/12),H26/E26/(D$14/12)))),4)) -> 0 | K26: =IF('4. Billing Det. for Def-Var'!$D$37="no",0,ROUND(IF(C26="kWh",IF(ISERROR(I26/F26),0,IF(OR(ISBLANK(D$14),OR(D$14=0,D$14="")),I26/F26/(D$13/12),I26/F26/(D$14/12))),IF(ISERROR(I26/G26),0,IF(OR(ISBLANK(D$14),OR(D$14=0,D$14="")),I26/G26/(D$13/12),I26/G26/(D$14/12)))),4)) -> 0 | L26: =IF(C26="kWh",ROUND(IF(ISERROR('4. Billing Det. for Def-Var'!W24/D26), 0, IF(OR(ISBLANK(D$15), OR(D$15=0, D$15="")), ('4. Billing Det. for Def-Var'!W24/D26)/(D$13/12), ('4. Billing Det. for Def-Var'!W24/D26)/(D$15/12))),4),ROUND(IF(ISERROR('4. Billing Det. for Def-Var'!W24/E26), 0, IF(OR(ISBLANK(D$15), OR(D$15=0, D$15="")), ('4. Billing Det. for Def-Var'!W24/E26)/(D$13/12), ('4. Billing Det. for Def-Var'!W24/E26)/(D$15/12))),4)) -> 0 | M26: 0 | N26: 0
B27: ='4. Billing Det. for Def-Var'!B25 -> EMBEDDED DISTRIBUTOR SERVICE CLASSIFICATION | C27: ='4. Billing Det. for Def-Var'!C25 -> kWh | D27: ='4. Billing Det. for Def-Var'!D25 -> 3402773.373 | E27: ='4. Billing Det. for Def-Var'!E25 -> 0 | F27: ='4. Billing Det. for Def-Var'!J25 -> 3402773.373 | G27: ='4. Billing Det. for Def-Var'!K25 -> 0 | H27: =IFERROR(SUM('5. Allocating Def-Var Balances'!G24:Y24)-I27,"") -> 598.5102011 | I27: =IFERROR(IF('4. Billing Det. for Def-Var'!H25=0,0,'5. Allocating Def-Var Balances'!I24+'5. Allocating Def-Var Balances'!N24),"") -> 0 | J27: =IF('4. Billing Det. for Def-Var'!$D$37="no",0,ROUND(IF(C27="kWh",IF(ISERROR(H27/D27),0,IF(OR(ISBLANK(D$14),OR(D$14=0,D$14="")),H27/D27/(D$13/12),H27/D27/(D$14/12))),IF(ISERROR(H27/E27),0,IF(OR(ISBLANK(D$14),OR(D$14=0,D$14="")),H27/E27/(D$13/12),H27/E27/(D$14/12)))),4)) -> 0 | K27: =IF('4. Billing Det. for Def-Var'!$D$37="no",0,ROUND(IF(C27="kWh",IF(ISERROR(I27/F27),0,IF(OR(ISBLANK(D$14),OR(D$14=0,D$14="")),I27/F27/(D$13/12),I27/F27/(D$14/12))),IF(ISERROR(I27/G27),0,IF(OR(ISBLANK(D$14),OR(D$14=0,D$14="")),I27/G27/(D$13/12),I27/G27/(D$14/12)))),4)) -> 0 | L27: =IF(C27="kWh",ROUND(IF(ISERROR('4. Billing Det. for Def-Var'!W25/D27), 0, IF(OR(ISBLANK(D$15), OR(D$15=0, D$15="")), ('4. Billing Det. for Def-Var'!W25/D27)/(D$13/12), ('4. Billing Det. for Def-Var'!W25/D27)/(D$15/12))),4),ROUND(IF(ISERROR('4. Billing Det. for Def-Var'!W25/E27), 0, IF(OR(ISBLANK(D$15), OR(D$15=0, D$15="")), ('4. Billing Det. for Def-Var'!W25/E27)/(D$13/12), ('4. Billing Det. for Def-Var'!W25/E27)/(D$15/12))),4)) -> 0 | M27: 0 | N27: =K27*G27 -> 0
B28: ='4. Billing Det. for Def-Var'!B26 -> DISTRIBUTED GENERATION [DGEN] SERVICE CLASSIFICATION | C28: ='4. Billing Det. for Def-Var'!C26 -> kWh | D28: ='4. Billing Det. for Def-Var'!D26 -> 277418.1656 | E28: ='4. Billing Det. for Def-Var'!E26 -> 0 | F28: ='4. Billing Det. for Def-Var'!J26 -> 277418.1656 | G28: ='4. Billing Det. for Def-Var'!K26 -> 0 | H28: =IFERROR(SUM('5. Allocating Def-Var Balances'!G25:Y25)-I28,"") -> 32.10800122 | I28: =IFERROR(IF('4. Billing Det. for Def-Var'!H26=0,0,'5. Allocating Def-Var Balances'!I25+'5. Allocating Def-Var Balances'!N25),"") -> 0 | J28: =IF('4. Billing Det. for Def-Var'!$D$37="no",0,ROUND(IF(C28="kWh",IF(ISERROR(H28/D28),0,IF(OR(ISBLANK(D$14),OR(D$14=0,D$14="")),H28/D28/(D$13/12),H28/D28/(D$14/12))),IF(ISERROR(H28/E28),0,IF(OR(ISBLANK(D$14),OR(D$14=0,D$14="")),H28/E28/(D$13/12),H28/E28/(D$14/12)))),4)) -> 0 | K28: =IF('4. Billing Det. for Def-Var'!$D$37="no",0,ROUND(IF(C28="kWh",IF(ISERROR(I28/F28),0,IF(OR(ISBLANK(D$14),OR(D$14=0,D$14="")),I28/F28/(D$13/12),I28/F28/(D$14/12))),IF(ISERROR(I28/G28),0,IF(OR(ISBLANK(D$14),OR(D$14=0,D$14="")),I28/G28/(D$13/12),I28/G28/(D$14/12)))),4)) -> 0 | L28: =IF(C28="kWh",ROUND(IF(ISERROR('4. Billing Det. for Def-Var'!W26/D28), 0, IF(OR(ISBLANK(D$15), OR(D$15=0, D$15="")), ('4. Billing Det. for Def-Var'!W26/D28)/(D$13/12), ('4. Billing Det. for Def-Var'!W26/D28)/(D$15/12))),4),ROUND(IF(ISERROR('4. Billing Det. for Def-Var'!W26/E28), 0, IF(OR(ISBLANK(D$15), OR(D$15=0, D$15="")), ('4. Billing Det. for Def-Var'!W26/E28)/(D$13/12), ('4. Billing Det. for Def-Var'!W26/E28)/(D$15/12))),4)) -> 0 | M28: 0 | N28: 0
B29: ='4. Billing Det. for Def-Var'!B27 -> ENERGY FROM WASTE SERVICE CLASSIFICATION | C29: ='4. Billing Det. for Def-Var'!C27 -> kW | D29: ='4. Billing Det. for Def-Var'!D27 -> 0 | E29: ='4. Billing Det. for Def-Var'!E27 -> 0 | F29: ='4. Billing Det. for Def-Var'!J27 -> 0 | G29: ='4. Billing Det. for Def-Var'!K27 -> 0 | H29: =IFERROR(SUM('5. Allocating Def-Var Balances'!G26:Y26)-I29,"") -> 0 | I29: =IFERROR(IF('4. Billing Det. for Def-Var'!H27=0,0,'5. Allocating Def-Var Balances'!I26+'5. Allocating Def-Var Balances'!N26),"") -> 0 | J29: =IF('4. Billing Det. for Def-Var'!$D$37="no",0,ROUND(IF(C29="kWh",IF(ISERROR(H29/D29),0,IF(OR(ISBLANK(D$14),OR(D$14=0,D$14="")),H29/D29/(D$13/12),H29/D29/(D$14/12))),IF(ISERROR(H29/E29),0,IF(OR(ISBLANK(D$14),OR(D$14=0,D$14="")),H29/E29/(D$13/12),H29/E29/(D$14/12)))),4)) -> 0 | K29: =IF('4. Billing Det. for Def-Var'!$D$37="no",0,ROUND(IF(C29="kWh",IF(ISERROR(I29/F29),0,IF(OR(ISBLANK(D$14),OR(D$14=0,D$14="")),I29/F29/(D$13/12),I29/F29/(D$14/12))),IF(ISERROR(I29/G29),0,IF(OR(ISBLANK(D$14),OR(D$14=0,D$14="")),I29/G29/(D$13/12),I29/G29/(D$14/12)))),4)) -> 0 | L29: =IF(C29="kWh",ROUND(IF(ISERROR('4. Billing Det. for Def-Var'!W27/D29), 0, IF(OR(ISBLANK(D$15), OR(D$15=0, D$15="")), ('4. Billing Det. for Def-Var'!W27/D29)/(D$13/12), ('4. Billing Det. for Def-Var'!W27/D29)/(D$15/12))),4),ROUND(IF(ISERROR('4. Billing Det. for Def-Var'!W27/E29), 0, IF(OR(ISBLANK(D$15), OR(D$15=0, D$15="")), ('4. Billing Det. for Def-Var'!W27/E29)/(D$13/12), ('4. Billing Det. for Def-Var'!W27/E29)/(D$15/12))),4)) -> 0 | M29: 0 | N29: =K29*G29 -> 0
M30: =SUM(M19:M29) -> 0 | N30: =SUM(N19:N29) -> 0 | O30: =SUM(M30:N30) -> 0
B32: 1 When calculating the revenue reconciliation for distributors with Class A customers, the balances of sub-account 1580-CBR Class B will not be taken into consideration if there are Class A customers since the rate riders, if any, are calculated separately.
B33: 2 Only for rate classes with WMP customers are the Deferral/Variance Account Rate Riders for Non-WMP (column H and J) calculated separately. For all rate classes without WMP customers, balances in account 1580 and 1588 are included in column H and disposed through a combined Deferral/Variance Account and Rate Rider.

Sheet 9. STS-Tax Change
A1: Back to Index | U1: Tax Rates | V1: Effective
B2: =+'1. Information Sheet'!B2 -> INCENTIVE REGULATION MODEL FOR 2020 FILERS | U2: Federal & Provincial | V2: 2016-01-01
U3: As of June 20, 2012
U5: Federal income tax | V5: 0.38
U6: General corporate rate | V6: -0.1
U7: Federal tax abatement | V7: =SUM(V5:V6) -> 0.28
U8: Adjusted federal rate | V8: -0.13
U9: Rate reduction | V9: =V7+V8 -> 0.15
U10: Ontario income tax | V10: 0.115
U12: Combined federal and Ontario | V12: =V9+V10 -> 0.265
B13: Summary - Sharing of Tax Change Forecast Amounts
U14: Federal & Ontario Small Business
B15: ="For the " & '1. Information Sheet'!G32 & " year, enter any Tax Credits from the Cost of Service Tax Calculation (Positive #)" -> For the 2015 year, enter any Tax Credits from the Cost of Service Tax Calculation (Positive #) | U15: Federal small business threshold | V15: 500000
U16: Ontario Small Business Threshold | V16: 500000
B18: 1. Tax Related Amounts Forecast from Capital Tax Rate Changes | M18: 2018 | O18: =M18+1 -> 2019 | U18: Federal small business rate | V18: 0.105
B19: Taxable Capital (if you are not claiming capital tax, please enter your OEB-Approved Rate Base) | O19: =M19 -> 0
U20: Ontario small business rate | V20: 0.045
B21: Deduction from taxable capital up to $15,000,000 | O21: =M21 -> 0
B23: Net Taxable Capital | M23: =M19-M21 -> 0 | O23: =O19-O21 -> 0
B25: Rate | O25: 0 | U25: Ontario Tax Rate (Maximum 11.5%)
U26: Federal tax rate (Maximum 15%)
B27: Ontario Capital Tax (Deductible, not grossed-up) | M27: =IF(M23>0, M23*M25, 0)*181/365 -> 0 | O27: 0 | U27: Combined tax rate (Maximum 26.5%)
B29: 2. Tax Related Amounts Forecast from lncome Tax Rate Changes
B30: Regulatory Taxable Income | O30: =M30 -> 0
B32: Corporate Tax Rate | O32: =IF(ratebase>15000000, 26.5%, IF(ratebase<10000000, 12.5%, 12.5%+11.5%*((ratebase-10000000)/5000000))) -> 0.125
B34: Tax Impact | M34: =M30*M32-M15 -> 0 | O34: =O30*O32-M15 -> 0
B36: Grossed-up Tax Amount | M36: =M34/(1-M32) -> 0 | O36: =O34/(1-O32) -> 0
B38: Tax Related Amounts Forecast from Capital Tax Rate Changes | M38: =M27 -> 0 | O38: =O27 -> 0
B40: Tax Related Amounts Forecast from lncome Tax Rate Changes | M40: =M36 -> 0 | O40: =O36 -> 0
B42: Total Tax Related Amounts | M42: =SUM(M40,M38) -> 0 | O42: =SUM(O40,O38) -> 0
B44: Incremental Tax Savings | O44: =O42-M42 -> 0
B46: Sharing of Tax Amount (50%) | O46: =0.5*O44 -> 0

Sheet 10. Shared Tax - RR
A1: Back to Index
B2: =+'1. Information Sheet'!B2 -> INCENTIVE REGULATION MODEL FOR 2020 FILERS
B12: Calculation of Rebased Revenue Requirement and Allocation of Tax Sharing Amount. Enter data from the last OEB-Approved Cost of Service application in columns D through I.
B13: As per Chapter 3 Filing Requirements, shared tax rate riders are based on a 1 year disposition.
B15: Rate Class | D15: Re-based Billed Customers or Connections | E15: Re-based Billed kWh | F15: Re-based Billed kW | G15: Re-based Service Charge | H15: Re-based Distribution Volumetric Rate kWh | I15: Re-based Distribution Volumetric Rate kW | J15: Service Charge Revenue | K15: Distribution Volumetric Rate Revenue kWh | L15: Distribution Volumetric Rate Revenue kW | M15: Revenue Requirement from Rates | N15: Service Charge % Revenue | O15: Distribution Volumetric Rate % Revenue kWh | P15: Distribution Volumetric Rate % Revenue kW | Q15: Total % Revenue
D16: A | E16: B | F16: C | G16: D | H16: E | I16: F | J16: G = A * D *12 | K16: H = B * E | L16: I = C * F | M16: J = G + H + I | N16: K = G / J | O16: L = H / J | P16: M = I / J | Q16: N = J / R
B17: ='4. Billing Det. for Def-Var'!B17 -> RESIDENTIAL SERVICE CLASSIFICATION | C17: ='4. Billing Det. for Def-Var'!C17 -> kWh | D17: 140979.1817 | E17: 1308264983 | F17: 0 | G17: 11.07 | H17: 0.0155 | I17: 0 | J17: =G17*D17*12 -> 18727674.5 | K17: =E17*H17 -> 20278107.24 | L17: =F17*I17 -> 0 | M17: =J17+K17+L17 -> 39005781.74 | N17: =IF(ISERROR(J17/M17),0,J17/M17) -> 0.4801256035 | O17: =IF(ISERROR(K17/M17),0,K17/M17) -> 0.5198743965 | P17: =IF(ISERROR(L17/M17),0,L17/M17) -> 0 | Q17: =IF(ISERROR(M17/M30),0,M17/M30) -> 0.5606736075
B18: ='4. Billing Det. for Def-Var'!B18 -> GENERAL SERVICE LESS THAN 50 kW SERVICE CLASSIFICATION | C18: ='4. Billing Det. for Def-Var'!C18 -> kWh | D18: 8989.460008 | E18: 354668870.3 | F18: 0 | G18: 24.39 | H18: 0.0161 | I18: 0 | J18: 2631035.155 | K18: 5710168.812 | L18: 0 | M18: 8341203.967 | N18: 0.3154263061 | O18: 0.6845736939 | P18: 0 | Q18: =IF(ISERROR(M18/M30),0,M18/M30) -> 0.1198974283
B19: ='4. Billing Det. for Def-Var'!B19 -> GENERAL SERVICE 50 to 699 KW SERVICE CLASSIFICATION | C19: ='4. Billing Det. for Def-Var'!C19 -> kW | D19: 1490.72449 | E19: 1064497599 | F19: 2979825.698 | G19: 121.18 | H19: 0 | I19: 2.7446 | J19: 2167751.925 | K19: 0 | L19: 8178429.611 | M19: 10346181.54 | N19: 0.2095219301 | O19: 0 | P19: 0.7904780699 | Q19: =IF(ISERROR(M19/M30),0,M19/M30) -> 0.1487172072
B20: ='4. Billing Det. for Def-Var'!B20 -> GENERAL SERVICE 700 to 4,999 KW SERVICE CLASSIFICATION | C20: ='4. Billing Det. for Def-Var'!C20 -> kW | D20: 114.6164114 | E20: 806154179.9 | F20: 1969146.402 | G20: 1093.35 | H20: 0 | I20: 3.1861 | J20: 1503790.241 | K20: 0 | L20: 6273897.352 | M20: 7777687.593 | N20: 0.1933467015 | O20: 0 | P20: 0.8066532985 | Q20: =IF(ISERROR(M20/M30),0,M20/M30) -> 0.1117973789
B21: ='4. Billing Det. for Def-Var'!B21 -> LARGE USE SERVICE CLASSIFICATION | C21: ='4. Billing Det. for Def-Var'!C21 -> kW | D21: 6 | E21: 382619513.4 | F21: 719987.0916 | G21: 4549.67 | H21: 0 | I21: 2.4122 | J21: 327576.24 | K21: 0 | L21: 1736752.862 | M21: 2064329.102 | N21: 0.1586841166 | O21: 0 | P21: 0.8413158834 | Q21: =IF(ISERROR(M21/M30),0,M21/M30) -> 0.02967290472
B22: ='4. Billing Det. for Def-Var'!B22 -> STANDBY POWER SERVICE CLASSIFICATION | C22: ='4. Billing Det. for Def-Var'!C22 -> kW | D22: 1 | E22: 0 | F22: 54580 | G22: 0 | H22: 0 | I22: 1.6224 | J22: 0 | K22: 0 | L22: 88550.592 | M22: 88550.592 | N22: 0 | O22: 0 | P22: 1 | Q22: =IF(ISERROR(M22/M30),0,M22/M30) -> 0.001272836427
B23: ='4. Billing Det. for Def-Var'!B23 -> UNMETERED SCATTERED LOAD SERVICE CLASSIFICATION | C23: ='4. Billing Det. for Def-Var'!C23 -> kWh | D23: 1561.718162 | E23: 5931732.904 | F23: 0 | G23: 1.05 | H23: 0.0192 | I23: 0 | J23: 19677.64884 | K23: 113889.2718 | L23: 0 | M23: 133566.9206 | N23: 0.1473242682 | O23: 0.8526757318 | P23: 0 | Q23: =IF(ISERROR(M23/M30),0,M23/M30) -> 0.001919906329
B24: ='4. Billing Det. for Def-Var'!B24 -> STREET LIGHTING SERVICE CLASSIFICATION | C24: ='4. Billing Det. for Def-Var'!C24 -> kW | D24: 22334.56352 | E24: 33306954.55 | F24: 100671.8914 | G24: 2.22 | H24: 0 | I24: 11.1563 | J24: 594992.7721 | K24: 0 | L24: 1123125.823 | M24: 1718118.595 | N24: =IF(ISERROR(J24/M24),0,J24/M24) -> 0.3463048325 | O24: 0 | P24: 0.6536951675 | Q24: =IF(ISERROR(M24/M30),0,M24/M30) -> 0.02469643493
B25: ='4. Billing Det. for Def-Var'!B25 -> EMBEDDED DISTRIBUTOR SERVICE CLASSIFICATION | C25: ='4. Billing Det. for Def-Var'!C25 -> kWh | D25: 1 | E25: 17012414 | F25: 40073 | G25: 4021.92 | H25: 0 | I25: 0 | J25: 48263.04 | K25: 0 | L25: 0 | M25: 48263.04 | N25: =IF(ISERROR(J25/M25),0,J25/M25) -> 1 | O25: =IF(ISERROR(K25/M25),0,K25/M25) -> 0 | P25: =IF(ISERROR(L25/M25),0,L25/M25) -> 0 | Q25: =IF(ISERROR(M25/M$30),0,M25/M$30) -> 0.0006937385059
B26: ='4. Billing Det. for Def-Var'!B26 -> DISTRIBUTED GENERATION [DGEN] SERVICE CLASSIFICATION | C26: ='4. Billing Det. for Def-Var'!C26 -> kWh | D26: 67.58333333 | E26: 178815.8383 | F26: 0 | G26: 55.59 | H26: 0 | I26: 0 | J26: =G26*D26*12 -> 45083.49 | K26: =E26*H26 -> 0 | L26: =F26*I26 -> 0 | M26: =J26+K26+L26 -> 45083.49 | N26: =IF(ISERROR(J26/M26),0,J26/M26) -> 1 | O26: 0 | P26: 0 | Q26: =IF(ISERROR(M26/M$30),0,M26/M$30) -> 0.0006480352873
B27: ='4. Billing Det. for Def-Var'!B27 -> ENERGY FROM WASTE SERVICE CLASSIFICATION | C27: ='4. Billing Det. for Def-Var'!C27 -> kW | D27: 1 | E27: 0 | F27: 0 | G27: 61 | H27: 0 | I27: 0 | J27: 732 | K27: 0 | L27: 0 | M27: 732 | N27: 1 | O27: 0 | P27: 0 | Q27: 1.052185246e-05
B30: Total | D30: =SUM(D17:D29) -> 175546.8476 | E30: =SUM(E17:E29) -> 3972635063 | F30: 5864284.083 | J30: =SUM(J17:J29) -> 26066577.01 | K30: =SUM(K17:K29) -> 26102165.32 | L30: 17400756.24 | M30: 69569498.58 | Q30: =SUM(Q17:Q29) -> 1
B33: Rate Class | D33: Total kWh (most recent RRR filing) | E33: Total kW (most recent RRR filing) | F33: Allocation of Tax Savings by Rate Class | G33: Distribution Rate Rider
B34: =B17 -> RESIDENTIAL SERVICE CLASSIFICATION | C34: kWh | D34: ='4. Billing Det. for Def-Var'!D17 -> 1385125813 | E34: ='4. Billing Det. for Def-Var'!E17 -> 0 | F34: =F$48*Q17 -> 0 | G34: =IFERROR(ROUND(F34/'4. Billing Det. for Def-Var'!X17,2),"") -> 0 | H34: $/Customer
B35: GENERAL SERVICE LESS THAN 50 kW SERVICE CLASSIFICATION | C35: kWh | D35: ='4. Billing Det. for Def-Var'!D18 -> 344785906.8 | E35: ='4. Billing Det. for Def-Var'!E18 -> 0 | F35: =F$48*Q18 -> 0 | G35: =IFERROR(ROUND(IF(E35<>0,F35/E35,F35/D35),4),"") -> 0 | H35: $/kWh
B36: GENERAL SERVICE 50 to 699 KW SERVICE CLASSIFICATION | C36: kW | D36: ='4. Billing Det. for Def-Var'!D19 -> 1131688196 | E36: ='4. Billing Det. for Def-Var'!E19 -> 3179602.842 | F36: 0 | G36: =IFERROR(ROUND(IF(E36<>0,F36/E36,F36/D36),4),"") -> 0 | H36: $/kW
B37: GENERAL SERVICE 700 to 4,999 KW SERVICE CLASSIFICATION | C37: kW | D37: ='4. Billing Det. for Def-Var'!D20 -> 875091030.3 | E37: ='4. Billing Det. for Def-Var'!E20 -> 2020563.238 | F37: 0 | G37: 0 | H37: $/kW
B38: LARGE USE SERVICE CLASSIFICATION | C38: kW | D38: ='4. Billing Det. for Def-Var'!D21 -> 350379704.8 | E38: ='4. Billing Det. for Def-Var'!E21 -> 657857.0874 | F38: 0 | G38: 0 | H38: $/kWh
B39: STANDBY POWER SERVICE CLASSIFICATION | C39: kW | D39: ='4. Billing Det. for Def-Var'!D22 -> 0 | E39: ='4. Billing Det. for Def-Var'!E22 -> 0 | F39: 0 | H39: $/kWh
B40: UNMETERED SCATTERED LOAD SERVICE CLASSIFICATION | C40: kWh | D40: ='4. Billing Det. for Def-Var'!D23 -> 5914654.047 | E40: ='4. Billing Det. for Def-Var'!E23 -> 0 | F40: 0 | G40: 0 | H40: $/kW
B41: STREET LIGHTING SERVICE CLASSIFICATION | C41: kW | D41: ='4. Billing Det. for Def-Var'!D24 -> 34968320.88 | E41: ='4. Billing Det. for Def-Var'!E24 -> 98841.90329 | F41: 0 | G41: 0 | H41: $/kW
B42: EMBEDDED DISTRIBUTOR SERVICE CLASSIFICATION | C42: kWh | D42: ='4. Billing Det. for Def-Var'!D25 -> 3402773.373 | E42: ='4. Billing Det. for Def-Var'!E25 -> 0 | F42: 0 | G42: =IFERROR(ROUND(IF(E42<>0,F42/E42,F42/D42),4),"") -> 0 | H42: $/kWh
B43: =B26 -> DISTRIBUTED GENERATION [DGEN] SERVICE CLASSIFICATION | C43: kWh | F43: =F$48*Q30 -> 0 | H43: $/kWh
B44: =B27 -> ENERGY FROM WASTE SERVICE CLASSIFICATION | C44: kW | F44: =F$48*Q31 -> 0 | H44: $/kW
F45: 0 | G45: =IFERROR(ROUND(IF(E45<>"",F45/E45,F45/D45),4),"") -> 
F46: 0
D48: =SUM(D34:D47) -> 4131356399 | E48: =SUM(E34:E47) -> 5956865.07 | F48: =ROUND('9. STS-Tax Change'!O46,2) -> 0

Sheet 11. RTSR - Current Rates
A1: Back to Index | BA1: 1
B2: =+'1. Information Sheet'!B2 -> INCENTIVE REGULATION MODEL FOR 2020 FILERS
B13: Columns F and G must match the data from the most recent RRR filing (Tab 4). Rates have been imported from Tab "RATES". Loss Factor has been imported from "Model Specs" tab. If the data needs to be modified, please make the necessary adjustments and note the changes in your manager's summary.
B15: Rate Class | C15: Rate Description | D15: Unit | E15: Rate | F15: Non-Loss Adjusted Metered kWh | G15: Non-Loss Adjusted Metered kW | H15: Applicable Loss Factor | I15: Loss Adjusted Billed kWh
A16: =IFERROR(VLOOKUP(B16,'Model Specs'!K$16:N$31,3,FALSE),"") -> R_TN | B16: ='4. Billing Det. for Def-Var'!B17 -> RESIDENTIAL SERVICE CLASSIFICATION | C16: Retail Transmission Rate – Network Service Rate | D16: $/kWh | E16: =IFERROR(VLOOKUP(A16,_xlnm.DATABASE,8,FALSE),0) -> 0.0072 | F16: ='4. Billing Det. for Def-Var'!D17 -> 1385125813 | G16: ='4. Billing Det. for Def-Var'!E17 -> 0 | H16: =IF(D16="$/kwh",LLF,"") -> 1.0341 | I16: =IF(D16="$/kwh",F16*H16,"") -> 1432358603
A17: =IFERROR(VLOOKUP(B17,'Model Specs'!K$16:N$31,3,FALSE),"") -> GSL_TN | B17: ='4. Billing Det. for Def-Var'!B18 -> GENERAL SERVICE LESS THAN 50 kW SERVICE CLASSIFICATION | C17: Retail Transmission Rate – Network Service Rate | D17: $/kWh | E17: 0.0064 | F17: ='4. Billing Det. for Def-Var'!D18 -> 344785906.8 | G17: ='4. Billing Det. for Def-Var'!E18 -> 0 | H17: 1.0341 | I17: =IF(D17="$/kwh",F17*H17,"") -> 356543106.2
A18: =IFERROR(VLOOKUP(B18,'Model Specs'!K$16:N$31,3,FALSE),"") -> GS50_699_TN | B18: ='4. Billing Det. for Def-Var'!B19 -> GENERAL SERVICE 50 to 699 KW SERVICE CLASSIFICATION | C18: Retail Transmission Rate – Network Service Rate | D18: $/kW | E18: 2.4987 | F18: ='4. Billing Det. for Def-Var'!D19 -> 1131688196 | G18: ='4. Billing Det. for Def-Var'!E19 -> 3179602.842
A19: =IFERROR(VLOOKUP(B19,'Model Specs'!K$16:N$31,3,FALSE),"") -> GS700_TN | B19: ='4. Billing Det. for Def-Var'!B20 -> GENERAL SERVICE 700 to 4,999 KW SERVICE CLASSIFICATION | C19: Retail Transmission Rate – Network Service Rate | D19: $/kW | E19: 2.8022 | F19: ='4. Billing Det. for Def-Var'!D20 -> 875091030.3 | G19: ='4. Billing Det. for Def-Var'!E20 -> 2020563.238
A20: =IFERROR(VLOOKUP(B20,'Model Specs'!K$16:N$31,3,FALSE),"") -> LU_TN | B20: ='4. Billing Det. for Def-Var'!B21 -> LARGE USE SERVICE CLASSIFICATION | C20: Retail Transmission Rate – Network Service Rate | D20: $/kW | E20: 3.1716 | F20: ='4. Billing Det. for Def-Var'!D21 -> 350379704.8 | G20: ='4. Billing Det. for Def-Var'!E21 -> 657857.0874
A21: =IFERROR(VLOOKUP(B21,'Model Specs'!K$16:N$31,3,FALSE),"") -> SB | B21: ='4. Billing Det. for Def-Var'!B22 -> STANDBY POWER SERVICE CLASSIFICATION | E21: 0 | F21: ='4. Billing Det. for Def-Var'!D22 -> 0 | G21: ='4. Billing Det. for Def-Var'!E22 -> 0
A22: =IFERROR(VLOOKUP(B22,'Model Specs'!K$16:N$31,3,FALSE),"") -> USL_TN | B22: ='4. Billing Det. for Def-Var'!B23 -> UNMETERED SCATTERED LOAD SERVICE CLASSIFICATION | C22: Retail Transmission Rate – Network Service Rate | D22: $/kWh | E22: 0.0064 | F22: ='4. Billing Det. for Def-Var'!D23 -> 5914654.047 | G22: ='4. Billing Det. for Def-Var'!E23 -> 0 | H22: 1.0341 | I22: 6116343.75
A23: =IFERROR(VLOOKUP(B23,'Model Specs'!K$16:N$31,3,FALSE),"") -> SL_TN | B23: ='4. Billing Det. for Def-Var'!B24 -> STREET LIGHTING SERVICE CLASSIFICATION | C23: Retail Transmission Rate – Network Service Rate | D23: $/kW | E23: 2.0806 | F23: ='4. Billing Det. for Def-Var'!D24 -> 34968320.88 | G23: ='4. Billing Det. for Def-Var'!E24 -> 98841.90329
A24: =IFERROR(VLOOKUP(B24,'Model Specs'!K$16:N$31,3,FALSE),"") -> EMD_TN | B24: ='4. Billing Det. for Def-Var'!B25 -> EMBEDDED DISTRIBUTOR SERVICE CLASSIFICATION | C24: Retail Transmission Rate – Network Service Rate | D24: $/kW | E24: =IFERROR(VLOOKUP(A24,_xlnm.DATABASE,8,FALSE),0) -> 2.8022 | F24: ='4. Billing Det. for Def-Var'!D25 -> 3402773.373 | G24: ='4. Billing Det. for Def-Var'!E25 -> 0
A25: =IFERROR(VLOOKUP(B25,'Model Specs'!K$16:N$31,3,FALSE),"") -> DG_TN | B25: ='4. Billing Det. for Def-Var'!B26 -> DISTRIBUTED GENERATION [DGEN] SERVICE CLASSIFICATION | C25: Retail Transmission Rate – Network Service Rate | D25: $/kWh | E25: 0.0064 | F25: ='4. Billing Det. for Def-Var'!D26 -> 277418.1656 | G25: ='4. Billing Det. for Def-Var'!E26 -> 0 | H25: 1.0341 | I25: 286878.125
A29: =IFERROR(VLOOKUP(B29,'Model Specs'!K$16:N$31,4,FALSE),"") -> R_TC | B29: =B16 -> RESIDENTIAL SERVICE CLASSIFICATION | C29: Retail Transmission Rate – Line and Transformation Connection Service Rate | D29: =D16 -> $/kWh | E29: =IFERROR(VLOOKUP(A29,_xlnm.DATABASE,8,FALSE),0) -> 0.0063 | F29: =F16 -> 1385125813 | G29: =G16 -> 0 | H29: =H16 -> 1.0341 | I29: =IF(D29="$/kwh",F29*H29,"") -> 1432358603
A30: =IFERROR(VLOOKUP(B30,'Model Specs'!K$16:N$31,4,FALSE),"") -> GSL_TC | B30: =B17 -> GENERAL SERVICE LESS THAN 50 kW SERVICE CLASSIFICATION | C30: Retail Transmission Rate – Line and Transformation Connection Service Rate | D30: =D17 -> $/kWh | E30: 0.0053 | F30: =F17 -> 344785906.8 | G30: 0 | H30: 1.0341 | I30: =IF(D30="$/kwh",F30*H30,"") -> 356543106.2
A31: =IFERROR(VLOOKUP(B31,'Model Specs'!K$16:N$31,4,FALSE),"") -> GS50_699_TC | B31: GENERAL SERVICE 50 to 699 KW SERVICE CLASSIFICATION | C31: Retail Transmission Rate – Line and Transformation Connection Service Rate | D31: $/kW | E31: 2.1236 | F31: 1131688196 | G31: 3179602.842
A32: =IFERROR(VLOOKUP(B32,'Model Specs'!K$16:N$31,4,FALSE),"") -> GS700_TC | B32: GENERAL SERVICE 700 to 4,999 KW SERVICE CLASSIFICATION | C32: Retail Transmission Rate – Line and Transformation Connection Service Rate | D32: $/kW | E32: 2.2827 | F32: 875091030.3 | G32: 2020563.238
A33: =IFERROR(VLOOKUP(B33,'Model Specs'!K$16:N$31,4,FALSE),"") -> LU_TC | B33: LARGE USE SERVICE CLASSIFICATION | C33: Retail Transmission Rate – Line and Transformation Connection Service Rate | D33: $/kW | E33: 2.6383 | F33: 350379704.8 | G33: 657857.0874
A34: =IFERROR(VLOOKUP(B34,'Model Specs'!K$16:N$31,4,FALSE),"") -> SB | B34: STANDBY POWER SERVICE CLASSIFICATION | E34: 0 | F34: 0 | G34: 0
A35: =IFERROR(VLOOKUP(B35,'Model Specs'!K$16:N$31,4,FALSE),"") -> USL_TC | B35: UNMETERED SCATTERED LOAD SERVICE CLASSIFICATION | C35: Retail Transmission Rate – Line and Transformation Connection Service Rate | D35: $/kWh | E35: 0.0053 | F35: 5914654.047 | G35: 0 | H35: 1.0341 | I35: 6116343.75
A36: =IFERROR(VLOOKUP(B36,'Model Specs'!K$16:N$31,4,FALSE),"") -> SL_TC | B36: STREET LIGHTING SERVICE CLASSIFICATION | C36: Retail Transmission Rate – Line and Transformation Connection Service Rate | D36: $/kW | E36: 1.768 | F36: 34968320.88 | G36: 98841.90329
A37: =IFERROR(VLOOKUP(B37,'Model Specs'!K$16:N$31,4,FALSE),"") -> EMD_TC | B37: EMBEDDED DISTRIBUTOR SERVICE CLASSIFICATION | C37: Retail Transmission Rate – Line and Transformation Connection Service Rate | D37: $/kW | E37: =IFERROR(VLOOKUP(A37,_xlnm.DATABASE,8,FALSE),0) -> 2.2827 | F37: =F24 -> 3402773.373 | G37: 0
A38: =IFERROR(VLOOKUP(B38,'Model Specs'!K$16:N$31,4,FALSE),"") -> DG_TC | B38: DISTRIBUTED GENERATION [DGEN] SERVICE CLASSIFICATION | C38: Retail Transmission Rate – Line and Transformation Connection Service Rate | D38: $/kWh | E38: 0.0053 | F38: =F25 -> 277418.1656 | G38: 0 | H38: 1.0341 | I38: 286878.125
A39: =IFERROR(VLOOKUP(B39,'Model Specs'!K$16:N$31,4,FALSE),"") -> 

Sheet 12. RTSR-UTRs & Sub-Tx
A1: Back to Index
B2: =+'1. Information Sheet'!B2 -> INCENTIVE REGULATION MODEL FOR 2020 FILERS
B12: Uniform Transmission Rates | C12: Unit | E12: 2018 | G12: 2019 | I12: 2020
B14: Rate Description | E14: Rate | G14: Rate | I14: Rate
B16: Network Service Rate | C16: kW | E16: 3.61 | G16: 3.71 | I16: =G16 -> 3.71
B18: Line Connection Service Rate | C18: kW | E18: 0.95 | G18: 0.94 | I18: =G18 -> 0.94
B20: Transformation Connection Service Rate | C20: kW | E20: 2.34 | G20: 2.25 | I20: =G20 -> 2.25
B23: Hydro One Sub-Transmission Rates | C23: Unit | E23: =E12 -> 2018 | G23: =G12 -> 2019 | I23: =I12 -> 2020
B27: Rate Description | E27: Rate | G27: Rate | I27: Rate
B29: Network Service Rate | C29: kW | E29: 3.1942 | G29: 3.1942 | I29: =G29 -> 3.1942
B31: Line Connection Service Rate | C31: kW | E31: 0.771 | G31: 0.771 | I31: =G31 -> 0.771
B33: Transformation Connection Service Rate | C33: kW | E33: 1.7493 | G33: 1.7493 | I33: =G33 -> 1.7493
B35: Both Line and Transformation Connection Service Rate | C35: kW | E35: =SUM(E33,E31) -> 2.5203 | G35: =SUM(G33,G31) -> 2.5203 | I35: =G35 -> 2.5203
B38: If needed, add extra host here. (I) | C38: Unit | E38: =E12 -> 2018 | G38: =G12 -> 2019 | I38: =I12 -> 2020
B42: Rate Description | E42: Rate | G42: Rate | I42: Rate
B44: Network Service Rate | C44: kW
B46: Line Connection Service Rate | C46: kW
B48: Transformation Connection Service Rate | C48: kW
B50: Both Line and Transformation Connection Service Rate | C50: kW | E50: =E46+E48 -> 0 | G50: =G48+G46 -> 0 | I50: =I48+I46 -> 0
B53: If needed, add extra host here. (II) | C53: Unit | E53: =E12 -> 2018 | G53: =G12 -> 2019 | I53: =I12 -> 2020
B57: Rate Description | E57: Rate | G57: Rate | I57: Rate
B59: Network Service Rate | C59: kW
B61: Line Connection Service Rate | C61: kW
B63: Transformation Connection Service Rate | C63: kW
B65: Both Line and Transformation Connection Service Rate | C65: kW | E65: =E61+E63 -> 0 | G65: =G63+G61 -> 0 | I65: =I63+I61 -> 0
E67: Historical 2018 | G67: Current 2019 | I67: Forecast 2020
B68: Low Voltage Switchgear Credit (if applicable, enter as a negative value) | C68: $

Sheet 13. RTSR-Historic Wholesale
A1: Back to Index
B2: =+'1. Information Sheet'!B2 -> INCENTIVE REGULATION MODEL FOR 2020 FILERS
B13: In the green shaded cells, enter billing detail for wholesale transmission for the same reporting period as the billing determinants on Tab 10. For Hydro One Sub-transmission Rates, if you are charged a combined Line and Transformer connection rate, please ensure that both the Line Connection and Transformation Connection columns are completed. If any of the Hydro One Sub-transmission rates (column E, I and M) are highlighted in orange, please double check the billing data entered in "Units Billed" and "Amount" columns. The highlighted rates do not match the Hydro One Sub-transmission rates approved for that time period. If data has been entered correctly, please provide explanation for the discrepancy in rates.
B16: IESO | D16: Network | H16: Line Connection | L16: Transformation Connection | P16: Total Line
B17: Month | D17: Units Billed | E17: Rate | F17: Amount | H17: Units Billed | I17: Rate | J17: Amount | L17: Units Billed | M17: Rate | N17: Amount | P17: Amount
B19: January | D19: 593386 | E19: =IF(D19<>0,F19/D19,0) -> 3.61 | F19: 2142123.46 | H19: 627196 | I19: =IF(H19<>0,J19/H19,0) -> 0.95 | J19: 595836.2 | L19: 540150 | M19: =IF(L19<>0,N19/L19,0) -> 2.34 | N19: 1263951 | P19: =J19+N19 -> 1859787.2
B20: February | D20: 584216 | E20: 3.61 | F20: 2109019.76 | H20: 599595 | I20: 0.95 | J20: 569615.25 | L20: 517792 | M20: 2.34 | N20: 1211633.28 | P20: 1781248.53
B21: March | D21: 558667 | E21: 3.61 | F21: 2016787.87 | H21: 589663 | I21: 0.95 | J21: 560179.85 | L21: 513359 | M21: 2.34 | N21: 1201260.06 | P21: 1761439.91
B22: April | D22: 557917 | E22: 3.61 | F22: 2014080.37 | H22: 576974 | I22: 0.95 | J22: 548125.3 | L22: 500213 | M22: 2.34 | N22: 1170498.42 | P22: 1718623.72
B23: May | D23: 741075 | E23: 3.61 | F23: 2675280.75 | H23: 764832 | I23: 0.95 | J23: 726590.4 | L23: 663465 | M23: 2.34 | N23: 1552508.1 | P23: 2279098.5
B24: June | D24: 776124 | E24: 3.61 | F24: 2801807.64 | H24: 816629 | I24: 0.95 | J24: 775797.55 | L24: 696391 | M24: 2.34 | N24: 1629554.94 | P24: 2405352.49
B25: July | D25: 833475 | E25: 3.61 | F25: 3008844.75 | H25: 843572 | I25: 0.95 | J25: 801393.4 | L25: 720219 | M25: 2.34 | N25: 1685312.46 | P25: 2486705.86
B26: August | D26: 757690 | E26: 3.61 | F26: 2735260.9 | H26: 792303 | I26: 0.95 | J26: 752687.85 | L26: 681014 | M26: 2.34 | N26: 1593572.76 | P26: 2346260.61
B27: September | D27: 815767 | E27: 3.61 | F27: 2944918.87 | H27: 839989 | I27: 0.95 | J27: 797989.55 | L27: 712763 | M27: 2.34 | N27: 1667865.42 | P27: 2465854.97
B28: October | D28: 596018 | E28: 3.61 | F28: 2151624.98 | H28: 621289 | I28: 0.95 | J28: 590224.55 | L28: 536166 | M28: 2.34 | N28: 1254628.44 | P28: 1844852.99
B29: November | D29: 567990 | E29: 3.61 | F29: 2050443.9 | H29: 594337 | I29: 0.95 | J29: 564620.15 | L29: 508188 | M29: 2.34 | N29: 1189159.92 | P29: 1753780.07
B30: December | D30: 555985 | E30: 3.61 | F30: 2007105.85 | H30: 598999 | I30: 0.95 | J30: 569049.05 | L30: 518212 | M30: 2.34 | N30: 1212616.08 | P30: 1781665.13
B32: Total | D32: =SUM(D19:D30) -> 7938310 | E32: =IF(D32<>0,F32/D32,0) -> 3.61 | F32: =SUM(F19:F30) -> 28657299.1 | H32: =SUM(H19:H30) -> 8265378 | I32: =IF(H32<>0,J32/H32,0) -> 0.95 | J32: =SUM(J19:J30) -> 7852109.1 | L32: =SUM(L19:L30) -> 7107932 | M32: =IF(L32<>0,N32/L32,0) -> 2.34 | N32: =SUM(N19:N30) -> 16632560.88 | P32: =SUM(P19:P30) -> 24484669.98
B34: Hydro One | D34: Network | H34: Line Connection | L34: Transformation Connection | P34: Total Line
B36: Month | D36: Units Billed | E36: Rate | F36: Amount | H36: Units Billed | I36: Rate | J36: Amount | L36: Units Billed | M36: Rate | N36: Amount | P36: Amount
B38: January | D38: 5274.42 | E38: =IF(D38<>0,F38/D38,0) -> 3.194199552 | F38: 16847.55 | H38: 5274.42 | I38: =IF(H38<>0,J38/H38,0) -> 0.7710004133 | J38: 4066.58 | L38: 5274.42 | M38: =IF(L38<>0,N38/L38,0) -> 1.749299449 | N38: 9226.54 | P38: =J38+N38 -> 13293.12
B39: February | D39: 5122.43 | E39: =IF(D39<>0,F39/D39,0) -> 3.194198847 | F39: 16362.06 | H39: 5122.43 | I39: 0.7709993109 | J39: 3949.39 | L39: 5122.43 | M39: 1.749300625 | N39: 8960.67 | P39: =J39+N39 -> 12910.06
B40: March | D40: 5251.23 | E40: 3.19420212 | F40: 16773.49 | H40: 5251.23 | I40: 0.771000318 | J40: 4048.7 | L40: 5251.23 | M40: 1.74930064 | N40: 9185.98 | P40: 13234.68
B41: April | D41: 5233.57 | E41: 3.194200135 | F41: 16717.07 | H41: 5233.57 | I41: 0.770999528 | J41: 4035.08 | L41: 5233.57 | M41: 1.749299236 | N41: 9155.08 | P41: 13190.16
B42: May | D42: 5303.27 | E42: 3.194197165 | F42: 16939.69 | H42: 5303.27 | I42: 0.7709997794 | J42: 4088.82 | L42: 5303.27 | M42: 1.749298075 | N42: 9277 | P42: 13365.82
B43: June | D43: 31171.05 | E43: 3.194200067 | F43: 99566.57 | H43: 31171.05 | I43: 0.7710000144 | J43: 24032.88 | L43: 31171.05 | M43: 1.749300072 | N43: 54527.52 | P43: 78560.4
B44: July | D44: 18191.19 | E44: 3.194200599 | F44: 58106.31 | H44: 18191.19 | I44: 0.771000138 | J44: 14025.41 | L44: 18191.19 | M44: 1.749300623 | N44: 31821.86 | P44: 45847.27
B45: August | D45: 30805.27 | E45: 3.194200213 | F45: 98398.2 | H45: 30805.27 | I45: 0.7709998971 | J45: 23750.86 | L45: 30805.27 | M45: 1.749300039 | N45: 53887.66 | P45: 77638.52
B46: September | D46: 33450.1 | E46: 3.194199718 | F46: 106846.3 | H46: 33450.1 | I46: 0.7710000867 | J46: 25790.03 | L46: 33450.1 | M46: 1.749300002 | N46: 58514.26 | P46: 84304.29
B47: October | D47: 17.34 | E47: 3.194925029 | F47: 55.4 | H47: 17.34 | I47: 0.7710495963 | J47: 13.37 | L47: 17.34 | M47: 1.749711649 | N47: 30.34 | P47: 43.71
B48: November | D48: 11558.27 | E48: 3.194200343 | F48: 36919.43 | H48: 11558.27 | I48: 0.7710003314 | J48: 8911.43 | L48: 11558.27 | M48: 1.749300717 | N48: 20218.89 | P48: 29130.32
B49: December | D49: 11874.31 | E49: 3.194199916 | F49: 37928.92 | H49: 11874.31 | I49: 0.7709997465 | J49: 9155.09 | L49: 11874.31 | M49: 1.749299959 | N49: 20771.73 | P49: 29926.82
B51: Total | D51: =SUM(D38:D49) -> 163252.45 | E51: =IF(D51<>0,F51/D51,0) -> 3.194200087 | F51: =SUM(F38:F49) -> 521460.99 | H51: =SUM(H38:H49) -> 163252.45 | I51: =IF(H51<>0,J51/H51,0) -> 0.7710000064 | J51: =SUM(J38:J49) -> 125867.64 | L51: =SUM(L38:L49) -> 163252.45 | M51: =IF(L51<>0,N51/L51,0) -> 1.749300118 | N51: =SUM(N38:N49) -> 285577.53 | P51: =SUM(P38:P49) -> 411445.17
B53: Add Extra Host Here (I) | D53: Network | H53: Line Connection | L53: Transformation Connection | P53: Total Line
B54: (if needed)
B55: Month | D55: Units Billed | E55: Rate | F55: Amount | H55: Units Billed | I55: Rate | J55: Amount | L55: Units Billed | M55: Rate | N55: Amount | P55: Amount
B57: January | E57: =IF(D57<>0,F57/D57,0) -> 0 | I57: =IF(H57<>0,J57/H57,0) -> 0 | M57: =IF(L57<>0,N57/L57,0) -> 0 | P57: =J57+N57 -> 0
B58: February | E58: 0 | I58: 0 | M58: 0 | P58: 0
B59: March | E59: 0 | I59: 0 | M59: 0 | P59: 0
B60: April | E60: 0 | I60: 0 | M60: 0 | P60: 0
B61: May | E61: 0 | I61: 0 | M61: 0 | P61: 0
B62: June | E62: 0 | I62: 0 | M62: 0 | P62: 0
B63: July | E63: 0 | I63: 0 | M63: 0 | P63: 0
B64: August | E64: 0 | I64: 0 | M64: 0 | P64: 0
B65: September | E65: 0 | I65: 0 | M65: 0 | P65: 0
B66: October | E66: 0 | I66: 0 | M66: 0 | P66: 0
B67: November | E67: 0 | I67: 0 | M67: 0 | P67: 0
B68: December | E68: 0 | I68: 0 | M68: 0 | P68: 0
B70: Total | D70: =SUM(D57:D68) -> 0 | E70: =IF(D70<>0,F70/D70,0) -> 0 | F70: =SUM(F57:F68) -> 0 | H70: =SUM(H57:H68) -> 0 | I70: =IF(H70<>0,J70/H70,0) -> 0 | J70: =SUM(J57:J68) -> 0 | L70: =SUM(L57:L68) -> 0 | M70: =IF(L70<>0,N70/L70,0) -> 0 | N70: =SUM(N57:N68) -> 0 | P70: =SUM(P57:P68) -> 0
B72: Add Extra Host Here (II) | D72: Network | H72: Line Connection | L72: Transformation Connection | P72: Total Line
B73: (if needed)
B74: Month | D74: Units Billed | E74: Rate | F74: Amount | H74: Units Billed | I74: Rate | J74: Amount | L74: Units Billed | M74: Rate | N74: Amount | P74: Amount
B76: January | E76: =IF(D76<>0,F76/D76,0) -> 0 | I76: =IF(H76<>0,J76/H76,0) -> 0 | M76: =IF(L76<>0,N76/L76,0) -> 0 | P76: =J76+N76 -> 0
B77: February | E77: 0 | I77: 0 | M77: 0 | P77: 0
B78: March | E78: 0 | I78: 0 | M78: 0 | P78: 0
B79: April | E79: 0 | I79: 0 | M79: 0 | P79: 0
B80: May | E80: 0 | I80: 0 | M80: 0 | P80: 0
B81: June | E81: 0 | I81: 0 | M81: 0 | P81: 0
B82: July | E82: 0 | I82: 0 | M82: 0 | P82: 0
B83: August | E83: 0 | I83: 0 | M83: 0 | P83: 0
B84: September | E84: 0 | I84: 0 | M84: 0 | P84: 0
B85: October | E85: 0 | I85: 0 | M85: 0 | P85: 0
B86: November | E86: 0 | I86: 0 | M86: 0 | P86: 0
B87: December | E87: 0 | I87: 0 | M87: 0 | P87: 0
B89: Total | D89: =SUM(D76:D87) -> 0 | E89: =IF(D89<>0,F89/D89,0) -> 0 | F89: =SUM(F76:F87) -> 0 | H89: =SUM(H76:H87) -> 0 | I89: =IF(H89<>0,J89/H89,0) -> 0 | J89: =SUM(J76:J87) -> 0 | L89: =SUM(L76:L87) -> 0 | M89: =IF(L89<>0,N89/L89,0) -> 0 | N89: =SUM(N76:N87) -> 0 | P89: =SUM(P76:P87) -> 0
B91: Total | D91: Network | H91: Line Connection | L91: Transformation Connection | P91: Total Line
B93: Month | D93: Units Billed | E93: Rate | F93: Amount | H93: Units Billed | I93: Rate | J93: Amount | L93: Units Billed | M93: Rate | N93: Amount | P93: Amount
B95: January | D95: =D19+D38+D57+D76 -> 598660.42 | E95: =IF(D95<>0,F95/D95,0) -> 3.606336644 | F95: =F19+F38+F57+F76 -> 2158971.01 | H95: =H19+H38+H57+H76 -> 632470.42 | I95: =IF(H95<>0,J95/H95,0) -> 0.9485072519 | J95: =J19+J38+J57+J76 -> 599902.78 | L95: =L19+L38+L57+L76 -> 545424.42 | M95: =IF(L95<>0,N95/L95,0) -> 2.334287746 | N95: =N19+N38+N57+N76 -> 1273177.54 | P95: =J95+N95 -> 1873080.32
B96: February | D96: =D20+D39+D58+D77 -> 589338.43 | E96: 3.606385927 | F96: =F20+F39+F58+F77 -> 2125381.82 | H96: =H20+H39+H58+H77 -> 604717.43 | I96: 0.948483724 | J96: =J20+J39+J58+J77 -> 573564.64 | L96: =L20+L39+L58+L77 -> 522914.43 | M96: 2.334213554 | N96: =N20+N39+N58+N77 -> 1220593.95 | P96: 1794158.59
B97: March | D97: 563918.23 | E97: 3.606128073 | F97: 2033561.36 | H97: 594914.23 | I97: 0.9484199932 | J97: 564228.55 | L97: 518610.23 | M97: 2.334018826 | N97: 1210446.04 | P97: 1774674.59
B98: April | D98: 563150.57 | E98: 3.606135816 | F98: 2030797.44 | H98: 582207.57 | I98: 0.9483909321 | J98: 552160.38 | L98: 505446.57 | M98: 2.333883678 | N98: 1179653.5 | P98: 1731813.88
B99: May | D99: 746378.27 | E99: 3.60704558 | F99: 2692220.44 | H99: 770135.27 | I99: 0.9487673769 | J99: 730679.22 | L99: 668768.27 | M99: 2.335315789 | N99: 1561785.1 | P99: 2292464.32
B100: June | D100: 807295.05 | E100: 3.59394525 | F100: 2901374.21 | H100: 847800.05 | I100: 0.9434187106 | J100: 799830.43 | L100: 727562.05 | M100: 2.314692554 | N100: 1684082.46 | P100: 2483912.89
B101: July | D101: 851666.19 | E101: 3.60111872 | F101: 3066951.06 | H101: 861763.19 | I101: 0.946221444 | J101: 815418.81 | L101: 738410.19 | M101: 2.325447757 | N101: 1717134.32 | P101: 2532553.13
B102: August | D102: 788495.27 | E102: 3.593755356 | F102: 2833659.1 | H102: 823108.27 | I102: 0.9433008248 | J102: 776438.71 | L102: 711819.27 | M102: 2.314436388 | N102: 1647460.42 | P102: 2423899.13
B103: September | D103: 849217.1 | E103: 3.593621902 | F103: 3051765.17 | H103: 873439.1 | I103: 0.9431448397 | J103: 823779.58 | L103: 746213.1 | M103: 2.313521004 | N103: 1726379.68 | P103: 2550159.26
B104: October | D104: 596035.34 | E104: 3.609987925 | F104: 2151680.38 | H104: 621306.34 | I104: 0.9499950057 | J104: 590237.92 | L104: 536183.34 | M104: 2.33998091 | N104: 1254658.78 | P104: 1844896.7
B105: November | D105: 579548.27 | E105: 3.601707464 | F105: 2087363.33 | H105: 605895.27 | I105: 0.9465853397 | J105: 573531.58 | L105: 519746.27 | M105: 2.326863856 | N105: 1209378.81 | P105: 1782910.39
B106: December | D106: 567859.31 | E106: 3.601305348 | F106: 2045034.77 | H106: 610873.31 | I106: 0.9465205478 | J106: 578204.14 | L106: 530086.31 | M106: 2.326767899 | N106: 1233387.81 | P106: 1811591.95
B108: Total | D108: =SUM(D95:D106) -> 8101562.45 | E108: =IF(D108<>0,F108/D108,0) -> 3.601621326 | F108: =SUM(F95:F106) -> 29178760.09 | H108: =SUM(H95:H106) -> 8428630.45 | I108: =IF(H108<>0,J108/H108,0) -> 0.9465329851 | J108: =SUM(J95:J106) -> 7977976.74 | L108: =SUM(L95:L106) -> 7271184.45 | M108: =IF(L108<>0,N108/L108,0) -> 2.326737621 | N108: =SUM(N95:N106) -> 16918138.41 | P108: =SUM(P95:P106) -> 24896115.15
N110: Low Voltage Switchgear Credit (if applicable) | P110: ='12. RTSR-UTRs & Sub-Tx'!E68 -> 0
N112: Total including deduction for Low Voltage Switchgear Credit | P112: =P108+P110 -> 24896115.15

Sheet 14. RTSR-Current Wholesale
A1: Back to Index
B2: =+'1. Information Sheet'!B2 -> INCENTIVE REGULATION MODEL FOR 2020 FILERS
B13: The purpose of this sheet is to calculate the expected billing when current 2019 Uniform Transmission Rates are applied against historical 2018 transmission units.
B16: IESO | D16: Network | H16: Line Connection | L16: Transformation Connection | P16: Total Line
B18: Month | D18: Units Billed | E18: Rate | F18: Amount | H18: Units Billed | I18: Rate | J18: Amount | L18: Units Billed | M18: Rate | N18: Amount | P18: Amount
B20: January | D20: ='13. RTSR-Historic Wholesale'!D19 -> 593386 | E20: ='12. RTSR-UTRs & Sub-Tx'!G16 -> 3.71 | F20: =D20*E20 -> 2201462.06 | H20: ='13. RTSR-Historic Wholesale'!H19 -> 627196 | I20: ='12. RTSR-UTRs & Sub-Tx'!G18 -> 0.94 | J20: =H20*I20 -> 589564.24 | L20: ='13. RTSR-Historic Wholesale'!L19 -> 540150 | M20: ='12. RTSR-UTRs & Sub-Tx'!G20 -> 2.25 | N20: =L20*M20 -> 1215337.5 | P20: =J20+N20 -> 1804901.74
B21: February | D21: ='13. RTSR-Historic Wholesale'!D20 -> 584216 | E21: =E20 -> 3.71 | F21: =D21*E21 -> 2167441.36 | H21: ='13. RTSR-Historic Wholesale'!H20 -> 599595 | I21: =I20 -> 0.94 | J21: =H21*I21 -> 563619.3 | L21: ='13. RTSR-Historic Wholesale'!L20 -> 517792 | M21: =M20 -> 2.25 | N21: =L21*M21 -> 1165032 | P21: 1728651.3
B22: March | D22: ='13. RTSR-Historic Wholesale'!D21 -> 558667 | E22: =E21 -> 3.71 | F22: 2072654.57 | H22: ='13. RTSR-Historic Wholesale'!H21 -> 589663 | I22: =I21 -> 0.94 | J22: 554283.22 | L22: ='13. RTSR-Historic Wholesale'!L21 -> 513359 | M22: =M21 -> 2.25 | N22: 1155057.75 | P22: 1709340.97
B23: April | D23: ='13. RTSR-Historic Wholesale'!D22 -> 557917 | E23: 3.71 | F23: 2069872.07 | H23: ='13. RTSR-Historic Wholesale'!H22 -> 576974 | I23: 0.94 | J23: 542355.56 | L23: ='13. RTSR-Historic Wholesale'!L22 -> 500213 | M23: 2.25 | N23: 1125479.25 | P23: 1667834.81
B24: May | D24: ='13. RTSR-Historic Wholesale'!D23 -> 741075 | E24: 3.71 | F24: 2749388.25 | H24: ='13. RTSR-Historic Wholesale'!H23 -> 764832 | I24: 0.94 | J24: 718942.08 | L24: ='13. RTSR-Historic Wholesale'!L23 -> 663465 | M24: 2.25 | N24: 1492796.25 | P24: 2211738.33
B25: June | D25: ='13. RTSR-Historic Wholesale'!D24 -> 776124 | E25: 3.71 | F25: 2879420.04 | H25: ='13. RTSR-Historic Wholesale'!H24 -> 816629 | I25: 0.94 | J25: 767631.26 | L25: ='13. RTSR-Historic Wholesale'!L24 -> 696391 | M25: 2.25 | N25: 1566879.75 | P25: 2334511.01
B26: July | D26: ='13. RTSR-Historic Wholesale'!D25 -> 833475 | E26: 3.71 | F26: 3092192.25 | H26: ='13. RTSR-Historic Wholesale'!H25 -> 843572 | I26: 0.94 | J26: 792957.68 | L26: ='13. RTSR-Historic Wholesale'!L25 -> 720219 | M26: 2.25 | N26: 1620492.75 | P26: 2413450.43
B27: August | D27: ='13. RTSR-Historic Wholesale'!D26 -> 757690 | E27: 3.71 | F27: 2811029.9 | H27: ='13. RTSR-Historic Wholesale'!H26 -> 792303 | I27: 0.94 | J27: 744764.82 | L27: ='13. RTSR-Historic Wholesale'!L26 -> 681014 | M27: 2.25 | N27: 1532281.5 | P27: 2277046.32
B28: September | D28: ='13. RTSR-Historic Wholesale'!D27 -> 815767 | E28: 3.71 | F28: 3026495.57 | H28: ='13. RTSR-Historic Wholesale'!H27 -> 839989 | I28: 0.94 | J28: 789589.66 | L28: ='13. RTSR-Historic Wholesale'!L27 -> 712763 | M28: 2.25 | N28: 1603716.75 | P28: 2393306.41
B29: October | D29: ='13. RTSR-Historic Wholesale'!D28 -> 596018 | E29: 3.71 | F29: 2211226.78 | H29: ='13. RTSR-Historic Wholesale'!H28 -> 621289 | I29: 0.94 | J29: 584011.66 | L29: ='13. RTSR-Historic Wholesale'!L28 -> 536166 | M29: 2.25 | N29: 1206373.5 | P29: 1790385.16
B30: November | D30: ='13. RTSR-Historic Wholesale'!D29 -> 567990 | E30: 3.71 | F30: 2107242.9 | H30: ='13. RTSR-Historic Wholesale'!H29 -> 594337 | I30: 0.94 | J30: 558676.78 | L30: ='13. RTSR-Historic Wholesale'!L29 -> 508188 | M30: 2.25 | N30: 1143423 | P30: 1702099.78
B31: December | D31: ='13. RTSR-Historic Wholesale'!D30 -> 555985 | E31: 3.71 | F31: 2062704.35 | H31: ='13. RTSR-Historic Wholesale'!H30 -> 598999 | I31: 0.94 | J31: 563059.06 | L31: ='13. RTSR-Historic Wholesale'!L30 -> 518212 | M31: 2.25 | N31: 1165977 | P31: 1729036.06
B33: Total | D33: =SUM(D20:D31) -> 7938310 | E33: =IF(D33<>0,F33/D33,0) -> 3.71 | F33: =SUM(F20:F31) -> 29451130.1 | H33: =SUM(H20:H31) -> 8265378 | I33: =IF(H33<>0,J33/H33,0) -> 0.94 | J33: =SUM(J20:J31) -> 7769455.32 | L33: =SUM(L20:L31) -> 7107932 | M33: =IF(L33<>0,N33/L33,0) -> 2.25 | N33: =SUM(N20:N31) -> 15992847 | P33: =SUM(P20:P31) -> 23762302.32
B35: Hydro One | D35: Network | H35: Line Connection | L35: Transformation Connection | P35: Total Line
B37: Month | D37: Units Billed | E37: Rate | F37: Amount | H37: Units Billed | I37: Rate | J37: Amount | L37: Units Billed | M37: Rate | N37: Amount | P37: Amount
B39: January | D39: ='13. RTSR-Historic Wholesale'!D38 -> 5274.42 | E39: ='12. RTSR-UTRs & Sub-Tx'!G29 -> 3.1942 | F39: =D39*E39 -> 16847.55236 | H39: ='13. RTSR-Historic Wholesale'!H38 -> 5274.42 | I39: ='12. RTSR-UTRs & Sub-Tx'!G31 -> 0.771 | J39: =H39*I39 -> 4066.57782 | L39: ='13. RTSR-Historic Wholesale'!L38 -> 5274.42 | M39: ='12. RTSR-UTRs & Sub-Tx'!G33 -> 1.7493 | N39: =L39*M39 -> 9226.542906 | P39: =J39+N39 -> 13293.12073
B40: February | D40: ='13. RTSR-Historic Wholesale'!D39 -> 5122.43 | E40: =E39 -> 3.1942 | F40: =D40*E40 -> 16362.06591 | H40: ='13. RTSR-Historic Wholesale'!H39 -> 5122.43 | I40: =I39 -> 0.771 | J40: =H40*I40 -> 3949.39353 | L40: ='13. RTSR-Historic Wholesale'!L39 -> 5122.43 | M40: =M39 -> 1.7493 | N40: =L40*M40 -> 8960.666799 | P40: 12910.06033
B41: March | D41: ='13. RTSR-Historic Wholesale'!D40 -> 5251.23 | E41: =E40 -> 3.1942 | F41: 16773.47887 | H41: ='13. RTSR-Historic Wholesale'!H40 -> 5251.23 | I41: =I40 -> 0.771 | J41: 4048.69833 | L41: ='13. RTSR-Historic Wholesale'!L40 -> 5251.23 | M41: =M40 -> 1.7493 | N41: 9185.976639 | P41: 13234.67497
B42: April | D42: ='13. RTSR-Historic Wholesale'!D41 -> 5233.57 | E42: 3.1942 | F42: 16717.06929 | H42: ='13. RTSR-Historic Wholesale'!H41 -> 5233.57 | I42: 0.771 | J42: 4035.08247 | L42: ='13. RTSR-Historic Wholesale'!L41 -> 5233.57 | M42: =M41 -> 1.7493 | N42: 9155.084001 | P42: 13190.16647
B43: May | D43: ='13. RTSR-Historic Wholesale'!D42 -> 5303.27 | E43: 3.1942 | F43: 16939.70503 | H43: ='13. RTSR-Historic Wholesale'!H42 -> 5303.27 | I43: 0.771 | J43: 4088.82117 | L43: ='13. RTSR-Historic Wholesale'!L42 -> 5303.27 | M43: 1.7493 | N43: 9277.010211 | P43: 13365.83138
B44: June | D44: ='13. RTSR-Historic Wholesale'!D43 -> 31171.05 | E44: 3.1942 | F44: 99566.56791 | H44: ='13. RTSR-Historic Wholesale'!H43 -> 31171.05 | I44: 0.771 | J44: 24032.87955 | L44: ='13. RTSR-Historic Wholesale'!L43 -> 31171.05 | M44: 1.7493 | N44: 54527.51777 | P44: 78560.39732
B45: July | D45: ='13. RTSR-Historic Wholesale'!D44 -> 18191.19 | E45: 3.1942 | F45: 58106.2991 | H45: ='13. RTSR-Historic Wholesale'!H44 -> 18191.19 | I45: 0.771 | J45: 14025.40749 | L45: ='13. RTSR-Historic Wholesale'!L44 -> 18191.19 | M45: 1.7493 | N45: 31821.84867 | P45: 45847.25616
B46: August | D46: ='13. RTSR-Historic Wholesale'!D45 -> 30805.27 | E46: 3.1942 | F46: 98398.19343 | H46: ='13. RTSR-Historic Wholesale'!H45 -> 30805.27 | I46: 0.771 | J46: 23750.86317 | L46: ='13. RTSR-Historic Wholesale'!L45 -> 30805.27 | M46: 1.7493 | N46: 53887.65881 | P46: 77638.52198
B47: September | D47: ='13. RTSR-Historic Wholesale'!D46 -> 33450.1 | E47: 3.1942 | F47: 106846.3094 | H47: ='13. RTSR-Historic Wholesale'!H46 -> 33450.1 | I47: 0.771 | J47: 25790.0271 | L47: ='13. RTSR-Historic Wholesale'!L46 -> 33450.1 | M47: 1.7493 | N47: 58514.25993 | P47: 84304.28703
B48: October | D48: ='13. RTSR-Historic Wholesale'!D47 -> 17.34 | E48: 3.1942 | F48: 55.387428 | H48: ='13. RTSR-Historic Wholesale'!H47 -> 17.34 | I48: 0.771 | J48: 13.36914 | L48: ='13. RTSR-Historic Wholesale'!L47 -> 17.34 | M48: 1.7493 | N48: 30.332862 | P48: 43.702002
B49: November | D49: ='13. RTSR-Historic Wholesale'!D48 -> 11558.27 | E49: 3.1942 | F49: 36919.42603 | H49: ='13. RTSR-Historic Wholesale'!H48 -> 11558.27 | I49: 0.771 | J49: 8911.42617 | L49: ='13. RTSR-Historic Wholesale'!L48 -> 11558.27 | M49: 1.7493 | N49: 20218.88171 | P49: 29130.30788
B50: December | D50: ='13. RTSR-Historic Wholesale'!D49 -> 11874.31 | E50: 3.1942 | F50: 37928.921 | H50: ='13. RTSR-Historic Wholesale'!H49 -> 11874.31 | I50: 0.771 | J50: 9155.09301 | L50: ='13. RTSR-Historic Wholesale'!L49 -> 11874.31 | M50: 1.7493 | N50: 20771.73048 | P50: 29926.82349
B52: Total | D52: =SUM(D39:D50) -> 163252.45 | E52: =IF(D52<>0,F52/D52,0) -> 3.1942 | F52: =SUM(F39:F50) -> 521460.9758 | H52: =SUM(H39:H50) -> 163252.45 | I52: =IF(H52<>0,J52/H52,0) -> 0.771 | J52: =SUM(J39:J50) -> 125867.6389 | L52: =SUM(L39:L50) -> 163252.45 | M52: =IF(L52<>0,N52/L52,0) -> 1.7493 | N52: =SUM(N39:N50) -> 285577.5108 | P52: =SUM(P39:P50) -> 411445.1497
B54: ='[4]12. RTSR - Historical Wholesale'!B53 -> Add Extra Host Here (I) | D54: Network | H54: Line Connection | L54: Transformation Connection | P54: Total Line
B56: Month | D56: Units Billed | E56: Rate | F56: Amount | H56: Units Billed | I56: Rate | J56: Amount | L56: Units Billed | M56: Rate | N56: Amount | P56: Amount
B58: January | D58: ='13. RTSR-Historic Wholesale'!D57 -> 0 | E58: ='12. RTSR-UTRs & Sub-Tx'!G44 -> 0 | F58: =D58*E58 -> 0 | H58: ='13. RTSR-Historic Wholesale'!H57 -> 0 | I58: ='12. RTSR-UTRs & Sub-Tx'!G46 -> 0 | J58: =H58*I58 -> 0 | L58: ='13. RTSR-Historic Wholesale'!L57 -> 0 | M58: ='12. RTSR-UTRs & Sub-Tx'!G48 -> 0 | N58: =L58*M58 -> 0 | P58: =J58+N58 -> 0
B59: February | D59: ='13. RTSR-Historic Wholesale'!D58 -> 0 | E59: =E58 -> 0 | F59: =D59*E59 -> 0 | H59: ='13. RTSR-Historic Wholesale'!H58 -> 0 | I59: =I58 -> 0 | J59: =H59*I59 -> 0 | L59: ='13. RTSR-Historic Wholesale'!L58 -> 0 | M59: =M58 -> 0 | N59: =L59*M59 -> 0 | P59: 0
B60: March | D60: ='13. RTSR-Historic Wholesale'!D59 -> 0 | E60: =E59 -> 0 | F60: 0 | H60: ='13. RTSR-Historic Wholesale'!H59 -> 0 | I60: =I59 -> 0 | J60: 0 | L60: ='13. RTSR-Historic Wholesale'!L59 -> 0 | M60: =M59 -> 0 | N60: 0 | P60: 0
B61: April | D61: ='13. RTSR-Historic Wholesale'!D60 -> 0 | E61: 0 | F61: 0 | H61: ='13. RTSR-Historic Wholesale'!H60 -> 0 | I61: 0 | J61: 0 | L61: ='13. RTSR-Historic Wholesale'!L60 -> 0 | M61: 0 | N61: 0 | P61: 0
B62: May | D62: ='13. RTSR-Historic Wholesale'!D61 -> 0 | E62: 0 | F62: 0 | H62: ='13. RTSR-Historic Wholesale'!H61 -> 0 | I62: 0 | J62: 0 | L62: ='13. RTSR-Historic Wholesale'!L61 -> 0 | M62: 0 | N62: 0 | P62: 0
B63: June | D63: ='13. RTSR-Historic Wholesale'!D62 -> 0 | E63: 0 | F63: 0 | H63: ='13. RTSR-Historic Wholesale'!H62 -> 0 | I63: 0 | J63: 0 | L63: ='13. RTSR-Historic Wholesale'!L62 -> 0 | M63: 0 | N63: 0 | P63: 0
B64: July | D64: ='13. RTSR-Historic Wholesale'!D63 -> 0 | E64: 0 | F64: 0 | H64: ='13. RTSR-Historic Wholesale'!H63 -> 0 | I64: 0 | J64: 0 | L64: ='13. RTSR-Historic Wholesale'!L63 -> 0 | M64: 0 | N64: 0 | P64: 0
B65: August | D65: ='13. RTSR-Historic Wholesale'!D64 -> 0 | E65: 0 | F65: 0 | H65: ='13. RTSR-Historic Wholesale'!H64 -> 0 | I65: 0 | J65: 0 | L65: ='13. RTSR-Historic Wholesale'!L64 -> 0 | M65: 0 | N65: 0 | P65: 0
B66: September | D66: ='13. RTSR-Historic Wholesale'!D65 -> 0 | E66: 0 | F66: 0 | H66: ='13. RTSR-Historic Wholesale'!H65 -> 0 | I66: 0 | J66: 0 | L66: ='13. RTSR-Historic Wholesale'!L65 -> 0 | M66: 0 | N66: 0 | P66: 0
B67: October | D67: ='13. RTSR-Historic Wholesale'!D66 -> 0 | E67: 0 | F67: 0 | H67: ='13. RTSR-Historic Wholesale'!H66 -> 0 | I67: 0 | J67: 0 | L67: ='13. RTSR-Historic Wholesale'!L66 -> 0 | M67: 0 | N67: 0 | P67: 0
B68: November | D68: ='13. RTSR-Historic Wholesale'!D67 -> 0 | E68: 0 | F68: 0 | H68: ='13. RTSR-Historic Wholesale'!H67 -> 0 | I68: 0 | J68: 0 | L68: ='13. RTSR-Historic Wholesale'!L67 -> 0 | M68: 0 | N68: 0 | P68: 0
B69: December | D69: ='13. RTSR-Historic Wholesale'!D68 -> 0 | E69: 0 | F69: 0 | H69: ='13. RTSR-Historic Wholesale'!H68 -> 0 | I69: 0 | J69: 0 | L69: ='13. RTSR-Historic Wholesale'!L68 -> 0 | M69: 0 | N69: 0 | P69: 0
B71: Total | D71: =SUM(D58:D69) -> 0 | E71: =IF(D71<>0,F71/D71,0) -> 0 | F71: =SUM(F58:F69) -> 0 | H71: =SUM(H58:H69) -> 0 | I71: =IF(H71<>0,J71/H71,0) -> 0 | J71: =SUM(J58:J69) -> 0 | L71: =SUM(L58:L69) -> 0 | M71: =IF(L71<>0,N71/L71,0) -> 0 | N71: =SUM(N58:N69) -> 0 | P71: =SUM(P58:P69) -> 0
B73: ='[4]12. RTSR - Historical Wholesale'!B72 -> Add Extra Host Here (II) | D73: Network | H73: Line Connection | L73: Transformation Connection | P73: Total Line
B75: Month | D75: Units Billed | E75: Rate | F75: Amount | H75: Units Billed | I75: Rate | J75: Amount | L75: Units Billed | M75: Rate | N75: Amount | P75: Amount
B77: January | D77: ='13. RTSR-Historic Wholesale'!D76 -> 0 | E77: ='12. RTSR-UTRs & Sub-Tx'!G59 -> 0 | F77: =D77*E77 -> 0 | H77: ='13. RTSR-Historic Wholesale'!H76 -> 0 | I77: ='12. RTSR-UTRs & Sub-Tx'!G61 -> 0 | J77: =H77*I77 -> 0 | L77: ='13. RTSR-Historic Wholesale'!L76 -> 0 | M77: ='12. RTSR-UTRs & Sub-Tx'!G63 -> 0 | N77: =L77*M77 -> 0 | P77: =J77+N77 -> 0
B78: February | D78: ='13. RTSR-Historic Wholesale'!D77 -> 0 | E78: =E77 -> 0 | F78: =D78*E78 -> 0 | H78: ='13. RTSR-Historic Wholesale'!H77 -> 0 | I78: =I77 -> 0 | J78: =H78*I78 -> 0 | L78: ='13. RTSR-Historic Wholesale'!L77 -> 0 | M78: =M77 -> 0 | N78: =L78*M78 -> 0 | P78: 0
B79: March | D79: ='13. RTSR-Historic Wholesale'!D78 -> 0 | E79: =E78 -> 0 | F79: 0 | H79: ='13. RTSR-Historic Wholesale'!H78 -> 0 | I79: =I78 -> 0 | J79: 0 | L79: ='13. RTSR-Historic Wholesale'!L78 -> 0 | M79: =M78 -> 0 | N79: 0 | P79: 0
B80: April | D80: ='13. RTSR-Historic Wholesale'!D79 -> 0 | E80: 0 | F80: 0 | H80: ='13. RTSR-Historic Wholesale'!H79 -> 0 | I80: 0 | J80: 0 | L80: ='13. RTSR-Historic Wholesale'!L79 -> 0 | M80: =M79 -> 0 | N80: 0 | P80: 0
B81: May | D81: ='13. RTSR-Historic Wholesale'!D80 -> 0 | E81: 0 | F81: 0 | H81: ='13. RTSR-Historic Wholesale'!H80 -> 0 | I81: 0 | J81: 0 | L81: ='13. RTSR-Historic Wholesale'!L80 -> 0 | M81: 0 | N81: 0 | P81: 0
B82: June | D82: ='13. RTSR-Historic Wholesale'!D81 -> 0 | E82: 0 | F82: 0 | H82: ='13. RTSR-Historic Wholesale'!H81 -> 0 | I82: 0 | J82: 0 | L82: ='13. RTSR-Historic Wholesale'!L81 -> 0 | M82: 0 | N82: 0 | P82: 0
B83: July | D83: ='13. RTSR-Historic Wholesale'!D82 -> 0 | E83: 0 | F83: 0 | H83: ='13. RTSR-Historic Wholesale'!H82 -> 0 | I83: 0 | J83: 0 | L83: ='13. RTSR-Historic Wholesale'!L82 -> 0 | M83: 0 | N83: 0 | P83: 0
B84: August | D84: ='13. RTSR-Historic Wholesale'!D83 -> 0 | E84: 0 | F84: 0 | H84: ='13. RTSR-Historic Wholesale'!H83 -> 0 | I84: 0 | J84: 0 | L84: ='13. RTSR-Historic Wholesale'!L83 -> 0 | M84: 0 | N84: 0 | P84: 0
B85: September | D85: ='13. RTSR-Historic Wholesale'!D84 -> 0 | E85: 0 | F85: 0 | H85: ='13. RTSR-Historic Wholesale'!H84 -> 0 | I85: 0 | J85: 0 | L85: ='13. RTSR-Historic Wholesale'!L84 -> 0 | M85: 0 | N85: 0 | P85: 0
B86: October | D86: ='13. RTSR-Historic Wholesale'!D85 -> 0 | E86: 0 | F86: 0 | H86: ='13. RTSR-Historic Wholesale'!H85 -> 0 | I86: 0 | J86: 0 | L86: ='13. RTSR-Historic Wholesale'!L85 -> 0 | M86: 0 | N86: 0 | P86: 0
B87: November | D87: ='13. RTSR-Historic Wholesale'!D86 -> 0 | E87: 0 | F87: 0 | H87: ='13. RTSR-Historic Wholesale'!H86 -> 0 | I87: 0 | J87: 0 | L87: ='13. RTSR-Historic Wholesale'!L86 -> 0 | M87: 0 | N87: 0 | P87: 0
B88: December | D88: ='13. RTSR-Historic Wholesale'!D87 -> 0 | E88: 0 | F88: 0 | H88: ='13. RTSR-Historic Wholesale'!H87 -> 0 | I88: 0 | J88: 0 | L88: ='13. RTSR-Historic Wholesale'!L87 -> 0 | M88: 0 | N88: 0 | P88: 0
B90: Total | D90: =SUM(D77:D88) -> 0 | E90: =IF(D90<>0,F90/D90,0) -> 0 | F90: =SUM(F77:F88) -> 0 | H90: =SUM(H77:H88) -> 0 | I90: =IF(H90<>0,J90/H90,0) -> 0 | J90: =SUM(J77:J88) -> 0 | L90: =SUM(L77:L88) -> 0 | M90: =IF(L90<>0,N90/L90,0) -> 0 | N90: =SUM(N77:N88) -> 0 | P90: =SUM(P77:P88) -> 0
B92: Total | D92: Network | H92: Line Connection | L92: Transformation Connection | P92: Total Line
B94: Month | D94: Units Billed | E94: Rate | F94: Amount | H94: Units Billed | I94: Rate | J94: Amount | L94: Units Billed | M94: Rate | N94: Amount | P94: Amount
B96: January | D96: =D20+D39+D58+D77 -> 598660.42 | E96: =IF(D96<>0,F96/D96,0) -> 3.705455611 | F96: =F20+F39+F58+F77 -> 2218309.612 | H96: =H20+H39+H58+H77 -> 632470.42 | I96: =IF(H96<>0,J96/H96,0) -> 0.9385906424 | J96: =J20+J39+J58+J77 -> 593630.8178 | L96: =L20+L39+L58+L77 -> 545424.42 | M96: =IF(L96<>0,N96/L96,0) -> 2.245158079 | N96: =N20+N39+N58+N77 -> 1224564.043 | P96: =J96+N96 -> 1818194.861
B97: February | D97: =D21+D40+D59+D78 -> 589338.43 | E97: 3.705516754 | F97: =F21+F40+F59+F78 -> 2183803.426 | H97: =H21+H40+H59+H78 -> 604717.43 | I97: 0.9385684377 | J97: =J21+J40+J59+J78 -> 567568.6935 | L97: =L21+L40+L59+L78 -> 522914.43 | M97: 2.245095181 | N97: =N21+N40+N59+N78 -> 1173992.667 | P97: 1741561.36
B98: March | D98: 563918.23 | E98: 3.705196849 | F98: 2089428.049 | H98: 594914.23 | I98: 0.9385082591 | J98: 558331.9183 | L98: 518610.23 | M98: 2.244930121 | N98: 1164243.727 | P98: 1722575.645
B99: April | D99: 563150.57 | E99: 3.705206477 | F99: 2086589.139 | H99: 582207.57 | I99: 0.9384808282 | J99: 546390.6425 | L99: 505446.57 | M99: 2.244815578 | N99: 1134634.334 | P99: 1681024.976
B100: May | D100: 746378.27 | E100: 3.706335067 | F100: 2766327.955 | H100: 770135.27 | I100: 0.93883624 | J100: 723030.9012 | L100: 668768.27 | M100: 2.246029496 | N100: 1502073.26 | P100: 2225104.161
B101: June | D101: 807295.05 | E101: 3.690084075 | F101: 2978986.608 | H101: 847800.05 | I101: 0.9337863799 | J101: 791664.1395 | L101: 727562.05 | M101: 2.228548435 | N101: 1621407.268 | P101: 2413071.407
B102: July | D102: 851666.19 | E102: 3.698982754 | F102: 3150298.549 | H102: 861763.19 | I102: 0.9364325337 | J102: 806983.0875 | L102: 738410.19 | M102: 2.237664947 | N102: 1652314.599 | P102: 2459297.686
B103: August | D103: 788495.27 | E103: 3.689848505 | F103: 2909428.093 | H103: 823108.27 | I103: 0.933675084 | J103: 768515.6832 | L103: 711819.27 | M103: 2.228331299 | N103: 1586169.159 | P103: 2354684.842
B104: September | D104: 849217.1 | E104: 3.689682979 | F104: 3133341.879 | H104: 873439.1 | I104: 0.9335278065 | J104: 815379.6871 | L104: 746213.1 | M104: 2.227555386 | N104: 1662231.01 | P104: =J104+N104 -> 2477610.697
B105: October | D105: 596035.34 | E105: 3.709984994 | F105: 2211282.167 | H105: 621306.34 | I105: 0.9399952834 | J105: 584025.0291 | L105: 536183.34 | M105: 2.249983808 | N105: 1206403.833 | P105: 1790428.862
B106: November | D106: 579548.27 | E106: 3.699713099 | F106: 2144162.326 | H106: 605895.27 | I106: 0.9367760969 | J106: 567588.2062 | L106: 519746.27 | M106: 2.238865287 | N106: 1163641.882 | P106: 1731230.088
B107: December | D107: 567859.31 | E107: 3.699214284 | F107: 2100633.271 | H107: 610873.31 | I107: 0.9367149352 | J107: 572214.153 | L107: 530086.31 | M107: 2.238783964 | N107: 1186748.73 | P107: 1758962.883
B109: Total | D109: =SUM(D96:D107) -> 8101562.45 | E109: =IF(D109<>0,F109/D109,0) -> 3.69960625 | F109: =SUM(F96:F107) -> 29972591.08 | H109: =SUM(H96:H107) -> 8428630.45 | I109: =IF(H109<>0,J109/H109,0) -> 0.9367266729 | J109: =SUM(J96:J107) -> 7895322.959 | L109: =SUM(L96:L107) -> 7271184.45 | M109: =IF(L109<>0,N109/L109,0) -> 2.238758296 | N109: =SUM(N96:N107) -> 16278424.51 | P109: =SUM(P96:P107) -> 24173747.47
N111: Low Voltage Switchgear Credit (if applicable) | P111: ='12. RTSR-UTRs & Sub-Tx'!G68 -> 0
N113: Total including deduction for Low Voltage Switchgear Credit | P113: =P109+P111 -> 24173747.47

Sheet 15. RTSR-Forecast Wholesale
A1: Back to Index
B2: =+'1. Information Sheet'!B2 -> INCENTIVE REGULATION MODEL FOR 2020 FILERS
B13: The purpose of this sheet is to calculate the expected billing when forecasted 2019 Uniform Transmission Rates are applied against historical 2017 transmission units.
B16: IESO | D16: Network | H16: Line Connection | L16: Transformation Connection | P16: Total Line
B18: Month | D18: Units Billed | E18: Rate | F18: Amount | H18: Units Billed | I18: Rate | J18: Amount | L18: Units Billed | M18: Rate | N18: Amount | P18: Amount
B20: January | D20: ='13. RTSR-Historic Wholesale'!D19 -> 593386 | E20: ='12. RTSR-UTRs & Sub-Tx'!I16 -> 3.71 | F20: =D20*E20 -> 2201462.06 | H20: ='13. RTSR-Historic Wholesale'!H19 -> 627196 | I20: ='12. RTSR-UTRs & Sub-Tx'!I18 -> 0.94 | J20: =H20*I20 -> 589564.24 | L20: ='13. RTSR-Historic Wholesale'!L19 -> 540150 | M20: ='12. RTSR-UTRs & Sub-Tx'!I20 -> 2.25 | N20: =L20*M20 -> 1215337.5 | P20: =J20+N20 -> 1804901.74
B21: February | D21: ='13. RTSR-Historic Wholesale'!D20 -> 584216 | E21: =E20 -> 3.71 | F21: 2167441.36 | H21: ='13. RTSR-Historic Wholesale'!H20 -> 599595 | I21: =I20 -> 0.94 | J21: 563619.3 | L21: ='13. RTSR-Historic Wholesale'!L20 -> 517792 | M21: =M20 -> 2.25 | N21: 1165032 | P21: 1728651.3
B22: March | D22: ='13. RTSR-Historic Wholesale'!D21 -> 558667 | E22: 3.71 | F22: 2072654.57 | H22: ='13. RTSR-Historic Wholesale'!H21 -> 589663 | I22: 0.94 | J22: 554283.22 | L22: ='13. RTSR-Historic Wholesale'!L21 -> 513359 | M22: 2.25 | N22: 1155057.75 | P22: 1709340.97
B23: April | D23: ='13. RTSR-Historic Wholesale'!D22 -> 557917 | E23: 3.71 | F23: 2069872.07 | H23: ='13. RTSR-Historic Wholesale'!H22 -> 576974 | I23: 0.94 | J23: 542355.56 | L23: ='13. RTSR-Historic Wholesale'!L22 -> 500213 | M23: 2.25 | N23: 1125479.25 | P23: 1667834.81
B24: May | D24: ='13. RTSR-Historic Wholesale'!D23 -> 741075 | E24: 3.71 | F24: 2749388.25 | H24: ='13. RTSR-Historic Wholesale'!H23 -> 764832 | I24: 0.94 | J24: 718942.08 | L24: ='13. RTSR-Historic Wholesale'!L23 -> 663465 | M24: 2.25 | N24: 1492796.25 | P24: 2211738.33
B25: June | D25: ='13. RTSR-Historic Wholesale'!D24 -> 776124 | E25: 3.71 | F25: 2879420.04 | H25: ='13. RTSR-Historic Wholesale'!H24 -> 816629 | I25: 0.94 | J25: 767631.26 | L25: ='13. RTSR-Historic Wholesale'!L24 -> 696391 | M25: 2.25 | N25: 1566879.75 | P25: 2334511.01
B26: July | D26: ='13. RTSR-Historic Wholesale'!D25 -> 833475 | E26: 3.71 | F26: 3092192.25 | H26: ='13. RTSR-Historic Wholesale'!H25 -> 843572 | I26: 0.94 | J26: 792957.68 | L26: ='13. RTSR-Historic Wholesale'!L25 -> 720219 | M26: 2.25 | N26: 1620492.75 | P26: 2413450.43
B27: August | D27: ='13. RTSR-Historic Wholesale'!D26 -> 757690 | E27: 3.71 | F27: 2811029.9 | H27: ='13. RTSR-Historic Wholesale'!H26 -> 792303 | I27: 0.94 | J27: 744764.82 | L27: ='13. RTSR-Historic Wholesale'!L26 -> 681014 | M27: 2.25 | N27: 1532281.5 | P27: 2277046.32
B28: September | D28: ='13. RTSR-Historic Wholesale'!D27 -> 815767 | E28: 3.71 | F28: 3026495.57 | H28: ='13. RTSR-Historic Wholesale'!H27 -> 839989 | I28: 0.94 | J28: 789589.66 | L28: ='13. RTSR-Historic Wholesale'!L27 -> 712763 | M28: 2.25 | N28: 1603716.75 | P28: 2393306.41
B29: October | D29: ='13. RTSR-Historic Wholesale'!D28 -> 596018 | E29: 3.71 | F29: 2211226.78 | H29: ='13. RTSR-Historic Wholesale'!H28 -> 621289 | I29: 0.94 | J29: 584011.66 | L29: ='13. RTSR-Historic Wholesale'!L28 -> 536166 | M29: 2.25 | N29: 1206373.5 | P29: 1790385.16
B30: November | D30: ='13. RTSR-Historic Wholesale'!D29 -> 567990 | E30: 3.71 | F30: 2107242.9 | H30: ='13. RTSR-Historic Wholesale'!H29 -> 594337 | I30: 0.94 | J30: 558676.78 | L30: ='13. RTSR-Historic Wholesale'!L29 -> 508188 | M30: 2.25 | N30: 1143423 | P30: 1702099.78
B31: December | D31: ='13. RTSR-Historic Wholesale'!D30 -> 555985 | E31: 3.71 | F31: 2062704.35 | H31: ='13. RTSR-Historic Wholesale'!H30 -> 598999 | I31: 0.94 | J31: 563059.06 | L31: ='13. RTSR-Historic Wholesale'!L30 -> 518212 | M31: 2.25 | N31: 1165977 | P31: 1729036.06
B33: Total | D33: =SUM(D20:D31) -> 7938310 | E33: =IF(D33<>0,F33/D33,0) -> 3.71 | F33: =SUM(F20:F31) -> 29451130.1 | H33: =SUM(H20:H31) -> 8265378 | I33: =IF(H33<>0,J33/H33,0) -> 0.94 | J33: =SUM(J20:J31) -> 7769455.32 | L33: =SUM(L20:L31) -> 7107932 | M33: =IF(L33<>0,N33/L33,0) -> 2.25 | N33: =SUM(N20:N31) -> 15992847 | P33: =SUM(P20:P31) -> 23762302.32
B35: Hydro One | D35: Network | H35: Line Connection | L35: Transformation Connection | P35: Total Line
B37: Month | D37: Units Billed | E37: Rate | F37: Amount | H37: Units Billed | I37: Rate | J37: Amount | L37: Units Billed | M37: Rate | N37: Amount | P37: Amount
B39: January | D39: ='13. RTSR-Historic Wholesale'!D38 -> 5274.42 | E39: ='12. RTSR-UTRs & Sub-Tx'!I29 -> 3.1942 | F39: =D39*E39 -> 16847.55236 | H39: ='13. RTSR-Historic Wholesale'!H38 -> 5274.42 | I39: ='12. RTSR-UTRs & Sub-Tx'!I31 -> 0.771 | J39: =H39*I39 -> 4066.57782 | L39: ='13. RTSR-Historic Wholesale'!L38 -> 5274.42 | M39: ='12. RTSR-UTRs & Sub-Tx'!I33 -> 1.7493 | N39: =L39*M39 -> 9226.542906 | P39: =J39+N39 -> 13293.12073
B40: February | D40: ='13. RTSR-Historic Wholesale'!D39 -> 5122.43 | E40: =E39 -> 3.1942 | F40: 16362.06591 | H40: ='13. RTSR-Historic Wholesale'!H39 -> 5122.43 | I40: =I39 -> 0.771 | J40: 3949.39353 | L40: ='13. RTSR-Historic Wholesale'!L39 -> 5122.43 | M40: =M39 -> 1.7493 | N40: 8960.666799 | P40: 12910.06033
B41: March | D41: ='13. RTSR-Historic Wholesale'!D40 -> 5251.23 | E41: 3.1942 | F41: 16773.47887 | H41: ='13. RTSR-Historic Wholesale'!H40 -> 5251.23 | I41: 0.771 | J41: 4048.69833 | L41: ='13. RTSR-Historic Wholesale'!L40 -> 5251.23 | M41: 1.7493 | N41: 9185.976639 | P41: 13234.67497
B42: April | D42: ='13. RTSR-Historic Wholesale'!D41 -> 5233.57 | E42: 3.1942 | F42: 16717.06929 | H42: ='13. RTSR-Historic Wholesale'!H41 -> 5233.57 | I42: 0.771 | J42: 4035.08247 | L42: ='13. RTSR-Historic Wholesale'!L41 -> 5233.57 | M42: 1.7493 | N42: 9155.084001 | P42: 13190.16647
B43: May | D43: ='13. RTSR-Historic Wholesale'!D42 -> 5303.27 | E43: 3.1942 | F43: 16939.70503 | H43: ='13. RTSR-Historic Wholesale'!H42 -> 5303.27 | I43: 0.771 | J43: 4088.82117 | L43: ='13. RTSR-Historic Wholesale'!L42 -> 5303.27 | M43: 1.7493 | N43: 9277.010211 | P43: 13365.83138
B44: June | D44: ='13. RTSR-Historic Wholesale'!D43 -> 31171.05 | E44: 3.1942 | F44: 99566.56791 | H44: ='13. RTSR-Historic Wholesale'!H43 -> 31171.05 | I44: 0.771 | J44: 24032.87955 | L44: ='13. RTSR-Historic Wholesale'!L43 -> 31171.05 | M44: 1.7493 | N44: 54527.51777 | P44: 78560.39732
B45: July | D45: ='13. RTSR-Historic Wholesale'!D44 -> 18191.19 | E45: 3.1942 | F45: 58106.2991 | H45: ='13. RTSR-Historic Wholesale'!H44 -> 18191.19 | I45: 0.771 | J45: 14025.40749 | L45: ='13. RTSR-Historic Wholesale'!L44 -> 18191.19 | M45: 1.7493 | N45: 31821.84867 | P45: 45847.25616
B46: August | D46: ='13. RTSR-Historic Wholesale'!D45 -> 30805.27 | E46: 3.1942 | F46: 98398.19343 | H46: ='13. RTSR-Historic Wholesale'!H45 -> 30805.27 | I46: 0.771 | J46: 23750.86317 | L46: ='13. RTSR-Historic Wholesale'!L45 -> 30805.27 | M46: 1.7493 | N46: 53887.65881 | P46: 77638.52198
B47: September | D47: ='13. RTSR-Historic Wholesale'!D46 -> 33450.1 | E47: 3.1942 | F47: 106846.3094 | H47: ='13. RTSR-Historic Wholesale'!H46 -> 33450.1 | I47: 0.771 | J47: 25790.0271 | L47: ='13. RTSR-Historic Wholesale'!L46 -> 33450.1 | M47: 1.7493 | N47: 58514.25993 | P47: 84304.28703
B48: October | D48: ='13. RTSR-Historic Wholesale'!D47 -> 17.34 | E48: 3.1942 | F48: 55.387428 | H48: ='13. RTSR-Historic Wholesale'!H47 -> 17.34 | I48: 0.771 | J48: 13.36914 | L48: ='13. RTSR-Historic Wholesale'!L47 -> 17.34 | M48: 1.7493 | N48: 30.332862 | P48: 43.702002
B49: November | D49: ='13. RTSR-Historic Wholesale'!D48 -> 11558.27 | E49: 3.1942 | F49: 36919.42603 | H49: ='13. RTSR-Historic Wholesale'!H48 -> 11558.27 | I49: 0.771 | J49: 8911.42617 | L49: ='13. RTSR-Historic Wholesale'!L48 -> 11558.27 | M49: 1.7493 | N49: 20218.88171 | P49: 29130.30788
B50: December | D50: ='13. RTSR-Historic Wholesale'!D49 -> 11874.31 | E50: 3.1942 | F50: 37928.921 | H50: ='13. RTSR-Historic Wholesale'!H49 -> 11874.31 | I50: 0.771 | J50: 9155.09301 | L50: ='13. RTSR-Historic Wholesale'!L49 -> 11874.31 | M50: 1.7493 | N50: 20771.73048 | P50: 29926.82349
B52: Total | D52: =SUM(D39:D50) -> 163252.45 | E52: =IF(D52<>0,F52/D52,0) -> 3.1942 | F52: =SUM(F39:F50) -> 521460.9758 | H52: =SUM(H39:H50) -> 163252.45 | I52: =IF(H52<>0,J52/H52,0) -> 0.771 | J52: =SUM(J39:J50) -> 125867.6389 | L52: =SUM(L39:L50) -> 163252.45 | M52: =IF(L52<>0,N52/L52,0) -> 1.7493 | N52: =SUM(N39:N50) -> 285577.5108 | P52: =SUM(P39:P50) -> 411445.1497
B54: ='[4]12. RTSR - Historical Wholesale'!B53 -> Add Extra Host Here (I) | D54: Network | H54: Line Connection | L54: Transformation Connection | P54: Total Line
B56: Month | D56: Units Billed | E56: Rate | F56: Amount | H56: Units Billed | I56: Rate | J56: Amount | L56: Units Billed | M56: Rate | N56: Amount | P56: Amount
B58: January | D58: ='13. RTSR-Historic Wholesale'!D57 -> 0 | E58: ='12. RTSR-UTRs & Sub-Tx'!I44 -> 0 | F58: =D58*E58 -> 0 | H58: ='13. RTSR-Historic Wholesale'!H57 -> 0 | I58: ='12. RTSR-UTRs & Sub-Tx'!I46 -> 0 | J58: =H58*I58 -> 0 | L58: ='13. RTSR-Historic Wholesale'!L57 -> 0 | M58: ='12. RTSR-UTRs & Sub-Tx'!I48 -> 0 | N58: =L58*M58 -> 0 | P58: =J58+N58 -> 0
B59: February | D59: ='13. RTSR-Historic Wholesale'!D58 -> 0 | E59: =E58 -> 0 | F59: 0 | H59: ='13. RTSR-Historic Wholesale'!H58 -> 0 | I59: =I58 -> 0 | J59: 0 | L59: ='13. RTSR-Historic Wholesale'!L58 -> 0 | M59: =M58 -> 0 | N59: 0 | P59: 0
B60: March | D60: ='13. RTSR-Historic Wholesale'!D59 -> 0 | E60: 0 | F60: 0 | H60: ='13. RTSR-Historic Wholesale'!H59 -> 0 | I60: 0 | J60: 0 | L60: ='13. RTSR-Historic Wholesale'!L59 -> 0 | M60: 0 | N60: 0 | P60: 0
B61: April | D61: ='13. RTSR-Historic Wholesale'!D60 -> 0 | E61: 0 | F61: 0 | H61: ='13. RTSR-Historic Wholesale'!H60 -> 0 | I61: 0 | J61: 0 | L61: ='13. RTSR-Historic Wholesale'!L60 -> 0 | M61: 0 | N61: 0 | P61: 0
B62: May | D62: ='13. RTSR-Historic Wholesale'!D61 -> 0 | E62: 0 | F62: 0 | H62: ='13. RTSR-Historic Wholesale'!H61 -> 0 | I62: 0 | J62: 0 | L62: ='13. RTSR-Historic Wholesale'!L61 -> 0 | M62: 0 | N62: 0 | P62: 0
B63: June | D63: ='13. RTSR-Historic Wholesale'!D62 -> 0 | E63: 0 | F63: 0 | H63: ='13. RTSR-Historic Wholesale'!H62 -> 0 | I63: 0 | J63: 0 | L63: ='13. RTSR-Historic Wholesale'!L62 -> 0 | M63: 0 | N63: 0 | P63: 0
B64: July | D64: ='13. RTSR-Historic Wholesale'!D63 -> 0 | E64: 0 | F64: 0 | H64: ='13. RTSR-Historic Wholesale'!H63 -> 0 | I64: 0 | J64: 0 | L64: ='13. RTSR-Historic Wholesale'!L63 -> 0 | M64: 0 | N64: 0 | P64: 0
B65: August | D65: ='13. RTSR-Historic Wholesale'!D64 -> 0 | E65: 0 | F65: 0 | H65: ='13. RTSR-Historic Wholesale'!H64 -> 0 | I65: 0 | J65: 0 | L65: ='13. RTSR-Historic Wholesale'!L64 -> 0 | M65: 0 | N65: 0 | P65: 0
B66: September | D66: ='13. RTSR-Historic Wholesale'!D65 -> 0 | E66: 0 | F66: 0 | H66: ='13. RTSR-Historic Wholesale'!H65 -> 0 | I66: 0 | J66: 0 | L66: ='13. RTSR-Historic Wholesale'!L65 -> 0 | M66: 0 | N66: 0 | P66: 0
B67: October | D67: ='13. RTSR-Historic Wholesale'!D66 -> 0 | E67: 0 | F67: 0 | H67: ='13. RTSR-Historic Wholesale'!H66 -> 0 | I67: 0 | J67: 0 | L67: ='13. RTSR-Historic Wholesale'!L66 -> 0 | M67: 0 | N67: 0 | P67: 0
B68: November | D68: ='13. RTSR-Historic Wholesale'!D67 -> 0 | E68: 0 | F68: 0 | H68: ='13. RTSR-Historic Wholesale'!H67 -> 0 | I68: 0 | J68: 0 | L68: ='13. RTSR-Historic Wholesale'!L67 -> 0 | M68: 0 | N68: 0 | P68: 0
B69: December | D69: ='13. RTSR-Historic Wholesale'!D68 -> 0 | E69: 0 | F69: 0 | H69: ='13. RTSR-Historic Wholesale'!H68 -> 0 | I69: 0 | J69: 0 | L69: ='13. RTSR-Historic Wholesale'!L68 -> 0 | M69: 0 | N69: 0 | P69: 0
B71: Total | D71: =SUM(D58:D69) -> 0 | E71: =IF(D71<>0,F71/D71,0) -> 0 | F71: =SUM(F58:F69) -> 0 | H71: =SUM(H58:H69) -> 0 | I71: =IF(H71<>0,J71/H71,0) -> 0 | J71: =SUM(J58:J69) -> 0 | L71: =SUM(L58:L69) -> 0 | M71: =IF(L71<>0,N71/L71,0) -> 0 | N71: =SUM(N58:N69) -> 0 | P71: =SUM(P58:P69) -> 0
B73: ='[4]12. RTSR - Historical Wholesale'!B72 -> Add Extra Host Here (II) | D73: Network | H73: Line Connection | L73: Transformation Connection | P73: Total Line
B75: Month | D75: Units Billed | E75: Rate | F75: Amount | H75: Units Billed | I75: Rate | J75: Amount | L75: Units Billed | M75: Rate | N75: Amount | P75: Amount
B77: January | D77: ='13. RTSR-Historic Wholesale'!D76 -> 0 | E77: ='12. RTSR-UTRs & Sub-Tx'!I59 -> 0 | F77: =D77*E77 -> 0 | H77: ='13. RTSR-Historic Wholesale'!H76 -> 0 | I77: ='12. RTSR-UTRs & Sub-Tx'!I61 -> 0 | J77: =H77*I77 -> 0 | L77: ='13. RTSR-Historic Wholesale'!L76 -> 0 | M77: ='12. RTSR-UTRs & Sub-Tx'!I63 -> 0 | N77: =L77*M77 -> 0 | P77: =J77+N77 -> 0
B78: February | D78: ='13. RTSR-Historic Wholesale'!D77 -> 0 | E78: =E77 -> 0 | F78: 0 | H78: ='13. RTSR-Historic Wholesale'!H77 -> 0 | I78: =I77 -> 0 | J78: 0 | L78: ='13. RTSR-Historic Wholesale'!L77 -> 0 | M78: =M77 -> 0 | N78: 0 | P78: 0
B79: March | D79: ='13. RTSR-Historic Wholesale'!D78 -> 0 | E79: 0 | F79: 0 | H79: ='13. RTSR-Historic Wholesale'!H78 -> 0 | I79: 0 | J79: 0 | L79: ='13. RTSR-Historic Wholesale'!L78 -> 0 | M79: 0 | N79: 0 | P79: 0
B80: April | D80: ='13. RTSR-Historic Wholesale'!D79 -> 0 | E80: 0 | F80: 0 | H80: ='13. RTSR-Historic Wholesale'!H79 -> 0 | I80: 0 | J80: 0 | L80: ='13. RTSR-Historic Wholesale'!L79 -> 0 | M80: 0 | N80: 0 | P80: 0
B81: May | D81: ='13. RTSR-Historic Wholesale'!D80 -> 0 | E81: 0 | F81: 0 | H81: ='13. RTSR-Historic Wholesale'!H80 -> 0 | I81: 0 | J81: 0 | L81: ='13. RTSR-Historic Wholesale'!L80 -> 0 | M81: 0 | N81: 0 | P81: 0
B82: June | D82: ='13. RTSR-Historic Wholesale'!D81 -> 0 | E82: 0 | F82: 0 | H82: ='13. RTSR-Historic Wholesale'!H81 -> 0 | I82: 0 | J82: 0 | L82: ='13. RTSR-Historic Wholesale'!L81 -> 0 | M82: 0 | N82: 0 | P82: 0
B83: July | D83: ='13. RTSR-Historic Wholesale'!D82 -> 0 | E83: 0 | F83: 0 | H83: ='13. RTSR-Historic Wholesale'!H82 -> 0 | I83: 0 | J83: 0 | L83: ='13. RTSR-Historic Wholesale'!L82 -> 0 | M83: 0 | N83: 0 | P83: 0
B84: August | D84: ='13. RTSR-Historic Wholesale'!D83 -> 0 | E84: 0 | F84: 0 | H84: ='13. RTSR-Historic Wholesale'!H83 -> 0 | I84: 0 | J84: 0 | L84: ='13. RTSR-Historic Wholesale'!L83 -> 0 | M84: 0 | N84: 0 | P84: 0
B85: September | D85: ='13. RTSR-Historic Wholesale'!D84 -> 0 | E85: 0 | F85: 0 | H85: ='13. RTSR-Historic Wholesale'!H84 -> 0 | I85: 0 | J85: 0 | L85: ='13. RTSR-Historic Wholesale'!L84 -> 0 | M85: 0 | N85: 0 | P85: 0
B86: October | D86: ='13. RTSR-Historic Wholesale'!D85 -> 0 | E86: 0 | F86: 0 | H86: ='13. RTSR-Historic Wholesale'!H85 -> 0 | I86: 0 | J86: 0 | L86: ='13. RTSR-Historic Wholesale'!L85 -> 0 | M86: 0 | N86: 0 | P86: 0
B87: November | D87: ='13. RTSR-Historic Wholesale'!D86 -> 0 | E87: 0 | F87: 0 | H87: ='13. RTSR-Historic Wholesale'!H86 -> 0 | I87: 0 | J87: 0 | L87: ='13. RTSR-Historic Wholesale'!L86 -> 0 | M87: 0 | N87: 0 | P87: 0
B88: December | D88: ='13. RTSR-Historic Wholesale'!D87 -> 0 | E88: 0 | F88: 0 | H88: ='13. RTSR-Historic Wholesale'!H87 -> 0 | I88: 0 | J88: 0 | L88: ='13. RTSR-Historic Wholesale'!L87 -> 0 | M88: 0 | N88: 0 | P88: 0
L89: ='13. RTSR-Historic Wholesale'!L88 -> 0
B90: Total | D90: =SUM(D77:D88) -> 0 | E90: =IF(D90<>0,F90/D90,0) -> 0 | F90: =SUM(F77:F88) -> 0 | H90: =SUM(H77:H88) -> 0 | I90: =IF(H90<>0,J90/H90,0) -> 0 | J90: =SUM(J77:J88) -> 0 | L90: =SUM(L77:L88) -> 0 | M90: =IF(L90<>0,N90/L90,0) -> 0 | N90: =SUM(N77:N88) -> 0 | P90: =SUM(P77:P88) -> 0
B92: Total | D92: Network | H92: Line Connection | L92: Transformation Connection | P92: Total Line
B94: Month | D94: Units Billed | E94: Rate | F94: Amount | H94: Units Billed | I94: Rate | J94: Amount | L94: Units Billed | M94: Rate | N94: Amount | P94: Amount
B96: January | D96: =D20+D39+D58+D77 -> 598660.42 | E96: =IF(D96<>0,F96/D96,0) -> 3.705455611 | F96: =F20+F39+F58+F77 -> 2218309.612 | H96: =H20+H39+H58+H77 -> 632470.42 | I96: =IF(H96<>0,J96/H96,0) -> 0.9385906424 | J96: =J20+J39+J58+J77 -> 593630.8178 | L96: =L20+L39+L58+L77 -> 545424.42 | M96: =IF(L96<>0,N96/L96,0) -> 2.245158079 | N96: =N20+N39+N58+N77 -> 1224564.043 | P96: =J96+N96 -> 1818194.861
B97: February | D97: =D21+D40+D59+D78 -> 589338.43 | E97: 3.705516754 | F97: =F21+F40+F59+F78 -> 2183803.426 | H97: =H21+H40+H59+H78 -> 604717.43 | I97: 0.9385684377 | J97: =J21+J40+J59+J78 -> 567568.6935 | L97: =L21+L40+L59+L78 -> 522914.43 | M97: 2.245095181 | N97: =N21+N40+N59+N78 -> 1173992.667 | P97: 1741561.36
B98: March | D98: 563918.23 | E98: 3.705196849 | F98: 2089428.049 | H98: 594914.23 | I98: 0.9385082591 | J98: 558331.9183 | L98: 518610.23 | M98: 2.244930121 | N98: 1164243.727 | P98: 1722575.645
B99: April | D99: 563150.57 | E99: 3.705206477 | F99: 2086589.139 | H99: 582207.57 | I99: 0.9384808282 | J99: 546390.6425 | L99: 505446.57 | M99: 2.244815578 | N99: 1134634.334 | P99: 1681024.976
B100: May | D100: 746378.27 | E100: 3.706335067 | F100: 2766327.955 | H100: 770135.27 | I100: 0.93883624 | J100: 723030.9012 | L100: 668768.27 | M100: 2.246029496 | N100: 1502073.26 | P100: 2225104.161
B101: June | D101: 807295.05 | E101: 3.690084075 | F101: 2978986.608 | H101: 847800.05 | I101: 0.9337863799 | J101: 791664.1395 | L101: 727562.05 | M101: 2.228548435 | N101: 1621407.268 | P101: 2413071.407
B102: July | D102: 851666.19 | E102: 3.698982754 | F102: 3150298.549 | H102: 861763.19 | I102: 0.9364325337 | J102: 806983.0875 | L102: 738410.19 | M102: 2.237664947 | N102: 1652314.599 | P102: 2459297.686
B103: August | D103: 788495.27 | E103: 3.689848505 | F103: 2909428.093 | H103: 823108.27 | I103: 0.933675084 | J103: 768515.6832 | L103: 711819.27 | M103: 2.228331299 | N103: 1586169.159 | P103: 2354684.842
B104: September | D104: 849217.1 | E104: 3.689682979 | F104: 3133341.879 | H104: 873439.1 | I104: 0.9335278065 | J104: 815379.6871 | L104: 746213.1 | M104: 2.227555386 | N104: 1662231.01 | P104: 2477610.697
B105: October | D105: 596035.34 | E105: 3.709984994 | F105: 2211282.167 | H105: 621306.34 | I105: 0.9399952834 | J105: 584025.0291 | L105: 536183.34 | M105: 2.249983808 | N105: 1206403.833 | P105: 1790428.862
B106: November | D106: 579548.27 | E106: 3.699713099 | F106: 2144162.326 | H106: 605895.27 | I106: 0.9367760969 | J106: 567588.2062 | L106: 519746.27 | M106: 2.238865287 | N106: 1163641.882 | P106: 1731230.088
B107: December | D107: 567859.31 | E107: 3.699214284 | F107: 2100633.271 | H107: 610873.31 | I107: 0.9367149352 | J107: 572214.153 | L107: 530086.31 | M107: 2.238783964 | N107: 1186748.73 | P107: 1758962.883
B109: Total | D109: =SUM(D96:D107) -> 8101562.45 | E109: =IF(D109<>0,F109/D109,0) -> 3.69960625 | F109: =SUM(F96:F107) -> 29972591.08 | H109: =SUM(H96:H107) -> 8428630.45 | I109: =IF(H109<>0,J109/H109,0) -> 0.9367266729 | J109: =SUM(J96:J107) -> 7895322.959 | L109: =SUM(L96:L107) -> 7271184.45 | M109: =IF(L109<>0,N109/L109,0) -> 2.238758296 | N109: =SUM(N96:N107) -> 16278424.51 | P109: =SUM(P96:P107) -> 24173747.47
N111: Low Voltage Switchgear Credit (if applicable) | P111: ='12. RTSR-UTRs & Sub-Tx'!I68 -> 0
N113: Total including deduction for Low Voltage Switchgear Credit | P113: =P109+P111 -> 24173747.47

Sheet 16. RTSR-Rates to Forecast
A1: Back to Index
B2: =+'1. Information Sheet'!B2 -> INCENTIVE REGULATION MODEL FOR 2020 FILERS
B13: The purpose of this table is to re-align the current RTS Network Rates to recover current wholesale network costs.
B15: Rate Class | C15: Rate Description | D15: Unit | E15: Current RTSR-Network | F15: Loss Adjusted Billed kWh | G15: Billed kW | H15: Billed Amount | I15: Billed Amount % | J15: Current Wholesale Billing | K15: Adjusted RTSR Network
A17: ='11. RTSR - Current Rates'!A16 -> R_TN | B17: ='11. RTSR - Current Rates'!B16 -> RESIDENTIAL SERVICE CLASSIFICATION | C17: =IFERROR(VLOOKUP(A17,RTSR,3,FALSE),"") -> Retail Transmission Rate – Network Service Rate | D17: =IFERROR(VLOOKUP(A17,RTSR,4,FALSE),"") -> $/kWh | E17: =IFERROR(VLOOKUP(A17,_xlnm.DATABASE,8,FALSE),0) -> 0.0072 | F17: =IF(D17="$/kWh",IFERROR(VLOOKUP(A17,RTSR,9,FALSE),0),"") -> 1432358603 | G17: =IFERROR(VLOOKUP(A17,RTSR,7,FALSE),0) -> 0 | H17: =IF(G17=0,IF(ISERROR(E17*F17),0,ROUND(E17*F17,2)),IF(ISERROR(E17*G17),0,ROUND(E17*G17,2))) -> 10312981.94 | I17: =IFERROR(H17/SUM(H$17:H$26),"") -> 0.3614171434 | J17: =IFERROR(I17*total_wholesale_TN,"") -> 10832608.25 | K17: =IF(G17=0,IF(ISERROR(J17/F17),0,J17/F17),IF(ISERROR(J17/G17),0,J17/G17)) -> 0.007562776684
A18: ='11. RTSR - Current Rates'!A17 -> GSL_TN | B18: ='11. RTSR - Current Rates'!B17 -> GENERAL SERVICE LESS THAN 50 kW SERVICE CLASSIFICATION | C18: Retail Transmission Rate – Network Service Rate | D18: $/kWh | E18: =IFERROR(VLOOKUP(A18,_xlnm.DATABASE,8,FALSE),0) -> 0.0064 | F18: 356543106.2 | G18: 0 | H18: =IF(G18=0,IF(ISERROR(E18*F18),0,ROUND(E18*F18,2)),IF(ISERROR(E18*G18),0,ROUND(E18*G18,2))) -> 2281875.88 | I18: =IFERROR(H18/SUM(H$17:H$26),"") -> 0.07996805065 | J18: =IFERROR(I18*total_wholesale_TN,"") -> 2396849.681 | K18: =IF(G18=0,IF(ISERROR(J18/F18),0,J18/F18),IF(ISERROR(J18/G18),0,J18/G18)) -> 0.006722468166
A19: ='11. RTSR - Current Rates'!A18 -> GS50_699_TN | B19: ='11. RTSR - Current Rates'!B18 -> GENERAL SERVICE 50 to 699 KW SERVICE CLASSIFICATION | C19: Retail Transmission Rate – Network Service Rate | D19: $/kW | E19: 2.4987 | G19: 3179602.842 | H19: 7944873.62 | I19: 0.2784270878 | J19: 8345181.248 | K19: 2.624598626
A20: ='11. RTSR - Current Rates'!A19 -> GS700_TN | B20: ='11. RTSR - Current Rates'!B19 -> GENERAL SERVICE 700 to 4,999 KW SERVICE CLASSIFICATION | C20: Retail Transmission Rate – Network Service Rate | D20: $/kW | E20: 2.8022 | G20: 2020563.238 | H20: 5662022.31 | I20: 0.1984248534 | J20: 5947306.989 | K20: 2.943390673
A21: ='11. RTSR - Current Rates'!A20 -> LU_TN | B21: ='11. RTSR - Current Rates'!B20 -> LARGE USE SERVICE CLASSIFICATION | C21: Retail Transmission Rate – Network Service Rate | D21: $/kW | E21: 3.1716 | G21: 657857.0874 | H21: 2086459.54 | I21: 0.07311970982 | J21: 2191587.162 | K21: 3.331403133
A22: ='11. RTSR - Current Rates'!A21 -> SB | B22: ='11. RTSR - Current Rates'!B21 -> STANDBY POWER SERVICE CLASSIFICATION | E22: 0 | G22: 0 | H22: 0 | I22: 0 | J22: 0 | K22: 0
A23: ='11. RTSR - Current Rates'!A22 -> USL_TN | B23: ='11. RTSR - Current Rates'!B22 -> UNMETERED SCATTERED LOAD SERVICE CLASSIFICATION | C23: Retail Transmission Rate – Network Service Rate | D23: $/kWh | E23: 0.0064 | F23: 6116343.75 | G23: 0 | H23: 39144.6 | I23: 0.00137181754 | J23: 41116.92615 | K23: 0.006722468166
A24: ='11. RTSR - Current Rates'!A23 -> SL_TN | B24: ='11. RTSR - Current Rates'!B23 -> STREET LIGHTING SERVICE CLASSIFICATION | C24: Retail Transmission Rate – Network Service Rate | D24: $/kW | E24: 2.0806 | G24: 98841.90329 | H24: 205650.46 | I24: 0.007206994275 | J24: 216012.2923 | K24: 2.185432343
A25: ='11. RTSR - Current Rates'!A24 -> EMD_TN | B25: ='11. RTSR - Current Rates'!B24 -> EMBEDDED DISTRIBUTOR SERVICE CLASSIFICATION | C25: Retail Transmission Rate – Network Service Rate | D25: $/kW | E25: 2.8022 | G25: 0 | H25: 0 | I25: 0 | J25: 0 | K25: =K20 -> 2.943390673
A26: ='11. RTSR - Current Rates'!A25 -> DG_TN | B26: ='11. RTSR - Current Rates'!B25 -> DISTRIBUTED GENERATION [DGEN] SERVICE CLASSIFICATION | C26: =IFERROR(VLOOKUP(A26,RTSR,3,FALSE),"") -> Retail Transmission Rate – Network Service Rate | D26: =IFERROR(VLOOKUP(A26,RTSR,4,FALSE),"") -> $/kWh | E26: =IFERROR(VLOOKUP(A26,_xlnm.DATABASE,8,FALSE),0) -> 0.0064 | F26: 286878.125 | G26: =IFERROR(VLOOKUP(A26,RTSR,7,FALSE),0) -> 0 | H26: =IF(G26=0,IF(ISERROR(E26*F26),0,ROUND(E26*F26,2)),IF(ISERROR(E26*G26),0,ROUND(E26*G26,2))) -> 1836.02 | I26: 6.434308792e-05 | J26: 1928.529063 | K26: =IF(G26=0,IF(ISERROR(J26/F26),0,J26/F26),IF(ISERROR(J26/G26),0,J26/G26)) -> 0.006722468166
B32: The purpose of this table is to re-align the current RTS Connection Rates to recover current wholesale connection costs.
B33: Rate Class | C33: Rate Description | D33: Unit | E33: Current RTSR-Connection | F33: Loss Adjusted Billed kWh | G33: Billed kW | H33: Billed Amount | I33: Billed Amount % | J33: Current Wholesale Billing | K33: Adjusted RTSR-Connection
A35: ='11. RTSR - Current Rates'!A29 -> R_TC | B35: ='11. RTSR - Current Rates'!B29 -> RESIDENTIAL SERVICE CLASSIFICATION | C35: =IFERROR(VLOOKUP(A35,RTSR,3,FALSE),"") -> Retail Transmission Rate – Line and Transformation Connection Service Rate | D35: =IFERROR(VLOOKUP(A35,RTSR,4,FALSE),"") -> $/kWh | E35: =IFERROR(VLOOKUP(A35,_xlnm.DATABASE,8,FALSE),0) -> 0.0063 | F35: =IF(D35="$/kWh",IFERROR(VLOOKUP(A35,RTSR,9,FALSE),0),"") -> 1432358603 | G35: =IFERROR(VLOOKUP(A35,RTSR,7,FALSE),0) -> 0 | H35: =IF(G35=0,IF(ISERROR(E35*F35),0,ROUND(E35*F35,2)),IF(ISERROR(E35*G35),0,ROUND(E35*G35,2))) -> 9023859.2 | I35: =IFERROR(H35/SUM(H$35:H$44),"") -> 0.3725419753 | J35: =IFERROR(I35*total_wholesale_LinePlus,"") -> 9005735.633 | K35: =IF(G35=0,IF(ISERROR(J35/F35),0,J35/F35),IF(ISERROR(J35/G35),0,J35/G35)) -> 0.006287347046
A36: ='11. RTSR - Current Rates'!A30 -> GSL_TC | B36: ='11. RTSR - Current Rates'!B30 -> GENERAL SERVICE LESS THAN 50 kW SERVICE CLASSIFICATION | C36: Retail Transmission Rate – Line and Transformation Connection Service Rate | D36: $/kWh | E36: 0.0053 | F36: 356543106.2 | G36: 0 | H36: =IF(G36=0,IF(ISERROR(E36*F36),0,ROUND(E36*F36,2)),IF(ISERROR(E36*G36),0,ROUND(E36*G36,2))) -> 1889678.46 | I36: =IFERROR(H36/SUM(H$35:H$44),"") -> 0.0780136891 | J36: 1885883.22 | K36: =IF(G36=0,IF(ISERROR(J36/F36),0,J36/F36),IF(ISERROR(J36/G36),0,J36/G36)) -> 0.005289355443
A37: ='11. RTSR - Current Rates'!A31 -> GS50_699_TC | B37: ='11. RTSR - Current Rates'!B31 -> GENERAL SERVICE 50 to 699 KW SERVICE CLASSIFICATION | C37: Retail Transmission Rate – Line and Transformation Connection Service Rate | D37: $/kW | E37: 2.1236 | G37: 3179602.842 | H37: 6752204.59 | I37: 0.2787587417 | J37: 6738643.426 | K37: 2.119334949
A38: ='11. RTSR - Current Rates'!A32 -> GS700_TC | B38: ='11. RTSR - Current Rates'!B32 -> GENERAL SERVICE 700 to 4,999 KW SERVICE CLASSIFICATION | C38: Retail Transmission Rate – Line and Transformation Connection Service Rate | D38: $/kW | E38: 2.2827 | G38: 2020563.238 | H38: 4612339.7 | I38: 0.190416329 | J38: 4603076.252 | K38: 2.278115412
A39: ='11. RTSR - Current Rates'!A33 -> LU_TC | B39: ='11. RTSR - Current Rates'!B33 -> LARGE USE SERVICE CLASSIFICATION | C39: Retail Transmission Rate – Line and Transformation Connection Service Rate | D39: $/kW | E39: 2.6383 | G39: 657857.0874 | H39: 1735624.35 | I39: 0.07165370263 | J39: 1732138.513 | K39: 2.633001218
A40: ='11. RTSR - Current Rates'!A34 -> SB | B40: ='11. RTSR - Current Rates'!B34 -> STANDBY POWER SERVICE CLASSIFICATION | E40: 0 | G40: 0 | H40: 0 | I40: 0 | J40: 0 | K40: 0
